Workbook

Sheet Introduction
C4: Joint Monitoring Programme for Water Supply, Sanitation and Hygiene
C6: Estimates on household water, sanitation and hygiene by wealth quintile and sub-national region in
C7: =+Water!B5 -> Senegal
C9: Updated April 2021
C11: Follow the links below to find the following information:
C13: JMP Estimates
C14: WASH status and trends by wealth quintile (customized quintiles made without water and sanitation assets)
C15: Water
C16: Sanitation
C17: Hygiene
C19: Data inputs
C20: customized wealth quintiles and subnational data:
C21: =IF(INDIRECT(CONCATENATE("Water","!B105"))=0,"",INDIRECT(CONCATENATE("Water","!B105"))) -> MICS00
C22: =IF(INDIRECT(CONCATENATE("Water","!B106"))=0,"",INDIRECT(CONCATENATE("Water","!B106"))) -> DHS05
C23: =IF(INDIRECT(CONCATENATE("Water","!B107"))=0,"",INDIRECT(CONCATENATE("Water","!B107"))) -> MIS06
C24: =IF(INDIRECT(CONCATENATE("Water","!B108"))=0,"",INDIRECT(CONCATENATE("Water","!B108"))) -> MIS09
C25: =IF(INDIRECT(CONCATENATE("Water","!B109"))=0,"",INDIRECT(CONCATENATE("Water","!B109"))) -> DHS11
C26: =IF(INDIRECT(CONCATENATE("Water","!B110"))=0,"",INDIRECT(CONCATENATE("Water","!B110"))) -> DHS13
C27: =IF(INDIRECT(CONCATENATE("Water","!B111"))=0,"",INDIRECT(CONCATENATE("Water","!B111"))) -> DHS15
C28: =IF(INDIRECT(CONCATENATE("Water","!B112"))=0,"",INDIRECT(CONCATENATE("Water","!B112"))) -> DHS17
C29: =IF(INDIRECT(CONCATENATE("Water","!B113"))=0,"",INDIRECT(CONCATENATE("Water","!B113"))) -> DHS18
C30: =IF(INDIRECT(CONCATENATE("Water","!B114"))=0,"",INDIRECT(CONCATENATE("Water","!B114"))) -> DHS19
C31: =IF(INDIRECT(CONCATENATE("Water","!B115"))=0,"",INDIRECT(CONCATENATE("Water","!B115"))) -> 
C32: =IF(INDIRECT(CONCATENATE("Water","!B116"))=0,"",INDIRECT(CONCATENATE("Water","!B116"))) -> 
L55: =+IF(ISNUMBER(M48), "", "Insufficient data to estimate safely managed sanitation services at national level") -> Insufficient data to estimate safely managed sanitation services at national level

Sheet Water
A1: BGD
B4: Summary of trends in use of drinking water by wealth quintile (%)
B5: =IF(ISERROR(INDIRECT(CONCATENATE($B105,"!A2"))),"",INDIRECT(CONCATENATE($B105,"!A2"))) -> Senegal
B7: =B118 -> National use of drinking water sources, 2000–2020 | J7: =B218 -> Urban use of drinking water sources, 2000–2020 | R7: =B318 -> Rural use of drinking water sources, 2000–2020
B31: =IF(ISERROR(INDIRECT(CONCATENATE($B105,"!A2"))),"",INDIRECT(CONCATENATE($B105,"!A2"))) -> Senegal | F31: Poorest | J31: Poor | N31: Middle | R31: Rich | V31: Richest
F32: Basic | G32: Limited | H32: Unimproved | I32: Surface water | J32: Basic | K32: Limited | L32: Unimproved | M32: Surface water | N32: Basic | O32: Limited | P32: Unimproved | Q32: Surface water | R32: Basic | S32: Limited | T32: Unimproved | U32: Surface water | V32: Basic | W32: Limited | X32: Unimproved | Y32: Surface water
B33: NATIONAL | D33: Estimate | E33: =C99 -> 2000 | F33: =E99 -> 35.59162574 | G33: =F99 -> 6.93736557 | H33: 56.67784878 | I33: 0.7931599137 | J33: =J99 -> 39.0110257 | K33: =K99 -> 3.144757972 | L33: 55.35196686 | M33: 2.492249464 | N33: =O99 -> 57.67144978 | O33: =P99 -> 2.029692166 | P33: 37.40198023 | Q33: 2.896877822 | R33: =T99 -> 88.1672197 | S33: =U99 -> 1.29522019 | T33: 10.09592136 | U33: 0.4416387543 | V33: =Y99 -> 96.32229507 | W33: =Z99 -> 0.4683966766 | X33: 3.162623643 | Y33: 0.04668460913
E34: =C100 -> 2020 | F34: =E100 -> 51.64854075 | G34: 10.06710991 | H34: 37.26391398 | I34: 1.020435351 | J34: =J100 -> 68.61581175 | K34: 5.531259871 | L34: 25.69860937 | M34: 0.1543190096 | N34: =O100 -> 88.62763413 | O34: 3.119165816 | P34: 8.253200058 | Q34: 0 | R34: =T100 -> 95.62725425 | S34: 1.404811797 | T34: 2.967933948 | U34: 0 | V34: =Y100 -> 98.46417906 | W34: 0.4788122438 | X34: 1.057008698 | Y34: 0
B36: URBAN | D36: Estimate | E36: =C199 -> 2000 | F36: =E199 -> 72.25539336 | G36: =F199 -> 2.752558553 | H36: 24.32282442 | I36: 0.6692236722 | J36: =J199 -> 91.0785086 | K36: =K199 -> 1.094901828 | L36: 7.82658957 | M36: 0 | N36: =O199 -> 94.04545321 | O36: =P199 -> 0.9974637024 | P36: 4.955030902 | Q36: 0.002052181702 | R36: =T199 -> 97.13657762 | S36: =U199 -> 0.4230828031 | T36: 2.440339576 | U36: 0 | V36: =Y199 -> 97.89638142 | W36: =Z199 -> 0.3494367215 | X36: 1.749429642 | Y36: 0.004752211328
E37: =C200 -> 2020 | F37: =E200 -> 76.63967023 | G37: 2.919576933 | H37: 20.18190217 | I37: 0.2588506657 | J37: =J200 -> 94.72063276 | K37: 1.138685685 | L37: 4.140681558 | M37: 0 | N37: =O200 -> 96.57655447 | O37: 1.024309037 | P37: 2.398342721 | Q37: 0.000793768394 | R37: =T200 -> 98.18183877 | S37: 0.4276354858 | T37: 1.390525742 | U37: 0 | V37: =Y200 -> 99.1800416 | W37: 0.3540186887 | X37: 0.4591738559 | Y37: 0.006765860196
B39: RURAL | D39: Estimate | E39: =C299 -> 2000 | F39: =E299 -> 33.43195704 | G39: =F299 -> 8.552312117 | H39: 57.3924627 | I39: 0.6232681416 | J39: =J299 -> 37.30328873 | K39: =K299 -> 4.747254391 | L39: 56.49937538 | M39: 1.450081504 | N39: =O299 -> 35.14690704 | O39: =P299 -> 2.92062852 | P39: 59.24262521 | Q39: 2.68983923 | R39: =T299 -> 46.49638746 | S39: =U299 -> 1.943048968 | T39: 47.65324873 | U39: 3.907314842 | V39: =Y299 -> 68.91576697 | W39: =Z299 -> 2.09491963 | X39: 26.85881381 | Y39: 2.130499588
E40: =C300 -> 2020 | F40: =E300 -> 47.14330532 | G40: 12.05984624 | H40: 39.76272406 | I40: 1.034124381 | J40: =J300 -> 57.96999995 | K40: 7.37732104 | L40: 33.66769703 | M40: 0.9849819772 | N40: =O300 -> 69.2460962 | O40: 5.754194053 | P40: 24.80256393 | Q40: 0.1971458159 | R40: =T300 -> 82.61647088 | S40: 3.452480015 | T40: 13.9310491 | U40: 0 | V40: =Y300 -> 95.71453672 | W40: 2.909555688 | X40: 1.375907591 | Y40: 0
A97: NATIONAL | D97: Poorest | I97: Poor | N97: Middle | S97: Rich | X97: Richest
D98: Improved | E98: Basic | F98: Limited | G98: Unimproved | H98: Surface water | I98: Improved | J98: Basic | K98: Limited | L98: Unimproved | M98: Surface water | N98: Improved | O98: Basic | P98: Limited | Q98: Unimproved | R98: Surface water | S98: Improved | T98: Basic | U98: Limited | V98: Unimproved | W98: Surface water | X98: Improved | Y98: Basic | Z98: Limited | AA98: Unimproved | AB98: Surface water
A99: Forecast period: | C99: =MinBase(C105:C116) -> 2000 | D99: =IF((D101+H101)>100,D101*100/(D101+H101),D101) -> 42.52899131 | E99: =D99*AVERAGEIF(E105:E116,">0")/100 -> 35.59162574 | F99: =D99*(100-AVERAGEIF(E105:E116,">0"))/100 -> 6.93736557 | G99: =100-(E99+F99+H99) -> 56.67784878 | H99: =IF((D101+H101)>100,H101*100/(D101+H101),H101) -> 0.7931599137 | I99: =IF((I101+M101)>100,I101*100/(I101+M101),I101) -> 42.15578367 | J99: =I99*AVERAGEIF(J105:J116,">0")/100 -> 39.0110257 | K99: =I99*(100-AVERAGEIF(J105:J116,">0"))/100 -> 3.144757972 | L99: =100-(J99+K99+M99) -> 55.35196686 | M99: =IF((I101+M101)>100,M101*100/(I101+M101),M101) -> 2.492249464 | N99: =IF((N101+R101)>100,N101*100/(N101+R101),N101) -> 59.70114194 | O99: =N99*AVERAGEIF(O105:O116,">0")/100 -> 57.67144978 | P99: =N99*(100-AVERAGEIF(O105:O116,">0"))/100 -> 2.029692166 | Q99: =100-(O99+P99+R99) -> 37.40198023 | R99: =IF((N101+R101)>100,R101*100/(N101+R101),R101) -> 2.896877822 | S99: =IF((S101+W101)>100,S101*100/(S101+W101),S101) -> 89.46243989 | T99: =S99*AVERAGEIF(T105:T116,">0")/100 -> 88.1672197 | U99: =S99*(100-AVERAGEIF(T105:T116,">0"))/100 -> 1.29522019 | V99: =100-(T99+U99+W99) -> 10.09592136 | W99: =IF((S101+W101)>100,W101*100/(S101+W101),W101) -> 0.4416387543 | X99: =IF((X101+AB101)>100,X101*100/(X101+AB101),X101) -> 96.79069175 | Y99: =X99*AVERAGEIF(Y105:Y116,">0")/100 -> 96.32229507 | Z99: =X99*(100-AVERAGEIF(Y105:Y116,">0"))/100 -> 0.4683966766 | AA99: =100-(Y99+Z99+AB99) -> 3.162623643 | AB99: =IF((X101+AB101)>100,AB101*100/(X101+AB101),AB101) -> 0.04668460913
C100: =MaxTarget(C105:C116) -> 2020 | D100: =IF((D102+H102)>100,D102*100/(D102+H102),D102) -> 61.71565066 | E100: =D100*AVERAGEIF(E105:E116,">0")/100 -> 51.64854075 | F100: =D100*(100-AVERAGEIF(E105:E116,">0"))/100 -> 10.06710991 | G100: =100-(E100+F100+H100) -> 37.26391398 | H100: =IF((D102+H102)>100,H102*100/(D102+H102),H102) -> 1.020435351 | I100: =IF((I102+M102)>100,I102*100/(I102+M102),I102) -> 74.14707162 | J100: =I100*AVERAGEIF(J105:J116,">0")/100 -> 68.61581175 | K100: =I100*(100-AVERAGEIF(J105:J116,">0"))/100 -> 5.531259871 | L100: =100-(J100+K100+M100) -> 25.69860937 | M100: =IF((I102+M102)>100,M102*100/(I102+M102),M102) -> 0.1543190096 | N100: =IF((N102+R102)>100,N102*100/(N102+R102),N102) -> 91.74679994 | O100: =N100*AVERAGEIF(O105:O116,">0")/100 -> 88.62763413 | P100: =N100*(100-AVERAGEIF(O105:O116,">0"))/100 -> 3.119165816 | Q100: =100-(O100+P100+R100) -> 8.253200058 | R100: =IF((N102+R102)>100,R102*100/(N102+R102),R102) -> 0 | S100: =IF((S102+W102)>100,S102*100/(S102+W102),S102) -> 97.03206605 | T100: =S100*AVERAGEIF(T105:T116,">0")/100 -> 95.62725425 | U100: =S100*(100-AVERAGEIF(T105:T116,">0"))/100 -> 1.404811797 | V100: =100-(T100+U100+W100) -> 2.967933948 | W100: =IF((S102+W102)>100,W102*100/(S102+W102),W102) -> 0 | X100: =IF((X102+AB102)>100,X102*100/(X102+AB102),X102) -> 98.9429913 | Y100: =X100*AVERAGEIF(Y105:Y116,">0")/100 -> 98.46417906 | Z100: =X100*(100-AVERAGEIF(Y105:Y116,">0"))/100 -> 0.4788122438 | AA100: =100-(Y100+Z100+AB100) -> 1.057008698 | AB100: =IF((X102+AB102)>100,AB102*100/(X102+AB102),AB102) -> 0
A101: Regression period: | C101: =MinRegYear(C99,C105:C116) -> 2000 | D101: =IF(MAX(C105:C116)-MIN(C105:C116)<5,AVERAGEIF(C105:C116,">0",D105:D116), IF(FORECAST($C101,D$105:D$116,$C$105:$C$116)<0,0, IF(FORECAST($C101,D$105:D$116,$C$105:$C$116)>100,100, FORECAST($C101,D$105:D$116,$C$105:$C$116)))) -> 42.52899131 | H101: =IF(MAX(C105:C116)-MIN(C105:C116)<5,AVERAGEIF(C105:C116,">0",H105:H116), IF(FORECAST($C101,H$105:H$116,$C$105:$C$116)<0,0, IF(FORECAST($C101,H$105:H$116,$C$105:$C$116)>100,100, FORECAST($C101,H$105:H$116,$C$105:$C$116)))) -> 0.7931599137 | I101: =IF(MAX(C105:C116)-MIN(C105:C116)<5,AVERAGEIF(C105:C116,">0",I105:I116), IF(FORECAST($C101,I$105:I$116,$C$105:$C$116)<0,0, IF(FORECAST($C101,I$105:I$116,$C$105:$C$116)>100,100, FORECAST($C101,I$105:I$116,$C$105:$C$116)))) -> 42.15578367 | M101: =IF(MAX(C105:C116)-MIN(C105:C116)<5,AVERAGEIF(C105:C116,">0",M105:M116), IF(FORECAST($C101,M$105:M$116,$C$105:$C$116)<0,0, IF(FORECAST($C101,M$105:M$116,$C$105:$C$116)>100,100, FORECAST($C101,M$105:M$116,$C$105:$C$116)))) -> 2.492249464 | N101: =IF(MAX(C105:C116)-MIN(C105:C116)<5,AVERAGEIF(C105:C116,">0",N105:N116), IF(FORECAST($C101,N$105:N$116,$C$105:$C$116)<0,0, IF(FORECAST($C101,N$105:N$116,$C$105:$C$116)>100,100, FORECAST($C101,N$105:N$116,$C$105:$C$116)))) -> 59.70114194 | R101: =IF(MAX(C105:C116)-MIN(C105:C116)<5,AVERAGEIF(C105:C116,">0",R105:R116), IF(FORECAST($C101,R$105:R$116,$C$105:$C$116)<0,0, IF(FORECAST($C101,R$105:R$116,$C$105:$C$116)>100,100, FORECAST($C101,R$105:R$116,$C$105:$C$116)))) -> 2.896877822 | S101: =IF(MAX(C105:C116)-MIN(C105:C116)<5,AVERAGEIF(C105:C116,">0",S105:S116), IF(FORECAST($C101,S$105:S$116,$C$105:$C$116)<0,0, IF(FORECAST($C101,S$105:S$116,$C$105:$C$116)>100,100, FORECAST($C101,S$105:S$116,$C$105:$C$116)))) -> 89.46243989 | W101: =IF(MAX(C105:C116)-MIN(C105:C116)<5,AVERAGEIF(C105:C116,">0",W105:W116), IF(FORECAST($C101,W$105:W$116,$C$105:$C$116)<0,0, IF(FORECAST($C101,W$105:W$116,$C$105:$C$116)>100,100, FORECAST($C101,W$105:W$116,$C$105:$C$116)))) -> 0.4416387543 | X101: =IF(MAX(C105:C116)-MIN(C105:C116)<5,AVERAGEIF(C105:C116,">0",X105:X116), IF(FORECAST($C101,X$105:X$116,$C$105:$C$116)<0,0, IF(FORECAST($C101,X$105:X$116,$C$105:$C$116)>100,100, FORECAST($C101,X$105:X$116,$C$105:$C$116)))) -> 96.79069175 | AB101: =IF(MAX(C105:C116)-MIN(C105:C116)<5,AVERAGEIF(C105:C116,">0",AB105:AB116), IF(FORECAST($C101,AB$105:AB$116,$C$105:$C$116)<0,0, IF(FORECAST($C101,AB$105:AB$116,$C$105:$C$116)>100,100, FORECAST($C101,AB$105:AB$116,$C$105:$C$116)))) -> 0.04668460913
C102: =MaxRegYear(C100,C105:C116) -> 2020 | D102: =IF(MAX(C105:C116)-MIN(C105:C116)<5,AVERAGEIF(C105:C116,">0",D105:D116), IF(FORECAST($C102,D$105:D$116,$C$105:$C$116)<0,0, IF(FORECAST($C102,D$105:D$116,$C$105:$C$116)>100,100, FORECAST($C102,D$105:D$116,$C$105:$C$116)))) -> 61.71565066 | H102: =IF(MAX(C105:C116)-MIN(C105:C116)<5,AVERAGEIF(C105:C116,">0",H105:H116), IF(FORECAST($C102,H$105:H$116,$C$105:$C$116)<0,0, IF(FORECAST($C102,H$105:H$116,$C$105:$C$116)>100,100, FORECAST($C102,H$105:H$116,$C$105:$C$116)))) -> 1.020435351 | I102: =IF(MAX(C105:C116)-MIN(C105:C116)<5,AVERAGEIF(C105:C116,">0",I105:I116), IF(FORECAST($C102,I$105:I$116,$C$105:$C$116)<0,0, IF(FORECAST($C102,I$105:I$116,$C$105:$C$116)>100,100, FORECAST($C102,I$105:I$116,$C$105:$C$116)))) -> 74.14707162 | M102: =IF(MAX(C105:C116)-MIN(C105:C116)<5,AVERAGEIF(C105:C116,">0",M105:M116), IF(FORECAST($C102,M$105:M$116,$C$105:$C$116)<0,0, IF(FORECAST($C102,M$105:M$116,$C$105:$C$116)>100,100, FORECAST($C102,M$105:M$116,$C$105:$C$116)))) -> 0.1543190096 | N102: =IF(MAX(C105:C116)-MIN(C105:C116)<5,AVERAGEIF(C105:C116,">0",N105:N116), IF(FORECAST($C102,N$105:N$116,$C$105:$C$116)<0,0, IF(FORECAST($C102,N$105:N$116,$C$105:$C$116)>100,100, FORECAST($C102,N$105:N$116,$C$105:$C$116)))) -> 91.74679994 | R102: =IF(MAX(C105:C116)-MIN(C105:C116)<5,AVERAGEIF(C105:C116,">0",R105:R116), IF(FORECAST($C102,R$105:R$116,$C$105:$C$116)<0,0, IF(FORECAST($C102,R$105:R$116,$C$105:$C$116)>100,100, FORECAST($C102,R$105:R$116,$C$105:$C$116)))) -> 0 | S102: =IF(MAX(C105:C116)-MIN(C105:C116)<5,AVERAGEIF(C105:C116,">0",S105:S116), IF(FORECAST($C102,S$105:S$116,$C$105:$C$116)<0,0, IF(FORECAST($C102,S$105:S$116,$C$105:$C$116)>100,100, FORECAST($C102,S$105:S$116,$C$105:$C$116)))) -> 97.03206605 | W102: =IF(MAX(C105:C116)-MIN(C105:C116)<5,AVERAGEIF(C105:C116,">0",W105:W116), IF(FORECAST($C102,W$105:W$116,$C$105:$C$116)<0,0, IF(FORECAST($C102,W$105:W$116,$C$105:$C$116)>100,100, FORECAST($C102,W$105:W$116,$C$105:$C$116)))) -> 0 | X102: =IF(MAX(C105:C116)-MIN(C105:C116)<5,AVERAGEIF(C105:C116,">0",X105:X116), IF(FORECAST($C102,X$105:X$116,$C$105:$C$116)<0,0, IF(FORECAST($C102,X$105:X$116,$C$105:$C$116)>100,100, FORECAST($C102,X$105:X$116,$C$105:$C$116)))) -> 98.9429913 | AB102: =IF(MAX(C105:C116)-MIN(C105:C116)<5,AVERAGEIF(C105:C116,">0",AB105:AB116), IF(FORECAST($C102,AB$105:AB$116,$C$105:$C$116)<0,0, IF(FORECAST($C102,AB$105:AB$116,$C$105:$C$116)>100,100, FORECAST($C102,AB$105:AB$116,$C$105:$C$116)))) -> 0
B104: Survey | C104: Year | D104: Improved | E104: % Improved < = 30min | H104: Surface water | I104: Improved | J104: % Improved < = 30min | M104: Surface water | N104: Improved | O104: % Improved < = 30min | R104: Surface water | S104: Improved | T104: % Improved < = 30min | W104: Surface water | X104: Improved | Y104: % Improved < = 30min | AB104: Surface water
B105: MICS00 | C105: 2000 | D105: =IF(ISERROR(INDIRECT(CONCATENATE($B105,"!C16"))),"",INDIRECT(CONCATENATE($B105,"!C16"))) -> 47.80712927 | E105: =IF(ISERROR(INDIRECT(CONCATENATE($B105,"!C23"))),"",INDIRECT(CONCATENATE($B105,"!C23"))) -> 75.70839316 | H105: =IF(ISERROR(INDIRECT(CONCATENATE($B105,"!C21"))),"",INDIRECT(CONCATENATE($B105,"!C21"))) -> 1.46583325 | I105: =IF(ISERROR(INDIRECT(CONCATENATE($B105,"!D16"))),"",INDIRECT(CONCATENATE($B105,"!D16"))) -> 46.82966763 | J105: =IF(ISERROR(INDIRECT(CONCATENATE($B105,"!D23"))),"",INDIRECT(CONCATENATE($B105,"!D23"))) -> 87.25544295 | M105: =IF(ISERROR(INDIRECT(CONCATENATE($B105,"!D21"))),"",INDIRECT(CONCATENATE($B105,"!D21"))) -> 3.485199146 | N105: =IF(ISERROR(INDIRECT(CONCATENATE($B105,"!E16"))),"",INDIRECT(CONCATENATE($B105,"!E16"))) -> 57.90014457 | O105: =IF(ISERROR(INDIRECT(CONCATENATE($B105,"!E23"))),"",INDIRECT(CONCATENATE($B105,"!E23"))) -> 90.43502801 | R105: =IF(ISERROR(INDIRECT(CONCATENATE($B105,"!E21"))),"",INDIRECT(CONCATENATE($B105,"!E21"))) -> 3.914737677 | S105: =IF(ISERROR(INDIRECT(CONCATENATE($B105,"!F16"))),"",INDIRECT(CONCATENATE($B105,"!F16"))) -> 88.54914243 | T105: =IF(ISERROR(INDIRECT(CONCATENATE($B105,"!F23"))),"",INDIRECT(CONCATENATE($B105,"!F23"))) -> 97.39385295 | W105: =IF(ISERROR(INDIRECT(CONCATENATE($B105,"!F21"))),"",INDIRECT(CONCATENATE($B105,"!F21"))) -> 0.3438989005 | X105: =IF(ISERROR(INDIRECT(CONCATENATE($B105,"!G16"))),"",INDIRECT(CONCATENATE($B105,"!G16"))) -> 95.26579207 | Y105: =IF(ISERROR(INDIRECT(CONCATENATE($B105,"!G23"))),"",INDIRECT(CONCATENATE($B105,"!G23"))) -> 98.46397108 | AB105: =IF(ISERROR(INDIRECT(CONCATENATE($B105,"!G221"))),"",INDIRECT(CONCATENATE($B105,"!G21"))) -> 0
B106: DHS05 | C106: 2005 | D106: 42.62900085 | E106: N/A | H106: 0.3199049164 | I106: 49.59199609 | J106: N/A | M106: 1.376352323 | N106: 69.38363213 | O106: N/A | R106: 1.563275688 | S106: 92.00813385 | T106: N/A | W106: 0.76560771 | X106: 97.61560933 | Y106: N/A | AB106: 0.1328139928
B107: MIS06 | C107: 2006 | D107: 45.88085306 | E107: N/A | H107: 0.1091470707 | I107: 48.72858258 | J107: N/A | M107: 0.653720492 | N107: 74.12735682 | O107: N/A | R107: 0.2136365155 | S107: 91.93299089 | T107: N/A | W107: 0 | X107: 98.63895269 | Y107: N/A | AB107: 0
B108: MIS09 | C108: 2009 | D108: 49.94965124 | E108: N/A | H108: 1.5676213 | I108: 53.18021829 | J108: N/A | M108: 2.028068514 | N108: 67.03329611 | O108: N/A | R108: 2.519427236 | S108: 93.68586691 | T108: N/A | W108: 0.2585241734 | X108: 98.43215427 | Y108: N/A | AB108: 0.0219548238
B109: DHS11 | C109: 2011 | D109: 57.46568544 | E109: 84.2 | H109: 0.9589215759 | I109: 61.82878648 | J109: 93.8 | M109: 1.176846674 | N109: 83.22988893 | O109: 97.2 | R109: 0.3818293707 | S109: 94.10728254 | T109: 99.4 | W109: 0 | X109: 99.14433131 | Y109: 99.7 | AB109: 0.02347388371
B110: DHS13 | C110: 2013 | D110: 53.32855184 | E110: 80.7 | H110: 0.8544968388 | I110: 62.59419472 | J110: 91.7 | M110: 0.6023804078 | N110: 80.02339867 | O110: 96.4 | R110: 0.3054810747 | S110: 93.45647463 | T110: 97.7 | W110: 0 | X110: 97.5920089 | Y110: 99.7 | AB110: 0
B111: DHS15 | C111: 2015 | D111: =IF(ISERROR(INDIRECT(CONCATENATE($B111,"!C16"))),"",INDIRECT(CONCATENATE($B111,"!C16"))) -> 51.29074316 | E111: =IF(ISERROR(INDIRECT(CONCATENATE($B111,"!C23"))),"",INDIRECT(CONCATENATE($B111,"!C23"))) -> 89.21796454 | H111: =IF(ISERROR(INDIRECT(CONCATENATE($B111,"!C21"))),"",INDIRECT(CONCATENATE($B111,"!C21"))) -> 0.2190362693 | I111: =IF(ISERROR(INDIRECT(CONCATENATE($B111,"!D16"))),"",INDIRECT(CONCATENATE($B111,"!D16"))) -> 59.67527572 | J111: =IF(ISERROR(INDIRECT(CONCATENATE($B111,"!D23"))),"",INDIRECT(CONCATENATE($B111,"!D23"))) -> 92.73878867 | M111: =IF(ISERROR(INDIRECT(CONCATENATE($B111,"!D21"))),"",INDIRECT(CONCATENATE($B111,"!D21"))) -> 0.1608677778 | N111: =IF(ISERROR(INDIRECT(CONCATENATE($B111,"!E16"))),"",INDIRECT(CONCATENATE($B111,"!E16"))) -> 77.02306014 | O111: =IF(ISERROR(INDIRECT(CONCATENATE($B111,"!E23"))),"",INDIRECT(CONCATENATE($B111,"!E23"))) -> 96.38536794 | R111: =IF(ISERROR(INDIRECT(CONCATENATE($B111,"!E21"))),"",INDIRECT(CONCATENATE($B111,"!E21"))) -> 0.02544295966 | S111: =IF(ISERROR(INDIRECT(CONCATENATE($B111,"!F16"))),"",INDIRECT(CONCATENATE($B111,"!F16"))) -> 94.17138148 | T111: =IF(ISERROR(INDIRECT(CONCATENATE($B111,"!F23"))),"",INDIRECT(CONCATENATE($B111,"!F23"))) -> 97.18283538 | W111: =IF(ISERROR(INDIRECT(CONCATENATE($B111,"!F21"))),"",INDIRECT(CONCATENATE($B111,"!F21"))) -> 0 | X111: =IF(ISERROR(INDIRECT(CONCATENATE($B111,"!G16"))),"",INDIRECT(CONCATENATE($B111,"!G16"))) -> 97.36140954 | Y111: =IF(ISERROR(INDIRECT(CONCATENATE($B111,"!G23"))),"",INDIRECT(CONCATENATE($B111,"!G23"))) -> 99.53389588 | AB111: =IF(ISERROR(INDIRECT(CONCATENATE($B111,"!G221"))),"",INDIRECT(CONCATENATE($B111,"!G21"))) -> 0
B112: DHS17 | C112: 2017 | D112: =IF(ISERROR(INDIRECT(CONCATENATE($B112,"!C16"))),"",INDIRECT(CONCATENATE($B112,"!C16"))) -> 61.33432779 | E112: =IF(ISERROR(INDIRECT(CONCATENATE($B112,"!C23"))),"",INDIRECT(CONCATENATE($B112,"!C23"))) -> 88.46811969 | H112: =IF(ISERROR(INDIRECT(CONCATENATE($B112,"!C21"))),"",INDIRECT(CONCATENATE($B112,"!C21"))) -> 1.126222859 | I112: =IF(ISERROR(INDIRECT(CONCATENATE($B112,"!D16"))),"",INDIRECT(CONCATENATE($B112,"!D16"))) -> 69.08161195 | J112: =IF(ISERROR(INDIRECT(CONCATENATE($B112,"!D23"))),"",INDIRECT(CONCATENATE($B112,"!D23"))) -> 95.73967169 | M112: =IF(ISERROR(INDIRECT(CONCATENATE($B112,"!D21"))),"",INDIRECT(CONCATENATE($B112,"!D21"))) -> 1.686771486 | N112: =IF(ISERROR(INDIRECT(CONCATENATE($B112,"!E16"))),"",INDIRECT(CONCATENATE($B112,"!E16"))) -> 86.73053085 | O112: =IF(ISERROR(INDIRECT(CONCATENATE($B112,"!E23"))),"",INDIRECT(CONCATENATE($B112,"!E23"))) -> 99.04274123 | R112: =IF(ISERROR(INDIRECT(CONCATENATE($B112,"!E21"))),"",INDIRECT(CONCATENATE($B112,"!E21"))) -> 0.08571240185 | S112: =IF(ISERROR(INDIRECT(CONCATENATE($B112,"!F16"))),"",INDIRECT(CONCATENATE($B112,"!F16"))) -> 96.76158389 | T112: =IF(ISERROR(INDIRECT(CONCATENATE($B112,"!F23"))),"",INDIRECT(CONCATENATE($B112,"!F23"))) -> 99.88582452 | W112: =IF(ISERROR(INDIRECT(CONCATENATE($B112,"!F21"))),"",INDIRECT(CONCATENATE($B112,"!F21"))) -> 0.04036918447 | X112: =IF(ISERROR(INDIRECT(CONCATENATE($B112,"!G16"))),"",INDIRECT(CONCATENATE($B112,"!G16"))) -> 99.0343009 | Y112: =IF(ISERROR(INDIRECT(CONCATENATE($B112,"!G23"))),"",INDIRECT(CONCATENATE($B112,"!G23"))) -> 99.76881228 | AB112: =IF(ISERROR(INDIRECT(CONCATENATE($B112,"!G221"))),"",INDIRECT(CONCATENATE($B112,"!G21"))) -> 0
B113: DHS18 | C113: 2018 | D113: 61.13064919 | E113: 88.75131466 | H113: 1.585449699 | I113: 74.98539811 | J113: 92.0152858 | M113: 0.271765217 | N113: 90.77090385 | O113: 97.79194833 | R113: 0 | S113: 97.56329395 | T113: 98.85764391 | W113: 0 | X113: 98.89514153 | Y113: 99.70106148 | AB113: 0
B114: DHS19 | C114: 2019 | D114: 62.87794661 | E114: 78.76960707 | H114: N/A | I114: 75.81288205 | J114: 94.53186515 | M114: N/A | N114: 91.84717505 | O114: 98.94663409 | R114: N/A | S114: 95.15663615 | T114: 99.44537637 | W114: N/A | X114: 98.08770941 | Y114: 99.74476749 | AB114: N/A
B118: =CONCATENATE("National use of drinking water sources, ",C99,"–",C100) -> National use of drinking water sources, 2000–2020 | S118: Data points used for regression
E153: =IF(ISERROR(INDIRECT(CONCATENATE($B153,"!M18"))),"",INDIRECT(CONCATENATE($B153,"!M18"))) ->  | F153: =IF(ISERROR(INDIRECT(CONCATENATE($B153,"!M19"))),"",INDIRECT(CONCATENATE($B153,"!M19"))) ->  | G153: =IF(ISERROR(INDIRECT(CONCATENATE($B153,"!M20"))),"",INDIRECT(CONCATENATE($B153,"!M20"))) ->  | H153: =IF(ISERROR(INDIRECT(CONCATENATE($B153,"!M21"))),"",INDIRECT(CONCATENATE($B153,"!M21"))) ->  | J153: =IF(ISERROR(INDIRECT(CONCATENATE($B153,"!N18"))),"",INDIRECT(CONCATENATE($B153,"!N18"))) ->  | K153: =IF(ISERROR(INDIRECT(CONCATENATE($B153,"!N19"))),"",INDIRECT(CONCATENATE($B153,"!N19"))) ->  | L153: =IF(ISERROR(INDIRECT(CONCATENATE($B153,"!N20"))),"",INDIRECT(CONCATENATE($B153,"!N20"))) ->  | M153: =IF(ISERROR(INDIRECT(CONCATENATE($B153,"!N21"))),"",INDIRECT(CONCATENATE($B153,"!N21"))) ->  | O153: =IF(ISERROR(INDIRECT(CONCATENATE($B153,"!O18"))),"",INDIRECT(CONCATENATE($B153,"!O18"))) ->  | P153: =IF(ISERROR(INDIRECT(CONCATENATE($B153,"!O19"))),"",INDIRECT(CONCATENATE($B153,"!O19"))) ->  | Q153: =IF(ISERROR(INDIRECT(CONCATENATE($B153,"!O20"))),"",INDIRECT(CONCATENATE($B153,"!O20"))) ->  | R153: =IF(ISERROR(INDIRECT(CONCATENATE($B153,"!O21"))),"",INDIRECT(CONCATENATE($B153,"!O21"))) ->  | T153: =IF(ISERROR(INDIRECT(CONCATENATE($B153,"!P18"))),"",INDIRECT(CONCATENATE($B153,"!P18"))) ->  | U153: =IF(ISERROR(INDIRECT(CONCATENATE($B153,"!P19"))),"",INDIRECT(CONCATENATE($B153,"!P19"))) ->  | V153: =IF(ISERROR(INDIRECT(CONCATENATE($B153,"!P20"))),"",INDIRECT(CONCATENATE($B153,"!P20"))) ->  | W153: =IF(ISERROR(INDIRECT(CONCATENATE($B153,"!P21"))),"",INDIRECT(CONCATENATE($B153,"!P21"))) ->  | Y153: =IF(ISERROR(INDIRECT(CONCATENATE($B153,"!Q18"))),"",INDIRECT(CONCATENATE($B153,"!Q18"))) ->  | Z153: =IF(ISERROR(INDIRECT(CONCATENATE($B153,"!Q19"))),"",INDIRECT(CONCATENATE($B153,"!Q19"))) ->  | AA153: =IF(ISERROR(INDIRECT(CONCATENATE($B153,"!Q20"))),"",INDIRECT(CONCATENATE($B153,"!Q20"))) ->  | AB153: =IF(ISERROR(INDIRECT(CONCATENATE($B153,"!Q21"))),"",INDIRECT(CONCATENATE($B153,"!Q1"))) -> 
A197: URBAN | D197: Poorest | I197: Poor | N197: Middle | S197: Rich | X197: Richest
D198: Improved | E198: Basic | F198: Limited | G198: Unimproved | H198: Surface water | I198: Improved | J198: Basic | K198: Limited | L198: Unimproved | M198: Surface water | N198: Improved | O198: Basic | P198: Limited | Q198: Unimproved | R198: Surface water | S198: Improved | T198: Basic | U198: Limited | V198: Unimproved | W198: Surface water | X198: Improved | Y198: Basic | Z198: Limited | AA198: Unimproved | AB198: Surface water
A199: Forecast period: | C199: 2000 | D199: =IF((D201+H201)>100,D201*100/(D201+H201),D201) -> 75.00795191 | E199: =D199*AVERAGEIF(E205:E216,">0")/100 -> 72.25539336 | F199: =D199*(100-AVERAGEIF(E205:E216,">0"))/100 -> 2.752558553 | G199: =100-(E199+F199+H199) -> 24.32282442 | H199: =IF((D201+H201)>100,H201*100/(D201+H201),H201) -> 0.6692236722 | I199: =IF((I201+M201)>100,I201*100/(I201+M201),I201) -> 92.17341043 | J199: =I199*AVERAGEIF(J205:J216,">0")/100 -> 91.0785086 | K199: =I199*(100-AVERAGEIF(J205:J216,">0"))/100 -> 1.094901828 | L199: =100-(J199+K199+M199) -> 7.82658957 | M199: =IF((I201+M201)>100,M201*100/(I201+M201),M201) -> 0 | N199: =IF((N201+R201)>100,N201*100/(N201+R201),N201) -> 95.04291692 | O199: =N199*AVERAGEIF(O205:O216,">0")/100 -> 94.04545321 | P199: =N199*(100-AVERAGEIF(O205:O216,">0"))/100 -> 0.9974637024 | Q199: =100-(O199+P199+R199) -> 4.955030902 | R199: =IF((N201+R201)>100,R201*100/(N201+R201),R201) -> 0.002052181702 | S199: =IF((S201+W201)>100,S201*100/(S201+W201),S201) -> 97.55966042 | T199: =S199*AVERAGEIF(T205:T216,">0")/100 -> 97.13657762 | U199: =S199*(100-AVERAGEIF(T205:T216,">0"))/100 -> 0.4230828031 | V199: =100-(T199+U199+W199) -> 2.440339576 | W199: =IF((S201+W201)>100,W201*100/(S201+W201),W201) -> 0 | X199: =IF((X201+AB201)>100,X201*100/(X201+AB201),X201) -> 98.24581815 | Y199: =X199*AVERAGEIF(Y205:Y216,">0")/100 -> 97.89638142 | Z199: =X199*(100-AVERAGEIF(Y205:Y216,">0"))/100 -> 0.3494367215 | AA199: =100-(Y199+Z199+AB199) -> 1.749429642 | AB199: =IF((X201+AB201)>100,AB201*100/(X201+AB201),AB201) -> 0.004752211328
C200: 2020 | D200: =IF((D202+H202)>100,D202*100/(D202+H202),D202) -> 79.55924716 | E200: =D200*AVERAGEIF(E205:E216,">0")/100 -> 76.63967023 | F200: =D200*(100-AVERAGEIF(E205:E216,">0"))/100 -> 2.919576933 | G200: =100-(E200+F200+H200) -> 20.18190217 | H200: =IF((D202+H202)>100,H202*100/(D202+H202),H202) -> 0.2588506657 | I200: =IF((I202+M202)>100,I202*100/(I202+M202),I202) -> 95.85931844 | J200: =I200*AVERAGEIF(J205:J216,">0")/100 -> 94.72063276 | K200: =I200*(100-AVERAGEIF(J205:J216,">0"))/100 -> 1.138685685 | L200: =100-(J200+K200+M200) -> 4.140681558 | M200: =IF((I202+M202)>100,M202*100/(I202+M202),M202) -> 0 | N200: =IF((N202+R202)>100,N202*100/(N202+R202),N202) -> 97.60086351 | O200: =N200*AVERAGEIF(O205:O216,">0")/100 -> 96.57655447 | P200: =N200*(100-AVERAGEIF(O205:O216,">0"))/100 -> 1.024309037 | Q200: =100-(O200+P200+R200) -> 2.398342721 | R200: =IF((N202+R202)>100,R202*100/(N202+R202),R202) -> 0.000793768394 | S200: =IF((S202+W202)>100,S202*100/(S202+W202),S202) -> 98.60947426 | T200: =S200*AVERAGEIF(T205:T216,">0")/100 -> 98.18183877 | U200: =S200*(100-AVERAGEIF(T205:T216,">0"))/100 -> 0.4276354858 | V200: =100-(T200+U200+W200) -> 1.390525742 | W200: =IF((S202+W202)>100,W202*100/(S202+W202),W202) -> 0 | X200: =IF((X202+AB202)>100,X202*100/(X202+AB202),X202) -> 99.53406028 | Y200: =X200*AVERAGEIF(Y205:Y216,">0")/100 -> 99.1800416 | Z200: =X200*(100-AVERAGEIF(Y205:Y216,">0"))/100 -> 0.3540186887 | AA200: =100-(Y200+Z200+AB200) -> 0.4591738559 | AB200: =IF((X202+AB202)>100,AB202*100/(X202+AB202),AB202) -> 0.006765860196
A201: Regression period: | C201: =MinRegYear(C199,C205:C216) -> 2000 | D201: =IF(MAX(C205:C216)-MIN(C205:C216)<5,AVERAGEIF(C205:C216,">0",D205:D216), IF(FORECAST($C201,D$205:D$216,$C$205:$C$216)<0,0, IF(FORECAST($C201,D$205:D$216,$C$205:$C$216)>100,100, FORECAST($C201,D$205:D$216,$C$205:$C$216)))) -> 75.00795191 | H201: =IF(MAX(C205:C216)-MIN(C205:C216)<5,AVERAGEIF(C205:C216,">0",H205:H216), IF(FORECAST($C201,H$205:H$216,$C$205:$C$216)<0,0, IF(FORECAST($C201,H$205:H$216,$C$205:$C$216)>100,100, FORECAST($C201,H$205:H$216,$C$205:$C$216)))) -> 0.6692236722 | I201: =IF(MAX(C205:C216)-MIN(C205:C216)<5,AVERAGEIF(C205:C216,">0",I205:I216), IF(FORECAST($C201,I$205:I$216,$C$205:$C$216)<0,0, IF(FORECAST($C201,I$205:I$216,$C$205:$C$216)>100,100, FORECAST($C201,I$205:I$216,$C$205:$C$216)))) -> 92.17341043 | M201: =IF(MAX(C205:C216)-MIN(C205:C216)<5,AVERAGEIF(C205:C216,">0",M205:M216), IF(FORECAST($C201,M$205:M$216,$C$205:$C$216)<0,0, IF(FORECAST($C201,M$205:M$216,$C$205:$C$216)>100,100, FORECAST($C201,M$205:M$216,$C$205:$C$216)))) -> 0 | N201: =IF(MAX(C205:C216)-MIN(C205:C216)<5,AVERAGEIF(C205:C216,">0",N205:N216), IF(FORECAST($C201,N$205:N$216,$C$205:$C$216)<0,0, IF(FORECAST($C201,N$205:N$216,$C$205:$C$216)>100,100, FORECAST($C201,N$205:N$216,$C$205:$C$216)))) -> 95.04291692 | R201: =IF(MAX(C205:C216)-MIN(C205:C216)<5,AVERAGEIF(C205:C216,">0",R205:R216), IF(FORECAST($C201,R$205:R$216,$C$205:$C$216)<0,0, IF(FORECAST($C201,R$205:R$216,$C$205:$C$216)>100,100, FORECAST($C201,R$205:R$216,$C$205:$C$216)))) -> 0.002052181702 | S201: =IF(MAX(C205:C216)-MIN(C205:C216)<5,AVERAGEIF(C205:C216,">0",S205:S216), IF(FORECAST($C201,S$205:S$216,$C$205:$C$216)<0,0, IF(FORECAST($C201,S$205:S$216,$C$205:$C$216)>100,100, FORECAST($C201,S$205:S$216,$C$205:$C$216)))) -> 97.55966042 | W201: =IF(MAX(C205:C216)-MIN(C205:C216)<5,AVERAGEIF(C205:C216,">0",W205:W216), IF(FORECAST($C201,W$205:W$216,$C$205:$C$216)<0,0, IF(FORECAST($C201,W$205:W$216,$C$205:$C$216)>100,100, FORECAST($C201,W$205:W$216,$C$205:$C$216)))) -> 0 | X201: =IF(MAX(C205:C216)-MIN(C205:C216)<5,AVERAGEIF(C205:C216,">0",X205:X216), IF(FORECAST($C201,X$205:X$216,$C$205:$C$216)<0,0, IF(FORECAST($C201,X$205:X$216,$C$205:$C$216)>100,100, FORECAST($C201,X$205:X$216,$C$205:$C$216)))) -> 98.24581815 | AB201: =IF(MAX(C205:C216)-MIN(C205:C216)<5,AVERAGEIF(C205:C216,">0",AB205:AB216), IF(FORECAST($C201,AB$205:AB$216,$C$205:$C$216)<0,0, IF(FORECAST($C201,AB$205:AB$216,$C$205:$C$216)>100,100, FORECAST($C201,AB$205:AB$216,$C$205:$C$216)))) -> 0.004752211328
C202: =MaxRegYear(C200,C205:C216) -> 2020 | D202: =IF(MAX(C205:C216)-MIN(C205:C216)<5,AVERAGEIF(C205:C216,">0",D205:D216), IF(FORECAST($C202,D$205:D$216,$C$205:$C$216)<0,0, IF(FORECAST($C202,D$205:D$216,$C$205:$C$216)>100,100, FORECAST($C202,D$205:D$216,$C$205:$C$216)))) -> 79.55924716 | H202: =IF(MAX(C205:C216)-MIN(C205:C216)<5,AVERAGEIF(C205:C216,">0",H205:H216), IF(FORECAST($C202,H$205:H$216,$C$205:$C$216)<0,0, IF(FORECAST($C202,H$205:H$216,$C$205:$C$216)>100,100, FORECAST($C202,H$205:H$216,$C$205:$C$216)))) -> 0.2588506657 | I202: =IF(MAX(C205:C216)-MIN(C205:C216)<5,AVERAGEIF(C205:C216,">0",I205:I216), IF(FORECAST($C202,I$205:I$216,$C$205:$C$216)<0,0, IF(FORECAST($C202,I$205:I$216,$C$205:$C$216)>100,100, FORECAST($C202,I$205:I$216,$C$205:$C$216)))) -> 95.85931844 | M202: =IF(MAX(C205:C216)-MIN(C205:C216)<5,AVERAGEIF(C205:C216,">0",M205:M216), IF(FORECAST($C202,M$205:M$216,$C$205:$C$216)<0,0, IF(FORECAST($C202,M$205:M$216,$C$205:$C$216)>100,100, FORECAST($C202,M$205:M$216,$C$205:$C$216)))) -> 0 | N202: =IF(MAX(C205:C216)-MIN(C205:C216)<5,AVERAGEIF(C205:C216,">0",N205:N216), IF(FORECAST($C202,N$205:N$216,$C$205:$C$216)<0,0, IF(FORECAST($C202,N$205:N$216,$C$205:$C$216)>100,100, FORECAST($C202,N$205:N$216,$C$205:$C$216)))) -> 97.60086351 | R202: =IF(MAX(C205:C216)-MIN(C205:C216)<5,AVERAGEIF(C205:C216,">0",R205:R216), IF(FORECAST($C202,R$205:R$216,$C$205:$C$216)<0,0, IF(FORECAST($C202,R$205:R$216,$C$205:$C$216)>100,100, FORECAST($C202,R$205:R$216,$C$205:$C$216)))) -> 0.000793768394 | S202: =IF(MAX(C205:C216)-MIN(C205:C216)<5,AVERAGEIF(C205:C216,">0",S205:S216), IF(FORECAST($C202,S$205:S$216,$C$205:$C$216)<0,0, IF(FORECAST($C202,S$205:S$216,$C$205:$C$216)>100,100, FORECAST($C202,S$205:S$216,$C$205:$C$216)))) -> 98.60947426 | W202: =IF(MAX(C205:C216)-MIN(C205:C216)<5,AVERAGEIF(C205:C216,">0",W205:W216), IF(FORECAST($C202,W$205:W$216,$C$205:$C$216)<0,0, IF(FORECAST($C202,W$205:W$216,$C$205:$C$216)>100,100, FORECAST($C202,W$205:W$216,$C$205:$C$216)))) -> 0 | X202: =IF(MAX(C205:C216)-MIN(C205:C216)<5,AVERAGEIF(C205:C216,">0",X205:X216), IF(FORECAST($C202,X$205:X$216,$C$205:$C$216)<0,0, IF(FORECAST($C202,X$205:X$216,$C$205:$C$216)>100,100, FORECAST($C202,X$205:X$216,$C$205:$C$216)))) -> 99.53406028 | AB202: =IF(MAX(C205:C216)-MIN(C205:C216)<5,AVERAGEIF(C205:C216,">0",AB205:AB216), IF(FORECAST($C202,AB$205:AB$216,$C$205:$C$216)<0,0, IF(FORECAST($C202,AB$205:AB$216,$C$205:$C$216)>100,100, FORECAST($C202,AB$205:AB$216,$C$205:$C$216)))) -> 0.006765860196
B204: Survey | C204: Year | D204: Improved | E204: % Improved < = 30min | H204: Surface water | I204: Improved | J204: % Improved < = 30min | M204: Surface water | N204: Improved | O204: % Improved < = 30min | R204: Surface water | S204: Improved | T204: % Improved < = 30min | W204: Surface water | X204: Improved | Y204: % Improved < = 30min | AB204: Surface water
B205: MICS00 | C205: 2000 | D205: =IF(ISERROR(INDIRECT(CONCATENATE($B205,"!H16"))),"",INDIRECT(CONCATENATE($B205,"!H16"))) -> 77.63803098 | E205: =IF(ISERROR(INDIRECT(CONCATENATE($B205,"!H23"))),"",INDIRECT(CONCATENATE($B205,"!H23"))) -> 94.94203833 | H205: =IF(ISERROR(INDIRECT(CONCATENATE($B205,"!H21"))),"",INDIRECT(CONCATENATE($B205,"!H21"))) -> 0 | I205: =IF(ISERROR(INDIRECT(CONCATENATE($B205,"!I16"))),"",INDIRECT(CONCATENATE($B205,"!I16"))) -> 93.07568931 | J205: =IF(ISERROR(INDIRECT(CONCATENATE($B205,"!I23"))),"",INDIRECT(CONCATENATE($B205,"!I23"))) -> 98.65619218 | M205: =IF(ISERROR(INDIRECT(CONCATENATE($B205,"!I21"))),"",INDIRECT(CONCATENATE($B205,"!I21"))) -> 0 | N205: =IF(ISERROR(INDIRECT(CONCATENATE($B205,"!J16"))),"",INDIRECT(CONCATENATE($B205,"!J16"))) -> 92.74671303 | O205: =IF(ISERROR(INDIRECT(CONCATENATE($B205,"!J23"))),"",INDIRECT(CONCATENATE($B205,"!J23"))) -> 100 | R205: =IF(ISERROR(INDIRECT(CONCATENATE($B205,"!J21"))),"",INDIRECT(CONCATENATE($B205,"!J21"))) -> 0 | S205: =IF(ISERROR(INDIRECT(CONCATENATE($B205,"!K16"))),"",INDIRECT(CONCATENATE($B205,"!K16"))) -> 96.87262591 | T205: =IF(ISERROR(INDIRECT(CONCATENATE($B205,"!K23"))),"",INDIRECT(CONCATENATE($B205,"!K23"))) -> 97.83344518 | W205: =IF(ISERROR(INDIRECT(CONCATENATE($B205,"!K21"))),"",INDIRECT(CONCATENATE($B205,"!K21"))) -> 0 | X205: =IF(ISERROR(INDIRECT(CONCATENATE($B205,"!L16"))),"",INDIRECT(CONCATENATE($B205,"!L16"))) -> 96.86565757 | Y205: =IF(ISERROR(INDIRECT(CONCATENATE($B205,"!L23"))),"",INDIRECT(CONCATENATE($B205,"!L23"))) -> 99.89765151 | AB205: =IF(ISERROR(INDIRECT(CONCATENATE($B205,"!L221"))),"",INDIRECT(CONCATENATE($B205,"!L21"))) -> 0
B206: DHS05 | C206: 2005 | D206: 75.86764077 | E206: N/A | H206: 0 | I206: 91.33180619 | J206: N/A | M206: 0 | N206: 96.76508677 | O206: N/A | R206: 0 | S206: 97.93616159 | T206: N/A | W206: 0 | X206: 99.65493649 | Y206: N/A | AB206: 0
B207: MIS06 | C207: 2006 | D207: 73.54098449 | E207: N/A | H207: 0 | I207: 94.79944599 | J207: N/A | M207: 0 | N207: 98.3503873 | O207: N/A | R207: 0 | S207: 97.8084422 | T207: N/A | W207: 0 | X207: 99.12205515 | Y207: N/A | AB207: 0
B208: MIS09 | C208: 2009 | D208: 77.23825 | E208: N/A | H208: 4.094259919 | I208: 94.66233278 | J208: N/A | M208: 0 | N208: 97.57002842 | O208: N/A | R208: 0.01255509277 | S208: 99.07298784 | T208: N/A | W208: 0 | X208: 98.78548021 | Y208: N/A | AB208: 0
B209: DHS11 | C209: 2011 | D209: 81.84718605 | E209: 97.3 | H209: 0 | I209: 93.30871426 | J209: 99 | M209: 0 | N209: 96.75604794 | O209: 99.4 | R209: 0 | S209: 98.85777356 | T209: 100 | W209: 0 | X209: 99.93715662 | Y209: 99.4 | AB209: 0.05223405163
B210: DHS13 | C210: 2013 | D210: 78.14673731 | E210: 93.8 | H210: 0 | I210: 93.51710594 | J210: 97.4 | M210: 0 | N210: 95.12060971 | O210: 97.8 | R210: 0 | S210: 97.22654225 | T210: 99.5 | W210: 0 | X210: 99.09350561 | Y210: 99.8 | AB210: 0
B211: DHS15 | C211: 2015 | D211: 65.35477228 | E211: 94.08107553 | H211: 0 | I211: 92.49879606 | J211: 98.77702005 | M211: 0 | N211: 93.04918309 | O211: 96.91438823 | R211: 0 | S211: 98.22569774 | T211: 99.73552156 | W211: 0 | X211: 98.4801727 | Y211: 99.20273193 | AB211: 0
B212: DHS17 | C212: 2017 | D212: 80.27705116 | E212: 97.64622234 | H212: 0 | I212: 96.06165211 | J212: 99.75329653 | M212: 0 | N212: 98.65980082 | O212: 99.96240541 | R212: 0 | S212: 99.61310972 | T212: 100 | W212: 0 | X212: 99.56336911 | Y212: 99.67291024 | AB212: 0
B213: DHS18 | C213: 2018 | D213: 81.71975321 | E213: 98.23252586 | H213: 0 | I213: 96.65868237 | J213: 98.81754152 | M213: 0 | N213: 98.85716751 | O213: 99.13586618 | R213: 0 | S213: 98.90281572 | T213: 100 | W213: 0 | X213: 99.00080505 | Y213: 100 | AB213: 0
B214: DHS19 | C214: 2019 | D214: 84.16393103 | E214: 98.31031501 | H214: N/A | I214: 96.64525955 | J214: 99.28084804 | M214: N/A | N214: 97.00654283 | O214: 99.44092643 | R214: N/A | S214: 97.01189587 | T214: 99.89537322 | W214: N/A | X214: 99.23361104 | Y214: 99.53697485 | AB214: N/A
B218: =CONCATENATE("Urban use of drinking water sources, ",C199,"–",C200) -> Urban use of drinking water sources, 2000–2020 | S218: Data points used for regression
E253: =IF(ISERROR(INDIRECT(CONCATENATE($B253,"!M18"))),"",INDIRECT(CONCATENATE($B253,"!M18"))) ->  | F253: =IF(ISERROR(INDIRECT(CONCATENATE($B253,"!M19"))),"",INDIRECT(CONCATENATE($B253,"!M19"))) ->  | G253: =IF(ISERROR(INDIRECT(CONCATENATE($B253,"!M20"))),"",INDIRECT(CONCATENATE($B253,"!M20"))) ->  | H253: =IF(ISERROR(INDIRECT(CONCATENATE($B253,"!M21"))),"",INDIRECT(CONCATENATE($B253,"!M21"))) ->  | J253: =IF(ISERROR(INDIRECT(CONCATENATE($B253,"!N18"))),"",INDIRECT(CONCATENATE($B253,"!N18"))) ->  | K253: =IF(ISERROR(INDIRECT(CONCATENATE($B253,"!N19"))),"",INDIRECT(CONCATENATE($B253,"!N19"))) ->  | L253: =IF(ISERROR(INDIRECT(CONCATENATE($B253,"!N20"))),"",INDIRECT(CONCATENATE($B253,"!N20"))) ->  | M253: =IF(ISERROR(INDIRECT(CONCATENATE($B253,"!N21"))),"",INDIRECT(CONCATENATE($B253,"!N21"))) ->  | O253: =IF(ISERROR(INDIRECT(CONCATENATE($B253,"!O18"))),"",INDIRECT(CONCATENATE($B253,"!O18"))) ->  | P253: =IF(ISERROR(INDIRECT(CONCATENATE($B253,"!O19"))),"",INDIRECT(CONCATENATE($B253,"!O19"))) ->  | Q253: =IF(ISERROR(INDIRECT(CONCATENATE($B253,"!O20"))),"",INDIRECT(CONCATENATE($B253,"!O20"))) ->  | R253: =IF(ISERROR(INDIRECT(CONCATENATE($B253,"!O21"))),"",INDIRECT(CONCATENATE($B253,"!O21"))) ->  | T253: =IF(ISERROR(INDIRECT(CONCATENATE($B253,"!P18"))),"",INDIRECT(CONCATENATE($B253,"!P18"))) ->  | U253: =IF(ISERROR(INDIRECT(CONCATENATE($B253,"!P19"))),"",INDIRECT(CONCATENATE($B253,"!P19"))) ->  | V253: =IF(ISERROR(INDIRECT(CONCATENATE($B253,"!P20"))),"",INDIRECT(CONCATENATE($B253,"!P20"))) ->  | W253: =IF(ISERROR(INDIRECT(CONCATENATE($B253,"!P21"))),"",INDIRECT(CONCATENATE($B253,"!P21"))) ->  | Y253: =IF(ISERROR(INDIRECT(CONCATENATE($B253,"!Q18"))),"",INDIRECT(CONCATENATE($B253,"!Q18"))) ->  | Z253: =IF(ISERROR(INDIRECT(CONCATENATE($B253,"!Q19"))),"",INDIRECT(CONCATENATE($B253,"!Q19"))) ->  | AA253: =IF(ISERROR(INDIRECT(CONCATENATE($B253,"!Q20"))),"",INDIRECT(CONCATENATE($B253,"!Q20"))) ->  | AB253: =IF(ISERROR(INDIRECT(CONCATENATE($B253,"!Q21"))),"",INDIRECT(CONCATENATE($B253,"!Q1"))) -> 
E254: =IF(ISERROR(INDIRECT(CONCATENATE($B254,"!M18"))),"",INDIRECT(CONCATENATE($B254,"!M18"))) ->  | F254: =IF(ISERROR(INDIRECT(CONCATENATE($B254,"!M19"))),"",INDIRECT(CONCATENATE($B254,"!M19"))) ->  | G254: =IF(ISERROR(INDIRECT(CONCATENATE($B254,"!M20"))),"",INDIRECT(CONCATENATE($B254,"!M20"))) ->  | H254: =IF(ISERROR(INDIRECT(CONCATENATE($B254,"!M21"))),"",INDIRECT(CONCATENATE($B254,"!M21"))) ->  | J254: =IF(ISERROR(INDIRECT(CONCATENATE($B254,"!N18"))),"",INDIRECT(CONCATENATE($B254,"!N18"))) ->  | K254: =IF(ISERROR(INDIRECT(CONCATENATE($B254,"!N19"))),"",INDIRECT(CONCATENATE($B254,"!N19"))) ->  | L254: =IF(ISERROR(INDIRECT(CONCATENATE($B254,"!N20"))),"",INDIRECT(CONCATENATE($B254,"!N20"))) ->  | M254: =IF(ISERROR(INDIRECT(CONCATENATE($B254,"!N21"))),"",INDIRECT(CONCATENATE($B254,"!N21"))) ->  | O254: =IF(ISERROR(INDIRECT(CONCATENATE($B254,"!O18"))),"",INDIRECT(CONCATENATE($B254,"!O18"))) ->  | P254: =IF(ISERROR(INDIRECT(CONCATENATE($B254,"!O19"))),"",INDIRECT(CONCATENATE($B254,"!O19"))) ->  | Q254: =IF(ISERROR(INDIRECT(CONCATENATE($B254,"!O20"))),"",INDIRECT(CONCATENATE($B254,"!O20"))) ->  | R254: =IF(ISERROR(INDIRECT(CONCATENATE($B254,"!O21"))),"",INDIRECT(CONCATENATE($B254,"!O21"))) ->  | T254: =IF(ISERROR(INDIRECT(CONCATENATE($B254,"!P18"))),"",INDIRECT(CONCATENATE($B254,"!P18"))) ->  | U254: =IF(ISERROR(INDIRECT(CONCATENATE($B254,"!P19"))),"",INDIRECT(CONCATENATE($B254,"!P19"))) ->  | V254: =IF(ISERROR(INDIRECT(CONCATENATE($B254,"!P20"))),"",INDIRECT(CONCATENATE($B254,"!P20"))) ->  | W254: =IF(ISERROR(INDIRECT(CONCATENATE($B254,"!P21"))),"",INDIRECT(CONCATENATE($B254,"!P21"))) ->  | Y254: =IF(ISERROR(INDIRECT(CONCATENATE($B254,"!Q18"))),"",INDIRECT(CONCATENATE($B254,"!Q18"))) ->  | Z254: =IF(ISERROR(INDIRECT(CONCATENATE($B254,"!Q19"))),"",INDIRECT(CONCATENATE($B254,"!Q19"))) ->  | AA254: =IF(ISERROR(INDIRECT(CONCATENATE($B254,"!Q20"))),"",INDIRECT(CONCATENATE($B254,"!Q20"))) ->  | AB254: =IF(ISERROR(INDIRECT(CONCATENATE($B254,"!Q21"))),"",INDIRECT(CONCATENATE($B254,"!Q1"))) -> 
E255: =IF(ISERROR(INDIRECT(CONCATENATE($B255,"!M18"))),"",INDIRECT(CONCATENATE($B255,"!M18"))) ->  | F255: =IF(ISERROR(INDIRECT(CONCATENATE($B255,"!M19"))),"",INDIRECT(CONCATENATE($B255,"!M19"))) ->  | G255: =IF(ISERROR(INDIRECT(CONCATENATE($B255,"!M20"))),"",INDIRECT(CONCATENATE($B255,"!M20"))) ->  | H255: =IF(ISERROR(INDIRECT(CONCATENATE($B255,"!M21"))),"",INDIRECT(CONCATENATE($B255,"!M21"))) ->  | J255: =IF(ISERROR(INDIRECT(CONCATENATE($B255,"!N18"))),"",INDIRECT(CONCATENATE($B255,"!N18"))) ->  | K255: =IF(ISERROR(INDIRECT(CONCATENATE($B255,"!N19"))),"",INDIRECT(CONCATENATE($B255,"!N19"))) ->  | L255: =IF(ISERROR(INDIRECT(CONCATENATE($B255,"!N20"))),"",INDIRECT(CONCATENATE($B255,"!N20"))) ->  | M255: =IF(ISERROR(INDIRECT(CONCATENATE($B255,"!N21"))),"",INDIRECT(CONCATENATE($B255,"!N21"))) ->  | O255: =IF(ISERROR(INDIRECT(CONCATENATE($B255,"!O18"))),"",INDIRECT(CONCATENATE($B255,"!O18"))) ->  | P255: =IF(ISERROR(INDIRECT(CONCATENATE($B255,"!O19"))),"",INDIRECT(CONCATENATE($B255,"!O19"))) ->  | Q255: =IF(ISERROR(INDIRECT(CONCATENATE($B255,"!O20"))),"",INDIRECT(CONCATENATE($B255,"!O20"))) ->  | R255: =IF(ISERROR(INDIRECT(CONCATENATE($B255,"!O21"))),"",INDIRECT(CONCATENATE($B255,"!O21"))) ->  | T255: =IF(ISERROR(INDIRECT(CONCATENATE($B255,"!P18"))),"",INDIRECT(CONCATENATE($B255,"!P18"))) ->  | U255: =IF(ISERROR(INDIRECT(CONCATENATE($B255,"!P19"))),"",INDIRECT(CONCATENATE($B255,"!P19"))) ->  | V255: =IF(ISERROR(INDIRECT(CONCATENATE($B255,"!P20"))),"",INDIRECT(CONCATENATE($B255,"!P20"))) ->  | W255: =IF(ISERROR(INDIRECT(CONCATENATE($B255,"!P21"))),"",INDIRECT(CONCATENATE($B255,"!P21"))) ->  | Y255: =IF(ISERROR(INDIRECT(CONCATENATE($B255,"!Q18"))),"",INDIRECT(CONCATENATE($B255,"!Q18"))) ->  | Z255: =IF(ISERROR(INDIRECT(CONCATENATE($B255,"!Q19"))),"",INDIRECT(CONCATENATE($B255,"!Q19"))) ->  | AA255: =IF(ISERROR(INDIRECT(CONCATENATE($B255,"!Q20"))),"",INDIRECT(CONCATENATE($B255,"!Q20"))) ->  | AB255: =IF(ISERROR(INDIRECT(CONCATENATE($B255,"!Q21"))),"",INDIRECT(CONCATENATE($B255,"!Q1"))) -> 
E256: =IF(ISERROR(INDIRECT(CONCATENATE($B256,"!M18"))),"",INDIRECT(CONCATENATE($B256,"!M18"))) ->  | F256: =IF(ISERROR(INDIRECT(CONCATENATE($B256,"!M19"))),"",INDIRECT(CONCATENATE($B256,"!M19"))) ->  | G256: =IF(ISERROR(INDIRECT(CONCATENATE($B256,"!M20"))),"",INDIRECT(CONCATENATE($B256,"!M20"))) ->  | H256: =IF(ISERROR(INDIRECT(CONCATENATE($B256,"!M21"))),"",INDIRECT(CONCATENATE($B256,"!M21"))) ->  | J256: =IF(ISERROR(INDIRECT(CONCATENATE($B256,"!N18"))),"",INDIRECT(CONCATENATE($B256,"!N18"))) ->  | K256: =IF(ISERROR(INDIRECT(CONCATENATE($B256,"!N19"))),"",INDIRECT(CONCATENATE($B256,"!N19"))) ->  | L256: =IF(ISERROR(INDIRECT(CONCATENATE($B256,"!N20"))),"",INDIRECT(CONCATENATE($B256,"!N20"))) ->  | M256: =IF(ISERROR(INDIRECT(CONCATENATE($B256,"!N21"))),"",INDIRECT(CONCATENATE($B256,"!N21"))) ->  | O256: =IF(ISERROR(INDIRECT(CONCATENATE($B256,"!O18"))),"",INDIRECT(CONCATENATE($B256,"!O18"))) ->  | P256: =IF(ISERROR(INDIRECT(CONCATENATE($B256,"!O19"))),"",INDIRECT(CONCATENATE($B256,"!O19"))) ->  | Q256: =IF(ISERROR(INDIRECT(CONCATENATE($B256,"!O20"))),"",INDIRECT(CONCATENATE($B256,"!O20"))) ->  | R256: =IF(ISERROR(INDIRECT(CONCATENATE($B256,"!O21"))),"",INDIRECT(CONCATENATE($B256,"!O21"))) ->  | T256: =IF(ISERROR(INDIRECT(CONCATENATE($B256,"!P18"))),"",INDIRECT(CONCATENATE($B256,"!P18"))) ->  | U256: =IF(ISERROR(INDIRECT(CONCATENATE($B256,"!P19"))),"",INDIRECT(CONCATENATE($B256,"!P19"))) ->  | V256: =IF(ISERROR(INDIRECT(CONCATENATE($B256,"!P20"))),"",INDIRECT(CONCATENATE($B256,"!P20"))) ->  | W256: =IF(ISERROR(INDIRECT(CONCATENATE($B256,"!P21"))),"",INDIRECT(CONCATENATE($B256,"!P21"))) ->  | Y256: =IF(ISERROR(INDIRECT(CONCATENATE($B256,"!Q18"))),"",INDIRECT(CONCATENATE($B256,"!Q18"))) ->  | Z256: =IF(ISERROR(INDIRECT(CONCATENATE($B256,"!Q19"))),"",INDIRECT(CONCATENATE($B256,"!Q19"))) ->  | AA256: =IF(ISERROR(INDIRECT(CONCATENATE($B256,"!Q20"))),"",INDIRECT(CONCATENATE($B256,"!Q20"))) ->  | AB256: =IF(ISERROR(INDIRECT(CONCATENATE($B256,"!Q21"))),"",INDIRECT(CONCATENATE($B256,"!Q1"))) -> 
E257: =IF(ISERROR(INDIRECT(CONCATENATE($B257,"!M18"))),"",INDIRECT(CONCATENATE($B257,"!M18"))) ->  | F257: =IF(ISERROR(INDIRECT(CONCATENATE($B257,"!M19"))),"",INDIRECT(CONCATENATE($B257,"!M19"))) ->  | G257: =IF(ISERROR(INDIRECT(CONCATENATE($B257,"!M20"))),"",INDIRECT(CONCATENATE($B257,"!M20"))) ->  | H257: =IF(ISERROR(INDIRECT(CONCATENATE($B257,"!M21"))),"",INDIRECT(CONCATENATE($B257,"!M21"))) ->  | J257: =IF(ISERROR(INDIRECT(CONCATENATE($B257,"!N18"))),"",INDIRECT(CONCATENATE($B257,"!N18"))) ->  | K257: =IF(ISERROR(INDIRECT(CONCATENATE($B257,"!N19"))),"",INDIRECT(CONCATENATE($B257,"!N19"))) ->  | L257: =IF(ISERROR(INDIRECT(CONCATENATE($B257,"!N20"))),"",INDIRECT(CONCATENATE($B257,"!N20"))) ->  | M257: =IF(ISERROR(INDIRECT(CONCATENATE($B257,"!N21"))),"",INDIRECT(CONCATENATE($B257,"!N21"))) ->  | O257: =IF(ISERROR(INDIRECT(CONCATENATE($B257,"!O18"))),"",INDIRECT(CONCATENATE($B257,"!O18"))) ->  | P257: =IF(ISERROR(INDIRECT(CONCATENATE($B257,"!O19"))),"",INDIRECT(CONCATENATE($B257,"!O19"))) ->  | Q257: =IF(ISERROR(INDIRECT(CONCATENATE($B257,"!O20"))),"",INDIRECT(CONCATENATE($B257,"!O20"))) ->  | R257: =IF(ISERROR(INDIRECT(CONCATENATE($B257,"!O21"))),"",INDIRECT(CONCATENATE($B257,"!O21"))) ->  | T257: =IF(ISERROR(INDIRECT(CONCATENATE($B257,"!P18"))),"",INDIRECT(CONCATENATE($B257,"!P18"))) ->  | U257: =IF(ISERROR(INDIRECT(CONCATENATE($B257,"!P19"))),"",INDIRECT(CONCATENATE($B257,"!P19"))) ->  | V257: =IF(ISERROR(INDIRECT(CONCATENATE($B257,"!P20"))),"",INDIRECT(CONCATENATE($B257,"!P20"))) ->  | W257: =IF(ISERROR(INDIRECT(CONCATENATE($B257,"!P21"))),"",INDIRECT(CONCATENATE($B257,"!P21"))) ->  | Y257: =IF(ISERROR(INDIRECT(CONCATENATE($B257,"!Q18"))),"",INDIRECT(CONCATENATE($B257,"!Q18"))) ->  | Z257: =IF(ISERROR(INDIRECT(CONCATENATE($B257,"!Q19"))),"",INDIRECT(CONCATENATE($B257,"!Q19"))) ->  | AA257: =IF(ISERROR(INDIRECT(CONCATENATE($B257,"!Q20"))),"",INDIRECT(CONCATENATE($B257,"!Q20"))) ->  | AB257: =IF(ISERROR(INDIRECT(CONCATENATE($B257,"!Q21"))),"",INDIRECT(CONCATENATE($B257,"!Q1"))) -> 
A297: RURAL | D297: Poorest | I297: Poor | N297: Middle | S297: Rich | X297: Richest
D298: Improved | E298: Basic | F298: Limited | G298: Unimproved | H298: Surface water | I298: Improved | J298: Basic | K298: Limited | L298: Unimproved | M298: Surface water | N298: Improved | O298: Basic | P298: Limited | Q298: Unimproved | R298: Surface water | S298: Improved | T298: Basic | U298: Limited | V298: Unimproved | W298: Surface water | X298: Improved | Y298: Basic | Z298: Limited | AA298: Unimproved | AB298: Surface water
A299: Forecast period: | C299: 2000 | D299: =IF((D301+H301)>100,D301*100/(D301+H301),D301) -> 41.98426916 | E299: =D299*AVERAGEIF(E305:E316,">0")/100 -> 33.43195704 | F299: =D299*(100-AVERAGEIF(E305:E316,">0"))/100 -> 8.552312117 | G299: =100-(E299+F299+H299) -> 57.3924627 | H299: =IF((D301+H301)>100,H301*100/(D301+H301),H301) -> 0.6232681416 | I299: =IF((I301+M301)>100,I301*100/(I301+M301),I301) -> 42.05054312 | J299: =I299*AVERAGEIF(J305:J316,">0")/100 -> 37.30328873 | K299: =I299*(100-AVERAGEIF(J305:J316,">0"))/100 -> 4.747254391 | L299: =100-(J299+K299+M299) -> 56.49937538 | M299: =IF((I301+M301)>100,M301*100/(I301+M301),M301) -> 1.450081504 | N299: =IF((N301+R301)>100,N301*100/(N301+R301),N301) -> 38.06753556 | O299: =N299*AVERAGEIF(O305:O316,">0")/100 -> 35.14690704 | P299: =N299*(100-AVERAGEIF(O305:O316,">0"))/100 -> 2.92062852 | Q299: =100-(O299+P299+R299) -> 59.24262521 | R299: =IF((N301+R301)>100,R301*100/(N301+R301),R301) -> 2.68983923 | S299: =IF((S301+W301)>100,S301*100/(S301+W301),S301) -> 48.43943643 | T299: =S299*AVERAGEIF(T305:T316,">0")/100 -> 46.49638746 | U299: =S299*(100-AVERAGEIF(T305:T316,">0"))/100 -> 1.943048968 | V299: =100-(T299+U299+W299) -> 47.65324873 | W299: =IF((S301+W301)>100,W301*100/(S301+W301),W301) -> 3.907314842 | X299: =IF((X301+AB301)>100,X301*100/(X301+AB301),X301) -> 71.0106866 | Y299: =X299*AVERAGEIF(Y305:Y316,">0")/100 -> 68.91576697 | Z299: =X299*(100-AVERAGEIF(Y305:Y316,">0"))/100 -> 2.09491963 | AA299: =100-(Y299+Z299+AB299) -> 26.85881381 | AB299: =IF((X301+AB301)>100,AB301*100/(X301+AB301),AB301) -> 2.130499588
C300: 2020 | D300: =IF((D302+H302)>100,D302*100/(D302+H302),D302) -> 59.20315156 | E300: =D300*AVERAGEIF(E305:E316,">0")/100 -> 47.14330532 | F300: =D300*(100-AVERAGEIF(E305:E316,">0"))/100 -> 12.05984624 | G300: =100-(E300+F300+H300) -> 39.76272406 | H300: =IF((D302+H302)>100,H302*100/(D302+H302),H302) -> 1.034124381 | I300: =IF((I302+M302)>100,I302*100/(I302+M302),I302) -> 65.34732099 | J300: =I300*AVERAGEIF(J305:J316,">0")/100 -> 57.96999995 | K300: =I300*(100-AVERAGEIF(J305:J316,">0"))/100 -> 7.37732104 | L300: =100-(J300+K300+M300) -> 33.66769703 | M300: =IF((I302+M302)>100,M302*100/(I302+M302),M302) -> 0.9849819772 | N300: =IF((N302+R302)>100,N302*100/(N302+R302),N302) -> 75.00029025 | O300: =N300*AVERAGEIF(O305:O316,">0")/100 -> 69.2460962 | P300: =N300*(100-AVERAGEIF(O305:O316,">0"))/100 -> 5.754194053 | Q300: =100-(O300+P300+R300) -> 24.80256393 | R300: =IF((N302+R302)>100,R302*100/(N302+R302),R302) -> 0.1971458159 | S300: =IF((S302+W302)>100,S302*100/(S302+W302),S302) -> 86.0689509 | T300: =S300*AVERAGEIF(T305:T316,">0")/100 -> 82.61647088 | U300: =S300*(100-AVERAGEIF(T305:T316,">0"))/100 -> 3.452480015 | V300: =100-(T300+U300+W300) -> 13.9310491 | W300: =IF((S302+W302)>100,W302*100/(S302+W302),W302) -> 0 | X300: =IF((X302+AB302)>100,X302*100/(X302+AB302),X302) -> 98.62409241 | Y300: =X300*AVERAGEIF(Y305:Y316,">0")/100 -> 95.71453672 | Z300: =X300*(100-AVERAGEIF(Y305:Y316,">0"))/100 -> 2.909555688 | AA300: =100-(Y300+Z300+AB300) -> 1.375907591 | AB300: =IF((X302+AB302)>100,AB302*100/(X302+AB302),AB302) -> 0
A301: Regression period: | C301: =MinRegYear(C299,C305:C316) -> 2000 | D301: =IF(MAX(C305:C316)-MIN(C305:C316)<5,AVERAGEIF(C305:C316,">0",D305:D316), IF(FORECAST($C301,D$305:D$316,$C$305:$C$316)<0,0, IF(FORECAST($C301,D$305:D$316,$C$305:$C$316)>100,100, FORECAST($C301,D$305:D$316,$C$305:$C$316)))) -> 41.98426916 | H301: =IF(MAX(C305:C316)-MIN(C305:C316)<5,AVERAGEIF(C305:C316,">0",H305:H316), IF(FORECAST($C301,H$305:H$316,$C$305:$C$316)<0,0, IF(FORECAST($C301,H$305:H$316,$C$305:$C$316)>100,100, FORECAST($C301,H$305:H$316,$C$305:$C$316)))) -> 0.6232681416 | I301: =IF(MAX(C305:C316)-MIN(C305:C316)<5,AVERAGEIF(C305:C316,">0",I305:I316), IF(FORECAST($C301,I$305:I$316,$C$305:$C$316)<0,0, IF(FORECAST($C301,I$305:I$316,$C$305:$C$316)>100,100, FORECAST($C301,I$305:I$316,$C$305:$C$316)))) -> 42.05054312 | M301: =IF(MAX(C305:C316)-MIN(C305:C316)<5,AVERAGEIF(C305:C316,">0",M305:M316), IF(FORECAST($C301,M$305:M$316,$C$305:$C$316)<0,0, IF(FORECAST($C301,M$305:M$316,$C$305:$C$316)>100,100, FORECAST($C301,M$305:M$316,$C$305:$C$316)))) -> 1.450081504 | N301: =IF(MAX(C305:C316)-MIN(C305:C316)<5,AVERAGEIF(C305:C316,">0",N305:N316), IF(FORECAST($C301,N$305:N$316,$C$305:$C$316)<0,0, IF(FORECAST($C301,N$305:N$316,$C$305:$C$316)>100,100, FORECAST($C301,N$305:N$316,$C$305:$C$316)))) -> 38.06753556 | R301: =IF(MAX(C305:C316)-MIN(C305:C316)<5,AVERAGEIF(C305:C316,">0",R305:R316), IF(FORECAST($C301,R$305:R$316,$C$305:$C$316)<0,0, IF(FORECAST($C301,R$305:R$316,$C$305:$C$316)>100,100, FORECAST($C301,R$305:R$316,$C$305:$C$316)))) -> 2.68983923 | S301: =IF(MAX(C305:C316)-MIN(C305:C316)<5,AVERAGEIF(C305:C316,">0",S305:S316), IF(FORECAST($C301,S$305:S$316,$C$305:$C$316)<0,0, IF(FORECAST($C301,S$305:S$316,$C$305:$C$316)>100,100, FORECAST($C301,S$305:S$316,$C$305:$C$316)))) -> 48.43943643 | W301: =IF(MAX(C305:C316)-MIN(C305:C316)<5,AVERAGEIF(C305:C316,">0",W305:W316), IF(FORECAST($C301,W$305:W$316,$C$305:$C$316)<0,0, IF(FORECAST($C301,W$305:W$316,$C$305:$C$316)>100,100, FORECAST($C301,W$305:W$316,$C$305:$C$316)))) -> 3.907314842 | X301: =IF(MAX(C305:C316)-MIN(C305:C316)<5,AVERAGEIF(C305:C316,">0",X305:X316), IF(FORECAST($C301,X$305:X$316,$C$305:$C$316)<0,0, IF(FORECAST($C301,X$305:X$316,$C$305:$C$316)>100,100, FORECAST($C301,X$305:X$316,$C$305:$C$316)))) -> 71.0106866 | AB301: =IF(MAX(C305:C316)-MIN(C305:C316)<5,AVERAGEIF(C305:C316,">0",AB305:AB316), IF(FORECAST($C301,AB$305:AB$316,$C$305:$C$316)<0,0, IF(FORECAST($C301,AB$305:AB$316,$C$305:$C$316)>100,100, FORECAST($C301,AB$305:AB$316,$C$305:$C$316)))) -> 2.130499588
C302: =MaxRegYear(C300,C305:C316) -> 2020 | D302: =IF(MAX(C305:C316)-MIN(C305:C316)<5,AVERAGEIF(C305:C316,">0",D305:D316), IF(FORECAST($C302,D$305:D$316,$C$305:$C$316)<0,0, IF(FORECAST($C302,D$305:D$316,$C$305:$C$316)>100,100, FORECAST($C302,D$305:D$316,$C$305:$C$316)))) -> 59.20315156 | H302: =IF(MAX(C305:C316)-MIN(C305:C316)<5,AVERAGEIF(C305:C316,">0",H305:H316), IF(FORECAST($C302,H$305:H$316,$C$305:$C$316)<0,0, IF(FORECAST($C302,H$305:H$316,$C$305:$C$316)>100,100, FORECAST($C302,H$305:H$316,$C$305:$C$316)))) -> 1.034124381 | I302: =IF(MAX(C305:C316)-MIN(C305:C316)<5,AVERAGEIF(C305:C316,">0",I305:I316), IF(FORECAST($C302,I$305:I$316,$C$305:$C$316)<0,0, IF(FORECAST($C302,I$305:I$316,$C$305:$C$316)>100,100, FORECAST($C302,I$305:I$316,$C$305:$C$316)))) -> 65.34732099 | M302: =IF(MAX(C305:C316)-MIN(C305:C316)<5,AVERAGEIF(C305:C316,">0",M305:M316), IF(FORECAST($C302,M$305:M$316,$C$305:$C$316)<0,0, IF(FORECAST($C302,M$305:M$316,$C$305:$C$316)>100,100, FORECAST($C302,M$305:M$316,$C$305:$C$316)))) -> 0.9849819772 | N302: =IF(MAX(C305:C316)-MIN(C305:C316)<5,AVERAGEIF(C305:C316,">0",N305:N316), IF(FORECAST($C302,N$305:N$316,$C$305:$C$316)<0,0, IF(FORECAST($C302,N$305:N$316,$C$305:$C$316)>100,100, FORECAST($C302,N$305:N$316,$C$305:$C$316)))) -> 75.00029025 | R302: =IF(MAX(C305:C316)-MIN(C305:C316)<5,AVERAGEIF(C305:C316,">0",R305:R316), IF(FORECAST($C302,R$305:R$316,$C$305:$C$316)<0,0, IF(FORECAST($C302,R$305:R$316,$C$305:$C$316)>100,100, FORECAST($C302,R$305:R$316,$C$305:$C$316)))) -> 0.1971458159 | S302: =IF(MAX(C305:C316)-MIN(C305:C316)<5,AVERAGEIF(C305:C316,">0",S305:S316), IF(FORECAST($C302,S$305:S$316,$C$305:$C$316)<0,0, IF(FORECAST($C302,S$305:S$316,$C$305:$C$316)>100,100, FORECAST($C302,S$305:S$316,$C$305:$C$316)))) -> 86.0689509 | W302: =IF(MAX(C305:C316)-MIN(C305:C316)<5,AVERAGEIF(C305:C316,">0",W305:W316), IF(FORECAST($C302,W$305:W$316,$C$305:$C$316)<0,0, IF(FORECAST($C302,W$305:W$316,$C$305:$C$316)>100,100, FORECAST($C302,W$305:W$316,$C$305:$C$316)))) -> 0 | X302: =IF(MAX(C305:C316)-MIN(C305:C316)<5,AVERAGEIF(C305:C316,">0",X305:X316), IF(FORECAST($C302,X$305:X$316,$C$305:$C$316)<0,0, IF(FORECAST($C302,X$305:X$316,$C$305:$C$316)>100,100, FORECAST($C302,X$305:X$316,$C$305:$C$316)))) -> 98.62409241 | AB302: =IF(MAX(C305:C316)-MIN(C305:C316)<5,AVERAGEIF(C305:C316,">0",AB305:AB316), IF(FORECAST($C302,AB$305:AB$316,$C$305:$C$316)<0,0, IF(FORECAST($C302,AB$305:AB$316,$C$305:$C$316)>100,100, FORECAST($C302,AB$305:AB$316,$C$305:$C$316)))) -> 0
B304: Survey | C304: Year | D304: Improved | E304: % Improved < = 30min | H304: Surface water | I304: Improved | J304: % Improved < = 30min | M304: Surface water | N304: Improved | O304: % Improved < = 30min | R304: Surface water | S304: Improved | T304: % Improved < = 30min | W304: Surface water | X304: Improved | Y304: % Improved < = 30min | AB304: Surface water
B305: MICS00 | C305: 2000 | D305: =IF(ISERROR(INDIRECT(CONCATENATE($B305,"!M16"))),"",INDIRECT(CONCATENATE($B305,"!M16"))) -> 49.38829169 | E305: =IF(ISERROR(INDIRECT(CONCATENATE($B305,"!M23"))),"",INDIRECT(CONCATENATE($B305,"!M23"))) -> 74.63657086 | H305: =IF(ISERROR(INDIRECT(CONCATENATE($B305,"!M21"))),"",INDIRECT(CONCATENATE($B305,"!M21"))) -> 0.9003622117 | I305: =IF(ISERROR(INDIRECT(CONCATENATE($B305,"!N16"))),"",INDIRECT(CONCATENATE($B305,"!N16"))) -> 48.19932634 | J305: =IF(ISERROR(INDIRECT(CONCATENATE($B305,"!N23"))),"",INDIRECT(CONCATENATE($B305,"!N23"))) -> 80.03770859 | M305: =IF(ISERROR(INDIRECT(CONCATENATE($B305,"!N21"))),"",INDIRECT(CONCATENATE($B305,"!N21"))) -> 2.634692839 | N305: =IF(ISERROR(INDIRECT(CONCATENATE($B305,"!O16"))),"",INDIRECT(CONCATENATE($B305,"!O16"))) -> 42.45341493 | O305: =IF(ISERROR(INDIRECT(CONCATENATE($B305,"!O23"))),"",INDIRECT(CONCATENATE($B305,"!O23"))) -> 89.16539513 | R305: =IF(ISERROR(INDIRECT(CONCATENATE($B305,"!O21"))),"",INDIRECT(CONCATENATE($B305,"!O21"))) -> 3.609788064 | S305: =IF(ISERROR(INDIRECT(CONCATENATE($B305,"!P16"))),"",INDIRECT(CONCATENATE($B305,"!P16"))) -> 48.65622224 | T305: =IF(ISERROR(INDIRECT(CONCATENATE($B305,"!P23"))),"",INDIRECT(CONCATENATE($B305,"!P23"))) -> 89.20320027 | W305: =IF(ISERROR(INDIRECT(CONCATENATE($B305,"!P21"))),"",INDIRECT(CONCATENATE($B305,"!P21"))) -> 5.652215296 | X305: =IF(ISERROR(INDIRECT(CONCATENATE($B305,"!Q16"))),"",INDIRECT(CONCATENATE($B305,"!Q16"))) -> 66.49250613 | Y305: =IF(ISERROR(INDIRECT(CONCATENATE($B305,"!Q23"))),"",INDIRECT(CONCATENATE($B305,"!Q23"))) -> 87.95398793 | AB305: =IF(ISERROR(INDIRECT(CONCATENATE($B305,"!Q221"))),"",INDIRECT(CONCATENATE($B305,"!Q21"))) -> 2.599238311
B306: DHS05 | C306: 2005 | D306: 40.46096304 | E306: N/A | H306: 0.3723909142 | I306: 41.89423572 | J306: N/A | M306: 0.6150077039 | N306: 46.25548614 | O306: N/A | R306: 1.816668829 | S306: 58.66373844 | T306: N/A | W306: 2.160468965 | X306: 78.72761642 | Y306: N/A | AB306: 2.409535536
B307: MIS06 | C307: 2006 | D307: 42.08961414 | E307: N/A | H307: 0.1840476578 | I307: 49.43737311 | J307: N/A | M307: 0.4868544368 | N307: 48.61975627 | O307: N/A | R307: 0.6141121159 | S307: 64.43959542 | T307: N/A | W307: 0.3602250122 | X307: 83.0900887 | Y307: N/A | AB307: 0
B308: MIS09 | C308: 2009 | D308: 51.89735352 | E308: N/A | H308: 1.220429182 | I308: 47.3244025 | J308: N/A | M308: 1.767239829 | N308: 48.40363128 | O308: N/A | R308: 2.125144529 | S308: 57.01986559 | T308: N/A | W308: 2.067440145 | X308: 82.19618142 | Y308: N/A | AB308: 0.8794177785
B309: DHS11 | C309: 2011 | D309: 55.3641063 | E309: 81 | H309: 1.445182755 | I309: 56.8476271 | J309: 87.1 | M309: 0.4960516691 | N309: 60.67930787 | O309: 92.6 | R309: 1.60372183 | S309: 72.25367661 | T309: 97 | W309: 1.020439588 | X309: 89.61110898 | Y309: 98.6 | AB309: 0
B310: DHS13 | C310: 2013 | D310: 50.11346792 | E310: 75.3 | H310: 0.9173480002 | I310: 55.7136419 | J310: 87.6 | M310: 1.220754617 | N310: 64.04815179 | O310: 92.2 | R310: 0.3280216224 | S310: 73.18761215 | T310: 96.7 | W310: 0.5186387093 | X310: 91.13671546 | Y310: 98.3 | AB310: 0
B311: DHS15 | C311: 2015 | D311: 46.44019223 | E311: 86.53248915 | H311: 0.1859716894 | I311: 59.54307175 | J311: 92.25802061 | M311: 0.3418363908 | N311: 57.68749949 | O311: 91.13799264 | R311: 0.1014907793 | S311: 71.38125906 | T311: 96.92110774 | W311: 0.09020309471 | X311: 91.68024871 | Y311: 96.8622354 | AB311: 0
B312: DHS17 | C312: 2017 | D312: 58.27181775 | E312: 85.59976598 | H312: 1.550329696 | I312: 65.26606371 | J312: 91.91011994 | M312: 1.023315367 | N312: 68.15811793 | O312: 95.15419701 | R312: 2.054077246 | S312: 78.3874698 | T312: 98.6899967 | W312: 0.4729187349 | X312: 93.08226815 | Y312: 99.72593791 | AB312: 0.2287143025
B313: DHS18 | C313: 2018 | D313: 60.16828519 | E313: 84.57960072 | H313: 0.7643754924 | I313: 62.94503072 | J313: 90.40735784 | M313: 2.279012908 | N313: 76.99086791 | O313: 93.20045794 | R313: 0.2398690061 | S313: 87.54905968 | T313: 95.46805361 | W313: 0 | X313: 95.97682894 | Y313: 98.33893861 | AB313: 0
B314: DHS19 | C314: 2019 | D314: 62.93528538 | E314: 69.75963106 | H314: N/A | I314: 64.96145331 | J314: 91.66098676 | M314: N/A | N314: 76.04918603 | O314: 92.83635396 | R314: N/A | S314: 85.46262206 | T314: 97.93857268 | W314: N/A | X314: 94.12904593 | Y314: 99.56787127 | AB314: N/A
B318: =CONCATENATE("Rural use of drinking water sources, ",C299,"–",C300) -> Rural use of drinking water sources, 2000–2020 | S318: Data points used for regression

Sheet Sanitation
B4: Summary of trends in use of sanitation facilities by wealth quintile (%)
B5: =IF(ISERROR(INDIRECT(CONCATENATE($B105,"!A2"))),"",INDIRECT(CONCATENATE($B105,"!A2"))) -> Senegal
B7: =B118 -> National use of sanitation facilities, 2000–2020 | J7: =B218 -> Urban use of sanitation facilities, 2000–2020 | R7: =B318 -> Rural use of sanitation facilities, 2000–2020
B31: =IF(ISERROR(INDIRECT(CONCATENATE($B105,"!A2"))),"",INDIRECT(CONCATENATE($B105,"!A2"))) -> Senegal | F31: Poorest | J31: Poor | N31: Middle | R31: Rich | V31: Richest
F32: Basic | G32: Limited | H32: Unimproved | I32: Open defecation | J32: Basic | K32: Limited | L32: Unimproved | M32: Open defecation | N32: Basic | O32: Limited | P32: Unimproved | Q32: Open defecation | R32: Basic | S32: Limited | T32: Unimproved | U32: Open defecation | V32: Basic | W32: Limited | X32: Unimproved | Y32: Open defecation
B33: NATIONAL | D33: Estimate | E33: =C99 -> 2000 | F33: =E99 -> 11.36090713 | G33: =F99 -> 3.892239406 | H33: 26.17890497 | I33: 58.56794849 | J33: =J99 -> 18.32472915 | K33: =K99 -> 5.674080226 | L33: 34.41946711 | M33: 41.58172351 | N33: =O99 -> 36.86126546 | O33: =P99 -> 11.4680526 | P33: 31.85529299 | Q33: 19.81538895 | R33: =T99 -> 57.00707821 | S33: =U99 -> 23.25847827 | T33: 17.25266289 | U33: 2.481780629 | V33: =Y99 -> 78.92121595 | W33: =Z99 -> 12.99424882 | X33: 7.768055545 | Y33: 0.3164796913
E34: =C100 -> 2020 | F34: =E100 -> 16.86865468 | G34: 5.779190137 | H34: 38.71814177 | I34: 38.63401341 | J34: =J100 -> 41.51683835 | K34: 12.85529896 | L34: 29.73659443 | M34: 15.89126826 | N34: =O100 -> 68.34461081 | O34: 21.26295942 | P34: 10.39242978 | Q34: 0 | R34: =T100 -> 70.97503408 | S34: 28.95730389 | T34: 0 | U34: 0.06766203018 | V34: =Y100 -> 85.8628264 | W34: 14.1371736 | X34: 0 | Y34: 0
B36: URBAN | D36: Estimate | E36: =C199 -> 2000 | F36: =E199 -> 37.3469762 | G36: =F199 -> 15.52959055 | H36: 34.21590389 | I36: 12.90752935 | J36: =J199 -> 51.16913763 | K36: =K199 -> 28.4004697 | L36: 18.27756736 | M36: 2.152825312 | N36: =O199 -> 57.52491039 | O36: =P199 -> 29.89443721 | P36: 11.96707536 | Q36: 0.6135770397 | R36: =T199 -> 71.50807744 | S36: =U199 -> 19.97579846 | T36: 8.365097346 | U36: 0.1510267524 | V36: =Y199 -> 88.23033397 | W36: =Z199 -> 8.920106459 | X36: 2.839433766 | Y36: 0.01012580419
E37: =C200 -> 2020 | F37: =E200 -> 52.11237665 | G37: 21.66932786 | H37: 21.31784638 | I37: 4.900449106 | J37: =J200 -> 62.50623804 | K37: 34.69291455 | L37: 2.287380632 | M37: 0.5134667779 | N37: =O200 -> 65.45294056 | O37: 34.01446101 | P37: 0 | Q37: 0.5325984323 | R37: =T200 -> 78.16467846 | S37: 21.83532154 | T37: 0 | U37: 0 | V37: =Y200 -> 90.5623015 | W37: 9.155868896 | X37: 0.2504521144 | Y37: 0.031377492
B39: RURAL | D39: Estimate | E39: =C299 -> 2000 | F39: =E299 -> 11.42868764 | G39: =F299 -> 4.66573217 | H39: 25.38457974 | I39: 58.52100045 | J39: =J299 -> 12.07537288 | K39: =K299 -> 3.624359204 | L39: 28.81973758 | M39: 55.48053033 | N39: =O299 -> 17.51092464 | O39: =P299 -> 5.464848091 | P39: 34.61135012 | Q39: 42.41287715 | R39: =T299 -> 30.30301532 | S39: =U299 -> 6.865033618 | T39: 31.44917111 | U39: 31.38277995 | V39: =Y299 -> 56.98051049 | W39: =Z299 -> 7.299563951 | X39: 26.05296162 | Y39: 9.666963938
E40: =C300 -> 2020 | F40: =E300 -> 10.82750655 | G40: 4.420301546 | H40: 39.32639814 | I40: 45.42579377 | J40: =J300 -> 25.26649983 | K40: 7.583606079 | L40: 35.79168576 | M40: 31.35820833 | N40: =O300 -> 40.91497132 | O40: 12.76883474 | P40: 29.34963218 | Q40: 16.96656176 | R40: =T300 -> 65.62044267 | S40: 14.86606333 | T40: 17.34041955 | U40: 2.173074452 | V40: =Y300 -> 88.64412648 | W40: 11.35587352 | X40: 0 | Y40: 0
A97: NATIONAL | D97: Poorest | I97: Poor | N97: Middle | S97: Rich | X97: Richest
D98: Improved | E98: Basic | F98: Limited | G98: Unimproved | H98: Open defecation | I98: Improved | J98: Basic | K98: Limited | L98: Unimproved | M98: Open defecation | N98: Improved | O98: Basic | P98: Limited | Q98: Unimproved | R98: Open defecation | S98: Improved | T98: Basic | U98: Limited | V98: Unimproved | W98: Open defecation | X98: Improved | Y98: Basic | Z98: Limited | AA98: Unimproved | AB98: Open defecation
A99: Forecast period: | C99: =MinBase(C105:C116) -> 2000 | D99: =IF((D101+H101)>100,D101*100/(D101+H101),D101) -> 15.25314654 | E99: =D99*AVERAGEIF(E105:E116,">0")/100 -> 11.36090713 | F99: =D99*(100-AVERAGEIF(E105:E116,">0"))/100 -> 3.892239406 | G99: =100-(E99+F99+H99) -> 26.17890497 | H99: =IF((D101+H101)>100,H101*100/(D101+H101),H101) -> 58.56794849 | I99: =IF((I101+M101)>100,I101*100/(I101+M101),I101) -> 23.99880937 | J99: =I99*AVERAGEIF(J105:J116,">0")/100 -> 18.32472915 | K99: =I99*(100-AVERAGEIF(J105:J116,">0"))/100 -> 5.674080226 | L99: =100-(J99+K99+M99) -> 34.41946711 | M99: =IF((I101+M101)>100,M101*100/(I101+M101),M101) -> 41.58172351 | N99: =IF((N101+R101)>100,N101*100/(N101+R101),N101) -> 48.32931806 | O99: =N99*AVERAGEIF(O105:O116,">0")/100 -> 36.86126546 | P99: =N99*(100-AVERAGEIF(O105:O116,">0"))/100 -> 11.4680526 | Q99: =100-(O99+P99+R99) -> 31.85529299 | R99: =IF((N101+R101)>100,R101*100/(N101+R101),R101) -> 19.81538895 | S99: =IF((S101+W101)>100,S101*100/(S101+W101),S101) -> 80.26555648 | T99: =S99*AVERAGEIF(T105:T116,">0")/100 -> 57.00707821 | U99: =S99*(100-AVERAGEIF(T105:T116,">0"))/100 -> 23.25847827 | V99: =100-(T99+U99+W99) -> 17.25266289 | W99: =IF((S101+W101)>100,W101*100/(S101+W101),W101) -> 2.481780629 | X99: =IF((X101+AB101)>100,X101*100/(X101+AB101),X101) -> 91.91546476 | Y99: =X99*AVERAGEIF(Y105:Y116,">0")/100 -> 78.92121595 | Z99: =X99*(100-AVERAGEIF(Y105:Y116,">0"))/100 -> 12.99424882 | AA99: =100-(Y99+Z99+AB99) -> 7.768055545 | AB99: =IF((X101+AB101)>100,AB101*100/(X101+AB101),AB101) -> 0.3164796913
C100: =MaxTarget(C105:C116) -> 2020 | D100: =IF((D102+H102)>100,D102*100/(D102+H102),D102) -> 22.64784481 | E100: =D100*AVERAGEIF(E105:E116,">0")/100 -> 16.86865468 | F100: =D100*(100-AVERAGEIF(E105:E116,">0"))/100 -> 5.779190137 | G100: =100-(E100+F100+H100) -> 38.71814177 | H100: =IF((D102+H102)>100,H102*100/(D102+H102),H102) -> 38.63401341 | I100: =IF((I102+M102)>100,I102*100/(I102+M102),I102) -> 54.37213731 | J100: =I100*AVERAGEIF(J105:J116,">0")/100 -> 41.51683835 | K100: =I100*(100-AVERAGEIF(J105:J116,">0"))/100 -> 12.85529896 | L100: =100-(J100+K100+M100) -> 29.73659443 | M100: =IF((I102+M102)>100,M102*100/(I102+M102),M102) -> 15.89126826 | N100: =IF((N102+R102)>100,N102*100/(N102+R102),N102) -> 89.60757022 | O100: =N100*AVERAGEIF(O105:O116,">0")/100 -> 68.34461081 | P100: =N100*(100-AVERAGEIF(O105:O116,">0"))/100 -> 21.26295942 | Q100: =100-(O100+P100+R100) -> 10.39242978 | R100: =IF((N102+R102)>100,R102*100/(N102+R102),R102) -> 0 | S100: =IF((S102+W102)>100,S102*100/(S102+W102),S102) -> 99.93233797 | T100: =S100*AVERAGEIF(T105:T116,">0")/100 -> 70.97503408 | U100: =S100*(100-AVERAGEIF(T105:T116,">0"))/100 -> 28.95730389 | V100: =100-(T100+U100+W100) -> 0 | W100: =IF((S102+W102)>100,W102*100/(S102+W102),W102) -> 0.06766203018 | X100: =IF((X102+AB102)>100,X102*100/(X102+AB102),X102) -> 100 | Y100: =X100*AVERAGEIF(Y105:Y116,">0")/100 -> 85.8628264 | Z100: =X100*(100-AVERAGEIF(Y105:Y116,">0"))/100 -> 14.1371736 | AA100: =100-(Y100+Z100+AB100) -> 0 | AB100: =IF((X102+AB102)>100,AB102*100/(X102+AB102),AB102) -> 0
A101: Regression period: | C101: =MinRegYear(C99,C105:C116) -> 2000 | D101: =IF(MAX(C105:C116)-MIN(C105:C116)<5,AVERAGEIF(C105:C116,">0",D105:D116), IF(FORECAST($C101,D$105:D$116,$C$105:$C$116)<0,0, IF(FORECAST($C101,D$105:D$116,$C$105:$C$116)>100,100, FORECAST($C101,D$105:D$116,$C$105:$C$116)))) -> 15.25314654 | H101: =IF(MAX(C105:C116)-MIN(C105:C116)<5,AVERAGEIF(C105:C116,">0",H105:H116), IF(FORECAST($C101,H$105:H$116,$C$105:$C$116)<0,0, IF(FORECAST($C101,H$105:H$116,$C$105:$C$116)>100,100, FORECAST($C101,H$105:H$116,$C$105:$C$116)))) -> 58.56794849 | I101: =IF(MAX(C105:C116)-MIN(C105:C116)<5,AVERAGEIF(C105:C116,">0",I105:I116), IF(FORECAST($C101,I$105:I$116,$C$105:$C$116)<0,0, IF(FORECAST($C101,I$105:I$116,$C$105:$C$116)>100,100, FORECAST($C101,I$105:I$116,$C$105:$C$116)))) -> 23.99880937 | M101: =IF(MAX(C105:C116)-MIN(C105:C116)<5,AVERAGEIF(C105:C116,">0",M105:M116), IF(FORECAST($C101,M$105:M$116,$C$105:$C$116)<0,0, IF(FORECAST($C101,M$105:M$116,$C$105:$C$116)>100,100, FORECAST($C101,M$105:M$116,$C$105:$C$116)))) -> 41.58172351 | N101: =IF(MAX(C105:C116)-MIN(C105:C116)<5,AVERAGEIF(C105:C116,">0",N105:N116), IF(FORECAST($C101,N$105:N$116,$C$105:$C$116)<0,0, IF(FORECAST($C101,N$105:N$116,$C$105:$C$116)>100,100, FORECAST($C101,N$105:N$116,$C$105:$C$116)))) -> 48.32931806 | R101: =IF(MAX(C105:C116)-MIN(C105:C116)<5,AVERAGEIF(C105:C116,">0",R105:R116), IF(FORECAST($C101,R$105:R$116,$C$105:$C$116)<0,0, IF(FORECAST($C101,R$105:R$116,$C$105:$C$116)>100,100, FORECAST($C101,R$105:R$116,$C$105:$C$116)))) -> 19.81538895 | S101: =IF(MAX(C105:C116)-MIN(C105:C116)<5,AVERAGEIF(C105:C116,">0",S105:S116), IF(FORECAST($C101,S$105:S$116,$C$105:$C$116)<0,0, IF(FORECAST($C101,S$105:S$116,$C$105:$C$116)>100,100, FORECAST($C101,S$105:S$116,$C$105:$C$116)))) -> 80.26555648 | W101: =IF(MAX(C105:C116)-MIN(C105:C116)<5,AVERAGEIF(C105:C116,">0",W105:W116), IF(FORECAST($C101,W$105:W$116,$C$105:$C$116)<0,0, IF(FORECAST($C101,W$105:W$116,$C$105:$C$116)>100,100, FORECAST($C101,W$105:W$116,$C$105:$C$116)))) -> 2.481780629 | X101: =IF(MAX(C105:C116)-MIN(C105:C116)<5,AVERAGEIF(C105:C116,">0",X105:X116), IF(FORECAST($C101,X$105:X$116,$C$105:$C$116)<0,0, IF(FORECAST($C101,X$105:X$116,$C$105:$C$116)>100,100, FORECAST($C101,X$105:X$116,$C$105:$C$116)))) -> 91.91546476 | AB101: =IF(MAX(C105:C116)-MIN(C105:C116)<5,AVERAGEIF(C105:C116,">0",AB105:AB116), IF(FORECAST($C101,AB$105:AB$116,$C$105:$C$116)<0,0, IF(FORECAST($C101,AB$105:AB$116,$C$105:$C$116)>100,100, FORECAST($C101,AB$105:AB$116,$C$105:$C$116)))) -> 0.3164796913
C102: =MaxRegYear(C100,C105:C116) -> 2020 | D102: =IF(MAX(C105:C116)-MIN(C105:C116)<5,AVERAGEIF(C105:C116,">0",D105:D116), IF(FORECAST($C102,D$105:D$116,$C$105:$C$116)<0,0, IF(FORECAST($C102,D$105:D$116,$C$105:$C$116)>100,100, FORECAST($C102,D$105:D$116,$C$105:$C$116)))) -> 22.64784481 | H102: =IF(MAX(C105:C116)-MIN(C105:C116)<5,AVERAGEIF(C105:C116,">0",H105:H116), IF(FORECAST($C102,H$105:H$116,$C$105:$C$116)<0,0, IF(FORECAST($C102,H$105:H$116,$C$105:$C$116)>100,100, FORECAST($C102,H$105:H$116,$C$105:$C$116)))) -> 38.63401341 | I102: =IF(MAX(C105:C116)-MIN(C105:C116)<5,AVERAGEIF(C105:C116,">0",I105:I116), IF(FORECAST($C102,I$105:I$116,$C$105:$C$116)<0,0, IF(FORECAST($C102,I$105:I$116,$C$105:$C$116)>100,100, FORECAST($C102,I$105:I$116,$C$105:$C$116)))) -> 54.37213731 | M102: =IF(MAX(C105:C116)-MIN(C105:C116)<5,AVERAGEIF(C105:C116,">0",M105:M116), IF(FORECAST($C102,M$105:M$116,$C$105:$C$116)<0,0, IF(FORECAST($C102,M$105:M$116,$C$105:$C$116)>100,100, FORECAST($C102,M$105:M$116,$C$105:$C$116)))) -> 15.89126826 | N102: =IF(MAX(C105:C116)-MIN(C105:C116)<5,AVERAGEIF(C105:C116,">0",N105:N116), IF(FORECAST($C102,N$105:N$116,$C$105:$C$116)<0,0, IF(FORECAST($C102,N$105:N$116,$C$105:$C$116)>100,100, FORECAST($C102,N$105:N$116,$C$105:$C$116)))) -> 89.60757022 | R102: =IF(MAX(C105:C116)-MIN(C105:C116)<5,AVERAGEIF(C105:C116,">0",R105:R116), IF(FORECAST($C102,R$105:R$116,$C$105:$C$116)<0,0, IF(FORECAST($C102,R$105:R$116,$C$105:$C$116)>100,100, FORECAST($C102,R$105:R$116,$C$105:$C$116)))) -> 0 | S102: =IF(MAX(C105:C116)-MIN(C105:C116)<5,AVERAGEIF(C105:C116,">0",S105:S116), IF(FORECAST($C102,S$105:S$116,$C$105:$C$116)<0,0, IF(FORECAST($C102,S$105:S$116,$C$105:$C$116)>100,100, FORECAST($C102,S$105:S$116,$C$105:$C$116)))) -> 99.94426306 | W102: =IF(MAX(C105:C116)-MIN(C105:C116)<5,AVERAGEIF(C105:C116,">0",W105:W116), IF(FORECAST($C102,W$105:W$116,$C$105:$C$116)<0,0, IF(FORECAST($C102,W$105:W$116,$C$105:$C$116)>100,100, FORECAST($C102,W$105:W$116,$C$105:$C$116)))) -> 0.06767010441 | X102: =IF(MAX(C105:C116)-MIN(C105:C116)<5,AVERAGEIF(C105:C116,">0",X105:X116), IF(FORECAST($C102,X$105:X$116,$C$105:$C$116)<0,0, IF(FORECAST($C102,X$105:X$116,$C$105:$C$116)>100,100, FORECAST($C102,X$105:X$116,$C$105:$C$116)))) -> 100 | AB102: =IF(MAX(C105:C116)-MIN(C105:C116)<5,AVERAGEIF(C105:C116,">0",AB105:AB116), IF(FORECAST($C102,AB$105:AB$116,$C$105:$C$116)<0,0, IF(FORECAST($C102,AB$105:AB$116,$C$105:$C$116)>100,100, FORECAST($C102,AB$105:AB$116,$C$105:$C$116)))) -> 0
B104: Survey | C104: Year | D104: Improved | E104: Not shared | H104: Open defecation | I104: Improved | J104: Not shared | M104: Open defecation | N104: Improved | O104: Not shared | R104: Open defecation | S104: Improved | T104: Not shared | W104: Open defecation | X104: Improved | Y104: Not shared | AB104: Open defecation
B105: MICS00 | C105: 2000 | D105: =IF(ISERROR(INDIRECT(CONCATENATE($B105,"!C122"))),"",INDIRECT(CONCATENATE($B105,"!C122"))) -> 23.40049414 | E105: =IF(ISERROR(INDIRECT(CONCATENATE($B105,"!C129"))),"",INDIRECT(CONCATENATE($B105,"!C129"))) -> N/A | H105: =IF(ISERROR(INDIRECT(CONCATENATE($B105,"!C127"))),"",INDIRECT(CONCATENATE($B105,"!C127"))) -> 55.53518592 | I105: =IF(ISERROR(INDIRECT(CONCATENATE($B105,"!D122"))),"",INDIRECT(CONCATENATE($B105,"!D122"))) -> 33.8774784 | J105: =IF(ISERROR(INDIRECT(CONCATENATE($B105,"!D129"))),"",INDIRECT(CONCATENATE($B105,"!D129"))) -> N/A | M105: =IF(ISERROR(INDIRECT(CONCATENATE($B105,"!D127"))),"",INDIRECT(CONCATENATE($B105,"!D127"))) -> 40.77530353 | N105: =IF(ISERROR(INDIRECT(CONCATENATE($B105,"!E122"))),"",INDIRECT(CONCATENATE($B105,"!E122"))) -> 50.15968041 | O105: =IF(ISERROR(INDIRECT(CONCATENATE($B105,"!E129"))),"",INDIRECT(CONCATENATE($B105,"!E129"))) -> N/A | R105: =IF(ISERROR(INDIRECT(CONCATENATE($B105,"!E127"))),"",INDIRECT(CONCATENATE($B105,"!E127"))) -> 21.36823084 | S105: =IF(ISERROR(INDIRECT(CONCATENATE($B105,"!F122"))),"",INDIRECT(CONCATENATE($B105,"!F122"))) -> 79.72876927 | T105: =IF(ISERROR(INDIRECT(CONCATENATE($B105,"!F129"))),"",INDIRECT(CONCATENATE($B105,"!F129"))) -> N/A | W105: =IF(ISERROR(INDIRECT(CONCATENATE($B105,"!F127"))),"",INDIRECT(CONCATENATE($B105,"!F127"))) -> 4.12632897 | X105: =IF(ISERROR(INDIRECT(CONCATENATE($B105,"!G122"))),"",INDIRECT(CONCATENATE($B105,"!G122"))) -> 92.41164182 | Y105: =IF(ISERROR(INDIRECT(CONCATENATE($B105,"!G129"))),"",INDIRECT(CONCATENATE($B105,"!G129"))) -> N/A | AB105: =IF(ISERROR(INDIRECT(CONCATENATE($B105,"!G2127"))),"",INDIRECT(CONCATENATE($B105,"!G127"))) -> 0.3445142783
B106: DHS05 | C106: 2005 | D106: 8.13406286 | E106: 64.85410028 | H106: 53.35607574 | I106: 17.20027729 | J106: 69.41077444 | M106: 38.04745034 | N106: 46.44232281 | O106: 67.83368545 | R106: 16.13851141 | S106: 72.55132466 | T106: 69.45359677 | W106: 1.730052715 | X106: 86.72118725 | Y106: 84.82258617 | AB106: 0.4827384349
B107: MIS06 | C107: 2006 | D107: 31.22941008 | E107: 72.02285085 | H107: 47.30077998 | I107: 44.20046476 | J107: 71.90385502 | M107: 31.71888338 | N107: 69.7137081 | O107: 78.17977572 | R107: 13.20285369 | S107: 95.94041674 | T107: 74.40778778 | W107: 0.3227601617 | X107: 99.64326987 | Y107: 85.30468943 | AB107: 0
B108: MIS09 | C108: 2009 | D108: 13.27276651 | E108: N/A | H108: 54.86849625 | I108: 40.38238572 | J108: N/A | M108: 24.87144778 | N108: 75.71663499 | O108: N/A | R108: 8.719627849 | S108: 95.60857814 | T108: N/A | W108: 0.4225440411 | X108: 97.11791988 | Y108: N/A | AB108: 0.05174060586
B109: DHS11 | C109: 2011 | D109: 9.40141074 | E109: 74.14891507 | H109: 50.87516912 | I109: 32.13427758 | J109: 68.21218471 | M109: 26.32007459 | N109: 68.54280386 | O109: 75.8296107 | R109: 5.128559388 | S109: 91.86756958 | T109: 72.4468389 | W109: 0.1649053708 | X109: 97.67371141 | Y109: 85.38483808 | AB109: 0.05412698701
B110: DHS13 | C110: 2013 | D110: 9.313257558 | E110: 78.52736798 | H110: 60.97308943 | I110: 35.61240415 | J110: 82.54143776 | M110: 34.67989698 | N110: 71.41939397 | O110: 76.84568507 | R110: 8.11293888 | S110: 91.97935971 | T110: 64.39714801 | W110: 1.343269712 | X110: 98.1108243 | Y110: 80.66332493 | AB110: 0.09050701745
B111: DHS15 | C111: 2015 | D111: 14.05273081 | E111: 79.41357244 | H111: 36.28990487 | I111: 32.7976261 | J111: 82.70829663 | M111: 23.78982893 | N111: 70.99466947 | O111: 84.54273645 | R111: 6.476043695 | S111: 93.56633791 | T111: 67.43173772 | W111: 2.000171353 | X111: 99.04735023 | Y111: 78.81808267 | AB111: 0
B112: DHS17 | C112: 2017 | D112: 23.18029658 | E112: 75.1055502 | H112: 38.42465263 | I112: 50.93774482 | J112: 78.10897108 | M112: 21.10493036 | N112: 84.48981881 | O112: 76.31678029 | R112: 2.233485709 | S112: 97.29204166 | T112: 66.85218499 | W112: 0.1619657947 | X112: 99.25578575 | Y112: 90.61322341 | AB112: 0.05620884333
B113: DHS18 | C113: 2018 | D113: 34.41688673 | E113: 73.3489005 | H113: 34.83899934 | I113: 64.81967225 | J113: 80.14931661 | M113: 14.51477619 | N113: 89.84828397 | O113: 76.63102 | R113: 1.896721085 | S113: 98.61596845 | T113: 76.31272371 | W113: 0.06726773235 | X113: 99.08877051 | Y113: 89.90797573 | AB113: 0
B114: DHS19 | C114: 2019 | D114: 27.91019466 | E114: 78.43781236 | H114: 40.59039844 | I114: 59.63506552 | J114: 77.8197728 | M114: 14.84357084 | N114: 89.18798895 | O114: 73.9888931 | R114: 2.524684808 | S114: 96.68989085 | T114: 76.88270005 | W114: 0.838815978 | X114: 98.87853189 | Y114: 91.3878908 | AB114: 0.01352509225
B118: =CONCATENATE("National use of sanitation facilities, ",C99,"–",C100) -> National use of sanitation facilities, 2000–2020 | S118: Data points used for regression
A197: URBAN | D197: Poorest | I197: Poor | N197: Middle | S197: Rich | X197: Richest
D198: Improved | E198: Basic | F198: Limited | G198: Unimproved | H198: Open defecation | I198: Improved | J198: Basic | K198: Limited | L198: Unimproved | M198: Open defecation | N198: Improved | O198: Basic | P198: Limited | Q198: Unimproved | R198: Open defecation | S198: Improved | T198: Basic | U198: Limited | V198: Unimproved | W198: Open defecation | X198: Improved | Y198: Basic | Z198: Limited | AA198: Unimproved | AB198: Open defecation
A199: Forecast period: | C199: 2000 | D199: =IF((D201+H201)>100,D201*100/(D201+H201),D201) -> 52.87656676 | E199: =D199*AVERAGEIF(E205:E216,">0")/100 -> 37.3469762 | F199: =D199*(100-AVERAGEIF(E205:E216,">0"))/100 -> 15.52959055 | G199: =100-(E199+F199+H199) -> 34.21590389 | H199: =IF((D201+H201)>100,H201*100/(D201+H201),H201) -> 12.90752935 | I199: =IF((I201+M201)>100,I201*100/(I201+M201),I201) -> 79.56960733 | J199: =I199*AVERAGEIF(J205:J216,">0")/100 -> 51.16913763 | K199: =I199*(100-AVERAGEIF(J205:J216,">0"))/100 -> 28.4004697 | L199: =100-(J199+K199+M199) -> 18.27756736 | M199: =IF((I201+M201)>100,M201*100/(I201+M201),M201) -> 2.152825312 | N199: =IF((N201+R201)>100,N201*100/(N201+R201),N201) -> 87.4193476 | O199: =N199*AVERAGEIF(O205:O216,">0")/100 -> 57.52491039 | P199: =N199*(100-AVERAGEIF(O205:O216,">0"))/100 -> 29.89443721 | Q199: =100-(O199+P199+R199) -> 11.96707536 | R199: =IF((N201+R201)>100,R201*100/(N201+R201),R201) -> 0.6135770397 | S199: =IF((S201+W201)>100,S201*100/(S201+W201),S201) -> 91.4838759 | T199: =S199*AVERAGEIF(T205:T216,">0")/100 -> 71.50807744 | U199: =S199*(100-AVERAGEIF(T205:T216,">0"))/100 -> 19.97579846 | V199: =100-(T199+U199+W199) -> 8.365097346 | W199: =IF((S201+W201)>100,W201*100/(S201+W201),W201) -> 0.1510267524 | X199: =IF((X201+AB201)>100,X201*100/(X201+AB201),X201) -> 97.15044043 | Y199: =X199*AVERAGEIF(Y205:Y216,">0")/100 -> 88.23033397 | Z199: =X199*(100-AVERAGEIF(Y205:Y216,">0"))/100 -> 8.920106459 | AA199: =100-(Y199+Z199+AB199) -> 2.839433766 | AB199: =IF((X201+AB201)>100,AB201*100/(X201+AB201),AB201) -> 0.01012580419
C200: 2020 | D200: =IF((D202+H202)>100,D202*100/(D202+H202),D202) -> 73.78170451 | E200: =D200*AVERAGEIF(E205:E216,">0")/100 -> 52.11237665 | F200: =D200*(100-AVERAGEIF(E205:E216,">0"))/100 -> 21.66932786 | G200: =100-(E200+F200+H200) -> 21.31784638 | H200: =IF((D202+H202)>100,H202*100/(D202+H202),H202) -> 4.900449106 | I200: =IF((I202+M202)>100,I202*100/(I202+M202),I202) -> 97.19915259 | J200: =I200*AVERAGEIF(J205:J216,">0")/100 -> 62.50623804 | K200: =I200*(100-AVERAGEIF(J205:J216,">0"))/100 -> 34.69291455 | L200: =100-(J200+K200+M200) -> 2.287380632 | M200: =IF((I202+M202)>100,M202*100/(I202+M202),M202) -> 0.5134667779 | N200: =IF((N202+R202)>100,N202*100/(N202+R202),N202) -> 99.46740157 | O200: =N200*AVERAGEIF(O205:O216,">0")/100 -> 65.45294056 | P200: =N200*(100-AVERAGEIF(O205:O216,">0"))/100 -> 34.01446101 | Q200: =100-(O200+P200+R200) -> 0 | R200: =IF((N202+R202)>100,R202*100/(N202+R202),R202) -> 0.5325984323 | S200: =IF((S202+W202)>100,S202*100/(S202+W202),S202) -> 100 | T200: =S200*AVERAGEIF(T205:T216,">0")/100 -> 78.16467846 | U200: =S200*(100-AVERAGEIF(T205:T216,">0"))/100 -> 21.83532154 | V200: =100-(T200+U200+W200) -> 0 | W200: =IF((S202+W202)>100,W202*100/(S202+W202),W202) -> 0 | X200: =IF((X202+AB202)>100,X202*100/(X202+AB202),X202) -> 99.71817039 | Y200: =X200*AVERAGEIF(Y205:Y216,">0")/100 -> 90.5623015 | Z200: =X200*(100-AVERAGEIF(Y205:Y216,">0"))/100 -> 9.155868896 | AA200: =100-(Y200+Z200+AB200) -> 0.2504521144 | AB200: =IF((X202+AB202)>100,AB202*100/(X202+AB202),AB202) -> 0.031377492
A201: Regression period: | C201: =MinRegYear(C199,C205:C216) -> 2000 | D201: =IF(MAX(C205:C216)-MIN(C205:C216)<5,AVERAGEIF(C205:C216,">0",D205:D216), IF(FORECAST($C201,D$205:D$216,$C$205:$C$216)<0,0, IF(FORECAST($C201,D$205:D$216,$C$205:$C$216)>100,100, FORECAST($C201,D$205:D$216,$C$205:$C$216)))) -> 52.87656676 | H201: =IF(MAX(C205:C216)-MIN(C205:C216)<5,AVERAGEIF(C205:C216,">0",H205:H216), IF(FORECAST($C201,H$205:H$216,$C$205:$C$216)<0,0, IF(FORECAST($C201,H$205:H$216,$C$205:$C$216)>100,100, FORECAST($C201,H$205:H$216,$C$205:$C$216)))) -> 12.90752935 | I201: =IF(MAX(C205:C216)-MIN(C205:C216)<5,AVERAGEIF(C205:C216,">0",I205:I216), IF(FORECAST($C201,I$205:I$216,$C$205:$C$216)<0,0, IF(FORECAST($C201,I$205:I$216,$C$205:$C$216)>100,100, FORECAST($C201,I$205:I$216,$C$205:$C$216)))) -> 79.56960733 | M201: =IF(MAX(C205:C216)-MIN(C205:C216)<5,AVERAGEIF(C205:C216,">0",M205:M216), IF(FORECAST($C201,M$205:M$216,$C$205:$C$216)<0,0, IF(FORECAST($C201,M$205:M$216,$C$205:$C$216)>100,100, FORECAST($C201,M$205:M$216,$C$205:$C$216)))) -> 2.152825312 | N201: =IF(MAX(C205:C216)-MIN(C205:C216)<5,AVERAGEIF(C205:C216,">0",N205:N216), IF(FORECAST($C201,N$205:N$216,$C$205:$C$216)<0,0, IF(FORECAST($C201,N$205:N$216,$C$205:$C$216)>100,100, FORECAST($C201,N$205:N$216,$C$205:$C$216)))) -> 87.4193476 | R201: =IF(MAX(C205:C216)-MIN(C205:C216)<5,AVERAGEIF(C205:C216,">0",R205:R216), IF(FORECAST($C201,R$205:R$216,$C$205:$C$216)<0,0, IF(FORECAST($C201,R$205:R$216,$C$205:$C$216)>100,100, FORECAST($C201,R$205:R$216,$C$205:$C$216)))) -> 0.6135770397 | S201: =IF(MAX(C205:C216)-MIN(C205:C216)<5,AVERAGEIF(C205:C216,">0",S205:S216), IF(FORECAST($C201,S$205:S$216,$C$205:$C$216)<0,0, IF(FORECAST($C201,S$205:S$216,$C$205:$C$216)>100,100, FORECAST($C201,S$205:S$216,$C$205:$C$216)))) -> 91.4838759 | W201: =IF(MAX(C205:C216)-MIN(C205:C216)<5,AVERAGEIF(C205:C216,">0",W205:W216), IF(FORECAST($C201,W$205:W$216,$C$205:$C$216)<0,0, IF(FORECAST($C201,W$205:W$216,$C$205:$C$216)>100,100, FORECAST($C201,W$205:W$216,$C$205:$C$216)))) -> 0.1510267524 | X201: =IF(MAX(C205:C216)-MIN(C205:C216)<5,AVERAGEIF(C205:C216,">0",X205:X216), IF(FORECAST($C201,X$205:X$216,$C$205:$C$216)<0,0, IF(FORECAST($C201,X$205:X$216,$C$205:$C$216)>100,100, FORECAST($C201,X$205:X$216,$C$205:$C$216)))) -> 97.15044043 | AB201: =IF(MAX(C205:C216)-MIN(C205:C216)<5,AVERAGEIF(C205:C216,">0",AB205:AB216), IF(FORECAST($C201,AB$205:AB$216,$C$205:$C$216)<0,0, IF(FORECAST($C201,AB$205:AB$216,$C$205:$C$216)>100,100, FORECAST($C201,AB$205:AB$216,$C$205:$C$216)))) -> 0.01012580419
C202: =MaxRegYear(C200,C205:C216) -> 2020 | D202: =IF(MAX(C205:C216)-MIN(C205:C216)<5,AVERAGEIF(C205:C216,">0",D205:D216), IF(FORECAST($C202,D$205:D$216,$C$205:$C$216)<0,0, IF(FORECAST($C202,D$205:D$216,$C$205:$C$216)>100,100, FORECAST($C202,D$205:D$216,$C$205:$C$216)))) -> 73.78170451 | H202: =IF(MAX(C205:C216)-MIN(C205:C216)<5,AVERAGEIF(C205:C216,">0",H205:H216), IF(FORECAST($C202,H$205:H$216,$C$205:$C$216)<0,0, IF(FORECAST($C202,H$205:H$216,$C$205:$C$216)>100,100, FORECAST($C202,H$205:H$216,$C$205:$C$216)))) -> 4.900449106 | I202: =IF(MAX(C205:C216)-MIN(C205:C216)<5,AVERAGEIF(C205:C216,">0",I205:I216), IF(FORECAST($C202,I$205:I$216,$C$205:$C$216)<0,0, IF(FORECAST($C202,I$205:I$216,$C$205:$C$216)>100,100, FORECAST($C202,I$205:I$216,$C$205:$C$216)))) -> 97.19915259 | M202: =IF(MAX(C205:C216)-MIN(C205:C216)<5,AVERAGEIF(C205:C216,">0",M205:M216), IF(FORECAST($C202,M$205:M$216,$C$205:$C$216)<0,0, IF(FORECAST($C202,M$205:M$216,$C$205:$C$216)>100,100, FORECAST($C202,M$205:M$216,$C$205:$C$216)))) -> 0.5134667779 | N202: =IF(MAX(C205:C216)-MIN(C205:C216)<5,AVERAGEIF(C205:C216,">0",N205:N216), IF(FORECAST($C202,N$205:N$216,$C$205:$C$216)<0,0, IF(FORECAST($C202,N$205:N$216,$C$205:$C$216)>100,100, FORECAST($C202,N$205:N$216,$C$205:$C$216)))) -> 99.88481615 | R202: =IF(MAX(C205:C216)-MIN(C205:C216)<5,AVERAGEIF(C205:C216,">0",R205:R216), IF(FORECAST($C202,R$205:R$216,$C$205:$C$216)<0,0, IF(FORECAST($C202,R$205:R$216,$C$205:$C$216)>100,100, FORECAST($C202,R$205:R$216,$C$205:$C$216)))) -> 0.5348334796 | S202: =IF(MAX(C205:C216)-MIN(C205:C216)<5,AVERAGEIF(C205:C216,">0",S205:S216), IF(FORECAST($C202,S$205:S$216,$C$205:$C$216)<0,0, IF(FORECAST($C202,S$205:S$216,$C$205:$C$216)>100,100, FORECAST($C202,S$205:S$216,$C$205:$C$216)))) -> 100 | W202: =IF(MAX(C205:C216)-MIN(C205:C216)<5,AVERAGEIF(C205:C216,">0",W205:W216), IF(FORECAST($C202,W$205:W$216,$C$205:$C$216)<0,0, IF(FORECAST($C202,W$205:W$216,$C$205:$C$216)>100,100, FORECAST($C202,W$205:W$216,$C$205:$C$216)))) -> 0 | X202: =IF(MAX(C205:C216)-MIN(C205:C216)<5,AVERAGEIF(C205:C216,">0",X205:X216), IF(FORECAST($C202,X$205:X$216,$C$205:$C$216)<0,0, IF(FORECAST($C202,X$205:X$216,$C$205:$C$216)>100,100, FORECAST($C202,X$205:X$216,$C$205:$C$216)))) -> 99.71817039 | AB202: =IF(MAX(C205:C216)-MIN(C205:C216)<5,AVERAGEIF(C205:C216,">0",AB205:AB216), IF(FORECAST($C202,AB$205:AB$216,$C$205:$C$216)<0,0, IF(FORECAST($C202,AB$205:AB$216,$C$205:$C$216)>100,100, FORECAST($C202,AB$205:AB$216,$C$205:$C$216)))) -> 0.031377492
B204: Survey | C204: Year | D204: Improved | E204: Not shared | H204: Open defecation | I204: Improved | J204: Not shared | M204: Open defecation | N204: Improved | O204: Not shared | R204: Open defecation | S204: Improved | T204: Not shared | W204: Open defecation | X204: Improved | Y204: Not shared | AB204: Open defecation
B205: MICS00 | C205: 2000 | D205: =IF(ISERROR(INDIRECT(CONCATENATE($B205,"!H122"))),"",INDIRECT(CONCATENATE($B205,"!H122"))) -> 62.10276549 | E205: =IF(ISERROR(INDIRECT(CONCATENATE($B205,"!H129"))),"",INDIRECT(CONCATENATE($B205,"!H129"))) -> N/A | H205: =IF(ISERROR(INDIRECT(CONCATENATE($B205,"!H127"))),"",INDIRECT(CONCATENATE($B205,"!H127"))) -> 9.170564136 | I205: =IF(ISERROR(INDIRECT(CONCATENATE($B205,"!I122"))),"",INDIRECT(CONCATENATE($B205,"!I122"))) -> 83.56061035 | J205: =IF(ISERROR(INDIRECT(CONCATENATE($B205,"!I129"))),"",INDIRECT(CONCATENATE($B205,"!I129"))) -> N/A | M205: =IF(ISERROR(INDIRECT(CONCATENATE($B205,"!I127"))),"",INDIRECT(CONCATENATE($B205,"!I127"))) -> 1.948365726 | N205: =IF(ISERROR(INDIRECT(CONCATENATE($B205,"!J122"))),"",INDIRECT(CONCATENATE($B205,"!J122"))) -> 90.79518937 | O205: =IF(ISERROR(INDIRECT(CONCATENATE($B205,"!J129"))),"",INDIRECT(CONCATENATE($B205,"!J129"))) -> N/A | R205: =IF(ISERROR(INDIRECT(CONCATENATE($B205,"!J127"))),"",INDIRECT(CONCATENATE($B205,"!J127"))) -> 0.5764543599 | S205: =IF(ISERROR(INDIRECT(CONCATENATE($B205,"!K122"))),"",INDIRECT(CONCATENATE($B205,"!K122"))) -> 94.07411194 | T205: =IF(ISERROR(INDIRECT(CONCATENATE($B205,"!K129"))),"",INDIRECT(CONCATENATE($B205,"!K129"))) -> N/A | W205: =IF(ISERROR(INDIRECT(CONCATENATE($B205,"!K127"))),"",INDIRECT(CONCATENATE($B205,"!K127"))) -> 0 | X205: =IF(ISERROR(INDIRECT(CONCATENATE($B205,"!L122"))),"",INDIRECT(CONCATENATE($B205,"!L122"))) -> 98.76997666 | Y205: =IF(ISERROR(INDIRECT(CONCATENATE($B205,"!L129"))),"",INDIRECT(CONCATENATE($B205,"!L129"))) -> N/A | AB205: =IF(ISERROR(INDIRECT(CONCATENATE($B205,"!L2127"))),"",INDIRECT(CONCATENATE($B205,"!L127"))) -> 0
B206: DHS05 | C206: 2005 | D206: 44.82457018 | E206: 60.31481495 | H206: 14.57181517 | I206: 70.32965487 | J206: 59.17877303 | M206: 2.773398171 | N206: 75.07348964 | O206: 70.70379165 | R206: 0.964074136 | S206: 84.74426135 | T206: 79.85130328 | W206: 0.4033987066 | X206: 92.66731858 | Y206: 87.06439541 | AB206: 0
B207: MIS06 | C207: 2006 | D207: 67.04038361 | E207: 74.73203443 | H207: 10.88444404 | I207: 90.80111854 | J207: 64.11639239 | M207: 0.969772335 | N207: 98.81586038 | O207: 77.78727502 | R207: 0.3383651453 | S207: 99.61220727 | T207: 76.71538901 | W207: 0 | X207: 99.8026648 | Y207: 89.03480854 | AB207: 0
B208: MIS09 | C208: 2009 | D208: 63.77128733 | E208: N/A | H208: 12.65070971 | I208: 96.10070824 | J208: N/A | M208: 0.5850098229 | N208: 97.47091805 | O208: N/A | R208: 0.1889198995 | S208: 95.25904203 | T208: N/A | W208: 0.1237017924 | X208: 98.59079462 | Y208: N/A | AB208: 0
B209: DHS11 | C209: 2011 | D209: 58.56741798 | E209: 70.97927524 | H209: 6.286830165 | I209: 85.52397988 | J209: 67.92727218 | M209: 0.7286774964 | N209: 94.93651452 | O209: 70.05741815 | R209: 0.0643397051 | S209: 96.09593472 | T209: 76.57198075 | W209: 0.07425208349 | X209: 99.19042012 | Y209: 91.33597734 | AB209: 0
B210: DHS13 | C210: 2013 | D210: 62.67777344 | E210: 71.49030235 | H210: 7.06723616 | I210: 90.12711711 | J210: 60.74979662 | M210: 2.569962445 | N210: 97.06896973 | O210: 54.77571743 | R210: 0.7545853891 | S210: 97.49445049 | T210: 68.77675933 | W210: 0 | X210: 99.57953591 | Y210: 91.03773401 | AB210: 0.221330078
B211: DHS15 | C211: 2015 | D211: 57.69707707 | E211: 81.61053246 | H211: 8.592981596 | I211: 88.72671688 | J211: 68.1940099 | M211: 1.73637203 | N211: 95.03467568 | O211: 51.44157629 | R211: 2.358500401 | S211: 99.63578051 | T211: 70.71453424 | W211: 0 | X211: 99.87785818 | Y211: 84.77784753 | AB211: 0
B212: DHS17 | C212: 2017 | D212: 70.39522389 | E212: 73.27396209 | H212: 4.904298391 | I212: 95.69606669 | J212: 58.27443018 | M212: 0.4481602684 | N212: 97.70566892 | O212: 60.85064066 | R212: 0 | S212: 99.28000978 | T212: 84.66515471 | W212: 0 | X212: 99.65246319 | Y212: 95.85488078 | AB212: 0
B213: DHS18 | C213: 2018 | D213: 77.92906663 | E213: 65.90553932 | H213: 4.167507741 | I213: 96.76010153 | J213: 65.80300917 | M213: 0.07743377252 | N213: 99.99006039 | O213: 73.7125857 | R213: 0 | S213: 98.36249733 | T213: 84.30565823 | W213: 0 | X213: 99.69980551 | Y213: 93.04943091 | AB213: 0
B214: DHS19 | C214: 2019 | D214: 81.87413025 | E214: 66.73742906 | H214: 5.538903022 | I214: 97.67692995 | J214: 70.21543575 | M214: 0.4287253344 | N214: 97.73202663 | O214: 67.09826296 | R214: 0.4456302465 | S214: 99.84241158 | T214: 83.71664813 | W214: 0 | X214: 98.18124103 | Y214: 94.39095929 | AB214: 0
B218: =CONCATENATE("Urban use of sanitation facilities, ",C199,"–",C200) -> Urban use of sanitation facilities, 2000–2020 | S218: Data points used for regression
A297: RURAL | D297: Poorest | I297: Poor | N297: Middle | S297: Rich | X297: Richest
D298: Improved | E298: Basic | F298: Limited | G298: Unimproved | H298: Open defecation | I298: Improved | J298: Basic | K298: Limited | L298: Unimproved | M298: Open defecation | N298: Improved | O298: Basic | P298: Limited | Q298: Unimproved | R298: Open defecation | S298: Improved | T298: Basic | U298: Limited | V298: Unimproved | W298: Open defecation | X298: Improved | Y298: Basic | Z298: Limited | AA298: Unimproved | AB298: Open defecation
A299: Forecast period: | C299: 2000 | D299: =IF((D301+H301)>100,D301*100/(D301+H301),D301) -> 16.09441981 | E299: =D299*AVERAGEIF(E305:E316,">0")/100 -> 11.42868764 | F299: =D299*(100-AVERAGEIF(E305:E316,">0"))/100 -> 4.66573217 | G299: =100-(E299+F299+H299) -> 25.38457974 | H299: =IF((D301+H301)>100,H301*100/(D301+H301),H301) -> 58.52100045 | I299: =IF((I301+M301)>100,I301*100/(I301+M301),I301) -> 15.69973209 | J299: =I299*AVERAGEIF(J305:J316,">0")/100 -> 12.07537288 | K299: =I299*(100-AVERAGEIF(J305:J316,">0"))/100 -> 3.624359204 | L299: =100-(J299+K299+M299) -> 28.81973758 | M299: =IF((I301+M301)>100,M301*100/(I301+M301),M301) -> 55.48053033 | N299: =IF((N301+R301)>100,N301*100/(N301+R301),N301) -> 22.97577273 | O299: =N299*AVERAGEIF(O305:O316,">0")/100 -> 17.51092464 | P299: =N299*(100-AVERAGEIF(O305:O316,">0"))/100 -> 5.464848091 | Q299: =100-(O299+P299+R299) -> 34.61135012 | R299: =IF((N301+R301)>100,R301*100/(N301+R301),R301) -> 42.41287715 | S299: =IF((S301+W301)>100,S301*100/(S301+W301),S301) -> 37.16804894 | T299: =S299*AVERAGEIF(T305:T316,">0")/100 -> 30.30301532 | U299: =S299*(100-AVERAGEIF(T305:T316,">0"))/100 -> 6.865033618 | V299: =100-(T299+U299+W299) -> 31.44917111 | W299: =IF((S301+W301)>100,W301*100/(S301+W301),W301) -> 31.38277995 | X299: =IF((X301+AB301)>100,X301*100/(X301+AB301),X301) -> 64.28007444 | Y299: =X299*AVERAGEIF(Y305:Y316,">0")/100 -> 56.98051049 | Z299: =X299*(100-AVERAGEIF(Y305:Y316,">0"))/100 -> 7.299563951 | AA299: =100-(Y299+Z299+AB299) -> 26.05296162 | AB299: =IF((X301+AB301)>100,AB301*100/(X301+AB301),AB301) -> 9.666963938
C300: 2020 | D300: =IF((D302+H302)>100,D302*100/(D302+H302),D302) -> 15.2478081 | E300: =D300*AVERAGEIF(E305:E316,">0")/100 -> 10.82750655 | F300: =D300*(100-AVERAGEIF(E305:E316,">0"))/100 -> 4.420301546 | G300: =100-(E300+F300+H300) -> 39.32639814 | H300: =IF((D302+H302)>100,H302*100/(D302+H302),H302) -> 45.42579377 | I300: =IF((I302+M302)>100,I302*100/(I302+M302),I302) -> 32.85010591 | J300: =I300*AVERAGEIF(J305:J316,">0")/100 -> 25.26649983 | K300: =I300*(100-AVERAGEIF(J305:J316,">0"))/100 -> 7.583606079 | L300: =100-(J300+K300+M300) -> 35.79168576 | M300: =IF((I302+M302)>100,M302*100/(I302+M302),M302) -> 31.35820833 | N300: =IF((N302+R302)>100,N302*100/(N302+R302),N302) -> 53.68380607 | O300: =N300*AVERAGEIF(O305:O316,">0")/100 -> 40.91497132 | P300: =N300*(100-AVERAGEIF(O305:O316,">0"))/100 -> 12.76883474 | Q300: =100-(O300+P300+R300) -> 29.34963218 | R300: =IF((N302+R302)>100,R302*100/(N302+R302),R302) -> 16.96656176 | S300: =IF((S302+W302)>100,S302*100/(S302+W302),S302) -> 80.486506 | T300: =S300*AVERAGEIF(T305:T316,">0")/100 -> 65.62044267 | U300: =S300*(100-AVERAGEIF(T305:T316,">0"))/100 -> 14.86606333 | V300: =100-(T300+U300+W300) -> 17.34041955 | W300: =IF((S302+W302)>100,W302*100/(S302+W302),W302) -> 2.173074452 | X300: =IF((X302+AB302)>100,X302*100/(X302+AB302),X302) -> 100 | Y300: =X300*AVERAGEIF(Y305:Y316,">0")/100 -> 88.64412648 | Z300: =X300*(100-AVERAGEIF(Y305:Y316,">0"))/100 -> 11.35587352 | AA300: =100-(Y300+Z300+AB300) -> 0 | AB300: =IF((X302+AB302)>100,AB302*100/(X302+AB302),AB302) -> 0
A301: Regression period: | C301: =MinRegYear(C299,C305:C316) -> 2000 | D301: =IF(MAX(C305:C316)-MIN(C305:C316)<5,AVERAGEIF(C305:C316,">0",D305:D316), IF(FORECAST($C301,D$305:D$316,$C$305:$C$316)<0,0, IF(FORECAST($C301,D$305:D$316,$C$305:$C$316)>100,100, FORECAST($C301,D$305:D$316,$C$305:$C$316)))) -> 16.09441981 | H301: =IF(MAX(C305:C316)-MIN(C305:C316)<5,AVERAGEIF(C305:C316,">0",H305:H316), IF(FORECAST($C301,H$305:H$316,$C$305:$C$316)<0,0, IF(FORECAST($C301,H$305:H$316,$C$305:$C$316)>100,100, FORECAST($C301,H$305:H$316,$C$305:$C$316)))) -> 58.52100045 | I301: =IF(MAX(C305:C316)-MIN(C305:C316)<5,AVERAGEIF(C305:C316,">0",I305:I316), IF(FORECAST($C301,I$305:I$316,$C$305:$C$316)<0,0, IF(FORECAST($C301,I$305:I$316,$C$305:$C$316)>100,100, FORECAST($C301,I$305:I$316,$C$305:$C$316)))) -> 15.69973209 | M301: =IF(MAX(C305:C316)-MIN(C305:C316)<5,AVERAGEIF(C305:C316,">0",M305:M316), IF(FORECAST($C301,M$305:M$316,$C$305:$C$316)<0,0, IF(FORECAST($C301,M$305:M$316,$C$305:$C$316)>100,100, FORECAST($C301,M$305:M$316,$C$305:$C$316)))) -> 55.48053033 | N301: =IF(MAX(C305:C316)-MIN(C305:C316)<5,AVERAGEIF(C305:C316,">0",N305:N316), IF(FORECAST($C301,N$305:N$316,$C$305:$C$316)<0,0, IF(FORECAST($C301,N$305:N$316,$C$305:$C$316)>100,100, FORECAST($C301,N$305:N$316,$C$305:$C$316)))) -> 22.97577273 | R301: =IF(MAX(C305:C316)-MIN(C305:C316)<5,AVERAGEIF(C305:C316,">0",R305:R316), IF(FORECAST($C301,R$305:R$316,$C$305:$C$316)<0,0, IF(FORECAST($C301,R$305:R$316,$C$305:$C$316)>100,100, FORECAST($C301,R$305:R$316,$C$305:$C$316)))) -> 42.41287715 | S301: =IF(MAX(C305:C316)-MIN(C305:C316)<5,AVERAGEIF(C305:C316,">0",S305:S316), IF(FORECAST($C301,S$305:S$316,$C$305:$C$316)<0,0, IF(FORECAST($C301,S$305:S$316,$C$305:$C$316)>100,100, FORECAST($C301,S$305:S$316,$C$305:$C$316)))) -> 37.16804894 | W301: =IF(MAX(C305:C316)-MIN(C305:C316)<5,AVERAGEIF(C305:C316,">0",W305:W316), IF(FORECAST($C301,W$305:W$316,$C$305:$C$316)<0,0, IF(FORECAST($C301,W$305:W$316,$C$305:$C$316)>100,100, FORECAST($C301,W$305:W$316,$C$305:$C$316)))) -> 31.38277995 | X301: =IF(MAX(C305:C316)-MIN(C305:C316)<5,AVERAGEIF(C305:C316,">0",X305:X316), IF(FORECAST($C301,X$305:X$316,$C$305:$C$316)<0,0, IF(FORECAST($C301,X$305:X$316,$C$305:$C$316)>100,100, FORECAST($C301,X$305:X$316,$C$305:$C$316)))) -> 64.28007444 | AB301: =IF(MAX(C305:C316)-MIN(C305:C316)<5,AVERAGEIF(C305:C316,">0",AB305:AB316), IF(FORECAST($C301,AB$305:AB$316,$C$305:$C$316)<0,0, IF(FORECAST($C301,AB$305:AB$316,$C$305:$C$316)>100,100, FORECAST($C301,AB$305:AB$316,$C$305:$C$316)))) -> 9.666963938
C302: =MaxRegYear(C300,C305:C316) -> 2020 | D302: =IF(MAX(C305:C316)-MIN(C305:C316)<5,AVERAGEIF(C305:C316,">0",D305:D316), IF(FORECAST($C302,D$305:D$316,$C$305:$C$316)<0,0, IF(FORECAST($C302,D$305:D$316,$C$305:$C$316)>100,100, FORECAST($C302,D$305:D$316,$C$305:$C$316)))) -> 15.2478081 | H302: =IF(MAX(C305:C316)-MIN(C305:C316)<5,AVERAGEIF(C305:C316,">0",H305:H316), IF(FORECAST($C302,H$305:H$316,$C$305:$C$316)<0,0, IF(FORECAST($C302,H$305:H$316,$C$305:$C$316)>100,100, FORECAST($C302,H$305:H$316,$C$305:$C$316)))) -> 45.42579377 | I302: =IF(MAX(C305:C316)-MIN(C305:C316)<5,AVERAGEIF(C305:C316,">0",I305:I316), IF(FORECAST($C302,I$305:I$316,$C$305:$C$316)<0,0, IF(FORECAST($C302,I$305:I$316,$C$305:$C$316)>100,100, FORECAST($C302,I$305:I$316,$C$305:$C$316)))) -> 32.85010591 | M302: =IF(MAX(C305:C316)-MIN(C305:C316)<5,AVERAGEIF(C305:C316,">0",M305:M316), IF(FORECAST($C302,M$305:M$316,$C$305:$C$316)<0,0, IF(FORECAST($C302,M$305:M$316,$C$305:$C$316)>100,100, FORECAST($C302,M$305:M$316,$C$305:$C$316)))) -> 31.35820833 | N302: =IF(MAX(C305:C316)-MIN(C305:C316)<5,AVERAGEIF(C305:C316,">0",N305:N316), IF(FORECAST($C302,N$305:N$316,$C$305:$C$316)<0,0, IF(FORECAST($C302,N$305:N$316,$C$305:$C$316)>100,100, FORECAST($C302,N$305:N$316,$C$305:$C$316)))) -> 53.68380607 | R302: =IF(MAX(C305:C316)-MIN(C305:C316)<5,AVERAGEIF(C305:C316,">0",R305:R316), IF(FORECAST($C302,R$305:R$316,$C$305:$C$316)<0,0, IF(FORECAST($C302,R$305:R$316,$C$305:$C$316)>100,100, FORECAST($C302,R$305:R$316,$C$305:$C$316)))) -> 16.96656176 | S302: =IF(MAX(C305:C316)-MIN(C305:C316)<5,AVERAGEIF(C305:C316,">0",S305:S316), IF(FORECAST($C302,S$305:S$316,$C$305:$C$316)<0,0, IF(FORECAST($C302,S$305:S$316,$C$305:$C$316)>100,100, FORECAST($C302,S$305:S$316,$C$305:$C$316)))) -> 80.486506 | W302: =IF(MAX(C305:C316)-MIN(C305:C316)<5,AVERAGEIF(C305:C316,">0",W305:W316), IF(FORECAST($C302,W$305:W$316,$C$305:$C$316)<0,0, IF(FORECAST($C302,W$305:W$316,$C$305:$C$316)>100,100, FORECAST($C302,W$305:W$316,$C$305:$C$316)))) -> 2.173074452 | X302: =IF(MAX(C305:C316)-MIN(C305:C316)<5,AVERAGEIF(C305:C316,">0",X305:X316), IF(FORECAST($C302,X$305:X$316,$C$305:$C$316)<0,0, IF(FORECAST($C302,X$305:X$316,$C$305:$C$316)>100,100, FORECAST($C302,X$305:X$316,$C$305:$C$316)))) -> 100 | AB302: =IF(MAX(C305:C316)-MIN(C305:C316)<5,AVERAGEIF(C305:C316,">0",AB305:AB316), IF(FORECAST($C302,AB$305:AB$316,$C$305:$C$316)<0,0, IF(FORECAST($C302,AB$305:AB$316,$C$305:$C$316)>100,100, FORECAST($C302,AB$305:AB$316,$C$305:$C$316)))) -> 0
B304: Survey | C304: Year | D304: Improved | E304: Not shared | H304: Open defecation | I304: Improved | J304: Not shared | M304: Open defecation | N304: Improved | O304: Not shared | R304: Open defecation | S304: Improved | T304: Not shared | W304: Open defecation | X304: Improved | Y304: Not shared | AB304: Open defecation
B305: MICS00 | C305: 2000 | D305: =IF(ISERROR(INDIRECT(CONCATENATE($B305,"!M122"))),"",INDIRECT(CONCATENATE($B305,"!M122"))) -> 23.93732521 | E305: =IF(ISERROR(INDIRECT(CONCATENATE($B305,"!M129"))),"",INDIRECT(CONCATENATE($B305,"!M129"))) -> N/A | H305: =IF(ISERROR(INDIRECT(CONCATENATE($B305,"!M127"))),"",INDIRECT(CONCATENATE($B305,"!M127"))) -> 54.22251089 | I305: =IF(ISERROR(INDIRECT(CONCATENATE($B305,"!N122"))),"",INDIRECT(CONCATENATE($B305,"!N122"))) -> 25.56833766 | J305: =IF(ISERROR(INDIRECT(CONCATENATE($B305,"!N129"))),"",INDIRECT(CONCATENATE($B305,"!N129"))) -> N/A | M305: =IF(ISERROR(INDIRECT(CONCATENATE($B305,"!N127"))),"",INDIRECT(CONCATENATE($B305,"!N127"))) -> 53.53797538 | N305: =IF(ISERROR(INDIRECT(CONCATENATE($B305,"!O122"))),"",INDIRECT(CONCATENATE($B305,"!O122"))) -> 33.19865109 | O305: =IF(ISERROR(INDIRECT(CONCATENATE($B305,"!O129"))),"",INDIRECT(CONCATENATE($B305,"!O129"))) -> N/A | R305: =IF(ISERROR(INDIRECT(CONCATENATE($B305,"!O127"))),"",INDIRECT(CONCATENATE($B305,"!O127"))) -> 41.17709965 | S305: =IF(ISERROR(INDIRECT(CONCATENATE($B305,"!P122"))),"",INDIRECT(CONCATENATE($B305,"!P122"))) -> 40.53376001 | T305: =IF(ISERROR(INDIRECT(CONCATENATE($B305,"!P129"))),"",INDIRECT(CONCATENATE($B305,"!P129"))) -> N/A | W305: =IF(ISERROR(INDIRECT(CONCATENATE($B305,"!P127"))),"",INDIRECT(CONCATENATE($B305,"!P127"))) -> 30.96995357 | X305: =IF(ISERROR(INDIRECT(CONCATENATE($B305,"!Q122"))),"",INDIRECT(CONCATENATE($B305,"!Q122"))) -> 55.64087372 | Y305: =IF(ISERROR(INDIRECT(CONCATENATE($B305,"!Q129"))),"",INDIRECT(CONCATENATE($B305,"!Q129"))) -> N/A | AB305: =IF(ISERROR(INDIRECT(CONCATENATE($B305,"!Q2127"))),"",INDIRECT(CONCATENATE($B305,"!Q127"))) -> 16.495275
B306: DHS05 | C306: 2005 | D306: 6.181186627 | E306: 62.92174045 | H306: 55.18997413 | I306: 11.35866475 | J306: 63.66500521 | M306: 48.60824488 | N306: 14.16669484 | O306: 71.66974218 | R306: 40.91437482 | S306: 31.8856252 | T306: 78.35119879 | W306: 30.37080521 | X306: 61.53864373 | Y306: 82.77206633 | AB306: 5.411519937
B307: MIS06 | C307: 2006 | D307: 29.46330957 | E307: 68.48742844 | H307: 49.46217475 | I307: 32.96053217 | J307: 74.50606714 | M307: 45.7220923 | N307: 45.10242691 | O307: 70.87926361 | R307: 31.01316342 | S307: 60.05486388 | T307: 77.42424124 | W307: 20.69016247 | X307: 94.26329184 | Y307: 89.37720814 | AB307: 0.8490301612
B308: MIS09 | C308: 2009 | D308: 9.612247141 | E308: N/A | H308: 59.45331171 | I308: 20.09249913 | J308: N/A | M308: 44.98813698 | N308: 40.22862613 | O308: N/A | R308: 23.51552762 | S308: 69.1140849 | T308: N/A | W308: 13.28462043 | X308: 90.33416608 | Y308: N/A | AB308: 1.902489055
B309: DHS11 | C309: 2011 | D309: 8.293862898 | E309: 74.90426634 | H309: 57.73546694 | I309: 11.12711356 | J309: 68.16712185 | M309: 43.95173206 | N309: 30.17231705 | O309: 68.62570628 | R309: 29.55625518 | S309: 53.8782846 | T309: 75.58641044 | W309: 12.11787816 | X309: 86.43553961 | Y309: 86.23475968 | AB309: 0.5635060013
B310: DHS13 | C310: 2013 | D310: 5.043923628 | E310: 71.80370653 | H310: 65.84648159 | I310: 15.95871798 | J310: 88.02898297 | M310: 53.12500642 | N310: 36.22836802 | O310: 81.80405733 | R310: 35.08521441 | S310: 65.01726315 | T310: 82.86562461 | W310: 13.99531459 | X310: 86.72735106 | Y310: 84.21403294 | AB310: 2.7259535
B311: DHS15 | C311: 2015 | D311: 9.42636243 | E311: 79.5833587 | H311: 35.85846415 | I311: 21.21428836 | J311: 85.73584066 | M311: 34.67262931 | N311: 29.7553375 | O311: 80.02696926 | R311: 27.23662531 | S311: 59.06599492 | T311: 87.00608063 | W311: 12.54195764 | X311: 89.79667875 | Y311: 92.08084813 | AB311: 1.572644179
B312: DHS17 | C312: 2017 | D312: 17.50961399 | E312: 64.4793648 | H312: 42.52290795 | I312: 32.87493853 | J312: 78.95711468 | M312: 35.00150711 | N312: 48.38479346 | O312: 76.49330736 | R312: 23.6208707 | S312: 74.22229771 | T312: 81.27047948 | W312: 6.438492831 | X312: 94.71164037 | Y312: 90.14260606 | AB312: 0.4349095617
B313: DHS18 | C313: 2018 | D313: 27.59733272 | E313: 67.66055755 | H313: 42.38967123 | I313: 41.75113695 | J313: 78.33556689 | M313: 28.58197092 | N313: 69.13616933 | O313: 81.1792782 | R313: 12.63449152 | S313: 85.32325733 | T313: 85.36185392 | W313: 3.465217946 | X313: 97.05051215 | Y313: 91.29507348 | AB313: 0.3616196343
B314: DHS19 | C314: 2019 | D314: 19.09567768 | E314: 78.24157202 | H314: 48.5411234 | I314: 40.99070387 | J314: 77.9204253 | M314: 30.32488864 | N314: 56.88473132 | O314: 79.03956758 | R314: 15.60346691 | S314: 77.3343401 | T314: 84.37206658 | W314: 4.918560581 | X314: 95.53277412 | Y314: 93.03641709 | AB314: 1.369665836
B318: =CONCATENATE("Rural use of sanitation facilities, ",C299,"–",C300) -> Rural use of sanitation facilities, 2000–2020 | S318: Data points used for regression

Sheet Hygiene
B4: Access to hygiene facilities by wealth quintile (%)
B5: =IF(ISERROR(INDIRECT(CONCATENATE($E$32,"!A2"))),"",INDIRECT(CONCATENATE($E$32,"!A2"))) -> 
B7: =CONCATENATE("National ",IF(ISERROR(INDIRECT(CONCATENATE($E$32,"!A2"))),"",INDIRECT(CONCATENATE($E$32,"!A210")))) -> National | K7: =CONCATENATE("Urban ",IF(ISERROR(INDIRECT(CONCATENATE($E$32,"!A2"))),"",INDIRECT(CONCATENATE($E$32,"!A210")))) -> Urban | S7: =CONCATENATE("Rural ",IF(ISERROR(INDIRECT(CONCATENATE($E$32,"!A2"))),"",INDIRECT(CONCATENATE($E$32,"!A210")))) -> Rural
E32: =INDEX(B88:B100,A88) -> 0 | G32: =IF(ISERROR(INDIRECT(CONCATENATE($E$32,"!A2"))),"",INDIRECT(CONCATENATE($E$32,"!A2"))) ->  | K32: Poorest | N32: Poor | Q32: Middle | T32: Rich | W32: Richest
K33: Basic | L33: Limited | M33: No facility | N33: Basic | O33: Limited | P33: No facility | Q33: Basic | R33: Limited | S33: No facility | T33: Basic | U33: Limited | V33: No facility | W33: Basic | X33: Limited | Y33: No facility
B34: >>> Select Survey : | G34: NATIONAL | J34: =IF(ISERROR(INDIRECT(CONCATENATE(#REF!,"!A2"))),"",INDIRECT(CONCATENATE(#REF!,"!A210"))) ->  | K34: =IF(ISERROR(INDIRECT(CONCATENATE($E$32,"!C222"))),"",INDIRECT(CONCATENATE($E$32,"!C222"))) ->  | L34: =IF(ISERROR(INDIRECT(CONCATENATE($E$32,"!C223"))),"",INDIRECT(CONCATENATE($E$32,"!C223"))) ->  | M34: =IF(ISERROR(INDIRECT(CONCATENATE($E$32,"!C224"))),"",INDIRECT(CONCATENATE($E$32,"!C224"))) ->  | N34: =IF(ISERROR(INDIRECT(CONCATENATE($E$32,"!D222"))),"",INDIRECT(CONCATENATE($E$32,"!D222"))) ->  | O34: =IF(ISERROR(INDIRECT(CONCATENATE($E$32,"!D223"))),"",INDIRECT(CONCATENATE($E$32,"!D223"))) ->  | P34: =IF(ISERROR(INDIRECT(CONCATENATE($E$32,"!D224"))),"",INDIRECT(CONCATENATE($E$32,"!D224"))) ->  | Q34: =IF(ISERROR(INDIRECT(CONCATENATE($E$32,"!E222"))),"",INDIRECT(CONCATENATE($E$32,"!E222"))) ->  | R34: =IF(ISERROR(INDIRECT(CONCATENATE($E$32,"!E223"))),"",INDIRECT(CONCATENATE($E$32,"!E223"))) ->  | S34: =IF(ISERROR(INDIRECT(CONCATENATE($E$32,"!E224"))),"",INDIRECT(CONCATENATE($E$32,"!E224"))) ->  | T34: =IF(ISERROR(INDIRECT(CONCATENATE($E$32,"!F222"))),"",INDIRECT(CONCATENATE($E$32,"!F222"))) ->  | U34: =IF(ISERROR(INDIRECT(CONCATENATE($E$32,"!F223"))),"",INDIRECT(CONCATENATE($E$32,"!F223"))) ->  | V34: =IF(ISERROR(INDIRECT(CONCATENATE($E$32,"!F224"))),"",INDIRECT(CONCATENATE($E$32,"!F224"))) ->  | W34: =IF(ISERROR(INDIRECT(CONCATENATE($E$32,"!G222"))),"",INDIRECT(CONCATENATE($E$32,"!G222"))) ->  | X34: =IF(ISERROR(INDIRECT(CONCATENATE($E$32,"!G223"))),"",INDIRECT(CONCATENATE($E$32,"!G223"))) ->  | Y34: =IF(ISERROR(INDIRECT(CONCATENATE($E$32,"!G224"))),"",INDIRECT(CONCATENATE($E$32,"!G224"))) -> 
G37: URBAN | J37: =IF(ISERROR(INDIRECT(CONCATENATE(#REF!,"!A2"))),"",INDIRECT(CONCATENATE(#REF!,"!A210"))) ->  | K37: =IF(ISERROR(INDIRECT(CONCATENATE($E$32,"!H222"))),"",INDIRECT(CONCATENATE($E$32,"!H222"))) ->  | L37: =IF(ISERROR(INDIRECT(CONCATENATE($E$32,"!H223"))),"",INDIRECT(CONCATENATE($E$32,"!H223"))) ->  | M37: =IF(ISERROR(INDIRECT(CONCATENATE($E$32,"!H224"))),"",INDIRECT(CONCATENATE($E$32,"!H224"))) ->  | N37: =IF(ISERROR(INDIRECT(CONCATENATE($E$32,"!I222"))),"",INDIRECT(CONCATENATE($E$32,"!I222"))) ->  | O37: =IF(ISERROR(INDIRECT(CONCATENATE($E$32,"!I223"))),"",INDIRECT(CONCATENATE($E$32,"!I223"))) ->  | P37: =IF(ISERROR(INDIRECT(CONCATENATE($E$32,"!I224"))),"",INDIRECT(CONCATENATE($E$32,"!I224"))) ->  | Q37: =IF(ISERROR(INDIRECT(CONCATENATE($E$32,"!J222"))),"",INDIRECT(CONCATENATE($E$32,"!J222"))) ->  | R37: =IF(ISERROR(INDIRECT(CONCATENATE($E$32,"!J223"))),"",INDIRECT(CONCATENATE($E$32,"!J223"))) ->  | S37: =IF(ISERROR(INDIRECT(CONCATENATE($E$32,"!J224"))),"",INDIRECT(CONCATENATE($E$32,"!J224"))) ->  | T37: =IF(ISERROR(INDIRECT(CONCATENATE($E$32,"!K222"))),"",INDIRECT(CONCATENATE($E$32,"!K222"))) ->  | U37: =IF(ISERROR(INDIRECT(CONCATENATE($E$32,"!K223"))),"",INDIRECT(CONCATENATE($E$32,"!K223"))) ->  | V37: =IF(ISERROR(INDIRECT(CONCATENATE($E$32,"!K224"))),"",INDIRECT(CONCATENATE($E$32,"!K224"))) ->  | W37: =IF(ISERROR(INDIRECT(CONCATENATE($E$32,"!L222"))),"",INDIRECT(CONCATENATE($E$32,"!L222"))) ->  | X37: =IF(ISERROR(INDIRECT(CONCATENATE($E$32,"!L223"))),"",INDIRECT(CONCATENATE($E$32,"!L223"))) ->  | Y37: =IF(ISERROR(INDIRECT(CONCATENATE($E$32,"!L224"))),"",INDIRECT(CONCATENATE($E$32,"!L224"))) -> 
G40: RURAL | J40: =IF(ISERROR(INDIRECT(CONCATENATE(#REF!,"!A2"))),"",INDIRECT(CONCATENATE(#REF!,"!A210"))) ->  | K40: =IF(ISERROR(INDIRECT(CONCATENATE($E$32,"!M222"))),"",INDIRECT(CONCATENATE($E$32,"!M222"))) ->  | L40: =IF(ISERROR(INDIRECT(CONCATENATE($E$32,"!M223"))),"",INDIRECT(CONCATENATE($E$32,"!M223"))) ->  | M40: =IF(ISERROR(INDIRECT(CONCATENATE($E$32,"!M224"))),"",INDIRECT(CONCATENATE($E$32,"!M224"))) ->  | N40: =IF(ISERROR(INDIRECT(CONCATENATE($E$32,"!N222"))),"",INDIRECT(CONCATENATE($E$32,"!N222"))) ->  | O40: =IF(ISERROR(INDIRECT(CONCATENATE($E$32,"!N223"))),"",INDIRECT(CONCATENATE($E$32,"!N223"))) ->  | P40: =IF(ISERROR(INDIRECT(CONCATENATE($E$32,"!N224"))),"",INDIRECT(CONCATENATE($E$32,"!N224"))) ->  | Q40: =IF(ISERROR(INDIRECT(CONCATENATE($E$32,"!O222"))),"",INDIRECT(CONCATENATE($E$32,"!O222"))) ->  | R40: =IF(ISERROR(INDIRECT(CONCATENATE($E$32,"!O223"))),"",INDIRECT(CONCATENATE($E$32,"!O223"))) ->  | S40: =IF(ISERROR(INDIRECT(CONCATENATE($E$32,"!O224"))),"",INDIRECT(CONCATENATE($E$32,"!O224"))) ->  | T40: =IF(ISERROR(INDIRECT(CONCATENATE($E$32,"!P222"))),"",INDIRECT(CONCATENATE($E$32,"!P222"))) ->  | U40: =IF(ISERROR(INDIRECT(CONCATENATE($E$32,"!P223"))),"",INDIRECT(CONCATENATE($E$32,"!P223"))) ->  | V40: =IF(ISERROR(INDIRECT(CONCATENATE($E$32,"!P224"))),"",INDIRECT(CONCATENATE($E$32,"!P224"))) ->  | W40: =IF(ISERROR(INDIRECT(CONCATENATE($E$32,"!Q222"))),"",INDIRECT(CONCATENATE($E$32,"!Q222"))) ->  | X40: =IF(ISERROR(INDIRECT(CONCATENATE($E$32,"!Q223"))),"",INDIRECT(CONCATENATE($E$32,"!Q223"))) ->  | Y40: =IF(ISERROR(INDIRECT(CONCATENATE($E$32,"!Q224"))),"",INDIRECT(CONCATENATE($E$32,"!Q224"))) -> 
A88: 2 | B88: Template

Sheet MICS00
A2: =A1026 -> Senegal
A3: =A1034 -> 2000
A4: Use of drinking water sources
A5: by wealth quintile and sub-national region
A6: Notes:
A7: WHO/UNICEF JMP customised wealth index excludes water,
A8: sanitation and hygiene assets.
A9: Survey used for analysis: | B9: =A1025 -> MICS00
A10: =B1028 -> 
A11: =B1027 -> 
A14: Use of drinking water sources | C14: NATIONAL wealth index quintile | H14: URBAN wealth index quintile | M14: RURAL wealth index quintile | R14: SUB-REGIONS: | BA14: Raw numbers of respondents: | BB14: Use of drinking water sources | BC14: NATIONAL wealth index quintile | BH14: URBAN wealth index quintile | BM14: RURAL wealth index quintile | BR14: SUB-REGIONS:
A15: Weighted percentage (used in graphs) | C15: Poorest | D15: Poor | E15: Middle | F15: Rich | G15: Richest | H15: Poorest | I15: Poor | J15: Middle | K15: Rich | L15: Richest | M15: Poorest | N15: Poor | O15: Middle | P15: Rich | Q15: Richest | R15: Dakar | S15: Diourbel | T15: Fatick | U15: Kaolack | V15: Kolda | W15: Louga | X15: Saint louis | Y15: Tambacounda | Z15: Thies | AA15: Ziguinchor | BA15: Water data, raw numbers (weighted) | BC15: Poorest | BD15: Poor | BE15: Middle | BF15: Rich | BG15: Richest | BH15: Poorest | BI15: Poor | BJ15: Middle | BK15: Rich | BL15: Richest | BM15: Poorest | BN15: Poor | BO15: Middle | BP15: Rich | BQ15: Richest | BR15: Dakar | BS15: Diourbel | BT15: Fatick | BU15: Kaolack | BV15: Kolda | BW15: Louga | BX15: Saint louis | BY15: Tambacounda | BZ15: Thies | CA15: Ziguinchor
A16: Water | B16: Improved | C16: 47.80712927 | D16: 46.82966763 | E16: 57.90014457 | F16: 88.54914243 | G16: 95.26579207 | H16: 77.63803098 | I16: 93.07568931 | J16: 92.74671303 | K16: 96.87262591 | L16: 96.86565757 | M16: 49.38829169 | N16: 48.19932634 | O16: 42.45341493 | P16: 48.65622224 | Q16: 66.49250613 | R16: 93.22727663 | S16: 78.35823895 | T16: 52.50099461 | U16: 50.1189327 | V16: 27.6192189 | W16: 77.38821793 | X16: 64.55052374 | Y16: 47.53344693 | Z16: 69.34017447 | AA16: 38.35245619 | BA16: Water | BB16: Improved | BC16: N/A | BD16: N/A | BE16: N/A | BF16: N/A | BG16: N/A | BH16: N/A | BI16: N/A | BJ16: N/A | BK16: N/A | BL16: N/A | BM16: N/A | BN16: N/A | BO16: N/A | BP16: N/A | BQ16: N/A | BR16: N/A | BS16: N/A | BT16: N/A | BU16: N/A | BV16: N/A | BW16: N/A | BX16: N/A | BY16: N/A | BZ16: N/A | CA16: N/A
B17: Not Improved | C17: 52.19287073 | D17: 53.17033237 | E17: 42.09985543 | F17: 11.45085757 | G17: 4.734207931 | H17: 22.36196902 | I17: 6.924310688 | J17: 7.253286975 | K17: 3.127374092 | L17: 3.134342427 | M17: 50.61170831 | N17: 51.80067366 | O17: 57.54658507 | P17: 51.34377776 | Q17: 33.50749387 | R17: 6.772723368 | S17: 21.64176105 | T17: 47.49900539 | U17: 49.8810673 | V17: 72.3807811 | W17: 22.61178207 | X17: 35.44947626 | Y17: 52.46655307 | Z17: 30.65982553 | AA17: 61.64754381 | BB17: Not Improved | BC17: N/A | BD17: N/A | BE17: N/A | BF17: N/A | BG17: N/A | BH17: N/A | BI17: N/A | BJ17: N/A | BK17: N/A | BL17: N/A | BM17: N/A | BN17: N/A | BO17: N/A | BP17: N/A | BQ17: N/A | BR17: N/A | BS17: N/A | BT17: N/A | BU17: N/A | BV17: N/A | BW17: N/A | BX17: N/A | BY17: N/A | BZ17: N/A | CA17: N/A
A18: Water ladder | B18: Basic | C18: 36.19400938 | D18: 40.84120618 | E18: 52.34557902 | F18: 86.22936444 | G18: 93.80248195 | H18: 73.71112913 | I18: 91.82493092 | J18: 92.72712437 | K18: 94.77382736 | L18: 96.76651703 | M18: 36.86172732 | N18: 38.55900192 | O18: 37.83945188 | P18: 43.36981136 | Q18: 58.48281081 | R18: 90.24214744 | S18: 72.44405322 | T18: 42.72489869 | U18: 42.29592712 | V18: 26.07823841 | W18: 56.86058029 | X18: 62.79092689 | Y18: 38.27780943 | Z18: 65.83582234 | AA18: 37.51876285 | BA18: Water ladder | BB18: Basic | BC18: N/A | BD18: N/A | BE18: N/A | BF18: N/A | BG18: N/A | BH18: N/A | BI18: N/A | BJ18: N/A | BK18: N/A | BL18: N/A | BM18: N/A | BN18: N/A | BO18: N/A | BP18: N/A | BQ18: N/A | BR18: N/A | BS18: N/A | BT18: N/A | BU18: N/A | BV18: N/A | BW18: N/A | BX18: N/A | BY18: N/A | BZ18: N/A | CA18: N/A
B19: Limited | C19: 11.61311988 | D19: 5.965279235 | E19: 5.536394559 | F19: 2.307398226 | G19: 1.463310115 | H19: 3.926901848 | I19: 1.250758392 | J19: 0 | K19: 2.098798545 | L19: 0.09914054251 | M19: 12.52656436 | N19: 9.617042343 | O19: 4.597921748 | P19: 5.249309061 | Q19: 8.009695317 | R19: 2.979726896 | S19: 5.914185729 | T19: 9.776095928 | U19: 7.823005587 | V19: 1.451196732 | W19: 20.52763764 | X19: 1.759596855 | Y19: 9.255637497 | Z19: 3.504352132 | AA19: 0.7400757529 | BB19: Limited | BC19: N/A | BD19: N/A | BE19: N/A | BF19: N/A | BG19: N/A | BH19: N/A | BI19: N/A | BJ19: N/A | BK19: N/A | BL19: N/A | BM19: N/A | BN19: N/A | BO19: N/A | BP19: N/A | BQ19: N/A | BR19: N/A | BS19: N/A | BT19: N/A | BU19: N/A | BV19: N/A | BW19: N/A | BX19: N/A | BY19: N/A | BZ19: N/A | CA19: N/A
B20: Unimproved | C20: 50.72703748 | D20: 49.70831543 | E20: 38.20328875 | F20: 11.11933843 | G20: 4.734207931 | H20: 22.36196902 | I20: 6.924310688 | J20: 7.272875634 | K20: 3.127374092 | L20: 3.134342427 | M20: 49.7113461 | N20: 49.1892629 | O20: 53.95283831 | P20: 45.72866428 | Q20: 30.90825556 | R20: 6.778125663 | S20: 21.64176105 | T20: 47.49900539 | U20: 49.64805186 | V20: 72.47056486 | W20: 22.61178207 | X20: 23.09954324 | Y20: 41.55182082 | Z20: 30.65982553 | AA20: 61.7411614 | BB20: Unimproved | BC20: N/A | BD20: N/A | BE20: N/A | BF20: N/A | BG20: N/A | BH20: N/A | BI20: N/A | BJ20: N/A | BK20: N/A | BL20: N/A | BM20: N/A | BN20: N/A | BO20: N/A | BP20: N/A | BQ20: N/A | BR20: N/A | BS20: N/A | BT20: N/A | BU20: N/A | BV20: N/A | BW20: N/A | BX20: N/A | BY20: N/A | BZ20: N/A | CA20: N/A
B21: Surface water | C21: 1.46583325 | D21: 3.485199146 | E21: 3.914737677 | F21: 0.3438989005 | G21: 0 | H21: 0 | I21: 0 | J21: 0 | K21: 0 | L21: 0 | M21: 0.9003622117 | N21: 2.634692839 | O21: 3.609788064 | P21: 5.652215296 | Q21: 2.599238311 | R21: 0 | S21: 0 | T21: 0 | U21: 0.2330154347 | V21: 0 | W21: 0 | X21: 12.34993302 | Y21: 10.91473226 | Z21: 0 | AA21: 0 | BB21: Surface water | BC21: N/A | BD21: N/A | BE21: N/A | BF21: N/A | BG21: N/A | BH21: N/A | BI21: N/A | BJ21: N/A | BK21: N/A | BL21: N/A | BM21: N/A | BN21: N/A | BO21: N/A | BP21: N/A | BQ21: N/A | BR21: N/A | BS21: N/A | BT21: N/A | BU21: N/A | BV21: N/A | BW21: N/A | BX21: N/A | BY21: N/A | BZ21: N/A | CA21: N/A
A22: Improved water point at more than 30 minutes | B22: Yes | C22: 24.29160684 | D22: 12.74455705 | E22: 9.564971988 | F22: 2.606147047 | G22: 1.536028918 | H22: 5.057961669 | I22: 1.34380782 | J22: 0 | K22: 2.166554819 | L22: 0.1023484948 | M22: 25.36342914 | N22: 19.96229141 | O22: 10.83460487 | P22: 10.79679973 | Q22: 12.04601207 | R22: 3.196381661 | S22: 7.547624612 | T22: 18.62078233 | U22: 15.60888304 | V22: 5.271436643 | W22: 26.52553346 | X22: 2.725921887 | Y22: 19.47184161 | Z22: 5.053855372 | AA22: 1.934391581 | BA22: Improved water point at more than 30 minutes | BB22: Yes | BC22: N/A | BD22: N/A | BE22: N/A | BF22: N/A | BG22: N/A | BH22: N/A | BI22: N/A | BJ22: N/A | BK22: N/A | BL22: N/A | BM22: N/A | BN22: N/A | BO22: N/A | BP22: N/A | BQ22: N/A | BR22: N/A | BS22: N/A | BT22: N/A | BU22: N/A | BV22: N/A | BW22: N/A | BX22: N/A | BY22: N/A | BZ22: N/A | CA22: N/A
B23: No | C23: 75.70839316 | D23: 87.25544295 | E23: 90.43502801 | F23: 97.39385295 | G23: 98.46397108 | H23: 94.94203833 | I23: 98.65619218 | J23: 100 | K23: 97.83344518 | L23: 99.89765151 | M23: 74.63657086 | N23: 80.03770859 | O23: 89.16539513 | P23: 89.20320027 | Q23: 87.95398793 | R23: 96.80361834 | S23: 92.45237539 | T23: 81.37921767 | U23: 84.39111696 | V23: 94.72856336 | W23: 73.47446654 | X23: 97.27407811 | Y23: 80.52815839 | Z23: 94.94614463 | AA23: 98.06560842 | BB23: No | BC23: N/A | BD23: N/A | BE23: N/A | BF23: N/A | BG23: N/A | BH23: N/A | BI23: N/A | BJ23: N/A | BK23: N/A | BL23: N/A | BM23: N/A | BN23: N/A | BO23: N/A | BP23: N/A | BQ23: N/A | BR23: N/A | BS23: N/A | BT23: N/A | BU23: N/A | BV23: N/A | BW23: N/A | BX23: N/A | BY23: N/A | BZ23: N/A | CA23: N/A
A24: Manually calculated ratios | B24: Improved wells
B25: Improved springs | C25: =C63/(C63+C67)*100 -> 39.16992264 | D25: 24.94924144 | E25: 12.32812721 | F25: 10.03623083 | G25: 0 | H25: 7.750415703 | I25: 0 | J25: 0 | K25: 100 | L25: 100 | M25: =M63/(M63+M67)*100 -> 56.34536809 | N25: 25.26291663 | O25: 27.80885553 | P25: 15.34877581 | Q25: 7.885447267 | R25: 0 | S25: 100 | T25: 13.96524156 | U25: 58.22149253 | V25: 23.94637172 | W25: 0 | X25: 0 | Y25: 26.1717758 | Z25: 3.453686855 | AA25: 16.94286769
B26: Other
C27: NATIONAL wealth index quintile | H27: URBAN wealth index quintile | M27: RURAL wealth index quintile | R27: SUB-REGIONS: | BA27: Raw numbers of respondents: | BB27: Use of drinking water sources | BC27: NATIONAL wealth index quintile | BH27: URBAN wealth index quintile | BM27: RURAL wealth index quintile | BR27: SUB-REGIONS:
A28: Percentage based on weighted population | C28: Poorest | D28: Poor | E28: Middle | F28: Rich | G28: Richest | H28: Poorest | I28: Poor | J28: Middle | K28: Rich | L28: Richest | M28: Poorest | N28: Poor | O28: Middle | P28: Rich | Q28: Richest | R28: Dakar | S28: Diourbel | T28: Fatick | U28: Kaolack | V28: Kolda | W28: Louga | X28: Saint louis | Y28: Tambacounda | Z28: Thies | AA28: Ziguinchor | BA28: Water data, raw numbers (weighted) | BC28: Poorest | BD28: Poor | BE28: Middle | BF28: Rich | BG28: Richest | BH28: Poorest | BI28: Poor | BJ28: Middle | BK28: Rich | BL28: Richest | BM28: Poorest | BN28: Poor | BO28: Middle | BP28: Rich | BQ28: Richest | BR28: Dakar | BS28: Diourbel | BT28: Fatick | BU28: Kaolack | BV28: Kolda | BW28: Louga | BX28: Saint louis | BY28: Tambacounda | BZ28: Thies | CA28: Ziguinchor
A29: Piped water | B29: Yes | C29: 22.71901772 | D29: 24.65312115 | E29: 43.09583201 | F29: 81.91536477 | G29: 91.62314362 | H29: 65.65533785 | I29: 89.19944436 | J29: 90.61107536 | K29: 94.25127074 | L29: 96.31023904 | M29: 22.92489162 | N29: 22.0237456 | O29: 23.03766351 | P29: 30.57954089 | Q29: 49.89434064 | R29: 90.48029849 | S29: 67.88295138 | T29: 28.34505233 | U29: 22.31946211 | V29: 3.901344839 | W29: 56.19764923 | X29: 62.55285857 | Y29: 13.51867783 | Z29: 56.65527342 | AA29: 13.66020782 | BA29: Piped water | BB29: Yes | BC29: N/A | BD29: N/A | BE29: N/A | BF29: N/A | BG29: N/A | BH29: N/A | BI29: N/A | BJ29: N/A | BK29: N/A | BL29: N/A | BM29: N/A | BN29: N/A | BO29: N/A | BP29: N/A | BQ29: N/A | BR29: N/A | BS29: N/A | BT29: N/A | BU29: N/A | BV29: N/A | BW29: N/A | BX29: N/A | BY29: N/A | BZ29: N/A | CA29: N/A
B30: No | C30: 77.28098228 | D30: 75.34687885 | E30: 56.90416799 | F30: 18.08463523 | G30: 8.37685638 | H30: 34.34466215 | I30: 10.80055564 | J30: 9.388924644 | K30: 5.748729264 | L30: 3.689760961 | M30: 77.07510838 | N30: 77.9762544 | O30: 76.96233649 | P30: 69.42045911 | Q30: 50.10565936 | R30: 9.519701506 | S30: 32.11704862 | T30: 71.65494767 | U30: 77.68053789 | V30: 96.09865516 | W30: 43.80235077 | X30: 37.44714143 | Y30: 86.48132217 | Z30: 43.34472658 | AA30: 86.33979218 | BB30: No | BC30: N/A | BD30: N/A | BE30: N/A | BF30: N/A | BG30: N/A | BH30: N/A | BI30: N/A | BJ30: N/A | BK30: N/A | BL30: N/A | BM30: N/A | BN30: N/A | BO30: N/A | BP30: N/A | BQ30: N/A | BR30: N/A | BS30: N/A | BT30: N/A | BU30: N/A | BV30: N/A | BW30: N/A | BX30: N/A | BY30: N/A | BZ30: N/A | CA30: N/A
A31: Piped water on premises | B31: Yes | C31: 2.993023505 | D31: 5.880131586 | E31: 18.5131388 | F31: 59.66942651 | G31: 80.10265629 | H31: 35.29403509 | I31: 64.87626558 | J31: 74.31923395 | K31: 77.45692222 | L31: 89.91078195 | M31: 2.659290678 | N31: 3.730248278 | O31: 5.373202328 | P31: 9.397603654 | Q31: 28.6335854 | R31: 69.11847292 | S31: 42.56845013 | T31: 5.165499704 | U31: 12.87078019 | V31: 2.304748935 | W31: 25.60240592 | X31: 33.05216143 | Y31: 9.010121278 | Z31: 27.38322026 | AA31: 11.64937425 | BA31: Piped water on premises | BB31: Yes | BC31: N/A | BD31: N/A | BE31: N/A | BF31: N/A | BG31: N/A | BH31: N/A | BI31: N/A | BJ31: N/A | BK31: N/A | BL31: N/A | BM31: N/A | BN31: N/A | BO31: N/A | BP31: N/A | BQ31: N/A | BR31: N/A | BS31: N/A | BT31: N/A | BU31: N/A | BV31: N/A | BW31: N/A | BX31: N/A | BY31: N/A | BZ31: N/A | CA31: N/A
B32: No | C32: 97.00697649 | D32: 94.11986841 | E32: 81.4868612 | F32: 40.33057349 | G32: 19.89734371 | H32: 64.70596491 | I32: 35.12373442 | J32: 25.68076605 | K32: 22.54307778 | L32: 10.08921805 | M32: 97.34070932 | N32: 96.26975172 | O32: 94.62679767 | P32: 90.60239635 | Q32: 71.3664146 | R32: 30.88152708 | S32: 57.43154987 | T32: 94.8345003 | U32: 87.12921981 | V32: 97.69525107 | W32: 74.39759408 | X32: 66.94783857 | Y32: 90.98987872 | Z32: 72.61677974 | AA32: 88.35062575 | BB32: No | BC32: N/A | BD32: N/A | BE32: N/A | BF32: N/A | BG32: N/A | BH32: N/A | BI32: N/A | BJ32: N/A | BK32: N/A | BL32: N/A | BM32: N/A | BN32: N/A | BO32: N/A | BP32: N/A | BQ32: N/A | BR32: N/A | BS32: N/A | BT32: N/A | BU32: N/A | BV32: N/A | BW32: N/A | BX32: N/A | BY32: N/A | BZ32: N/A | CA32: N/A
A33: Piped water into dwelling | B33: Yes | C33: N/A | D33: N/A | E33: N/A | F33: N/A | G33: N/A | H33: N/A | I33: N/A | J33: N/A | K33: N/A | L33: N/A | M33: N/A | N33: N/A | O33: N/A | P33: N/A | Q33: N/A | R33: N/A | S33: N/A | T33: N/A | U33: N/A | V33: N/A | W33: N/A | X33: N/A | Y33: N/A | Z33: N/A | AA33: N/A | BA33: Piped water into dwelling | BB33: Yes | BC33: N/A | BD33: N/A | BE33: N/A | BF33: N/A | BG33: N/A | BH33: N/A | BI33: N/A | BJ33: N/A | BK33: N/A | BL33: N/A | BM33: N/A | BN33: N/A | BO33: N/A | BP33: N/A | BQ33: N/A | BR33: N/A | BS33: N/A | BT33: N/A | BU33: N/A | BV33: N/A | BW33: N/A | BX33: N/A | BY33: N/A | BZ33: N/A | CA33: N/A
B34: No | C34: N/A | D34: N/A | E34: N/A | F34: N/A | G34: N/A | H34: N/A | I34: N/A | J34: N/A | K34: N/A | L34: N/A | M34: N/A | N34: N/A | O34: N/A | P34: N/A | Q34: N/A | R34: N/A | S34: N/A | T34: N/A | U34: N/A | V34: N/A | W34: N/A | X34: N/A | Y34: N/A | Z34: N/A | AA34: N/A | BB34: No | BC34: N/A | BD34: N/A | BE34: N/A | BF34: N/A | BG34: N/A | BH34: N/A | BI34: N/A | BJ34: N/A | BK34: N/A | BL34: N/A | BM34: N/A | BN34: N/A | BO34: N/A | BP34: N/A | BQ34: N/A | BR34: N/A | BS34: N/A | BT34: N/A | BU34: N/A | BV34: N/A | BW34: N/A | BX34: N/A | BY34: N/A | BZ34: N/A | CA34: N/A
A35: Water source on premises | B35: Yes | C35: 6.359701523 | D35: 11.89638798 | E35: 26.44190505 | F35: 65.02607706 | G35: 84.1584809 | H35: 43.76241038 | I35: 70.68366165 | J35: 78.70821914 | K35: 81.95666657 | L35: 92.80034695 | M35: 6.247353915 | N35: 7.821560773 | O35: 11.19258387 | P35: 16.87549546 | Q35: 34.83021642 | R35: 72.35354716 | S35: 43.50982527 | T35: 5.499364538 | U35: 13.02261982 | V35: 24.26697651 | W35: 26.57995819 | X35: 36.7874815 | Y35: 19.89908236 | Z35: 31.33278404 | AA35: 34.30157902 | BA35: Water source on premises | BB35: Yes | BC35: N/A | BD35: N/A | BE35: N/A | BF35: N/A | BG35: N/A | BH35: N/A | BI35: N/A | BJ35: N/A | BK35: N/A | BL35: N/A | BM35: N/A | BN35: N/A | BO35: N/A | BP35: N/A | BQ35: N/A | BR35: N/A | BS35: N/A | BT35: N/A | BU35: N/A | BV35: N/A | BW35: N/A | BX35: N/A | BY35: N/A | BZ35: N/A | CA35: N/A
B36: No | C36: 93.64029848 | D36: 88.10361202 | E36: 73.55809495 | F36: 34.97392294 | G36: 15.8415191 | H36: 56.23758962 | I36: 29.31633835 | J36: 21.29178086 | K36: 18.04333343 | L36: 7.199653049 | M36: 93.75264608 | N36: 92.17843923 | O36: 88.80741613 | P36: 83.12450454 | Q36: 65.16978358 | R36: 27.64645284 | S36: 56.49017473 | T36: 94.50063546 | U36: 86.97738018 | V36: 75.73302349 | W36: 73.42004181 | X36: 63.2125185 | Y36: 80.10091764 | Z36: 68.66721596 | AA36: 65.69842098 | BB36: No | BC36: N/A | BD36: N/A | BE36: N/A | BF36: N/A | BG36: N/A | BH36: N/A | BI36: N/A | BJ36: N/A | BK36: N/A | BL36: N/A | BM36: N/A | BN36: N/A | BO36: N/A | BP36: N/A | BQ36: N/A | BR36: N/A | BS36: N/A | BT36: N/A | BU36: N/A | BV36: N/A | BW36: N/A | BX36: N/A | BY36: N/A | BZ36: N/A | CA36: N/A
A37: Improved Water source on premises | B37: Yes | C37: 7.262626322 | D37: 14.92666843 | E37: 36.55750975 | F37: 71.77689581 | G37: 87.38323618 | H37: 52.07734823 | I37: 74.13110984 | J37: 83.79509276 | K37: 83.47576233 | L37: 95.56247139 | M37: 6.362793046 | N37: 9.037237527 | O37: 15.37225116 | P37: 22.10873205 | Q37: 47.05101683 | R37: 77.24433802 | S37: 54.97253397 | T37: 9.956966578 | U37: 25.6804754 | V37: 27.1998668 | W37: 34.34625955 | X37: 51.62464396 | Y37: 24.58233987 | Z37: 45.18705682 | AA37: 45.75914332 | BA37: Improved water source on premises | BB37: Yes | BC37: N/A | BD37: N/A | BE37: N/A | BF37: N/A | BG37: N/A | BH37: N/A | BI37: N/A | BJ37: N/A | BK37: N/A | BL37: N/A | BM37: N/A | BN37: N/A | BO37: N/A | BP37: N/A | BQ37: N/A | BR37: N/A | BS37: N/A | BT37: N/A | BU37: N/A | BV37: N/A | BW37: N/A | BX37: N/A | BY37: N/A | BZ37: N/A | CA37: N/A
B38: No | C38: 92.73737368 | D38: 85.07333157 | E38: 63.44249025 | F38: 28.22310419 | G38: 12.61676382 | H38: 47.92265177 | I38: 25.86889016 | J38: 16.20490724 | K38: 16.52423767 | L38: 4.437528612 | M38: 93.63720695 | N38: 90.96276247 | O38: 84.62774884 | P38: 77.89126795 | Q38: 52.94898317 | R38: 22.75566198 | S38: 45.02746603 | T38: 90.04303342 | U38: 74.3195246 | V38: 72.8001332 | W38: 65.65374045 | X38: 48.37535604 | Y38: 75.41766013 | Z38: 54.81294318 | AA38: 54.24085668 | BB38: No | BC38: N/A | BD38: N/A | BE38: N/A | BF38: N/A | BG38: N/A | BH38: N/A | BI38: N/A | BJ38: N/A | BK38: N/A | BL38: N/A | BM38: N/A | BN38: N/A | BO38: N/A | BP38: N/A | BQ38: N/A | BR38: N/A | BS38: N/A | BT38: N/A | BU38: N/A | BV38: N/A | BW38: N/A | BX38: N/A | BY38: N/A | BZ38: N/A | CA38: N/A
A39: Piped water on premises available when needed | B39: Yes | C39: N/A | D39: N/A | E39: N/A | F39: N/A | G39: N/A | H39: N/A | I39: N/A | J39: N/A | K39: N/A | L39: N/A | M39: N/A | N39: N/A | O39: N/A | P39: N/A | Q39: N/A | R39: N/A | S39: N/A | T39: N/A | U39: N/A | V39: N/A | W39: N/A | X39: N/A | Y39: N/A | Z39: N/A | AA39: N/A | BA39: Piped water on premises available when needed | BB39: Yes | BC39: N/A | BD39: N/A | BE39: N/A | BF39: N/A | BG39: N/A | BH39: N/A | BI39: N/A | BJ39: N/A | BK39: N/A | BL39: N/A | BM39: N/A | BN39: N/A | BO39: N/A | BP39: N/A | BQ39: N/A | BR39: N/A | BS39: N/A | BT39: N/A | BU39: N/A | BV39: N/A | BW39: N/A | BX39: N/A | BY39: N/A | BZ39: N/A | CA39: N/A
B40: No | C40: N/A | D40: N/A | E40: N/A | F40: N/A | G40: N/A | H40: N/A | I40: N/A | J40: N/A | K40: N/A | L40: N/A | M40: N/A | N40: N/A | O40: N/A | P40: N/A | Q40: N/A | R40: N/A | S40: N/A | T40: N/A | U40: N/A | V40: N/A | W40: N/A | X40: N/A | Y40: N/A | Z40: N/A | AA40: N/A | BB40: No | BC40: N/A | BD40: N/A | BE40: N/A | BF40: N/A | BG40: N/A | BH40: N/A | BI40: N/A | BJ40: N/A | BK40: N/A | BL40: N/A | BM40: N/A | BN40: N/A | BO40: N/A | BP40: N/A | BQ40: N/A | BR40: N/A | BS40: N/A | BT40: N/A | BU40: N/A | BV40: N/A | BW40: N/A | BX40: N/A | BY40: N/A | BZ40: N/A | CA40: N/A
A41: Water point at more than 30 minutes | B41: Yes | C41: 23.09427705 | D41: 15.57624173 | E41: 12.41317214 | F41: 3.283142643 | G41: 1.627549748 | H41: 5.076658454 | I41: 1.370729307 | J41: 0 | K41: 2.100453321 | L41: 0.2068029116 | M41: 24.58568104 | N41: 19.89013914 | O41: 14.70954469 | P41: 14.40154073 | Q41: 14.15117969 | R41: 3.281190557 | S41: 13.56907568 | T41: 16.59836953 | U41: 24.53278822 | V41: 5.804957426 | W41: 25.61246515 | X41: 5.792819968 | Y41: 19.77041561 | Z41: 11.52030136 | AA41: 3.637376419 | BA41: Water point at more than 30 minutes | BB41: Yes | BC41: N/A | BD41: N/A | BE41: N/A | BF41: N/A | BG41: N/A | BH41: N/A | BI41: N/A | BJ41: N/A | BK41: N/A | BL41: N/A | BM41: N/A | BN41: N/A | BO41: N/A | BP41: N/A | BQ41: N/A | BR41: N/A | BS41: N/A | BT41: N/A | BU41: N/A | BV41: N/A | BW41: N/A | BX41: N/A | BY41: N/A | BZ41: N/A | CA41: N/A
B42: No | C42: 76.90572295 | D42: 84.42375827 | E42: 87.58682786 | F42: 96.71685736 | G42: 98.37245025 | H42: 94.92334155 | I42: 98.62927069 | J42: 100 | K42: 97.89954668 | L42: 99.79319709 | M42: 75.41431896 | N42: 80.10986086 | O42: 85.29045531 | P42: 85.59845927 | Q42: 85.84882031 | R42: 96.71880944 | S42: 86.43092432 | T42: 83.40163047 | U42: 75.46721178 | V42: 94.19504257 | W42: 74.38753485 | X42: 94.20718003 | Y42: 80.22958439 | Z42: 88.47969864 | AA42: 96.36262358 | BB42: No | BC42: N/A | BD42: N/A | BE42: N/A | BF42: N/A | BG42: N/A | BH42: N/A | BI42: N/A | BJ42: N/A | BK42: N/A | BL42: N/A | BM42: N/A | BN42: N/A | BO42: N/A | BP42: N/A | BQ42: N/A | BR42: N/A | BS42: N/A | BT42: N/A | BU42: N/A | BV42: N/A | BW42: N/A | BX42: N/A | BY42: N/A | BZ42: N/A | CA42: N/A
A43: Water source available when needed | B43: Yes | C43: N/A | D43: N/A | E43: N/A | F43: N/A | G43: N/A | H43: N/A | I43: N/A | J43: N/A | K43: N/A | L43: N/A | M43: N/A | N43: N/A | O43: N/A | P43: N/A | Q43: N/A | R43: N/A | S43: N/A | T43: N/A | U43: N/A | V43: N/A | W43: N/A | X43: N/A | Y43: N/A | Z43: N/A | AA43: N/A | BA43: Water source available when needed | BB43: Yes | BC43: N/A | BD43: N/A | BE43: N/A | BF43: N/A | BG43: N/A | BH43: N/A | BI43: N/A | BJ43: N/A | BK43: N/A | BL43: N/A | BM43: N/A | BN43: N/A | BO43: N/A | BP43: N/A | BQ43: N/A | BR43: N/A | BS43: N/A | BT43: N/A | BU43: N/A | BV43: N/A | BW43: N/A | BX43: N/A | BY43: N/A | BZ43: N/A | CA43: N/A
B44: No | C44: N/A | D44: N/A | E44: N/A | F44: N/A | G44: N/A | H44: N/A | I44: N/A | J44: N/A | K44: N/A | L44: N/A | M44: N/A | N44: N/A | O44: N/A | P44: N/A | Q44: N/A | R44: N/A | S44: N/A | T44: N/A | U44: N/A | V44: N/A | W44: N/A | X44: N/A | Y44: N/A | Z44: N/A | AA44: N/A | BB44: No | BC44: N/A | BD44: N/A | BE44: N/A | BF44: N/A | BG44: N/A | BH44: N/A | BI44: N/A | BJ44: N/A | BK44: N/A | BL44: N/A | BM44: N/A | BN44: N/A | BO44: N/A | BP44: N/A | BQ44: N/A | BR44: N/A | BS44: N/A | BT44: N/A | BU44: N/A | BV44: N/A | BW44: N/A | BX44: N/A | BY44: N/A | BZ44: N/A | CA44: N/A
A45: Improved water source available when needed | B45: Yes | C45: N/A | D45: N/A | E45: N/A | F45: N/A | G45: N/A | H45: N/A | I45: N/A | J45: N/A | K45: N/A | L45: N/A | M45: N/A | N45: N/A | O45: N/A | P45: N/A | Q45: N/A | R45: N/A | S45: N/A | T45: N/A | U45: N/A | V45: N/A | W45: N/A | X45: N/A | Y45: N/A | Z45: N/A | AA45: N/A | BA45: Improved water source available when needed | BB45: Yes | BC45: N/A | BD45: N/A | BE45: N/A | BF45: N/A | BG45: N/A | BH45: N/A | BI45: N/A | BJ45: N/A | BK45: N/A | BL45: N/A | BM45: N/A | BN45: N/A | BO45: N/A | BP45: N/A | BQ45: N/A | BR45: N/A | BS45: N/A | BT45: N/A | BU45: N/A | BV45: N/A | BW45: N/A | BX45: N/A | BY45: N/A | BZ45: N/A | CA45: N/A
B46: No | C46: N/A | D46: N/A | E46: N/A | F46: N/A | G46: N/A | H46: N/A | I46: N/A | J46: N/A | K46: N/A | L46: N/A | M46: N/A | N46: N/A | O46: N/A | P46: N/A | Q46: N/A | R46: N/A | S46: N/A | T46: N/A | U46: N/A | V46: N/A | W46: N/A | X46: N/A | Y46: N/A | Z46: N/A | AA46: N/A | BB46: No | BC46: N/A | BD46: N/A | BE46: N/A | BF46: N/A | BG46: N/A | BH46: N/A | BI46: N/A | BJ46: N/A | BK46: N/A | BL46: N/A | BM46: N/A | BN46: N/A | BO46: N/A | BP46: N/A | BQ46: N/A | BR46: N/A | BS46: N/A | BT46: N/A | BU46: N/A | BV46: N/A | BW46: N/A | BX46: N/A | BY46: N/A | BZ46: N/A | CA46: N/A
A47: Microbiological quality at point of collection | B47: Not contaminated (No E. coli in 100 mL) | C47: N/A | D47: N/A | E47: N/A | F47: N/A | G47: N/A | H47: N/A | I47: N/A | J47: N/A | K47: N/A | L47: N/A | M47: N/A | N47: N/A | O47: N/A | P47: N/A | Q47: N/A | R47: N/A | S47: N/A | T47: N/A | U47: N/A | V47: N/A | W47: N/A | X47: N/A | Y47: N/A | Z47: N/A | AA47: N/A | BA47: Microbiological quality at point of collection | BB47: Not contaminated (No E. coli in 100 mL) | BC47: N/A | BD47: N/A | BE47: N/A | BF47: N/A | BG47: N/A | BH47: N/A | BI47: N/A | BJ47: N/A | BK47: N/A | BL47: N/A | BM47: N/A | BN47: N/A | BO47: N/A | BP47: N/A | BQ47: N/A | BR47: N/A | BS47: N/A | BT47: N/A | BU47: N/A | BV47: N/A | BW47: N/A | BX47: N/A | BY47: N/A | BZ47: N/A | CA47: N/A
B48: Contaminated (E. coli detected in 100 mL) | C48: N/A | D48: N/A | E48: N/A | F48: N/A | G48: N/A | H48: N/A | I48: N/A | J48: N/A | K48: N/A | L48: N/A | M48: N/A | N48: N/A | O48: N/A | P48: N/A | Q48: N/A | R48: N/A | S48: N/A | T48: N/A | U48: N/A | V48: N/A | W48: N/A | X48: N/A | Y48: N/A | Z48: N/A | AA48: N/A | BB48: Contaminated (E. coli detected in 100 mL) | BC48: N/A | BD48: N/A | BE48: N/A | BF48: N/A | BG48: N/A | BH48: N/A | BI48: N/A | BJ48: N/A | BK48: N/A | BL48: N/A | BM48: N/A | BN48: N/A | BO48: N/A | BP48: N/A | BQ48: N/A | BR48: N/A | BS48: N/A | BT48: N/A | BU48: N/A | BV48: N/A | BW48: N/A | BX48: N/A | BY48: N/A | BZ48: N/A | CA48: N/A
B49: Highly contaminated (>100 CFU/100 mL) | C49: N/A | D49: N/A | E49: N/A | F49: N/A | G49: N/A | H49: N/A | I49: N/A | J49: N/A | K49: N/A | L49: N/A | M49: N/A | N49: N/A | O49: N/A | P49: N/A | Q49: N/A | R49: N/A | S49: N/A | T49: N/A | U49: N/A | V49: N/A | W49: N/A | X49: N/A | Y49: N/A | Z49: N/A | AA49: N/A | BB49: Highly contaminated (>100 CFU/100 mL) | BC49: N/A | BD49: N/A | BE49: N/A | BF49: N/A | BG49: N/A | BH49: N/A | BI49: N/A | BJ49: N/A | BK49: N/A | BL49: N/A | BM49: N/A | BN49: N/A | BO49: N/A | BP49: N/A | BQ49: N/A | BR49: N/A | BS49: N/A | BT49: N/A | BU49: N/A | BV49: N/A | BW49: N/A | BX49: N/A | BY49: N/A | BZ49: N/A | CA49: N/A
A50: Microbiological quality of improved water sources at point of collection | B50: Not contaminated (No E. coli in 100 mL) | C50: N/A | D50: N/A | E50: N/A | F50: N/A | G50: N/A | H50: N/A | I50: N/A | J50: N/A | K50: N/A | L50: N/A | M50: N/A | N50: N/A | O50: N/A | P50: N/A | Q50: N/A | R50: N/A | S50: N/A | T50: N/A | U50: N/A | V50: N/A | W50: N/A | X50: N/A | Y50: N/A | Z50: N/A | AA50: N/A | BA50: Microbiological quality of improved water sources at point of collection | BB50: Not contaminated (No E. coli in 100 mL) | BC50: N/A | BD50: N/A | BE50: N/A | BF50: N/A | BG50: N/A | BH50: N/A | BI50: N/A | BJ50: N/A | BK50: N/A | BL50: N/A | BM50: N/A | BN50: N/A | BO50: N/A | BP50: N/A | BQ50: N/A | BR50: N/A | BS50: N/A | BT50: N/A | BU50: N/A | BV50: N/A | BW50: N/A | BX50: N/A | BY50: N/A | BZ50: N/A | CA50: N/A
B51: Contaminated (E. coli detected in 100 mL) | C51: N/A | D51: N/A | E51: N/A | F51: N/A | G51: N/A | H51: N/A | I51: N/A | J51: N/A | K51: N/A | L51: N/A | M51: N/A | N51: N/A | O51: N/A | P51: N/A | Q51: N/A | R51: N/A | S51: N/A | T51: N/A | U51: N/A | V51: N/A | W51: N/A | X51: N/A | Y51: N/A | Z51: N/A | AA51: N/A | BB51: Contaminated (E. coli detected in 100 mL) | BC51: N/A | BD51: N/A | BE51: N/A | BF51: N/A | BG51: N/A | BH51: N/A | BI51: N/A | BJ51: N/A | BK51: N/A | BL51: N/A | BM51: N/A | BN51: N/A | BO51: N/A | BP51: N/A | BQ51: N/A | BR51: N/A | BS51: N/A | BT51: N/A | BU51: N/A | BV51: N/A | BW51: N/A | BX51: N/A | BY51: N/A | BZ51: N/A | CA51: N/A
B52: Highly contaminated (>100 CFU/100 mL) | C52: N/A | D52: N/A | E52: N/A | F52: N/A | G52: N/A | H52: N/A | I52: N/A | J52: N/A | K52: N/A | L52: N/A | M52: N/A | N52: N/A | O52: N/A | P52: N/A | Q52: N/A | R52: N/A | S52: N/A | T52: N/A | U52: N/A | V52: N/A | W52: N/A | X52: N/A | Y52: N/A | Z52: N/A | AA52: N/A | BB52: Highly contaminated (>100 CFU/100 mL) | BC52: N/A | BD52: N/A | BE52: N/A | BF52: N/A | BG52: N/A | BH52: N/A | BI52: N/A | BJ52: N/A | BK52: N/A | BL52: N/A | BM52: N/A | BN52: N/A | BO52: N/A | BP52: N/A | BQ52: N/A | BR52: N/A | BS52: N/A | BT52: N/A | BU52: N/A | BV52: N/A | BW52: N/A | BX52: N/A | BY52: N/A | BZ52: N/A | CA52: N/A
A53: Microbiological quality of piped on premises at point of collection | B53: Not contaminated (No E. coli in 100 mL) | C53: N/A | D53: N/A | E53: N/A | F53: N/A | G53: N/A | H53: N/A | I53: N/A | J53: N/A | K53: N/A | L53: N/A | M53: N/A | N53: N/A | O53: N/A | P53: N/A | Q53: N/A | R53: N/A | S53: N/A | T53: N/A | U53: N/A | V53: N/A | W53: N/A | X53: N/A | Y53: N/A | Z53: N/A | AA53: N/A | BA53: Microbiological quality of piped on premises at point of collection | BB53: Not contaminated (No E. coli in 100 mL) | BC53: N/A | BD53: N/A | BE53: N/A | BF53: N/A | BG53: N/A | BH53: N/A | BI53: N/A | BJ53: N/A | BK53: N/A | BL53: N/A | BM53: N/A | BN53: N/A | BO53: N/A | BP53: N/A | BQ53: N/A | BR53: N/A | BS53: N/A | BT53: N/A | BU53: N/A | BV53: N/A | BW53: N/A | BX53: N/A | BY53: N/A | BZ53: N/A | CA53: N/A
B54: Contaminated (E. coli detected in 100 mL) | C54: N/A | D54: N/A | E54: N/A | F54: N/A | G54: N/A | H54: N/A | I54: N/A | J54: N/A | K54: N/A | L54: N/A | M54: N/A | N54: N/A | O54: N/A | P54: N/A | Q54: N/A | R54: N/A | S54: N/A | T54: N/A | U54: N/A | V54: N/A | W54: N/A | X54: N/A | Y54: N/A | Z54: N/A | AA54: N/A | BB54: Contaminated (E. coli detected in 100 mL) | BC54: N/A | BD54: N/A | BE54: N/A | BF54: N/A | BG54: N/A | BH54: N/A | BI54: N/A | BJ54: N/A | BK54: N/A | BL54: N/A | BM54: N/A | BN54: N/A | BO54: N/A | BP54: N/A | BQ54: N/A | BR54: N/A | BS54: N/A | BT54: N/A | BU54: N/A | BV54: N/A | BW54: N/A | BX54: N/A | BY54: N/A | BZ54: N/A | CA54: N/A
B55: Highly contaminated (>100 CFU/100 mL) | C55: N/A | D55: N/A | E55: N/A | F55: N/A | G55: N/A | H55: N/A | I55: N/A | J55: N/A | K55: N/A | L55: N/A | M55: N/A | N55: N/A | O55: N/A | P55: N/A | Q55: N/A | R55: N/A | S55: N/A | T55: N/A | U55: N/A | V55: N/A | W55: N/A | X55: N/A | Y55: N/A | Z55: N/A | AA55: N/A | BB55: Highly contaminated (>100 CFU/100 mL) | BC55: N/A | BD55: N/A | BE55: N/A | BF55: N/A | BG55: N/A | BH55: N/A | BI55: N/A | BJ55: N/A | BK55: N/A | BL55: N/A | BM55: N/A | BN55: N/A | BO55: N/A | BP55: N/A | BQ55: N/A | BR55: N/A | BS55: N/A | BT55: N/A | BU55: N/A | BV55: N/A | BW55: N/A | BX55: N/A | BY55: N/A | BZ55: N/A | CA55: N/A
C56: NATIONAL wealth index quintile | H56: URBAN wealth index quintile | M56: RURAL wealth index quintile | R56: SUB-REGIONS: | BA56: Raw numbers of respondents: | BB56: Use of drinking water sources | BC56: NATIONAL wealth index quintile | BH56: URBAN wealth index quintile | BM56: RURAL wealth index quintile | BR56: SUB-REGIONS:
A57: Percentage based on weighted population | C57: Poorest | D57: Poor | E57: Middle | F57: Rich | G57: Richest | H57: Poorest | I57: Poor | J57: Middle | K57: Rich | L57: Richest | M57: Poorest | N57: Poor | O57: Middle | P57: Rich | Q57: Richest | R57: Dakar | S57: Diourbel | T57: Fatick | U57: Kaolack | V57: Kolda | W57: Louga | X57: Saint louis | Y57: Tambacounda | Z57: Thies | AA57: Ziguinchor | BA57: Water data, raw numbers (weighted) | BC57: Poorest | BD57: Poor | BE57: Middle | BF57: Rich | BG57: Richest | BH57: Poorest | BI57: Poor | BJ57: Middle | BK57: Rich | BL57: Richest | BM57: Poorest | BN57: Poor | BO57: Middle | BP57: Rich | BQ57: Richest | BR57: Dakar | BS57: Diourbel | BT57: Fatick | BU57: Kaolack | BV57: Kolda | BW57: Louga | BX57: Saint louis | BY57: Tambacounda | BZ57: Thies | CA57: Ziguinchor
A58: Source d'eau pour boire | B58: Eau de robinet dans le llogement | C58: 0.9017704418 | D58: 1.409750388 | E58: 4.847299878 | F58: 18.04859455 | G58: 29.73811999 | H58: 10.06192891 | I58: 18.06163563 | J58: 25.32010736 | K58: 24.41780807 | L58: 36.3156443 | M58: 0.9280574654 | N58: 0.9396124938 | O58: 0.7347028008 | P58: 2.725333836 | Q58: 9.825505536 | R58: 22.89543176 | S58: 16.11049391 | T58: 1.74550041 | U58: 7.399150208 | V58: 0.4511123426 | W58: 10.00822683 | X58: 6.724800143 | Y58: 3.100604715 | Z58: 7.032081531 | AA58: 3.634036086
B59: Eau de robinet dans la cour / parcelle | C59: 2.091253063 | D59: 4.470381198 | E59: 13.66583892 | F59: 41.62083196 | G59: 50.3645363 | H59: 25.23210618 | I59: 46.81462995 | J59: 48.99912659 | K59: 53.03911414 | L59: 53.59513766 | M59: 1.731233213 | N59: 2.790635784 | O59: 4.638499527 | P59: 6.672269818 | Q59: 18.80807986 | R59: 46.22304117 | S59: 26.45795622 | T59: 3.419999294 | U59: 5.471629978 | V59: 1.853636592 | W59: 15.59417909 | X59: 26.32736129 | Y59: 5.909516563 | Z59: 20.35113873 | AA59: 8.015338161
B60: Borne fontaine | C60: 19.72599421 | D60: 18.77298956 | E60: 24.58269322 | F60: 22.24593826 | G60: 11.52048733 | H60: 30.36130276 | I60: 24.32317878 | J60: 16.2918414 | K60: 16.79434852 | L60: 6.399457088 | M60: 20.26560094 | N60: 18.29349732 | O60: 17.66446118 | P60: 21.18193724 | Q60: 21.26075524 | R60: 21.36182557 | S60: 25.31450125 | T60: 23.17955263 | U60: 9.448681921 | V60: 1.596595904 | W60: 30.5952433 | X60: 29.50069713 | Y60: 4.508556549 | Z60: 29.27205315 | AA60: 2.010833577
B61: Puits a pompe | C61: 1.891525631 | D61: 1.802074187 | E61: 1.36793309 | F61: 0.3894649536 | G61: 0.2910573841 | H61: 0.2739319043 | I61: 0.2771325821 | J61: 0 | K61: 0 | L61: 0 | M61: 2.075484699 | N61: 1.493188575 | O61: 1.479325301 | P61: 2.866708442 | Q61: 1.314900963 | R61: 0.08213233244 | S61: 1.048612847 | T61: 0.1923573341 | U61: 0.6172745841 | V61: 0.3690584663 | W61: 0.2645602854 | X61: 0 | Y61: 7.808392622 | Z61: 3.515362015 | AA61: 0.8187530815
B62: Puits protegeing | C62: 15.00821662 | D62: 16.2332518 | E62: 11.2863413 | F62: 5.163868449 | G62: 2.885349234 | H62: 10.86138218 | I62: 3.524251946 | J62: 1.980958535 | K62: 2.088075633 | L62: 0.5554185343 | M62: 14.3943053 | N62: 18.90627059 | O62: 14.13259481 | P62: 12.58827497 | Q62: 11.76652915 | R62: 2.442295575 | S62: 8.361026013 | T62: 20.30508452 | U62: 24.41302248 | V62: 21.34335647 | W62: 0.4123489972 | X62: 1.64240578 | Y62: 17.91409638 | Z62: 4.804606965 | AA62: 22.84985252
B63: Source protegeee | C63: 1.130860623 | D63: 0.4078785288 | E63: 0.3391587164 | F63: 0.07123845452 | G63: 0 | H63: 0.1820911898 | I63: 0 | J63: 0 | K63: 0 | L63: 0 | M63: 1.404035604 | N63: 0.7019634048 | O63: 0.4660760653 | P63: 0.3821747874 | Q63: 0.1822939747 | R63: 0 | S63: 0.5835941854 | T63: 0.317163442 | U63: 1.48368388 | V63: 1.283236297 | W63: 0 | X63: 0 | Y63: 0.6515848366 | Z63: 0.06097772748 | AA63: 0.3628846122
B64: Eau de puitollection | C64: 0.1193519442 | D64: 0 | E64: 0 | F64: 0 | G64: 0 | H64: 0 | I64: 0 | J64: 0 | K64: 0 | L64: 0 | M64: 0 | N64: 0.2001441199 | O64: 0 | P64: 0 | Q64: 0 | R64: 0 | S64: 0 | T64: 0 | U64: 0 | V64: 0.3429375526 | W64: 0 | X64: 0 | Y64: 0 | Z64: 0 | AA64: 0
B65: Eau en boutaille | C65: 0.3954823132 | D65: 0.2985336303 | E65: 0.2143347565 | F65: 0 | G65: 0 | H65: 0.3003163835 | I65: 0 | J65: 0 | K65: 0 | L65: 0 | M65: 0.1826594411 | N65: 0.6627662826 | O65: 0.1236974872 | P65: 0.2426991994 | Q65: 0.1063485065 | R65: 0 | S65: 0 | T65: 0.3573968865 | U65: 0.1021163237 | V65: 0.379285268 | W65: 0.1161629365 | X65: 0.1231671396 | Y65: 0.4430525352 | Z65: 0.2922030529 | AA65: 0.6607581536
B66: Puit non protegee | C66: 48.48567464 | D66: 47.74379531 | E66: 33.69781532 | F66: 7.209271933 | G66: 3.233900877 | H66: 16.93566094 | I66: 3.562455377 | J66: 2.66783415 | K66: 1.409861487 | L66: 1.536714777 | M66: 48.14533862 | N66: 46.35894169 | O66: 52.14500586 | P66: 42.60415781 | Q66: 27.84109897 | R66: 3.422511413 | S66: 19.67946116 | T66: 44.29088215 | U66: 48.34531561 | V66: 67.99550032 | W66: 21.01748748 | X66: 19.32038488 | Y66: 39.71375863 | Z66: 27.77789123 | AA66: 59.16776365
B67: Source non protegee | C67: 1.75620309 | D67: 1.226954858 | E67: 2.41193811 | F67: 0.6385743799 | G67: 0.1210814228 | H67: 2.167346528 | I67: 0.03448958281 | J67: 0.3043967858 | K67: 0 | L67: 0 | M67: 1.087802948 | N67: 2.076668275 | O67: 1.209922664 | P67: 2.107761818 | Q67: 2.129483259 | R67: 0.4233404299 | S67: 0 | T67: 1.953928259 | U67: 1.064660065 | V67: 4.07555589 | W67: 0.4635176859 | X67: 1.307500958 | Y67: 1.838062184 | Z67: 1.704605837 | AA67: 1.778928797
B68: Mare ruisseau ou fleuve | C68: 1.46583325 | D68: 3.483680265 | E68: 3.91304874 | F68: 0.3435275056 | G68: 0 | H68: 0 | I68: 0 | J68: 0 | K68: 0 | L68: 0 | M68: 0.9003622117 | N68: 2.633509195 | O68: 3.608782103 | P68: 5.648133866 | Q68: 2.599238311 | R68: 0 | S68: 0 | T68: 0 | U68: 0.2330154347 | V68: 0 | W68: 0 | X68: 12.34993302 | Y68: 10.91473226 | Z68: 0 | AA68: 0
B69: Camion citerne vendeur d'eau | C69: 0 | D69: 0 | E69: 0.3048759285 | F69: 0.6575298773 | G69: 0.05282649951 | H69: 0.3649714651 | I69: 0.07486042163 | J69: 0.154679135 | K69: 0 | L69: 0 | M69: 0 | N69: 0 | O69: 0 | P69: 0 | Q69: 1.299490542 | R69: 0.06416233156 | S69: 0.08074266827 | T69: 0 | U69: 0 | V69: 0 | W69: 0.1960004554 | X69: 0.06164563865 | Y69: 0 | Z69: 1.304853407 | AA69: 0
B70: Forage | C70: 6.54267442 | D70: 3.434808342 | E70: 1.291668766 | F70: 0.351675923 | G70: 0.4134153313 | H70: 0 | I70: 0 | J70: 0 | K70: 0.5332795382 | L70: 0 | M70: 8.406915018 | N70: 4.211247766 | O70: 3.214057762 | P70: 1.996823948 | Q70: 1.92860235 | R70: 0.1583878991 | S70: 0.4013118592 | T70: 2.983940101 | U70: 1.183373332 | V70: 0 | W70: 20.20149603 | X70: 0.1704466172 | Y70: 7.19764272 | Z70: 2.706897887 | AA70: 0
B71: Missing | C71: 0.3783747123 | D71: 0.6470000791 | E71: 2.035552902 | F71: 3.259483749 | G71: 1.379225631 | H71: 3.155627052 | I71: 3.327365728 | J71: 4.281056039 | K71: 1.717512606 | L71: 1.59762765 | M71: 0.2997173499 | N71: 0.7315544994 | O71: 0.5828744394 | P71: 0.8685786193 | Q71: 0.9376733353 | R71: 2.926871525 | S71: 1.962299892 | T71: 0.9588416409 | U71: 0.2380761849 | V71: 0.3097248935 | W71: 1.130776906 | X71: 2.330558573 | Y71: 0 | Z71: 1.177328457 | AA71: 0.5562392906
B72: No answer or DK | C72: 0.106785044 | D72: 0.06890185437 | E72: 0.04150035373 | F72: 0 | G72: 0 | H72: 0.1033345001 | I72: 0 | J72: 0 | K72: 0 | L72: 0 | M72: 0.1784871854 | N72: 0 | O72: 0 | P72: 0.1151456497 | Q72: 0 | R72: 0 | S72: 0 | T72: 0.2953533335 | U72: 0 | V72: 0 | W72: 0 | X72: 0.1410988261 | Y72: 0 | Z72: 0 | AA72: 0.1446120731
A108: =A1026 -> Senegal
A109: =A1034 -> 2000
A110: Use of sanitation facilities
A111: by wealth quintile and sub-national region
A112: Notes:
A113: WHO/UNICEF JMP customised wealth index excludes water,
A114: sanitation and hygiene assets.
A115: Survey used for analysis: | B115: =A1025 -> MICS00
A116: =B1030 -> Ratio of Improved latrines based on: | B116: 50% Rule
A117: =B1029 -> Ratio of Shared improved based on: | B117: DHS05
A120: Use of sanitation facilities | C120: NATIONAL wealth index quintile | H120: URBAN wealth index quintile | M120: RURAL wealth index quintile | R120: SUB-REGIONS: | BA120: Raw numbers of respondents: | BB120: Use of sanitation facilities | BC120: NATIONAL wealth index quintile | BH120: URBAN wealth index quintile | BM120: RURAL wealth index quintile | BR120: SUB-REGIONS:
A121: Weighted percentage (used in graphs) | C121: Poorest | D121: Poor | E121: Middle | F121: Rich | G121: Richest | H121: Poorest | I121: Poor | J121: Middle | K121: Rich | L121: Richest | M121: Poorest | N121: Poor | O121: Middle | P121: Rich | Q121: Richest | R121: Dakar | S121: Diourbel | T121: Fatick | U121: Kaolack | V121: Kolda | W121: Louga | X121: Saint louis | Y121: Tambacounda | Z121: Thies | AA121: Ziguinchor | BA121: Sanitation data, raw numbers (weighted) | BC121: Poorest | BD121: Poor | BE121: Middle | BF121: Rich | BG121: Richest | BH121: Poorest | BI121: Poor | BJ121: Middle | BK121: Rich | BL121: Richest | BM121: Poorest | BN121: Poor | BO121: Middle | BP121: Rich | BQ121: Richest | BR121: Dakar | BS121: Diourbel | BT121: Fatick | BU121: Kaolack | BV121: Kolda | BW121: Louga | BX121: Saint louis | BY121: Tambacounda | BZ121: Thies | CA121: Ziguinchor
A122: Sanitation | B122: Improved | C122: =C153+C154+C155+C157*0.5 -> 23.40049414 | D122: =D153+D154+D155+D157*0.5 -> 33.8774784 | E122: 50.15968041 | F122: 79.72876927 | G122: 92.41164182 | H122: 62.10276549 | I122: 83.56061035 | J122: 90.79518937 | K122: 94.07411194 | L122: 98.76997666 | M122: 23.93732521 | N122: 25.56833766 | O122: 33.19865109 | P122: 40.53376001 | Q122: 55.64087372 | R122: 85.25481222 | S122: 48.43276876 | T122: 26.27976309 | U122: 40.7967829 | V122: 43.04431208 | W122: 41.78045087 | X122: 54.60943108 | Y122: 38.20236015 | Z122: 51.74635038 | AA122: 54.19786546 | BA122: Sanitation | BB122: Improved | BC122: N/A | BD122: N/A | BE122: N/A | BF122: N/A | BG122: N/A | BH122: N/A | BI122: N/A | BJ122: N/A | BK122: N/A | BL122: N/A | BM122: N/A | BN122: N/A | BO122: N/A | BP122: N/A | BQ122: N/A | BR122: N/A | BS122: N/A | BT122: N/A | BU122: N/A | BV122: N/A | BW122: N/A | BX122: N/A | BY122: N/A | BZ122: N/A | CA122: N/A
B123: Not Improved | C123: =100-C122 -> 76.59950586 | D123: =100-D122 -> 66.1225216 | E123: 49.84031959 | F123: 20.27123073 | G123: 7.588358177 | H123: 37.89723451 | I123: 16.43938965 | J123: 9.204810633 | K123: 5.92588806 | L123: 1.230023343 | M123: 76.06267479 | N123: 74.43166234 | O123: 66.80134891 | P123: 59.46623999 | Q123: 44.35912628 | R123: 14.74518778 | S123: 51.56723124 | T123: 73.72023691 | U123: 59.2032171 | V123: 56.95568792 | W123: 58.21954913 | X123: 45.39056892 | Y123: 61.79763985 | Z123: 48.25364962 | AA123: 45.80213454 | BB123: Not Improved | BC123: N/A | BD123: N/A | BE123: N/A | BF123: N/A | BG123: N/A | BH123: N/A | BI123: N/A | BJ123: N/A | BK123: N/A | BL123: N/A | BM123: N/A | BN123: N/A | BO123: N/A | BP123: N/A | BQ123: N/A | BR123: N/A | BS123: N/A | BT123: N/A | BU123: N/A | BV123: N/A | BW123: N/A | BX123: N/A | BY123: N/A | BZ123: N/A | CA123: N/A
A124: Sanitation ladder | B124: Basic | C124: =C122*'DHS05'!C129/100 -> 15.17617993 | D124: =D122*'DHS05'!D129/100 -> 23.51462012 | E124: =E122*'DHS05'!E129/100 -> 34.02515983 | F124: =F122*'DHS05'!F129/100 -> 55.37449792 | G124: =G122*'DHS05'!G129/100 -> 78.38594451 | H124: =H122*'DHS05'!H129/100 -> 37.45716808 | I124: =I122*'DHS05'!I129/100 -> 49.45014394 | J124: =J122*'DHS05'!J129/100 -> 64.19564152 | K124: =K122*'DHS05'!K129/100 -> 75.11940444 | L124: =L122*'DHS05'!L129/100 -> 85.99348302 | M124: =M122*'DHS05'!M129/100 -> 15.06178164 | N124: =N122*'DHS05'!N129/100 -> 16.2780835 | O124: =O122*'DHS05'!O129/100 -> 23.79338765 | P124: =P122*'DHS05'!P129/100 -> 31.75868689 | Q124: =Q122*'DHS05'!Q129/100 -> 46.0551009 | R124: =R122*'DHS05'!R129/100 -> 57.53163741 | S124: =S122*'DHS05'!S129/100 -> 43.34439436 | T124: =T122*'DHS05'!T129/100 -> 17.14348509 | U124: =U122*'DHS05'!U129/100 -> 30.58364385 | V124: =V122*'DHS05'!V129/100 -> 33.45511682 | W124: =W122*'DHS05'!W129/100 -> 38.34051153 | X124: =X122*'DHS05'!Y129/100 -> 41.76061209 | Y124: =Y122*'DHS05'!Z129/100 -> 35.34253779 | Z124: =Z122*'DHS05'!AA129/100 -> 39.50052756 | AA124: =AA122*'DHS05'!AB129/100 -> 34.20364332 | BA124: Sanitation ladder | BB124: Basic | BC124: N/A | BD124: N/A | BE124: N/A | BF124: N/A | BG124: N/A | BH124: N/A | BI124: N/A | BJ124: N/A | BK124: N/A | BL124: N/A | BM124: N/A | BN124: N/A | BO124: N/A | BP124: N/A | BQ124: N/A | BR124: N/A | BS124: N/A | BT124: N/A | BU124: N/A | BV124: N/A | BW124: N/A | BX124: N/A | BY124: N/A | BZ124: N/A | CA124: N/A
B125: Limited | C125: =C122*'DHS05'!C128/100 -> 8.224314203 | D125: =D122*'DHS05'!D128/100 -> 10.36285828 | E125: =E122*'DHS05'!E128/100 -> 16.13452058 | F125: =F122*'DHS05'!F128/100 -> 24.35427135 | G125: =G122*'DHS05'!G128/100 -> 14.02569731 | H125: =H122*'DHS05'!H128/100 -> 24.64559741 | I125: =I122*'DHS05'!I128/100 -> 34.11046641 | J125: =J122*'DHS05'!J128/100 -> 26.59954785 | K125: =K122*'DHS05'!K128/100 -> 18.9547075 | L125: =L122*'DHS05'!L128/100 -> 12.77649364 | M125: =M122*'DHS05'!M128/100 -> 8.875543569 | N125: =N122*'DHS05'!N128/100 -> 9.290254156 | O125: =O122*'DHS05'!O128/100 -> 9.405263445 | P125: =P122*'DHS05'!P128/100 -> 8.775073128 | Q125: =Q122*'DHS05'!Q128/100 -> 9.585772816 | R125: =R122*'DHS05'!R128/100 -> 27.72317481 | S125: =S122*'DHS05'!S128/100 -> 5.088374392 | T125: =T122*'DHS05'!T128/100 -> 9.136278001 | U125: =U122*'DHS05'!U128/100 -> 10.21313905 | V125: =V122*'DHS05'!V128/100 -> 9.589195257 | W125: =W122*'DHS05'!W128/100 -> 3.439939337 | X125: =X122*'DHS05'!Y128/100 -> 12.84881899 | Y125: =Y122*'DHS05'!Z128/100 -> 2.859822366 | Z125: =Z122*'DHS05'!AA128/100 -> 12.24582282 | AA125: =AA122*'DHS05'!AB128/100 -> 19.99422213 | BB125: Limited | BC125: N/A | BD125: N/A | BE125: N/A | BF125: N/A | BG125: N/A | BH125: N/A | BI125: N/A | BJ125: N/A | BK125: N/A | BL125: N/A | BM125: N/A | BN125: N/A | BO125: N/A | BP125: N/A | BQ125: N/A | BR125: N/A | BS125: N/A | BT125: N/A | BU125: N/A | BV125: N/A | BW125: N/A | BX125: N/A | BY125: N/A | BZ125: N/A | CA125: N/A
B126: Unimproved | C126: =100-(C124+C125+C127) -> 21.06431995 | D126: =100-(D124+D125+D127) -> 25.34721807 | E126: 28.47208875 | F126: 16.14490176 | G126: 7.243843898 | H126: 28.72667037 | I126: 14.49102393 | J126: 8.628356273 | K126: 5.92588806 | L126: 1.230023343 | M126: 21.8401639 | N126: 20.89368696 | O126: 25.62424926 | P126: 28.49628641 | Q126: 27.86385129 | R126: 10.61167187 | S126: 14.12694352 | T126: 18.47038004 | U126: 22.20523531 | V126: 36.74108324 | W126: 20.00499128 | X126: 25.87603925 | Y126: 26.67906049 | Z126: 16.43081858 | AA126: 34.74079401 | BB126: Unimproved | BC126: N/A | BD126: N/A | BE126: N/A | BF126: N/A | BG126: N/A | BH126: N/A | BI126: N/A | BJ126: N/A | BK126: N/A | BL126: N/A | BM126: N/A | BN126: N/A | BO126: N/A | BP126: N/A | BQ126: N/A | BR126: N/A | BS126: N/A | BT126: N/A | BU126: N/A | BV126: N/A | BW126: N/A | BX126: N/A | BY126: N/A | BZ126: N/A | CA126: N/A
B127: Open defecation | C127: =C159 -> 55.53518592 | D127: =D159 -> 40.77530353 | E127: 21.36823084 | F127: 4.12632897 | G127: 0.3445142783 | H127: 9.170564136 | I127: 1.948365726 | J127: 0.5764543599 | K127: 0 | L127: 0 | M127: 54.22251089 | N127: 53.53797538 | O127: 41.17709965 | P127: 30.96995357 | Q127: 16.495275 | R127: 4.13351591 | S127: 37.44028772 | T127: 55.24985687 | U127: 36.99798179 | V127: 20.21460468 | W127: 38.21455785 | X127: 19.51452967 | Y127: 35.11857935 | Z127: 31.82283104 | AA127: 11.06134053 | BB127: Open defecation | BC127: N/A | BD127: N/A | BE127: N/A | BF127: N/A | BG127: N/A | BH127: N/A | BI127: N/A | BJ127: N/A | BK127: N/A | BL127: N/A | BM127: N/A | BN127: N/A | BO127: N/A | BP127: N/A | BQ127: N/A | BR127: N/A | BS127: N/A | BT127: N/A | BU127: N/A | BV127: N/A | BW127: N/A | BX127: N/A | BY127: N/A | BZ127: N/A | CA127: N/A
A128: Shared among Improved Sanitation | B128: Yes | C128: N/A | D128: N/A | E128: N/A | F128: N/A | G128: N/A | H128: N/A | I128: N/A | J128: N/A | K128: N/A | L128: N/A | M128: N/A | N128: N/A | O128: N/A | P128: N/A | Q128: N/A | R128: N/A | S128: N/A | T128: N/A | U128: N/A | V128: N/A | W128: N/A | X128: N/A | Y128: N/A | Z128: N/A | AA128: N/A | BA128: Shared among improved sanitation facilities | BB128: Yes | BC128: N/A | BD128: N/A | BE128: N/A | BF128: N/A | BG128: N/A | BH128: N/A | BI128: N/A | BJ128: N/A | BK128: N/A | BL128: N/A | BM128: N/A | BN128: N/A | BO128: N/A | BP128: N/A | BQ128: N/A | BR128: N/A | BS128: N/A | BT128: N/A | BU128: N/A | BV128: N/A | BW128: N/A | BX128: N/A | BY128: N/A | BZ128: N/A | CA128: N/A
B129: No | C129: N/A | D129: N/A | E129: N/A | F129: N/A | G129: N/A | H129: N/A | I129: N/A | J129: N/A | K129: N/A | L129: N/A | M129: N/A | N129: N/A | O129: N/A | P129: N/A | Q129: N/A | R129: N/A | S129: N/A | T129: N/A | U129: N/A | V129: N/A | W129: N/A | X129: N/A | Y129: N/A | Z129: N/A | AA129: N/A | BB129: No | BC129: N/A | BD129: N/A | BE129: N/A | BF129: N/A | BG129: N/A | BH129: N/A | BI129: N/A | BJ129: N/A | BK129: N/A | BL129: N/A | BM129: N/A | BN129: N/A | BO129: N/A | BP129: N/A | BQ129: N/A | BR129: N/A | BS129: N/A | BT129: N/A | BU129: N/A | BV129: N/A | BW129: N/A | BX129: N/A | BY129: N/A | BZ129: N/A | CA129: N/A
A130: Manually calculated ratios | B130: Improved latrines
B131: Other
B132: Other
C133: NATIONAL wealth index quintile | H133: URBAN wealth index quintile | M133: RURAL wealth index quintile | R133: SUB-REGIONS: | BA133: Raw numbers of respondents: | BB133: Use of sanitation facilities | BC133: NATIONAL wealth index quintile | BH133: URBAN wealth index quintile | BM133: RURAL wealth index quintile | BR133: SUB-REGIONS:
A134: Percentage based on weighted population | C134: Poorest | D134: Poor | E134: Middle | F134: Rich | G134: Richest | H134: Poorest | I134: Poor | J134: Middle | K134: Rich | L134: Richest | M134: Poorest | N134: Poor | O134: Middle | P134: Rich | Q134: Richest | R134: Dakar | S134: Diourbel | T134: Fatick | U134: Kaolack | V134: Kolda | W134: Louga | X134: Saint louis | Y134: Tambacounda | Z134: Thies | AA134: Ziguinchor | BA134: Sanitation data, raw numbers (weighted) | BC134: Poorest | BD134: Poor | BE134: Middle | BF134: Rich | BG134: Richest | BH134: Poorest | BI134: Poor | BJ134: Middle | BK134: Rich | BL134: Richest | BM134: Poorest | BN134: Poor | BO134: Middle | BP134: Rich | BQ134: Richest | BR134: Dakar | BS134: Diourbel | BT134: Fatick | BU134: Kaolack | BV134: Kolda | BW134: Louga | BX134: Saint louis | BY134: Tambacounda | BZ134: Thies | CA134: Ziguinchor
A135: Sanitation type | B135: Sewer connection | C135: =C153 -> 0 | D135: =D153 -> 0.2805471462 | E135: 1.897845074 | F135: 7.005064766 | G135: 21.66146863 | H135: 5.195543047 | I135: 8.170582874 | J135: 10.16635602 | K135: 16.3124583 | L135: 35.53625262 | M135: 0 | N135: 0 | O135: 0.2093762878 | P135: 0.2985728082 | Q135: 0.3654912697 | R135: 20.70095885 | S135: 0 | T135: 0.2049144872 | U135: 0.05943356827 | V135: 0.4591848882 | W135: 0.60507295 | X135: 3.685266439 | Y135: 0.4991618564 | Z135: 0.4793230623 | AA135: 0.6819775143 | BA135: Sanitation type | BB135: Sewer connection | BC135: N/A | BD135: N/A | BE135: N/A | BF135: N/A | BG135: N/A | BH135: N/A | BI135: N/A | BJ135: N/A | BK135: N/A | BL135: N/A | BM135: N/A | BN135: N/A | BO135: N/A | BP135: N/A | BQ135: N/A | BR135: N/A | BS135: N/A | BT135: N/A | BU135: N/A | BV135: N/A | BW135: N/A | BX135: N/A | BY135: N/A | BZ135: N/A | CA135: N/A
B136: Septic tank connection | C136: =C154 -> 0.1839056386 | D136: 1.572938734 | E136: 5.648764983 | F136: 22.91558293 | G136: 30.50815749 | H136: 12.70429242 | I136: 24.78966482 | J136: 30.40370358 | K136: 32.69858671 | L136: 34.13247062 | M136: 0.1592399489 | N136: 0.2317113567 | O136: 1.213217405 | P136: 2.436916113 | Q136: 7.077321683 | R136: 27.87076944 | S136: 9.514117704 | T136: 4.3608408 | U136: 6.280966755 | V136: 0.1713843708 | W136: 5.839309297 | X136: 5.514019229 | Y136: 3.062669238 | Z136: 10.37027374 | AA136: 8.630789902 | BB136: Septic tank connection | BC136: N/A | BD136: N/A | BE136: N/A | BF136: N/A | BG136: N/A | BH136: N/A | BI136: N/A | BJ136: N/A | BK136: N/A | BL136: N/A | BM136: N/A | BN136: N/A | BO136: N/A | BP136: N/A | BQ136: N/A | BR136: N/A | BS136: N/A | BT136: N/A | BU136: N/A | BV136: N/A | BW136: N/A | BX136: N/A | BY136: N/A | BZ136: N/A | CA136: N/A
B137: Improved latrines | C137: N/A | D137: N/A | E137: N/A | F137: N/A | G137: N/A | H137: N/A | I137: N/A | J137: N/A | K137: N/A | L137: N/A | M137: N/A | N137: N/A | O137: N/A | P137: N/A | Q137: N/A | R137: N/A | S137: N/A | T137: N/A | U137: N/A | V137: N/A | W137: N/A | X137: N/A | Y137: N/A | Z137: N/A | AA137: N/A | BB137: Improved latrines | BC137: N/A | BD137: N/A | BE137: N/A | BF137: N/A | BG137: N/A | BH137: N/A | BI137: N/A | BJ137: N/A | BK137: N/A | BL137: N/A | BM137: N/A | BN137: N/A | BO137: N/A | BP137: N/A | BQ137: N/A | BR137: N/A | BS137: N/A | BT137: N/A | BU137: N/A | BV137: N/A | BW137: N/A | BX137: N/A | BY137: N/A | BZ137: N/A | CA137: N/A
B138: Unimproved facilities | C138: N/A | D138: N/A | E138: N/A | F138: N/A | G138: N/A | H138: N/A | I138: N/A | J138: N/A | K138: N/A | L138: N/A | M138: N/A | N138: N/A | O138: N/A | P138: N/A | Q138: N/A | R138: N/A | S138: N/A | T138: N/A | U138: N/A | V138: N/A | W138: N/A | X138: N/A | Y138: N/A | Z138: N/A | AA138: N/A | BB138: Unimproved facilities | BC138: N/A | BD138: N/A | BE138: N/A | BF138: N/A | BG138: N/A | BH138: N/A | BI138: N/A | BJ138: N/A | BK138: N/A | BL138: N/A | BM138: N/A | BN138: N/A | BO138: N/A | BP138: N/A | BQ138: N/A | BR138: N/A | BS138: N/A | BT138: N/A | BU138: N/A | BV138: N/A | BW138: N/A | BX138: N/A | BY138: N/A | BZ138: N/A | CA138: N/A
B139: Open defecation | C139: =C159 -> 55.53518592 | D139: =D159 -> 40.77530353 | E139: 21.36823084 | F139: 4.12632897 | G139: 0.3445142783 | H139: 9.170564136 | I139: 1.948365726 | J139: 0.5764543599 | K139: 0 | L139: 0 | M139: 54.22251089 | N139: 53.53797538 | O139: 41.17709965 | P139: 30.96995357 | Q139: 16.495275 | R139: 4.13351591 | S139: 37.44028772 | T139: 55.24985687 | U139: 36.99798179 | V139: 20.21460468 | W139: 38.21455785 | X139: 19.51452967 | Y139: 35.11857935 | Z139: 31.82283104 | AA139: 11.06134053 | BB139: Open defecation | BC139: N/A | BD139: N/A | BE139: N/A | BF139: N/A | BG139: N/A | BH139: N/A | BI139: N/A | BJ139: N/A | BK139: N/A | BL139: N/A | BM139: N/A | BN139: N/A | BO139: N/A | BP139: N/A | BQ139: N/A | BR139: N/A | BS139: N/A | BT139: N/A | BU139: N/A | BV139: N/A | BW139: N/A | BX139: N/A | BY139: N/A | BZ139: N/A | CA139: N/A
A140: Septic tank emptying practices | B140: Not emptied/treated and disposed in situ | C140: N/A | D140: N/A | E140: N/A | F140: N/A | G140: N/A | H140: N/A | I140: N/A | J140: N/A | K140: N/A | L140: N/A | M140: N/A | N140: N/A | O140: N/A | P140: N/A | Q140: N/A | R140: N/A | S140: N/A | T140: N/A | U140: N/A | V140: N/A | W140: N/A | X140: N/A | Y140: N/A | Z140: N/A | AA140: N/A | BA140: Septic tank emptying practices | BB140: Not emptied/treated and disposed in situ | BC140: N/A | BD140: N/A | BE140: N/A | BF140: N/A | BG140: N/A | BH140: N/A | BI140: N/A | BJ140: N/A | BK140: N/A | BL140: N/A | BM140: N/A | BN140: N/A | BO140: N/A | BP140: N/A | BQ140: N/A | BR140: N/A | BS140: N/A | BT140: N/A | BU140: N/A | BV140: N/A | BW140: N/A | BX140: N/A | BY140: N/A | BZ140: N/A | CA140: N/A
B141: Emptied and buried on site | C141: N/A | D141: N/A | E141: N/A | F141: N/A | G141: N/A | H141: N/A | I141: N/A | J141: N/A | K141: N/A | L141: N/A | M141: N/A | N141: N/A | O141: N/A | P141: N/A | Q141: N/A | R141: N/A | S141: N/A | T141: N/A | U141: N/A | V141: N/A | W141: N/A | X141: N/A | Y141: N/A | Z141: N/A | AA141: N/A | BB141: Emptied and buried on site | BC141: N/A | BD141: N/A | BE141: N/A | BF141: N/A | BG141: N/A | BH141: N/A | BI141: N/A | BJ141: N/A | BK141: N/A | BL141: N/A | BM141: N/A | BN141: N/A | BO141: N/A | BP141: N/A | BQ141: N/A | BR141: N/A | BS141: N/A | BT141: N/A | BU141: N/A | BV141: N/A | BW141: N/A | BX141: N/A | BY141: N/A | BZ141: N/A | CA141: N/A
B142: Emptied and discharged locally | C142: N/A | D142: N/A | E142: N/A | F142: N/A | G142: N/A | H142: N/A | I142: N/A | J142: N/A | K142: N/A | L142: N/A | M142: N/A | N142: N/A | O142: N/A | P142: N/A | Q142: N/A | R142: N/A | S142: N/A | T142: N/A | U142: N/A | V142: N/A | W142: N/A | X142: N/A | Y142: N/A | Z142: N/A | AA142: N/A | BB142: Emptied and discharged locally | BC142: N/A | BD142: N/A | BE142: N/A | BF142: N/A | BG142: N/A | BH142: N/A | BI142: N/A | BJ142: N/A | BK142: N/A | BL142: N/A | BM142: N/A | BN142: N/A | BO142: N/A | BP142: N/A | BQ142: N/A | BR142: N/A | BS142: N/A | BT142: N/A | BU142: N/A | BV142: N/A | BW142: N/A | BX142: N/A | BY142: N/A | BZ142: N/A | CA142: N/A
B143: Emptied and removed offsite | C143: N/A | D143: N/A | E143: N/A | F143: N/A | G143: N/A | H143: N/A | I143: N/A | J143: N/A | K143: N/A | L143: N/A | M143: N/A | N143: N/A | O143: N/A | P143: N/A | Q143: N/A | R143: N/A | S143: N/A | T143: N/A | U143: N/A | V143: N/A | W143: N/A | X143: N/A | Y143: N/A | Z143: N/A | AA143: N/A | BB143: Emptied and removed offsite | BC143: N/A | BD143: N/A | BE143: N/A | BF143: N/A | BG143: N/A | BH143: N/A | BI143: N/A | BJ143: N/A | BK143: N/A | BL143: N/A | BM143: N/A | BN143: N/A | BO143: N/A | BP143: N/A | BQ143: N/A | BR143: N/A | BS143: N/A | BT143: N/A | BU143: N/A | BV143: N/A | BW143: N/A | BX143: N/A | BY143: N/A | BZ143: N/A | CA143: N/A
A144: Latrine emptying practices | B144: Not emptied/treated and disposed in situ | C144: N/A | D144: N/A | E144: N/A | F144: N/A | G144: N/A | H144: N/A | I144: N/A | J144: N/A | K144: N/A | L144: N/A | M144: N/A | N144: N/A | O144: N/A | P144: N/A | Q144: N/A | R144: N/A | S144: N/A | T144: N/A | U144: N/A | V144: N/A | W144: N/A | X144: N/A | Y144: N/A | Z144: N/A | AA144: N/A | BA144: Latrine emptying practices | BB144: Not emptied/treated and disposed in situ | BC144: N/A | BD144: N/A | BE144: N/A | BF144: N/A | BG144: N/A | BH144: N/A | BI144: N/A | BJ144: N/A | BK144: N/A | BL144: N/A | BM144: N/A | BN144: N/A | BO144: N/A | BP144: N/A | BQ144: N/A | BR144: N/A | BS144: N/A | BT144: N/A | BU144: N/A | BV144: N/A | BW144: N/A | BX144: N/A | BY144: N/A | BZ144: N/A | CA144: N/A
B145: Emptied and buried on site | C145: N/A | D145: N/A | E145: N/A | F145: N/A | G145: N/A | H145: N/A | I145: N/A | J145: N/A | K145: N/A | L145: N/A | M145: N/A | N145: N/A | O145: N/A | P145: N/A | Q145: N/A | R145: N/A | S145: N/A | T145: N/A | U145: N/A | V145: N/A | W145: N/A | X145: N/A | Y145: N/A | Z145: N/A | AA145: N/A | BB145: Emptied and buried on site | BC145: N/A | BD145: N/A | BE145: N/A | BF145: N/A | BG145: N/A | BH145: N/A | BI145: N/A | BJ145: N/A | BK145: N/A | BL145: N/A | BM145: N/A | BN145: N/A | BO145: N/A | BP145: N/A | BQ145: N/A | BR145: N/A | BS145: N/A | BT145: N/A | BU145: N/A | BV145: N/A | BW145: N/A | BX145: N/A | BY145: N/A | BZ145: N/A | CA145: N/A
B146: Emptied and discharged locally | C146: N/A | D146: N/A | E146: N/A | F146: N/A | G146: N/A | H146: N/A | I146: N/A | J146: N/A | K146: N/A | L146: N/A | M146: N/A | N146: N/A | O146: N/A | P146: N/A | Q146: N/A | R146: N/A | S146: N/A | T146: N/A | U146: N/A | V146: N/A | W146: N/A | X146: N/A | Y146: N/A | Z146: N/A | AA146: N/A | BB146: Emptied and discharged locally | BC146: N/A | BD146: N/A | BE146: N/A | BF146: N/A | BG146: N/A | BH146: N/A | BI146: N/A | BJ146: N/A | BK146: N/A | BL146: N/A | BM146: N/A | BN146: N/A | BO146: N/A | BP146: N/A | BQ146: N/A | BR146: N/A | BS146: N/A | BT146: N/A | BU146: N/A | BV146: N/A | BW146: N/A | BX146: N/A | BY146: N/A | BZ146: N/A | CA146: N/A
B147: Emptied and removed offsite | C147: N/A | D147: N/A | E147: N/A | F147: N/A | G147: N/A | H147: N/A | I147: N/A | J147: N/A | K147: N/A | L147: N/A | M147: N/A | N147: N/A | O147: N/A | P147: N/A | Q147: N/A | R147: N/A | S147: N/A | T147: N/A | U147: N/A | V147: N/A | W147: N/A | X147: N/A | Y147: N/A | Z147: N/A | AA147: N/A | BB147: Emptied and removed offsite | BC147: N/A | BD147: N/A | BE147: N/A | BF147: N/A | BG147: N/A | BH147: N/A | BI147: N/A | BJ147: N/A | BK147: N/A | BL147: N/A | BM147: N/A | BN147: N/A | BO147: N/A | BP147: N/A | BQ147: N/A | BR147: N/A | BS147: N/A | BT147: N/A | BU147: N/A | BV147: N/A | BW147: N/A | BX147: N/A | BY147: N/A | BZ147: N/A | CA147: N/A
A148: Shared among improved sanitation facilities | B148: Yes | C148: N/A | D148: N/A | E148: N/A | F148: N/A | G148: N/A | H148: N/A | I148: N/A | J148: N/A | K148: N/A | L148: N/A | M148: N/A | N148: N/A | O148: N/A | P148: N/A | Q148: N/A | R148: N/A | S148: N/A | T148: N/A | U148: N/A | V148: N/A | W148: N/A | X148: N/A | Y148: N/A | Z148: N/A | AA148: N/A | BA148: Shared among improved sanitation facilities | BB148: Yes | BC148: N/A | BD148: N/A | BE148: N/A | BF148: N/A | BG148: N/A | BH148: N/A | BI148: N/A | BJ148: N/A | BK148: N/A | BL148: N/A | BM148: N/A | BN148: N/A | BO148: N/A | BP148: N/A | BQ148: N/A | BR148: N/A | BS148: N/A | BT148: N/A | BU148: N/A | BV148: N/A | BW148: N/A | BX148: N/A | BY148: N/A | BZ148: N/A | CA148: N/A
B149: No | C149: N/A | D149: N/A | E149: N/A | F149: N/A | G149: N/A | H149: N/A | I149: N/A | J149: N/A | K149: N/A | L149: N/A | M149: N/A | N149: N/A | O149: N/A | P149: N/A | Q149: N/A | R149: N/A | S149: N/A | T149: N/A | U149: N/A | V149: N/A | W149: N/A | X149: N/A | Y149: N/A | Z149: N/A | AA149: N/A | BB149: No | BC149: N/A | BD149: N/A | BE149: N/A | BF149: N/A | BG149: N/A | BH149: N/A | BI149: N/A | BJ149: N/A | BK149: N/A | BL149: N/A | BM149: N/A | BN149: N/A | BO149: N/A | BP149: N/A | BQ149: N/A | BR149: N/A | BS149: N/A | BT149: N/A | BU149: N/A | BV149: N/A | BW149: N/A | BX149: N/A | BY149: N/A | BZ149: N/A | CA149: N/A
B150: DK/missing | C150: N/A | D150: N/A | E150: N/A | F150: N/A | G150: N/A | H150: N/A | I150: N/A | J150: N/A | K150: N/A | L150: N/A | M150: N/A | N150: N/A | O150: N/A | P150: N/A | Q150: N/A | R150: N/A | S150: N/A | T150: N/A | U150: N/A | V150: N/A | W150: N/A | X150: N/A | Y150: N/A | Z150: N/A | AA150: N/A | BB150: DK/missing | BC150: N/A | BD150: N/A | BE150: N/A | BF150: N/A | BG150: N/A | BH150: N/A | BI150: N/A | BJ150: N/A | BK150: N/A | BL150: N/A | BM150: N/A | BN150: N/A | BO150: N/A | BP150: N/A | BQ150: N/A | BR150: N/A | BS150: N/A | BT150: N/A | BU150: N/A | BV150: N/A | BW150: N/A | BX150: N/A | BY150: N/A | BZ150: N/A | CA150: N/A
A151: Shared among all sanitation facilities | B151: Yes | C151: N/A | D151: N/A | E151: N/A | F151: N/A | G151: N/A | H151: N/A | I151: N/A | J151: N/A | K151: N/A | L151: N/A | M151: N/A | N151: N/A | O151: N/A | P151: N/A | Q151: N/A | R151: N/A | S151: N/A | T151: N/A | U151: N/A | V151: N/A | W151: N/A | X151: N/A | Y151: N/A | Z151: N/A | AA151: N/A | BA151: Shared among all sanitation facilities | BB151: Yes | BC151: N/A | BD151: N/A | BE151: N/A | BF151: N/A | BG151: N/A | BH151: N/A | BI151: N/A | BJ151: N/A | BK151: N/A | BL151: N/A | BM151: N/A | BN151: N/A | BO151: N/A | BP151: N/A | BQ151: N/A | BR151: N/A | BS151: N/A | BT151: N/A | BU151: N/A | BV151: N/A | BW151: N/A | BX151: N/A | BY151: N/A | BZ151: N/A | CA151: N/A
B152: No | C152: N/A | D152: N/A | E152: N/A | F152: N/A | G152: N/A | H152: N/A | I152: N/A | J152: N/A | K152: N/A | L152: N/A | M152: N/A | N152: N/A | O152: N/A | P152: N/A | Q152: N/A | R152: N/A | S152: N/A | T152: N/A | U152: N/A | V152: N/A | W152: N/A | X152: N/A | Y152: N/A | Z152: N/A | AA152: N/A | BB152: No | BC152: N/A | BD152: N/A | BE152: N/A | BF152: N/A | BG152: N/A | BH152: N/A | BI152: N/A | BJ152: N/A | BK152: N/A | BL152: N/A | BM152: N/A | BN152: N/A | BO152: N/A | BP152: N/A | BQ152: N/A | BR152: N/A | BS152: N/A | BT152: N/A | BU152: N/A | BV152: N/A | BW152: N/A | BX152: N/A | BY152: N/A | BZ152: N/A | CA152: N/A
A153: Type de toilette | B153: Chasse raccordee … l'egout | C153: 0 | D153: 0.2805471462 | E153: 1.897845074 | F153: 7.005064766 | G153: 21.66146863 | H153: 5.195543047 | I153: 8.170582874 | J153: 10.16635602 | K153: 16.3124583 | L153: 35.53625262 | M153: 0 | N153: 0 | O153: 0.2093762878 | P153: 0.2985728082 | Q153: 0.3654912697 | R153: 20.70095885 | S153: 0 | T153: 0.2049144872 | U153: 0.05943356827 | V153: 0.4591848882 | W153: 0.60507295 | X153: 3.685266439 | Y153: 0.4991618564 | Z153: 0.4793230623 | AA153: 0.6819775143 | BA153: Type de toilette | BB153: Chasse raccordee … l'egout | BC153: 0 | BD153: 4941.157401 | BE153: 33540.37962 | BF153: 123835.7613 | BG153: 382819.1983 | BH153: 36776.31631 | BI153: 58245.05139 | BJ153: 72140.1222 | BK153: 116031.6112 | BL153: 252726.9504 | BM153: 0 | BN153: 0 | BO153: 2204.631054 | BP153: 3155.401712 | BQ153: 3856.412394 | BR153: 494042.8465 | BS153: 0 | BT153: 1316.939404 | BU153: 589.8707133 | BV153: 2817.48604 | BW153: 3261.903077 | BX153: 31920.85489 | BY153: 2470.156758 | BZ153: 5257.31072 | CA153: 3459.128565
B154: Chasse avec fossee | C154: 0.1839056386 | D154: 1.572938734 | E154: 5.648764983 | F154: 22.91558293 | G154: 30.50815749 | H154: 12.70429242 | I154: 24.78966482 | J154: 30.40370358 | K154: 32.69858671 | L154: 34.13247062 | M154: 0.1592399489 | N154: 0.2317113567 | O154: 1.213217405 | P154: 2.436916113 | Q154: 7.077321683 | R154: 27.87076944 | S154: 9.514117704 | T154: 4.3608408 | U154: 6.280966755 | V154: 0.1713843708 | W154: 5.839309297 | X154: 5.514019229 | Y154: 3.062669238 | Z154: 10.37027374 | AA154: 8.630789902 | BB154: Chasse avec fossee | BC154: 3265.517635 | BD154: 27703.50001 | BE154: 99829.92002 | BF154: 405102.4156 | BG154: 539165.1227 | BH154: 89926.51435 | BI154: 176716.3155 | BJ154: 215743.6636 | BK154: 232587.2429 | BL154: 242743.5245 | BM154: 1692.692308 | BN154: 2452.884337 | BO154: 12774.59256 | BP154: 25754.01733 | BQ154: 74675.02872 | BR154: 665155.3858 | BS154: 66578.91825 | BT154: 28026.14478 | BU154: 62337.80753 | BV154: 1051.587464 | BW154: 31479.28025 | BX154: 47761.05352 | BY154: 15155.95196 | BZ154: 113743.2258 | CA154: 43777.1206
B155: Latrine a fosse ventillee) | C155: 3.131052792 | D155: 8.692114198 | E155: 19.32989892 | F155: 40.3802486 | G155: 36.8638222 | H155: 23.91851188 | I155: 41.9425161 | J155: 45.44434721 | K155: 40.4164383 | L155: 28.23667164 | M155: 2.968628148 | N155: 5.29987358 | O155: 8.466540595 | P155: 11.89176977 | Q155: 31.66242413 | R155: 33.04036269 | S155: 29.00796547 | T155: 6.30012975 | U155: 13.86844714 | V155: 7.644712158 | W155: 17.65082755 | X155: 22.57540066 | Y155: 8.622821164 | Z155: 27.90003424 | AA155: 11.76741751 | BB155: Latrine a fosse ventillee) | BC155: 55596.4906 | BD155: 153090.5054 | BE155: 341614.8961 | BF155: 713843.3398 | BG155: 651487.6301 | BH155: 169305.6434 | BI155: 298992.6231 | BJ155: 322471.5676 | BK155: 287484.8395 | BL155: 200813.7433 | BM155: 31555.9887 | BN155: 56104.1853 | BO155: 89148.57799 | BP155: 125675.5795 | BQ155: 334080.1135 | BR155: 788531.3405 | BS155: 202995.0671 | BT155: 40489.51948 | BU155: 137642.599 | BV155: 46906.74789 | BW155: 95154.29289 | BX155: 195542.4662 | BY155: 42670.96874 | BZ155: 306013.1269 | CA155: 59686.73336
B156: Edicule publict latrine | C156: 0 | D156: 0.3241880918 | E156: 0.5449779289 | F156: 0.3201627854 | G156: 0.3629981312 | H156: 0.6545366358 | I156: 0.7520338842 | J156: 0.9040628865 | K156: 0 | L156: 0 | M156: 0 | N156: 0 | O156: 0.5422648654 | P156: 0.1757453904 | Q156: 0.3260052014 | R156: 0.606493615 | S156: 0.2119529243 | T156: 0.5820440806 | U156: 0.1944647337 | V156: 0.3153392337 | W156: 0.2013100815 | X156: 0 | Y156: 0.1560194611 | Z156: 0.1337288847 | AA156: 0.1042688098 | BB156: Edicule publict latrine | BC156: 0 | BD156: 5709.78679 | BE156: 9631.327062 | BF156: 5659.848068 | BG156: 6415.2 | BH156: 4633.095354 | BI156: 5360.970314 | BJ156: 6415.2 | BK156: 0 | BL156: 0 | BM156: 0 | BN156: 0 | BO156: 5709.78679 | BP156: 1857.326891 | BQ156: 3439.782571 | BR156: 14474.39387 | BS156: 1483.227017 | BT156: 3740.666633 | BU156: 1930.0381 | BV156: 1934.871795 | BW156: 1085.247613 | BX156: 0 | BY156: 772.0792788 | BZ156: 1466.765016 | CA156: 528.8725962
B157: Latrine seches traditionnelles | C157: 40.17107141 | D157: 46.66375664 | E157: 46.56634287 | F157: 18.85574596 | G157: 6.756387 | H157: 40.56883629 | I157: 17.3156931 | J157: 9.561565112 | K157: 9.293257273 | L157: 1.729163548 | M157: 41.61891423 | N157: 40.07350544 | O157: 46.61903361 | P157: 51.81300264 | Q157: 33.07127326 | R157: 7.285442476 | S157: 19.82137117 | T157: 30.82775611 | U157: 41.17587088 | V157: 69.53806132 | W157: 35.37048214 | X157: 45.66948952 | Y157: 52.03541579 | Z157: 25.99343867 | AA157: 66.23536106 | BB157: Latrine seches traditionnelles | BC157: 713297.0098 | BD157: 821868.8718 | BE157: 822961.1779 | BF157: 333332.4865 | BG157: 119404.3995 | BH157: 287163.8907 | BI157: 123437.1464 | BJ157: 67848.54618 | BK157: 66103.563 | BL157: 12297.47647 | BM157: 442401.6488 | BN157: 424216.0385 | BO157: 490875.8786 | BP157: 547574.4367 | BQ157: 348945.3202 | BR157: 173872.175 | BS157: 138708.1274 | BT157: 198123.0675 | BU157: 408665.3558 | BV157: 426674.575 | BW157: 190679.6272 | BX157: 395577.6798 | BY157: 257502.9167 | BZ157: 285101.2073 | CA157: 335959.2137
B158: Pots de champbre | C158: 0.08399513485 | D158: 0.2606160066 | E158: 0.09048621946 | F158: 0.367049356 | G158: 0.1885141846 | H158: 0.1254405833 | I158: 0.3702480781 | J158: 0 | K158: 0 | L158: 0 | M158: 0.1403088707 | N158: 0.06293091953 | O158: 0.1340424616 | P158: 0.2377427986 | Q158: 0.7479785353 | R158: 0 | S158: 0.4452831122 | T158: 0 | U158: 0 | V158: 0 | W158: 0.188671895 | X158: 0.9346422996 | Y158: 0.141488995 | Z158: 0.4168449719 | AA158: 0 | BB158: Pots de champbre | BC158: 1491.458316 | BD158: 4590.118729 | BE158: 1599.151687 | BF158: 6488.710379 | BG158: 3331.576923 | BH158: 887.9230769 | BI158: 2639.361068 | BJ158: 0 | BK158: 0 | BL158: 0 | BM158: 1491.458316 | BN158: 666.183432 | BO158: 1411.402297 | BP158: 2512.533001 | BQ158: 7892.154844 | BR158: 0 | BS158: 3116.050153 | BT158: 0 | BU158: 0 | BV158: 0 | BW158: 1017.116093 | BX158: 8095.637508 | BY158: 700.1736867 | BZ158: 4572.038593 | CA158: 0
B159: Dans la nature | C159: 55.53518592 | D159: 40.77530353 | E159: 21.36823084 | F159: 4.12632897 | G159: 0.3445142783 | H159: 9.170564136 | I159: 1.948365726 | J159: 0.5764543599 | K159: 0 | L159: 0 | M159: 54.22251089 | N159: 53.53797538 | O159: 41.17709965 | P159: 30.96995357 | Q159: 16.495275 | R159: 4.13351591 | S159: 37.44028772 | T159: 55.24985687 | U159: 36.99798179 | V159: 20.21460468 | W159: 38.21455785 | X159: 19.51452967 | Y159: 35.11857935 | Z159: 31.82283104 | AA159: 11.06134053 | BB159: Dans la nature | BC159: 986109.672 | BD159: 718158.055 | BE159: 377638.0824 | BF159: 72945.3769 | BG159: 6088.538227 | BH159: 64913.24667 | BI159: 13889.17579 | BJ159: 4090.500855 | BK159: 0 | BL159: 0 | BM159: 576375.6375 | BN159: 566750.2151 | BO159: 433574.9457 | BP159: 327299.2109 | BQ159: 174046.7919 | BR159: 98649.24523 | BS159: 262003.6805 | BT159: 355078.4261 | BU159: 367200.3305 | BV159: 124033.6256 | BW159: 206011.8269 | BX159: 169029.9684 | BY159: 173788.111 | BZ159: 349039.1428 | CA159: 56105.36741
B160: Autres | C160: 0.894789106 | D160: 1.430535651 | E160: 4.553453163 | F160: 6.029816642 | G160: 3.314138083 | H160: 7.66227501 | I160: 4.710895417 | J160: 2.943510831 | K160: 1.279259423 | L160: 0.3654415688 | M160: 0.890397921 | N160: 0.7940033177 | O160: 1.638425132 | P160: 2.176296906 | Q160: 10.25423092 | R160: 6.362457022 | S160: 3.559021904 | T160: 2.474457901 | U160: 1.422835139 | V160: 1.656713347 | W160: 1.929768234 | X160: 2.106652187 | Y160: 0.363844144 | Z160: 2.88352539 | AA160: 1.518844673 | BB160: Autres | BC160: 15888.30896 | BD160: 25195.41515 | BE160: 80472.61064 | BF160: 106595.2935 | BG160: 58570.16002 | BH160: 54236.91938 | BI160: 33582.22416 | BJ160: 20887.05439 | BK160: 9099.458174 | BL160: 2598.949704 | BM160: 9464.771382 | BN160: 8405.277709 | BO160: 17251.82429 | BP160: 22999.71999 | BQ160: 108195.5891 | BR160: 151844.4822 | BS160: 24905.70705 | BT160: 15902.7854 | BU160: 14121.46036 | BV160: 10165.33176 | BW160: 10403.23641 | BX160: 18247.29361 | BY160: 1800.522335 | BZ160: 31627.08022 | CA160: 7703.888887
BB161: Total | BC161: 1775648.457 | BD161: 1761257.41 | BE161: 1767287.545 | BF161: 1767803.232 | BG161: 1767281.826 | BH161: 707843.5492 | BI161: 712862.8678 | BJ161: 709596.6548 | BK161: 711306.7147 | BL161: 711180.6444 | BM161: 1062982.197 | BN161: 1058594.784 | BO161: 1052951.639 | BP161: 1056828.226 | BQ161: 1055131.193 | BR161: 2386569.869 | BS161: 699790.7775 | BT161: 642677.5492 | BU161: 992487.462 | BV161: 613584.2255 | BW161: 539092.5305 | BX161: 866174.954 | BY161: 494860.8805 | BZ161: 1096819.897 | CA161: 507220.3251
A208: =A1026 -> Senegal
A209: =A1034 -> 2000
A210: Access to hygiene facilities
A211: by wealth quintile and sub-national region
A212: Notes:
A213: WHO/UNICEF JMP customised wealth index excludes water,
A214: sanitation and hygiene assets.
A215: Survey used for analysis: | B215: =A1025 -> MICS00
A220: Access to handwashing | C220: NATIONAL wealth index quintile | H220: URBAN wealth index quintile | M220: RURAL wealth index quintile | R220: SUB-REGIONS: | BA220: Raw numbers of respondents: | BB220: Access to handwashing | BC220: NATIONAL wealth index quintile | BH220: URBAN wealth index quintile | BM220: RURAL wealth index quintile | BR220: SUB-REGIONS:
A221: Weighted percentage (used in graphs) | C221: Poorest | D221: Poor | E221: Middle | F221: Rich | G221: Richest | H221: Poorest | I221: Poor | J221: Middle | K221: Rich | L221: Richest | M221: Poorest | N221: Poor | O221: Middle | P221: Rich | Q221: Richest | R221: Dakar | S221: Diourbel | T221: Fatick | U221: Kaolack | V221: Kolda | W221: Louga | X221: Saint louis | Y221: Tambacounda | Z221: Thies | AA221: Ziguinchor | BA221: Hygiene data, raw numbers (weighted) | BC221: Poorest | BD221: Poor | BE221: Middle | BF221: Rich | BG221: Richest | BH221: Poorest | BI221: Poor | BJ221: Middle | BK221: Rich | BL221: Richest | BM221: Poorest | BN221: Poor | BO221: Middle | BP221: Rich | BQ221: Richest | BR221: Dakar | BS221: Diourbel | BT221: Fatick | BU221: Kaolack | BV221: Kolda | BW221: Louga | BX221: Saint louis | BY221: Tambacounda | BZ221: Thies | CA221: Ziguinchor
A222: Hygiene ladder | B222: Basic | C222: N/A | D222: N/A | E222: N/A | F222: N/A | G222: N/A | H222: N/A | I222: N/A | J222: N/A | K222: N/A | L222: N/A | M222: N/A | N222: N/A | O222: N/A | P222: N/A | Q222: N/A | R222: N/A | S222: N/A | T222: N/A | U222: N/A | V222: N/A | W222: N/A | X222: N/A | Y222: N/A | Z222: N/A | AA222: N/A | BA222: Hygiene ladder | BB222: Basic | BC222: N/A | BD222: N/A | BE222: N/A | BF222: N/A | BG222: N/A | BH222: N/A | BI222: N/A | BJ222: N/A | BK222: N/A | BL222: N/A | BM222: N/A | BN222: N/A | BO222: N/A | BP222: N/A | BQ222: N/A | BR222: N/A | BS222: N/A | BT222: N/A | BU222: N/A | BV222: N/A | BW222: N/A | BX222: N/A | BY222: N/A | BZ222: N/A | CA222: N/A
B223: Limited | C223: N/A | D223: N/A | E223: N/A | F223: N/A | G223: N/A | H223: N/A | I223: N/A | J223: N/A | K223: N/A | L223: N/A | M223: N/A | N223: N/A | O223: N/A | P223: N/A | Q223: N/A | R223: N/A | S223: N/A | T223: N/A | U223: N/A | V223: N/A | W223: N/A | X223: N/A | Y223: N/A | Z223: N/A | AA223: N/A | BB223: Limited | BC223: N/A | BD223: N/A | BE223: N/A | BF223: N/A | BG223: N/A | BH223: N/A | BI223: N/A | BJ223: N/A | BK223: N/A | BL223: N/A | BM223: N/A | BN223: N/A | BO223: N/A | BP223: N/A | BQ223: N/A | BR223: N/A | BS223: N/A | BT223: N/A | BU223: N/A | BV223: N/A | BW223: N/A | BX223: N/A | BY223: N/A | BZ223: N/A | CA223: N/A
B224: No facility | C224: N/A | D224: N/A | E224: N/A | F224: N/A | G224: N/A | H224: N/A | I224: N/A | J224: N/A | K224: N/A | L224: N/A | M224: N/A | N224: N/A | O224: N/A | P224: N/A | Q224: N/A | R224: N/A | S224: N/A | T224: N/A | U224: N/A | V224: N/A | W224: N/A | X224: N/A | Y224: N/A | Z224: N/A | AA224: N/A | BB224: No facility | BC224: N/A | BD224: N/A | BE224: N/A | BF224: N/A | BG224: N/A | BH224: N/A | BI224: N/A | BJ224: N/A | BK224: N/A | BL224: N/A | BM224: N/A | BN224: N/A | BO224: N/A | BP224: N/A | BQ224: N/A | BR224: N/A | BS224: N/A | BT224: N/A | BU224: N/A | BV224: N/A | BW224: N/A | BX224: N/A | BY224: N/A | BZ224: N/A | CA224: N/A
BA225: Observed handwashing place | BB225: Fixed | BC225: N/A | BD225: N/A | BE225: N/A | BF225: N/A | BG225: N/A | BH225: N/A | BI225: N/A | BJ225: N/A | BK225: N/A | BL225: N/A | BM225: N/A | BN225: N/A | BO225: N/A | BP225: N/A | BQ225: N/A | BR225: N/A | BS225: N/A | BT225: N/A | BU225: N/A | BV225: N/A | BW225: N/A | BX225: N/A | BY225: N/A | BZ225: N/A | CA225: N/A
BB226: Mobile | BC226: N/A | BD226: N/A | BE226: N/A | BF226: N/A | BG226: N/A | BH226: N/A | BI226: N/A | BJ226: N/A | BK226: N/A | BL226: N/A | BM226: N/A | BN226: N/A | BO226: N/A | BP226: N/A | BQ226: N/A | BR226: N/A | BS226: N/A | BT226: N/A | BU226: N/A | BV226: N/A | BW226: N/A | BX226: N/A | BY226: N/A | BZ226: N/A | CA226: N/A
BA227: Water / Soap | BB227: Water and soap | BC227: N/A | BD227: N/A | BE227: N/A | BF227: N/A | BG227: N/A | BH227: N/A | BI227: N/A | BJ227: N/A | BK227: N/A | BL227: N/A | BM227: N/A | BN227: N/A | BO227: N/A | BP227: N/A | BQ227: N/A | BR227: N/A | BS227: N/A | BT227: N/A | BU227: N/A | BV227: N/A | BW227: N/A | BX227: N/A | BY227: N/A | BZ227: N/A | CA227: N/A
BB228: Water only | BC228: N/A | BD228: N/A | BE228: N/A | BF228: N/A | BG228: N/A | BH228: N/A | BI228: N/A | BJ228: N/A | BK228: N/A | BL228: N/A | BM228: N/A | BN228: N/A | BO228: N/A | BP228: N/A | BQ228: N/A | BR228: N/A | BS228: N/A | BT228: N/A | BU228: N/A | BV228: N/A | BW228: N/A | BX228: N/A | BY228: N/A | BZ228: N/A | CA228: N/A
BB229: Soap only | BC229: N/A | BD229: N/A | BE229: N/A | BF229: N/A | BG229: N/A | BH229: N/A | BI229: N/A | BJ229: N/A | BK229: N/A | BL229: N/A | BM229: N/A | BN229: N/A | BO229: N/A | BP229: N/A | BQ229: N/A | BR229: N/A | BS229: N/A | BT229: N/A | BU229: N/A | BV229: N/A | BW229: N/A | BX229: N/A | BY229: N/A | BZ229: N/A | CA229: N/A
BB230: Neither | BC230: N/A | BD230: N/A | BE230: N/A | BF230: N/A | BG230: N/A | BH230: N/A | BI230: N/A | BJ230: N/A | BK230: N/A | BL230: N/A | BM230: N/A | BN230: N/A | BO230: N/A | BP230: N/A | BQ230: N/A | BR230: N/A | BS230: N/A | BT230: N/A | BU230: N/A | BV230: N/A | BW230: N/A | BX230: N/A | BY230: N/A | BZ230: N/A | CA230: N/A
BA259: Raw numbers of respondents: | BB259: Menstrual health and hygiene | BC259: NATIONAL wealth index quintile | BH259: URBAN wealth index quintile | BM259: RURAL wealth index quintile | BR259: SUB-REGIONS:
BA260: MHH data, raw numbers (weighted) | BC260: Poorest | BD260: Poor | BE260: Middle | BF260: Rich | BG260: Richest | BH260: Poorest | BI260: Poor | BJ260: Middle | BK260: Rich | BL260: Richest | BM260: Poorest | BN260: Poor | BO260: Middle | BP260: Rich | BQ260: Richest | BR260: Dakar | BS260: Diourbel | BT260: Fatick | BU260: Kaolack | BV260: Kolda | BW260: Louga | BX260: Saint louis | BY260: Tambacounda | BZ260: Thies | CA260: Ziguinchor
BA261: Private place to wash and change | BB261: Yes | BC261: N/A | BD261: N/A | BE261: N/A | BF261: N/A | BG261: N/A | BH261: N/A | BI261: N/A | BJ261: N/A | BK261: N/A | BL261: N/A | BM261: N/A | BN261: N/A | BO261: N/A | BP261: N/A | BQ261: N/A | BR261: N/A | BS261: N/A | BT261: N/A | BU261: N/A | BV261: N/A | BW261: N/A | BX261: N/A | BY261: N/A | BZ261: N/A | CA261: N/A
BB262: No | BC262: N/A | BD262: N/A | BE262: N/A | BF262: N/A | BG262: N/A | BH262: N/A | BI262: N/A | BJ262: N/A | BK262: N/A | BL262: N/A | BM262: N/A | BN262: N/A | BO262: N/A | BP262: N/A | BQ262: N/A | BR262: N/A | BS262: N/A | BT262: N/A | BU262: N/A | BV262: N/A | BW262: N/A | BX262: N/A | BY262: N/A | BZ262: N/A | CA262: N/A
BB263: DK/not sure/missing | BC263: N/A | BD263: N/A | BE263: N/A | BF263: N/A | BG263: N/A | BH263: N/A | BI263: N/A | BJ263: N/A | BK263: N/A | BL263: N/A | BM263: N/A | BN263: N/A | BO263: N/A | BP263: N/A | BQ263: N/A | BR263: N/A | BS263: N/A | BT263: N/A | BU263: N/A | BV263: N/A | BW263: N/A | BX263: N/A | BY263: N/A | BZ263: N/A | CA263: N/A
BA264: Use of menstrual materials | BB264: Materials reusable | BC264: N/A | BD264: N/A | BE264: N/A | BF264: N/A | BG264: N/A | BH264: N/A | BI264: N/A | BJ264: N/A | BK264: N/A | BL264: N/A | BM264: N/A | BN264: N/A | BO264: N/A | BP264: N/A | BQ264: N/A | BR264: N/A | BS264: N/A | BT264: N/A | BU264: N/A | BV264: N/A | BW264: N/A | BX264: N/A | BY264: N/A | BZ264: N/A | CA264: N/A
BB265: Materials not reusable | BC265: N/A | BD265: N/A | BE265: N/A | BF265: N/A | BG265: N/A | BH265: N/A | BI265: N/A | BJ265: N/A | BK265: N/A | BL265: N/A | BM265: N/A | BN265: N/A | BO265: N/A | BP265: N/A | BQ265: N/A | BR265: N/A | BS265: N/A | BT265: N/A | BU265: N/A | BV265: N/A | BW265: N/A | BX265: N/A | BY265: N/A | BZ265: N/A | CA265: N/A
BB266: No materials used | BC266: N/A | BD266: N/A | BE266: N/A | BF266: N/A | BG266: N/A | BH266: N/A | BI266: N/A | BJ266: N/A | BK266: N/A | BL266: N/A | BM266: N/A | BN266: N/A | BO266: N/A | BP266: N/A | BQ266: N/A | BR266: N/A | BS266: N/A | BT266: N/A | BU266: N/A | BV266: N/A | BW266: N/A | BX266: N/A | BY266: N/A | BZ266: N/A | CA266: N/A
BB267: DK/not sure/missing | BC267: N/A | BD267: N/A | BE267: N/A | BF267: N/A | BG267: N/A | BH267: N/A | BI267: N/A | BJ267: N/A | BK267: N/A | BL267: N/A | BM267: N/A | BN267: N/A | BO267: N/A | BP267: N/A | BQ267: N/A | BR267: N/A | BS267: N/A | BT267: N/A | BU267: N/A | BV267: N/A | BW267: N/A | BX267: N/A | BY267: N/A | BZ267: N/A | CA267: N/A
BA268: Use of menstrual materials with private place to wash and change | BB268: Materials reusable | BC268: N/A | BD268: N/A | BE268: N/A | BF268: N/A | BG268: N/A | BH268: N/A | BI268: N/A | BJ268: N/A | BK268: N/A | BL268: N/A | BM268: N/A | BN268: N/A | BO268: N/A | BP268: N/A | BQ268: N/A | BR268: N/A | BS268: N/A | BT268: N/A | BU268: N/A | BV268: N/A | BW268: N/A | BX268: N/A | BY268: N/A | BZ268: N/A | CA268: N/A
BB269: Materials not reusable | BC269: N/A | BD269: N/A | BE269: N/A | BF269: N/A | BG269: N/A | BH269: N/A | BI269: N/A | BJ269: N/A | BK269: N/A | BL269: N/A | BM269: N/A | BN269: N/A | BO269: N/A | BP269: N/A | BQ269: N/A | BR269: N/A | BS269: N/A | BT269: N/A | BU269: N/A | BV269: N/A | BW269: N/A | BX269: N/A | BY269: N/A | BZ269: N/A | CA269: N/A
BB270: No materials used | BC270: N/A | BD270: N/A | BE270: N/A | BF270: N/A | BG270: N/A | BH270: N/A | BI270: N/A | BJ270: N/A | BK270: N/A | BL270: N/A | BM270: N/A | BN270: N/A | BO270: N/A | BP270: N/A | BQ270: N/A | BR270: N/A | BS270: N/A | BT270: N/A | BU270: N/A | BV270: N/A | BW270: N/A | BX270: N/A | BY270: N/A | BZ270: N/A | CA270: N/A
BA271: Awareness of menstruation before menarche | BB271: Yes | BC271: N/A | BD271: N/A | BE271: N/A | BF271: N/A | BG271: N/A | BH271: N/A | BI271: N/A | BJ271: N/A | BK271: N/A | BL271: N/A | BM271: N/A | BN271: N/A | BO271: N/A | BP271: N/A | BQ271: N/A | BR271: N/A | BS271: N/A | BT271: N/A | BU271: N/A | BV271: N/A | BW271: N/A | BX271: N/A | BY271: N/A | BZ271: N/A | CA271: N/A
BB272: No | BC272: N/A | BD272: N/A | BE272: N/A | BF272: N/A | BG272: N/A | BH272: N/A | BI272: N/A | BJ272: N/A | BK272: N/A | BL272: N/A | BM272: N/A | BN272: N/A | BO272: N/A | BP272: N/A | BQ272: N/A | BR272: N/A | BS272: N/A | BT272: N/A | BU272: N/A | BV272: N/A | BW272: N/A | BX272: N/A | BY272: N/A | BZ272: N/A | CA272: N/A
BB273: DK/not sure/missing | BC273: N/A | BD273: N/A | BE273: N/A | BF273: N/A | BG273: N/A | BH273: N/A | BI273: N/A | BJ273: N/A | BK273: N/A | BL273: N/A | BM273: N/A | BN273: N/A | BO273: N/A | BP273: N/A | BQ273: N/A | BR273: N/A | BS273: N/A | BT273: N/A | BU273: N/A | BV273: N/A | BW273: N/A | BX273: N/A | BY273: N/A | BZ273: N/A | CA273: N/A
BA274: Participation in (all) activities during menstruation | BB274: Yes | BC274: N/A | BD274: N/A | BE274: N/A | BF274: N/A | BG274: N/A | BH274: N/A | BI274: N/A | BJ274: N/A | BK274: N/A | BL274: N/A | BM274: N/A | BN274: N/A | BO274: N/A | BP274: N/A | BQ274: N/A | BR274: N/A | BS274: N/A | BT274: N/A | BU274: N/A | BV274: N/A | BW274: N/A | BX274: N/A | BY274: N/A | BZ274: N/A | CA274: N/A
BB275: No | BC275: N/A | BD275: N/A | BE275: N/A | BF275: N/A | BG275: N/A | BH275: N/A | BI275: N/A | BJ275: N/A | BK275: N/A | BL275: N/A | BM275: N/A | BN275: N/A | BO275: N/A | BP275: N/A | BQ275: N/A | BR275: N/A | BS275: N/A | BT275: N/A | BU275: N/A | BV275: N/A | BW275: N/A | BX275: N/A | BY275: N/A | BZ275: N/A | CA275: N/A
BB276: DK/not sure/missing/no such activity | BC276: N/A | BD276: N/A | BE276: N/A | BF276: N/A | BG276: N/A | BH276: N/A | BI276: N/A | BJ276: N/A | BK276: N/A | BL276: N/A | BM276: N/A | BN276: N/A | BO276: N/A | BP276: N/A | BQ276: N/A | BR276: N/A | BS276: N/A | BT276: N/A | BU276: N/A | BV276: N/A | BW276: N/A | BX276: N/A | BY276: N/A | BZ276: N/A | CA276: N/A
BA277: Participation in specific activities during menstruation | BB277: Did not go to school (amongst those usually attending school) | BC277: N/A | BD277: N/A | BE277: N/A | BF277: N/A | BG277: N/A | BH277: N/A | BI277: N/A | BJ277: N/A | BK277: N/A | BL277: N/A | BM277: N/A | BN277: N/A | BO277: N/A | BP277: N/A | BQ277: N/A | BR277: N/A | BS277: N/A | BT277: N/A | BU277: N/A | BV277: N/A | BW277: N/A | BX277: N/A | BY277: N/A | BZ277: N/A | CA277: N/A
BB278: Did not go to work (amongst those who usually work) | BC278: N/A | BD278: N/A | BE278: N/A | BF278: N/A | BG278: N/A | BH278: N/A | BI278: N/A | BJ278: N/A | BK278: N/A | BL278: N/A | BM278: N/A | BN278: N/A | BO278: N/A | BP278: N/A | BQ278: N/A | BR278: N/A | BS278: N/A | BT278: N/A | BU278: N/A | BV278: N/A | BW278: N/A | BX278: N/A | BY278: N/A | BZ278: N/A | CA278: N/A
BB279: Did not participate in social activities | BC279: N/A | BD279: N/A | BE279: N/A | BF279: N/A | BG279: N/A | BH279: N/A | BI279: N/A | BJ279: N/A | BK279: N/A | BL279: N/A | BM279: N/A | BN279: N/A | BO279: N/A | BP279: N/A | BQ279: N/A | BR279: N/A | BS279: N/A | BT279: N/A | BU279: N/A | BV279: N/A | BW279: N/A | BX279: N/A | BY279: N/A | BZ279: N/A | CA279: N/A
BB280: Did not cook food | BC280: N/A | BD280: N/A | BE280: N/A | BF280: N/A | BG280: N/A | BH280: N/A | BI280: N/A | BJ280: N/A | BK280: N/A | BL280: N/A | BM280: N/A | BN280: N/A | BO280: N/A | BP280: N/A | BQ280: N/A | BR280: N/A | BS280: N/A | BT280: N/A | BU280: N/A | BV280: N/A | BW280: N/A | BX280: N/A | BY280: N/A | BZ280: N/A | CA280: N/A
BB281: Did not eat with others | BC281: N/A | BD281: N/A | BE281: N/A | BF281: N/A | BG281: N/A | BH281: N/A | BI281: N/A | BJ281: N/A | BK281: N/A | BL281: N/A | BM281: N/A | BN281: N/A | BO281: N/A | BP281: N/A | BQ281: N/A | BR281: N/A | BS281: N/A | BT281: N/A | BU281: N/A | BV281: N/A | BW281: N/A | BX281: N/A | BY281: N/A | BZ281: N/A | CA281: N/A
BB282: Did not bathe in regular place | BC282: N/A | BD282: N/A | BE282: N/A | BF282: N/A | BG282: N/A | BH282: N/A | BI282: N/A | BJ282: N/A | BK282: N/A | BL282: N/A | BM282: N/A | BN282: N/A | BO282: N/A | BP282: N/A | BQ282: N/A | BR282: N/A | BS282: N/A | BT282: N/A | BU282: N/A | BV282: N/A | BW282: N/A | BX282: N/A | BY282: N/A | BZ282: N/A | CA282: N/A
BB283: Did not participate in other activities | BC283: N/A | BD283: N/A | BE283: N/A | BF283: N/A | BG283: N/A | BH283: N/A | BI283: N/A | BJ283: N/A | BK283: N/A | BL283: N/A | BM283: N/A | BN283: N/A | BO283: N/A | BP283: N/A | BQ283: N/A | BR283: N/A | BS283: N/A | BT283: N/A | BU283: N/A | BV283: N/A | BW283: N/A | BX283: N/A | BY283: N/A | BZ283: N/A | CA283: N/A
BB284: DK/not sure/missing/no such activity | BC284: N/A | BD284: N/A | BE284: N/A | BF284: N/A | BG284: N/A | BH284: N/A | BI284: N/A | BJ284: N/A | BK284: N/A | BL284: N/A | BM284: N/A | BN284: N/A | BO284: N/A | BP284: N/A | BQ284: N/A | BR284: N/A | BS284: N/A | BT284: N/A | BU284: N/A | BV284: N/A | BW284: N/A | BX284: N/A | BY284: N/A | BZ284: N/A | CA284: N/A
BA339: Raw numbers of respondents: | BB339: Basic water, sanitation and hygiene | BC339: NATIONAL wealth index quintile | BH339: URBAN wealth index quintile | BM339: RURAL wealth index quintile | BR339: SUB-REGIONS:
BA340: WatSan data, raw numbers (weighted) | BC340: Poorest | BD340: Poor | BE340: Middle | BF340: Rich | BG340: Richest | BH340: Poorest | BI340: Poor | BJ340: Middle | BK340: Rich | BL340: Richest | BM340: Poorest | BN340: Poor | BO340: Middle | BP340: Rich | BQ340: Richest | BR340: Dakar | BS340: Diourbel | BT340: Fatick | BU340: Kaolack | BV340: Kolda | BW340: Louga | BX340: Saint louis | BY340: Tambacounda | BZ340: Thies | CA340: Ziguinchor
BA341: Use of Basic Water Sanitation and Hygiene | BB341: Yes | BC341: N/A | BD341: N/A | BE341: N/A | BF341: N/A | BG341: N/A | BH341: N/A | BI341: N/A | BJ341: N/A | BK341: N/A | BL341: N/A | BM341: N/A | BN341: N/A | BO341: N/A | BP341: N/A | BQ341: N/A | BR341: N/A | BS341: N/A | BT341: N/A | BU341: N/A | BV341: N/A | BW341: N/A | BX341: N/A | BY341: N/A | BZ341: N/A | CA341: N/A
BB342: No | BC342: N/A | BD342: N/A | BE342: N/A | BF342: N/A | BG342: N/A | BH342: N/A | BI342: N/A | BJ342: N/A | BK342: N/A | BL342: N/A | BM342: N/A | BN342: N/A | BO342: N/A | BP342: N/A | BQ342: N/A | BR342: N/A | BS342: N/A | BT342: N/A | BU342: N/A | BV342: N/A | BW342: N/A | BX342: N/A | BY342: N/A | BZ342: N/A | CA342: N/A
BA343: Use of Basic Water and Sanitation | BB343: Yes | BC343: N/A | BD343: N/A | BE343: N/A | BF343: N/A | BG343: N/A | BH343: N/A | BI343: N/A | BJ343: N/A | BK343: N/A | BL343: N/A | BM343: N/A | BN343: N/A | BO343: N/A | BP343: N/A | BQ343: N/A | BR343: N/A | BS343: N/A | BT343: N/A | BU343: N/A | BV343: N/A | BW343: N/A | BX343: N/A | BY343: N/A | BZ343: N/A | CA343: N/A
BB344: No | BC344: N/A | BD344: N/A | BE344: N/A | BF344: N/A | BG344: N/A | BH344: N/A | BI344: N/A | BJ344: N/A | BK344: N/A | BL344: N/A | BM344: N/A | BN344: N/A | BO344: N/A | BP344: N/A | BQ344: N/A | BR344: N/A | BS344: N/A | BT344: N/A | BU344: N/A | BV344: N/A | BW344: N/A | BX344: N/A | BY344: N/A | BZ344: N/A | CA344: N/A
BA345: Use of Basic Water and Hygiene | BB345: Yes | BC345: N/A | BD345: N/A | BE345: N/A | BF345: N/A | BG345: N/A | BH345: N/A | BI345: N/A | BJ345: N/A | BK345: N/A | BL345: N/A | BM345: N/A | BN345: N/A | BO345: N/A | BP345: N/A | BQ345: N/A | BR345: N/A | BS345: N/A | BT345: N/A | BU345: N/A | BV345: N/A | BW345: N/A | BX345: N/A | BY345: N/A | BZ345: N/A | CA345: N/A
BB346: No | BC346: N/A | BD346: N/A | BE346: N/A | BF346: N/A | BG346: N/A | BH346: N/A | BI346: N/A | BJ346: N/A | BK346: N/A | BL346: N/A | BM346: N/A | BN346: N/A | BO346: N/A | BP346: N/A | BQ346: N/A | BR346: N/A | BS346: N/A | BT346: N/A | BU346: N/A | BV346: N/A | BW346: N/A | BX346: N/A | BY346: N/A | BZ346: N/A | CA346: N/A
BA347: Use of Basic Sanitation and Hygiene | BB347: Yes | BC347: N/A | BD347: N/A | BE347: N/A | BF347: N/A | BG347: N/A | BH347: N/A | BI347: N/A | BJ347: N/A | BK347: N/A | BL347: N/A | BM347: N/A | BN347: N/A | BO347: N/A | BP347: N/A | BQ347: N/A | BR347: N/A | BS347: N/A | BT347: N/A | BU347: N/A | BV347: N/A | BW347: N/A | BX347: N/A | BY347: N/A | BZ347: N/A | CA347: N/A
BB348: No | BC348: N/A | BD348: N/A | BE348: N/A | BF348: N/A | BG348: N/A | BH348: N/A | BI348: N/A | BJ348: N/A | BK348: N/A | BL348: N/A | BM348: N/A | BN348: N/A | BO348: N/A | BP348: N/A | BQ348: N/A | BR348: N/A | BS348: N/A | BT348: N/A | BU348: N/A | BV348: N/A | BW348: N/A | BX348: N/A | BY348: N/A | BZ348: N/A | CA348: N/A
BA349: Use of Basic Water | BB349: Yes | BC349: N/A | BD349: N/A | BE349: N/A | BF349: N/A | BG349: N/A | BH349: N/A | BI349: N/A | BJ349: N/A | BK349: N/A | BL349: N/A | BM349: N/A | BN349: N/A | BO349: N/A | BP349: N/A | BQ349: N/A | BR349: N/A | BS349: N/A | BT349: N/A | BU349: N/A | BV349: N/A | BW349: N/A | BX349: N/A | BY349: N/A | BZ349: N/A | CA349: N/A
BB350: No | BC350: N/A | BD350: N/A | BE350: N/A | BF350: N/A | BG350: N/A | BH350: N/A | BI350: N/A | BJ350: N/A | BK350: N/A | BL350: N/A | BM350: N/A | BN350: N/A | BO350: N/A | BP350: N/A | BQ350: N/A | BR350: N/A | BS350: N/A | BT350: N/A | BU350: N/A | BV350: N/A | BW350: N/A | BX350: N/A | BY350: N/A | BZ350: N/A | CA350: N/A
BA351: Use of Basic Sanitation | BB351: Yes | BC351: N/A | BD351: N/A | BE351: N/A | BF351: N/A | BG351: N/A | BH351: N/A | BI351: N/A | BJ351: N/A | BK351: N/A | BL351: N/A | BM351: N/A | BN351: N/A | BO351: N/A | BP351: N/A | BQ351: N/A | BR351: N/A | BS351: N/A | BT351: N/A | BU351: N/A | BV351: N/A | BW351: N/A | BX351: N/A | BY351: N/A | BZ351: N/A | CA351: N/A
BB352: No | BC352: N/A | BD352: N/A | BE352: N/A | BF352: N/A | BG352: N/A | BH352: N/A | BI352: N/A | BJ352: N/A | BK352: N/A | BL352: N/A | BM352: N/A | BN352: N/A | BO352: N/A | BP352: N/A | BQ352: N/A | BR352: N/A | BS352: N/A | BT352: N/A | BU352: N/A | BV352: N/A | BW352: N/A | BX352: N/A | BY352: N/A | BZ352: N/A | CA352: N/A
BA353: Access to Basic Hygiene | BB353: Yes | BC353: N/A | BD353: N/A | BE353: N/A | BF353: N/A | BG353: N/A | BH353: N/A | BI353: N/A | BJ353: N/A | BK353: N/A | BL353: N/A | BM353: N/A | BN353: N/A | BO353: N/A | BP353: N/A | BQ353: N/A | BR353: N/A | BS353: N/A | BT353: N/A | BU353: N/A | BV353: N/A | BW353: N/A | BX353: N/A | BY353: N/A | BZ353: N/A | CA353: N/A
BB354: No | BC354: N/A | BD354: N/A | BE354: N/A | BF354: N/A | BG354: N/A | BH354: N/A | BI354: N/A | BJ354: N/A | BK354: N/A | BL354: N/A | BM354: N/A | BN354: N/A | BO354: N/A | BP354: N/A | BQ354: N/A | BR354: N/A | BS354: N/A | BT354: N/A | BU354: N/A | BV354: N/A | BW354: N/A | BX354: N/A | BY354: N/A | BZ354: N/A | CA354: N/A
C399: INITIAL (national) Wealth Index | H399: URBAN Wealth Index | M399: RURAL Wealth Index
C400: Component Matrix | H400: Component Matrix | M400: Component Matrix
E401: Component | J401: Component | O401: Component
B402: Note: The INITIAL (national) Wealth Index is based on the first component of the Principal Component Analysis (PCA) which has been obtained at national level. The final national-level (NATIONAL) Wealth Index is based on the URBAN and RURAL specific wealth indexes. Regression procedures are used to establish the relationships between the two sets of scores (urban and rural) and the initial (national) wealth factors. This allows best use of the available information for each area and a better precision of the FINAL (NATIONAL) Wealth Index. For dependency reasons, all WASH variables (contained in the generic MICS and DHS scripts) have been excluded from the sets of asset variables used in the PCAs. The PCA can extracts as many components as there are asset variables in the input. Only the first of the components is used to represent the Wealth Index. The scores represent the weights of the asset variables on the Wealth Index (correlations between the variables and the component). The communalities are the proportion of each variable's variance that can be explained by the component. Proportion of explained variance is the part of the model's total variance that is explained by the component. For more information on the procedure used: The DHS Wealth Index, DHS Comparative Reports No. 6, Shea Oscar Rutstein, Kiersten Johnson, ORC Macro International Inc., 2004. The DHS Wealth Index: Approaches for Rural and Urban Areas, Shea O. Rutstein, ORC Macro International Inc., 2008. MICS Methodological Paper No. 4, Review of options for reporting water, sanitation and hygiene coverage by wealth quintile, UNICEF, 2016. | E402: 1 | J402: 1 | O402: 1
C403: Have electricity | E403: 0.7825941088 | H403: Congelateur /refrigerateur | J403: -0.758964022 | M403: Televiseur | O403: -0.6867660549
C404: Have television | E404: 0.781841956 | H404: Have refrigerator | J404: 0.758964022 | M404: Have television | O404: 0.6867660549
C405: Televiseur | E405: -0.781841956 | H405: Televiseur | J405: -0.7308121028 | M405: Have electricity | O405: 0.6686307165
C406: Congelateur /refrigerateur | E406: -0.7570047183 | H406: Have television | J406: 0.7308121028 | M406: Congelateur /refrigerateur | O406: -0.6412395229
C407: Have refrigerator | E407: 0.7570047183 | H407: Telephone | J407: -0.7195851429 | M407: Have refrigerator | O407: 0.6412395229
C408: Household light: gas | E408: 0.7245849611 | H408: Have telephone | J408: 0.7195851429 | M408: Have telephone | O408: 0.5958362561
C409: Household light: firewood | E409: -0.7178559455 | H409: Have bicycle | J409: 0.6088218074 | M409: Telephone | O409: -0.5958362561
C410: Terre cultivable | E410: 0.6855642993 | H410: Have cuisiniere | J410: 0.6088218074 | M410: Household light: gas | O410: 0.5584603353
C411: Have terre cultivable | E411: -0.6855642993 | H411: Cuisiniere | J411: -0.6088218074 | M411: Household light: firewood | O411: -0.523411557
C412: Telephone | E412: -0.6768152727 | H412: Have electricity | J412: 0.5842048189 | M412: Have bicycle | O412: 0.5039411909
C413: Have telephone | E413: 0.6768152727 | H413: Household light: firewood | J413: -0.481865662 | M413: Have cuisiniere | O413: 0.5039411909
C414: Charrue | E414: 0.5350334615 | H414: Has ceramic tile floor | J414: 0.4799905062 | M414: Cuisiniere | O414: -0.5039411909
C415: Have charrette | E415: -0.5350334615 | H415: Household light: gas | J415: 0.4695498848 | M415: Terre cultivable | O415: 0.4800369991
C416: Has earth/sand floor | E416: -0.5172240658 | H416: Voiture | J416: -0.4683558629 | M416: Have terre cultivable | O416: -0.4800369991
... 167 more rows

Sheet DHS05
A2: =A1026 -> Senegal
A3: =A1034 -> 2005
A4: Use of drinking water sources
A5: by wealth quintile and sub-national region
A6: Notes:
A7: WHO/UNICEF JMP customised wealth index excludes water,
A8: sanitation and hygiene assets.
A9: Survey used for analysis: | B9: =A1025 -> DHS05
A10: Improved springs based on: | B10: MICS00
A11: Time to source based on: | B11: MICS00
A14: Use of drinking water sources | C14: NATIONAL wealth index quintile | H14: URBAN wealth index quintile | M14: RURAL wealth index quintile | R14: SUB-REGIONS: | BA14: Raw numbers of respondents: | BB14: Use of drinking water sources | BC14: NATIONAL wealth index quintile | BH14: URBAN wealth index quintile | BM14: RURAL wealth index quintile | BR14: SUB-REGIONS:
A15: Weighted percentage (used in graphs) | C15: Poorest | D15: Poor | E15: Middle | F15: Rich | G15: Richest | H15: Poorest | I15: Poor | J15: Middle | K15: Rich | L15: Richest | M15: Poorest | N15: Poor | O15: Middle | P15: Rich | Q15: Richest | R15: Dakar | S15: Diourbel | T15: Fatick | U15: Kaolack | V15: Kolda | W15: Louga | X15: Matam | Y15: Saint-Louis | Z15: Tambacounda | AA15: Thiès | AB15: Zuguinchor | BA15: Water data, raw numbers (weighted) | BC15: Poorest | BD15: Poor | BE15: Middle | BF15: Rich | BG15: Richest | BH15: Poorest | BI15: Poor | BJ15: Middle | BK15: Rich | BL15: Richest | BM15: Poorest | BN15: Poor | BO15: Middle | BP15: Rich | BQ15: Richest | BR15: Dakar | BS15: Diourbel | BT15: Fatick | BU15: Kaolack | BV15: Kolda | BW15: Louga | BX15: Matam | BY15: Saint-Louis | BZ15: Tambacounda | CA15: Thiès | CB15: Zuguinchor
A16: Water | B16: Improved | C16: =C58+C59+C60+C64+C65+C66+C70+C71+C72+C67*MICS00!C25/100 -> 42.62900085 | D16: =D58+D59+D60+D64+D65+D66+D70+D71+D72+D67*MICS00!D25/100 -> 49.59199609 | E16: =E58+E59+E60+E64+E65+E66+E70+E71+E72+E67*MICS00!E25/100 -> 69.38363213 | F16: =F58+F59+F60+F64+F65+F66+F70+F71+F72+F67*MICS00!F25/100 -> 92.00813385 | G16: =G58+G59+G60+G64+G65+G66+G70+G71+G72+G67*MICS00!G25/100 -> 97.61560933 | H16: =H58+H59+H60+H64+H65+H66+H70+H71+H72+H67*MICS00!H25/100 -> 75.86764077 | I16: =I58+I59+I60+I64+I65+I66+I70+I71+I72+I67*MICS00!I25/100 -> 91.33180619 | J16: =J58+J59+J60+J64+J65+J66+J70+J71+J72+J67*MICS00!J25/100 -> 96.76508677 | K16: =K58+K59+K60+K64+K65+K66+K70+K71+K72+K67*MICS00!K25/100 -> 97.93616159 | L16: =L58+L59+L60+L64+L65+L66+L70+L71+L72+L67*MICS00!L25/100 -> 99.65493649 | M16: =M58+M59+M60+M64+M65+M66+M70+M71+M72+M67*MICS00!M25/100 -> 40.46096304 | N16: =N58+N59+N60+N64+N65+N66+N70+N71+N72+N67*MICS00!N25/100 -> 41.89423572 | O16: =O58+O59+O60+O64+O65+O66+O70+O71+O72+O67*MICS00!O25/100 -> 46.25548614 | P16: =P58+P59+P60+P64+P65+P66+P70+P71+P72+P67*MICS00!P25/100 -> 58.66373844 | Q16: =Q58+Q59+Q60+Q64+Q65+Q66+Q70+Q71+Q72+Q67*MICS00!Q25/100 -> 78.72761642 | R16: =R58+R59+R60+R64+R65+R66+R70+R71+R72+R67*MICS00!R25/100 -> 99.48994655 | S16: =S58+S59+S60+S64+S65+S66+S70+S71+S72+S67*MICS00!S25/100 -> 79.89116301 | T16: =T58+T59+T60+T64+T65+T66+T70+T71+T72+T67*MICS00!T25/100 -> 43.26297192 | U16: =U58+U59+U60+U64+U65+U66+U70+U71+U72+U67*MICS00!U25/100 -> 67.34889033 | V16: =V58+V59+V60+V64+V65+V66+V70+V71+V72+V67*MICS00!V25/100 -> 16.84382888 | W16: =W58+W59+W60+W64+W65+W66+W70+W71+W72+W67*MICS00!W25/100 -> 78.95429402 | X16: =X58+X59+X60+X64+X65+X66+X70+X71+X72+X67*MICS00!X25/100 -> 64.34674893 | Y16: =Y58+Y59+Y60+Y64+Y65+Y66+Y70+Y71+Y72+Y67*MICS00!Y25/100 -> 74.23375871 | Z16: =Z58+Z59+Z60+Z64+Z65+Z66+Z70+Z71+Z72+Z67*MICS00!Z25/100 -> 41.18204125 | AA16: =AA58+AA59+AA60+AA64+AA65+AA66+AA70+AA71+AA72+AA67*MICS00!AA25/100 -> 80.48380371 | AB16: =AB58+AB59+AB60+AB64+AB65+AB66+AB70+AB71+AB72+AB67*MICS00!AB25/100 -> 32.91946586 | BA16: Water | BB16: Improved | BC16: N/A | BD16: N/A | BE16: N/A | BF16: N/A | BG16: N/A | BH16: N/A | BI16: N/A | BJ16: N/A | BK16: N/A | BL16: N/A | BM16: N/A | BN16: N/A | BO16: N/A | BP16: N/A | BQ16: N/A | BR16: N/A | BS16: N/A | BT16: N/A | BU16: N/A | BV16: N/A | BW16: N/A | BX16: N/A | BY16: N/A | BZ16: N/A | CA16: N/A | CB16: N/A
B17: Not Improved | C17: =100-C16 -> 57.37099915 | D17: =100-D16 -> 50.40800391 | E17: 30.61636787 | F17: 7.991866149 | G17: 2.384390666 | H17: 24.13235923 | I17: 8.668193815 | J17: 3.234913228 | K17: 2.063838413 | L17: 0.3450635113 | M17: 59.53903696 | N17: 58.10576428 | O17: 53.74451386 | P17: 41.33626156 | Q17: 21.27238358 | R17: 0.5100534519 | S17: 20.10883699 | T17: 56.73702808 | U17: 32.65110967 | V17: 83.15617112 | W17: 21.04570598 | X17: 35.65325107 | Y17: 25.76624129 | Z17: 58.81795875 | AA17: 19.51619629 | AB17: 67.08053414 | BB17: Not Improved | BC17: N/A | BD17: N/A | BE17: N/A | BF17: N/A | BG17: N/A | BH17: N/A | BI17: N/A | BJ17: N/A | BK17: N/A | BL17: N/A | BM17: N/A | BN17: N/A | BO17: N/A | BP17: N/A | BQ17: N/A | BR17: N/A | BS17: N/A | BT17: N/A | BU17: N/A | BV17: N/A | BW17: N/A | BX17: N/A | BY17: N/A | BZ17: N/A | CA17: N/A | CB17: N/A
A18: Water ladder | B18: Basic | C18: =C16*MICS00!C23/100 -> 32.27373156 | D18: =D16*MICS00!D23/100 -> 43.27171586 | E18: =E16*MICS00!E23/100 -> 62.74710715 | F18: =F16*MICS00!F23/100 -> 89.61026659 | G18: =G16*MICS00!G23/100 -> 96.11620535 | H18: =H16*MICS00!H23/100 -> 72.03028458 | I18: =I16*MICS00!I23/100 -> 90.10448223 | J18: =J16*MICS00!J23/100 -> 96.76508677 | K18: =K16*MICS00!K23/100 -> 95.81432096 | L18: =L16*MICS00!L23/100 -> 99.55294116 | M18: =M16*MICS00!M23/100 -> 30.19867535 | N18: =N16*MICS00!N23/100 -> 33.5311863 | O18: =O16*MICS00!O23/100 -> 41.24388698 | P18: =P16*MICS00!P23/100 -> 52.32993209 | Q18: =Q16*MICS00!Q23/100 -> 69.24407824 | R18: =R16*MICS00!R23/100 -> 96.30986814 | S18: =S16*MICS00!S23/100 -> 73.86127793 | T18: =T16*MICS00!T23/100 -> 35.20706809 | U18: =U16*MICS00!U23/100 -> 56.83648081 | V18: =V16*MICS00!V23/100 -> 15.95591712 | W18: =W16*MICS00!W23/100 -> 58.01124634 | X18: N/A | Y18: =Y16*MICS00!X23/100 -> 72.21020443 | Z18: =Z16*MICS00!Y23/100 -> 33.1631394 | AA18: =AA16*MICS00!Z23/100 -> 76.41626868 | AB18: =AB16*MICS00!AA23/100 -> 32.28267449 | BA18: Water ladder | BB18: Basic | BC18: N/A | BD18: N/A | BE18: N/A | BF18: N/A | BG18: N/A | BH18: N/A | BI18: N/A | BJ18: N/A | BK18: N/A | BL18: N/A | BM18: N/A | BN18: N/A | BO18: N/A | BP18: N/A | BQ18: N/A | BR18: N/A | BS18: N/A | BT18: N/A | BU18: N/A | BV18: N/A | BW18: N/A | BX18: N/A | BY18: N/A | BZ18: N/A | CA18: N/A | CB18: N/A
B19: Limited | C19: =C16*MICS00!C22/100 -> 10.35526929 | D19: =D16*MICS00!D22/100 -> 6.320280232 | E19: =E16*MICS00!E22/100 -> 6.636524978 | F19: =F16*MICS00!F22/100 -> 2.397867263 | G19: =G16*MICS00!G22/100 -> 1.499403988 | H19: =H16*MICS00!H22/100 -> 3.837356189 | I19: =I16*MICS00!I22/100 -> 1.227323954 | J19: =J16*MICS00!J22/100 -> 0 | K19: =K16*MICS00!K22/100 -> 2.121840628 | L19: =L16*MICS00!L22/100 -> 0.1019953275 | M19: =M16*MICS00!M22/100 -> 10.26228769 | N19: =N16*MICS00!N22/100 -> 8.363049416 | O19: =O16*MICS00!O22/100 -> 5.011599151 | P19: =P16*MICS00!P22/100 -> 6.333806352 | Q19: =Q16*MICS00!Q22/100 -> 9.48353818 | R19: =R16*MICS00!R22/100 -> 3.180078406 | S19: =S16*MICS00!S22/100 -> 6.029885082 | T19: =T16*MICS00!T22/100 -> 8.05590383 | U19: =U16*MICS00!U22/100 -> 10.51240952 | V19: =V16*MICS00!V22/100 -> 0.8879117678 | W19: =W16*MICS00!W22/100 -> 20.94304768 | X19: N/A | Y19: =Y16*MICS00!X22/100 -> 2.023554277 | Z19: =Z16*MICS00!Y22/100 -> 8.018901844 | AA19: =AA16*MICS00!Z22/100 -> 4.067535037 | AB19: =AB16*MICS00!AA22/100 -> 0.6367913762 | BB19: Limited | BC19: N/A | BD19: N/A | BE19: N/A | BF19: N/A | BG19: N/A | BH19: N/A | BI19: N/A | BJ19: N/A | BK19: N/A | BL19: N/A | BM19: N/A | BN19: N/A | BO19: N/A | BP19: N/A | BQ19: N/A | BR19: N/A | BS19: N/A | BT19: N/A | BU19: N/A | BV19: N/A | BW19: N/A | BX19: N/A | BY19: N/A | BZ19: N/A | CA19: N/A | CB19: N/A
B20: Unimproved | C20: =100-(C18+C19+C21) -> 57.05109423 | D20: =100-(D18+D19+D21) -> 49.03165158 | E20: 29.05309218 | F20: 7.226258439 | G20: 2.251576673 | H20: 24.13235923 | I20: 8.668193815 | J20: 3.234913228 | K20: 2.063838413 | L20: 0.3450635113 | M20: 59.16664605 | N20: 57.49075658 | O20: 51.92784504 | P20: 39.17579259 | Q20: 18.86284804 | R20: 0.5100534519 | S20: 20.10883699 | T20: 56.62579738 | U20: 32.65110967 | V20: 83.15617112 | W20: 21.04570598 | X20: N/A | Y20: 17.45681783 | Z20: 56.19034331 | AA20: 19.51619629 | AB20: 67.08053414 | BB20: Unimproved | BC20: N/A | BD20: N/A | BE20: N/A | BF20: N/A | BG20: N/A | BH20: N/A | BI20: N/A | BJ20: N/A | BK20: N/A | BL20: N/A | BM20: N/A | BN20: N/A | BO20: N/A | BP20: N/A | BQ20: N/A | BR20: N/A | BS20: N/A | BT20: N/A | BU20: N/A | BV20: N/A | BW20: N/A | BX20: N/A | BY20: N/A | BZ20: N/A | CA20: N/A | CB20: N/A
B21: Surface water | C21: =C68+C69 -> 0.3199049164 | D21: 1.376352323 | E21: 1.563275688 | F21: 0.76560771 | G21: 0.1328139928 | H21: 0 | I21: 0 | J21: 0 | K21: 0 | L21: 0 | M21: 0.3723909142 | N21: 0.6150077039 | O21: 1.816668829 | P21: 2.160468965 | Q21: 2.409535536 | R21: 0 | S21: 0 | T21: 0.1112307003 | U21: 0 | V21: 0 | W21: 0 | X21: N/A | Y21: =Y68+Y69 -> 8.309423464 | Z21: =Z68+Z69 -> 2.627615447 | AA21: =AA68+AA69 -> 0 | AB21: =AB68+AB69 -> 0 | BB21: Surface water | BC21: N/A | BD21: N/A | BE21: N/A | BF21: N/A | BG21: N/A | BH21: N/A | BI21: N/A | BJ21: N/A | BK21: N/A | BL21: N/A | BM21: N/A | BN21: N/A | BO21: N/A | BP21: N/A | BQ21: N/A | BR21: N/A | BS21: N/A | BT21: N/A | BU21: N/A | BV21: N/A | BW21: N/A | BX21: N/A | BY21: N/A | BZ21: N/A | CA21: N/A | CB21: N/A
A22: Improved water point at more than 30 minutes | B22: Yes | C22: N/A | D22: N/A | E22: N/A | F22: N/A | G22: N/A | H22: N/A | I22: N/A | J22: N/A | K22: N/A | L22: N/A | M22: N/A | N22: N/A | O22: N/A | P22: N/A | Q22: N/A | R22: N/A | S22: N/A | T22: N/A | U22: N/A | V22: N/A | W22: N/A | X22: N/A | Y22: N/A | Z22: N/A | AA22: N/A | AB22: N/A | BA22: Improved water point at more than 30 minutes | BB22: Yes | BC22: N/A | BD22: N/A | BE22: N/A | BF22: N/A | BG22: N/A | BH22: N/A | BI22: N/A | BJ22: N/A | BK22: N/A | BL22: N/A | BM22: N/A | BN22: N/A | BO22: N/A | BP22: N/A | BQ22: N/A | BR22: N/A | BS22: N/A | BT22: N/A | BU22: N/A | BV22: N/A | BW22: N/A | BX22: N/A | BY22: N/A | BZ22: N/A | CA22: N/A | CB22: N/A
B23: No | C23: N/A | D23: N/A | E23: N/A | F23: N/A | G23: N/A | H23: N/A | I23: N/A | J23: N/A | K23: N/A | L23: N/A | M23: N/A | N23: N/A | O23: N/A | P23: N/A | Q23: N/A | R23: N/A | S23: N/A | T23: N/A | U23: N/A | V23: N/A | W23: N/A | X23: N/A | Y23: N/A | Z23: N/A | AA23: N/A | AB23: N/A | BB23: No | BC23: N/A | BD23: N/A | BE23: N/A | BF23: N/A | BG23: N/A | BH23: N/A | BI23: N/A | BJ23: N/A | BK23: N/A | BL23: N/A | BM23: N/A | BN23: N/A | BO23: N/A | BP23: N/A | BQ23: N/A | BR23: N/A | BS23: N/A | BT23: N/A | BU23: N/A | BV23: N/A | BW23: N/A | BX23: N/A | BY23: N/A | BZ23: N/A | CA23: N/A | CB23: N/A
A24: Manually calculated ratios | B24: Improved wells
B25: Improved springs
B26: Other
C27: NATIONAL wealth index quintile | H27: URBAN wealth index quintile | M27: RURAL wealth index quintile | R27: SUB-REGIONS: | BA27: Raw numbers of respondents: | BB27: Use of drinking water sources | BC27: NATIONAL wealth index quintile | BH27: URBAN wealth index quintile | BM27: RURAL wealth index quintile | BR27: SUB-REGIONS:
A28: Percentage based on weighted population | C28: Poorest | D28: Poor | E28: Middle | F28: Rich | G28: Richest | H28: Poorest | I28: Poor | J28: Middle | K28: Rich | L28: Richest | M28: Poorest | N28: Poor | O28: Middle | P28: Rich | Q28: Richest | R28: Dakar | S28: Diourbel | T28: Fatick | U28: Kaolack | V28: Kolda | W28: Louga | X28: Matam | Y28: Saint-Louis | Z28: Tambacounda | AA28: Thiès | AB28: Zuguinchor | BA28: Water data, raw numbers (weighted) | BC28: Poorest | BD28: Poor | BE28: Middle | BF28: Rich | BG28: Richest | BH28: Poorest | BI28: Poor | BJ28: Middle | BK28: Rich | BL28: Richest | BM28: Poorest | BN28: Poor | BO28: Middle | BP28: Rich | BQ28: Richest | BR28: Dakar | BS28: Diourbel | BT28: Fatick | BU28: Kaolack | BV28: Kolda | BW28: Louga | BX28: Matam | BY28: Saint-Louis | BZ28: Tambacounda | CA28: Thiès | CB28: Zuguinchor
A29: Piped water | B29: Yes | C29: 27.78707972 | D29: 37.22054245 | E29: 60.14240484 | F29: 87.30428767 | G29: 95.2509406 | H29: 66.38020442 | I29: 88.24534157 | J29: 92.52073563 | K29: 95.81013357 | L29: 98.47847621 | M29: 24.93136174 | N29: 27.51352967 | O29: 33.50189354 | P29: 48.67084 | Q29: 69.34958607 | R29: 97.97653068 | S29: 67.48595034 | T29: 35.94338399 | U29: 55.98448679 | V29: 8.858973488 | W29: 60.90695092 | X29: 39.00854675 | Y29: 66.29457518 | Z29: 28.44839354 | AA29: 75.80197256 | AB29: 19.78520249 | BA29: Piped water | BB29: Yes | BC29: N/A | BD29: N/A | BE29: N/A | BF29: N/A | BG29: N/A | BH29: N/A | BI29: N/A | BJ29: N/A | BK29: N/A | BL29: N/A | BM29: N/A | BN29: N/A | BO29: N/A | BP29: N/A | BQ29: N/A | BR29: N/A | BS29: N/A | BT29: N/A | BU29: N/A | BV29: N/A | BW29: N/A | BX29: N/A | BY29: N/A | BZ29: N/A | CA29: N/A | CB29: N/A
B30: No | C30: 72.21292028 | D30: 62.77945755 | E30: 39.85759516 | F30: 12.69571233 | G30: 4.749059398 | H30: 33.61979558 | I30: 11.75465843 | J30: 7.479264374 | K30: 4.189866428 | L30: 1.521523792 | M30: 75.06863826 | N30: 72.48647033 | O30: 66.49810646 | P30: 51.32916 | Q30: 30.65041393 | R30: 2.023469319 | S30: 32.51404966 | T30: 64.05661601 | U30: 44.01551321 | V30: 91.14102651 | W30: 39.09304908 | X30: 60.99145325 | Y30: 33.70542482 | Z30: 71.55160646 | AA30: 24.19802744 | AB30: 80.21479751 | BB30: No | BC30: N/A | BD30: N/A | BE30: N/A | BF30: N/A | BG30: N/A | BH30: N/A | BI30: N/A | BJ30: N/A | BK30: N/A | BL30: N/A | BM30: N/A | BN30: N/A | BO30: N/A | BP30: N/A | BQ30: N/A | BR30: N/A | BS30: N/A | BT30: N/A | BU30: N/A | BV30: N/A | BW30: N/A | BX30: N/A | BY30: N/A | BZ30: N/A | CA30: N/A | CB30: N/A
A31: Piped water on premises | B31: Yes | C31: 4.372002878 | D31: 8.643024613 | E31: 35.49407878 | F31: 76.60320208 | G31: 92.22794643 | H31: 34.99468236 | I31: 71.32049577 | J31: 88.23432454 | K31: 91.46859172 | L31: 97.08071385 | M31: 3.657025419 | N31: 4.742365659 | O31: 7.140878841 | P31: 17.0333822 | Q31: 56.07816755 | R31: 89.69513646 | S31: 46.17428861 | T31: 11.29348907 | U31: 23.23009114 | V31: 5.841965369 | W31: 39.27640668 | X31: 21.29830017 | Y31: 38.40209285 | Z31: 15.38814361 | AA31: 48.99792858 | AB31: 17.39528551 | BA31: Piped water on premises | BB31: Yes | BC31: N/A | BD31: N/A | BE31: N/A | BF31: N/A | BG31: N/A | BH31: N/A | BI31: N/A | BJ31: N/A | BK31: N/A | BL31: N/A | BM31: N/A | BN31: N/A | BO31: N/A | BP31: N/A | BQ31: N/A | BR31: N/A | BS31: N/A | BT31: N/A | BU31: N/A | BV31: N/A | BW31: N/A | BX31: N/A | BY31: N/A | BZ31: N/A | CA31: N/A | CB31: N/A
B32: No | C32: 95.62799712 | D32: 91.35697539 | E32: 64.50592122 | F32: 23.39679792 | G32: 7.772053569 | H32: 65.00531764 | I32: 28.67950423 | J32: 11.76567546 | K32: 8.531408275 | L32: 2.919286153 | M32: 96.34297458 | N32: 95.25763434 | O32: 92.85912116 | P32: 82.9666178 | Q32: 43.92183245 | R32: 10.30486354 | S32: 53.82571139 | T32: 88.70651093 | U32: 76.76990886 | V32: 94.15803463 | W32: 60.72359332 | X32: 78.70169983 | Y32: 61.59790715 | Z32: 84.61185639 | AA32: 51.00207142 | AB32: 82.60471449 | BB32: No | BC32: N/A | BD32: N/A | BE32: N/A | BF32: N/A | BG32: N/A | BH32: N/A | BI32: N/A | BJ32: N/A | BK32: N/A | BL32: N/A | BM32: N/A | BN32: N/A | BO32: N/A | BP32: N/A | BQ32: N/A | BR32: N/A | BS32: N/A | BT32: N/A | BU32: N/A | BV32: N/A | BW32: N/A | BX32: N/A | BY32: N/A | BZ32: N/A | CA32: N/A | CB32: N/A
A33: Piped water into dwelling | B33: Yes | C33: N/A | D33: N/A | E33: N/A | F33: N/A | G33: N/A | H33: N/A | I33: N/A | J33: N/A | K33: N/A | L33: N/A | M33: N/A | N33: N/A | O33: N/A | P33: N/A | Q33: N/A | R33: N/A | S33: N/A | T33: N/A | U33: N/A | V33: N/A | W33: N/A | X33: N/A | Y33: N/A | Z33: N/A | AA33: N/A | AB33: N/A | BA33: Piped water into dwelling | BB33: Yes | BC33: N/A | BD33: N/A | BE33: N/A | BF33: N/A | BG33: N/A | BH33: N/A | BI33: N/A | BJ33: N/A | BK33: N/A | BL33: N/A | BM33: N/A | BN33: N/A | BO33: N/A | BP33: N/A | BQ33: N/A | BR33: N/A | BS33: N/A | BT33: N/A | BU33: N/A | BV33: N/A | BW33: N/A | BX33: N/A | BY33: N/A | BZ33: N/A | CA33: N/A | CB33: N/A
B34: No | C34: N/A | D34: N/A | E34: N/A | F34: N/A | G34: N/A | H34: N/A | I34: N/A | J34: N/A | K34: N/A | L34: N/A | M34: N/A | N34: N/A | O34: N/A | P34: N/A | Q34: N/A | R34: N/A | S34: N/A | T34: N/A | U34: N/A | V34: N/A | W34: N/A | X34: N/A | Y34: N/A | Z34: N/A | AA34: N/A | AB34: N/A | BB34: No | BC34: N/A | BD34: N/A | BE34: N/A | BF34: N/A | BG34: N/A | BH34: N/A | BI34: N/A | BJ34: N/A | BK34: N/A | BL34: N/A | BM34: N/A | BN34: N/A | BO34: N/A | BP34: N/A | BQ34: N/A | BR34: N/A | BS34: N/A | BT34: N/A | BU34: N/A | BV34: N/A | BW34: N/A | BX34: N/A | BY34: N/A | BZ34: N/A | CA34: N/A | CB34: N/A
A35: Water source on premises | B35: Yes | C35: 6.925380003 | D35: 9.723500797 | E35: 37.62192033 | F35: 77.36006659 | G35: 92.68946101 | H35: 35.95578824 | I35: 71.8915108 | J35: 88.99222868 | K35: 92.02010322 | L35: 97.17855635 | M35: 6.057546708 | N35: 7.21734078 | O35: 8.499453385 | P35: 19.41388577 | Q35: 57.6030445 | R35: 89.69513646 | S35: 48.84074154 | T35: 13.05877928 | U35: 27.91663869 | V35: 6.130799834 | W35: 39.41426161 | X35: 21.87927388 | Y35: 39.44368395 | Z35: 15.59266809 | AA35: 50.60160773 | AB35: 20.08137268 | BA35: Water source on premises | BB35: Yes | BC35: N/A | BD35: N/A | BE35: N/A | BF35: N/A | BG35: N/A | BH35: N/A | BI35: N/A | BJ35: N/A | BK35: N/A | BL35: N/A | BM35: N/A | BN35: N/A | BO35: N/A | BP35: N/A | BQ35: N/A | BR35: N/A | BS35: N/A | BT35: N/A | BU35: N/A | BV35: N/A | BW35: N/A | BX35: N/A | BY35: N/A | BZ35: N/A | CA35: N/A | CB35: N/A
B36: No | C36: 93.07462 | D36: 90.2764992 | E36: 62.37807967 | F36: 22.63993341 | G36: 7.310538993 | H36: 64.04421176 | I36: 28.1084892 | J36: 11.00777132 | K36: 7.979896775 | L36: 2.821443645 | M36: 93.94245329 | N36: 92.78265922 | O36: 91.50054661 | P36: 80.58611423 | Q36: 42.3969555 | R36: 10.30486354 | S36: 51.15925846 | T36: 86.94122072 | U36: 72.08336131 | V36: 93.86920017 | W36: 60.58573839 | X36: 78.12072612 | Y36: 60.55631605 | Z36: 84.40733191 | AA36: 49.39839227 | AB36: 79.91862732 | BB36: No | BC36: N/A | BD36: N/A | BE36: N/A | BF36: N/A | BG36: N/A | BH36: N/A | BI36: N/A | BJ36: N/A | BK36: N/A | BL36: N/A | BM36: N/A | BN36: N/A | BO36: N/A | BP36: N/A | BQ36: N/A | BR36: N/A | BS36: N/A | BT36: N/A | BU36: N/A | BV36: N/A | BW36: N/A | BX36: N/A | BY36: N/A | BZ36: N/A | CA36: N/A | CB36: N/A
A37: Improved Water source on premises | B37: Yes | C37: N/A | D37: N/A | E37: N/A | F37: N/A | G37: N/A | H37: N/A | I37: N/A | J37: N/A | K37: N/A | L37: N/A | M37: N/A | N37: N/A | O37: N/A | P37: N/A | Q37: N/A | R37: N/A | S37: N/A | T37: N/A | U37: N/A | V37: N/A | W37: N/A | X37: N/A | Y37: N/A | Z37: N/A | AA37: N/A | AB37: N/A | BA37: Improved water source on premises | BB37: Yes | BC37: N/A | BD37: N/A | BE37: N/A | BF37: N/A | BG37: N/A | BH37: N/A | BI37: N/A | BJ37: N/A | BK37: N/A | BL37: N/A | BM37: N/A | BN37: N/A | BO37: N/A | BP37: N/A | BQ37: N/A | BR37: N/A | BS37: N/A | BT37: N/A | BU37: N/A | BV37: N/A | BW37: N/A | BX37: N/A | BY37: N/A | BZ37: N/A | CA37: N/A | CB37: N/A
B38: No | C38: N/A | D38: N/A | E38: N/A | F38: N/A | G38: N/A | H38: N/A | I38: N/A | J38: N/A | K38: N/A | L38: N/A | M38: N/A | N38: N/A | O38: N/A | P38: N/A | Q38: N/A | R38: N/A | S38: N/A | T38: N/A | U38: N/A | V38: N/A | W38: N/A | X38: N/A | Y38: N/A | Z38: N/A | AA38: N/A | AB38: N/A | BB38: No | BC38: N/A | BD38: N/A | BE38: N/A | BF38: N/A | BG38: N/A | BH38: N/A | BI38: N/A | BJ38: N/A | BK38: N/A | BL38: N/A | BM38: N/A | BN38: N/A | BO38: N/A | BP38: N/A | BQ38: N/A | BR38: N/A | BS38: N/A | BT38: N/A | BU38: N/A | BV38: N/A | BW38: N/A | BX38: N/A | BY38: N/A | BZ38: N/A | CA38: N/A | CB38: N/A
A39: Piped water on premises available when needed | B39: Yes | C39: N/A | D39: N/A | E39: N/A | F39: N/A | G39: N/A | H39: N/A | I39: N/A | J39: N/A | K39: N/A | L39: N/A | M39: N/A | N39: N/A | O39: N/A | P39: N/A | Q39: N/A | R39: N/A | S39: N/A | T39: N/A | U39: N/A | V39: N/A | W39: N/A | X39: N/A | Y39: N/A | Z39: N/A | AA39: N/A | AB39: N/A | BA39: Piped water on premises available when needed | BB39: Yes | BC39: N/A | BD39: N/A | BE39: N/A | BF39: N/A | BG39: N/A | BH39: N/A | BI39: N/A | BJ39: N/A | BK39: N/A | BL39: N/A | BM39: N/A | BN39: N/A | BO39: N/A | BP39: N/A | BQ39: N/A | BR39: N/A | BS39: N/A | BT39: N/A | BU39: N/A | BV39: N/A | BW39: N/A | BX39: N/A | BY39: N/A | BZ39: N/A | CA39: N/A | CB39: N/A
B40: No | C40: N/A | D40: N/A | E40: N/A | F40: N/A | G40: N/A | H40: N/A | I40: N/A | J40: N/A | K40: N/A | L40: N/A | M40: N/A | N40: N/A | O40: N/A | P40: N/A | Q40: N/A | R40: N/A | S40: N/A | T40: N/A | U40: N/A | V40: N/A | W40: N/A | X40: N/A | Y40: N/A | Z40: N/A | AA40: N/A | AB40: N/A | BB40: No | BC40: N/A | BD40: N/A | BE40: N/A | BF40: N/A | BG40: N/A | BH40: N/A | BI40: N/A | BJ40: N/A | BK40: N/A | BL40: N/A | BM40: N/A | BN40: N/A | BO40: N/A | BP40: N/A | BQ40: N/A | BR40: N/A | BS40: N/A | BT40: N/A | BU40: N/A | BV40: N/A | BW40: N/A | BX40: N/A | BY40: N/A | BZ40: N/A | CA40: N/A | CB40: N/A
A41: Water point at more than 30 minutes | B41: Yes | C41: 23.93145611 | D41: 15.6730406 | E41: 9.49762525 | F41: 2.759323737 | G41: 0.6468483327 | H41: 7.142651399 | I41: 2.010313631 | J41: 0.2745545523 | K41: 0.2462716502 | L41: 0.3330795072 | M41: 26.86501956 | N41: 19.87103158 | O41: 16.23320806 | P41: 15.18654936 | Q41: 7.347023134 | R41: 1.278146002 | S41: 15.04618729 | T41: 19.50209725 | U41: 13.13457965 | V41: 7.917874622 | W41: 19.06147384 | X41: 19.09263007 | Y41: 11.84888954 | Z41: 17.68662133 | AA41: 8.549838967 | AB41: 4.42796149 | BA41: Water point at more than 30 minutes | BB41: Yes | BC41: N/A | BD41: N/A | BE41: N/A | BF41: N/A | BG41: N/A | BH41: N/A | BI41: N/A | BJ41: N/A | BK41: N/A | BL41: N/A | BM41: N/A | BN41: N/A | BO41: N/A | BP41: N/A | BQ41: N/A | BR41: N/A | BS41: N/A | BT41: N/A | BU41: N/A | BV41: N/A | BW41: N/A | BX41: N/A | BY41: N/A | BZ41: N/A | CA41: N/A | CB41: N/A
B42: No | C42: 76.06854389 | D42: 84.3269594 | E42: 90.50237475 | F42: 97.24067626 | G42: 99.35315167 | H42: 92.8573486 | I42: 97.98968637 | J42: 99.72544545 | K42: 99.75372835 | L42: 99.66692049 | M42: 73.13498044 | N42: 80.12896842 | O42: 83.76679194 | P42: 84.81345064 | Q42: 92.65297687 | R42: 98.721854 | S42: 84.95381271 | T42: 80.49790275 | U42: 86.86542035 | V42: 92.08212538 | W42: 80.93852616 | X42: 80.90736993 | Y42: 88.15111046 | Z42: 82.31337867 | AA42: 91.45016103 | AB42: 95.57203851 | BB42: No | BC42: N/A | BD42: N/A | BE42: N/A | BF42: N/A | BG42: N/A | BH42: N/A | BI42: N/A | BJ42: N/A | BK42: N/A | BL42: N/A | BM42: N/A | BN42: N/A | BO42: N/A | BP42: N/A | BQ42: N/A | BR42: N/A | BS42: N/A | BT42: N/A | BU42: N/A | BV42: N/A | BW42: N/A | BX42: N/A | BY42: N/A | BZ42: N/A | CA42: N/A | CB42: N/A
A43: Water source available when needed | B43: Yes | C43: N/A | D43: N/A | E43: N/A | F43: N/A | G43: N/A | H43: N/A | I43: N/A | J43: N/A | K43: N/A | L43: N/A | M43: N/A | N43: N/A | O43: N/A | P43: N/A | Q43: N/A | R43: N/A | S43: N/A | T43: N/A | U43: N/A | V43: N/A | W43: N/A | X43: N/A | Y43: N/A | Z43: N/A | AA43: N/A | AB43: N/A | BA43: Water source available when needed | BB43: Yes | BC43: N/A | BD43: N/A | BE43: N/A | BF43: N/A | BG43: N/A | BH43: N/A | BI43: N/A | BJ43: N/A | BK43: N/A | BL43: N/A | BM43: N/A | BN43: N/A | BO43: N/A | BP43: N/A | BQ43: N/A | BR43: N/A | BS43: N/A | BT43: N/A | BU43: N/A | BV43: N/A | BW43: N/A | BX43: N/A | BY43: N/A | BZ43: N/A | CA43: N/A | CB43: N/A
B44: No | C44: N/A | D44: N/A | E44: N/A | F44: N/A | G44: N/A | H44: N/A | I44: N/A | J44: N/A | K44: N/A | L44: N/A | M44: N/A | N44: N/A | O44: N/A | P44: N/A | Q44: N/A | R44: N/A | S44: N/A | T44: N/A | U44: N/A | V44: N/A | W44: N/A | X44: N/A | Y44: N/A | Z44: N/A | AA44: N/A | AB44: N/A | BB44: No | BC44: N/A | BD44: N/A | BE44: N/A | BF44: N/A | BG44: N/A | BH44: N/A | BI44: N/A | BJ44: N/A | BK44: N/A | BL44: N/A | BM44: N/A | BN44: N/A | BO44: N/A | BP44: N/A | BQ44: N/A | BR44: N/A | BS44: N/A | BT44: N/A | BU44: N/A | BV44: N/A | BW44: N/A | BX44: N/A | BY44: N/A | BZ44: N/A | CA44: N/A | CB44: N/A
A45: Improved water source available when needed | B45: Yes | C45: N/A | D45: N/A | E45: N/A | F45: N/A | G45: N/A | H45: N/A | I45: N/A | J45: N/A | K45: N/A | L45: N/A | M45: N/A | N45: N/A | O45: N/A | P45: N/A | Q45: N/A | R45: N/A | S45: N/A | T45: N/A | U45: N/A | V45: N/A | W45: N/A | X45: N/A | Y45: N/A | Z45: N/A | AA45: N/A | AB45: N/A | BA45: Improved water source available when needed | BB45: Yes | BC45: N/A | BD45: N/A | BE45: N/A | BF45: N/A | BG45: N/A | BH45: N/A | BI45: N/A | BJ45: N/A | BK45: N/A | BL45: N/A | BM45: N/A | BN45: N/A | BO45: N/A | BP45: N/A | BQ45: N/A | BR45: N/A | BS45: N/A | BT45: N/A | BU45: N/A | BV45: N/A | BW45: N/A | BX45: N/A | BY45: N/A | BZ45: N/A | CA45: N/A | CB45: N/A
B46: No | C46: N/A | D46: N/A | E46: N/A | F46: N/A | G46: N/A | H46: N/A | I46: N/A | J46: N/A | K46: N/A | L46: N/A | M46: N/A | N46: N/A | O46: N/A | P46: N/A | Q46: N/A | R46: N/A | S46: N/A | T46: N/A | U46: N/A | V46: N/A | W46: N/A | X46: N/A | Y46: N/A | Z46: N/A | AA46: N/A | AB46: N/A | BB46: No | BC46: N/A | BD46: N/A | BE46: N/A | BF46: N/A | BG46: N/A | BH46: N/A | BI46: N/A | BJ46: N/A | BK46: N/A | BL46: N/A | BM46: N/A | BN46: N/A | BO46: N/A | BP46: N/A | BQ46: N/A | BR46: N/A | BS46: N/A | BT46: N/A | BU46: N/A | BV46: N/A | BW46: N/A | BX46: N/A | BY46: N/A | BZ46: N/A | CA46: N/A | CB46: N/A
A47: Microbiological quality at point of collection | B47: Not contaminated (No E. coli in 100 mL) | C47: N/A | D47: N/A | E47: N/A | F47: N/A | G47: N/A | H47: N/A | I47: N/A | J47: N/A | K47: N/A | L47: N/A | M47: N/A | N47: N/A | O47: N/A | P47: N/A | Q47: N/A | R47: N/A | S47: N/A | T47: N/A | U47: N/A | V47: N/A | W47: N/A | X47: N/A | Y47: N/A | Z47: N/A | AA47: N/A | AB47: N/A | BA47: Microbiological quality at point of collection | BB47: Not contaminated (No E. coli in 100 mL) | BC47: N/A | BD47: N/A | BE47: N/A | BF47: N/A | BG47: N/A | BH47: N/A | BI47: N/A | BJ47: N/A | BK47: N/A | BL47: N/A | BM47: N/A | BN47: N/A | BO47: N/A | BP47: N/A | BQ47: N/A | BR47: N/A | BS47: N/A | BT47: N/A | BU47: N/A | BV47: N/A | BW47: N/A | BX47: N/A | BY47: N/A | BZ47: N/A | CA47: N/A | CB47: N/A
B48: Contaminated (E. coli detected in 100 mL) | C48: N/A | D48: N/A | E48: N/A | F48: N/A | G48: N/A | H48: N/A | I48: N/A | J48: N/A | K48: N/A | L48: N/A | M48: N/A | N48: N/A | O48: N/A | P48: N/A | Q48: N/A | R48: N/A | S48: N/A | T48: N/A | U48: N/A | V48: N/A | W48: N/A | X48: N/A | Y48: N/A | Z48: N/A | AA48: N/A | AB48: N/A | BB48: Contaminated (E. coli detected in 100 mL) | BC48: N/A | BD48: N/A | BE48: N/A | BF48: N/A | BG48: N/A | BH48: N/A | BI48: N/A | BJ48: N/A | BK48: N/A | BL48: N/A | BM48: N/A | BN48: N/A | BO48: N/A | BP48: N/A | BQ48: N/A | BR48: N/A | BS48: N/A | BT48: N/A | BU48: N/A | BV48: N/A | BW48: N/A | BX48: N/A | BY48: N/A | BZ48: N/A | CA48: N/A | CB48: N/A
B49: Highly contaminated (>100 CFU/100 mL) | C49: N/A | D49: N/A | E49: N/A | F49: N/A | G49: N/A | H49: N/A | I49: N/A | J49: N/A | K49: N/A | L49: N/A | M49: N/A | N49: N/A | O49: N/A | P49: N/A | Q49: N/A | R49: N/A | S49: N/A | T49: N/A | U49: N/A | V49: N/A | W49: N/A | X49: N/A | Y49: N/A | Z49: N/A | AA49: N/A | AB49: N/A | BB49: Highly contaminated (>100 CFU/100 mL) | BC49: N/A | BD49: N/A | BE49: N/A | BF49: N/A | BG49: N/A | BH49: N/A | BI49: N/A | BJ49: N/A | BK49: N/A | BL49: N/A | BM49: N/A | BN49: N/A | BO49: N/A | BP49: N/A | BQ49: N/A | BR49: N/A | BS49: N/A | BT49: N/A | BU49: N/A | BV49: N/A | BW49: N/A | BX49: N/A | BY49: N/A | BZ49: N/A | CA49: N/A | CB49: N/A
A50: Microbiological quality of improved water sources at point of collection | B50: Not contaminated (No E. coli in 100 mL) | C50: N/A | D50: N/A | E50: N/A | F50: N/A | G50: N/A | H50: N/A | I50: N/A | J50: N/A | K50: N/A | L50: N/A | M50: N/A | N50: N/A | O50: N/A | P50: N/A | Q50: N/A | R50: N/A | S50: N/A | T50: N/A | U50: N/A | V50: N/A | W50: N/A | X50: N/A | Y50: N/A | Z50: N/A | AA50: N/A | AB50: N/A | BA50: Microbiological quality of improved water sources at point of collection | BB50: Not contaminated (No E. coli in 100 mL) | BC50: N/A | BD50: N/A | BE50: N/A | BF50: N/A | BG50: N/A | BH50: N/A | BI50: N/A | BJ50: N/A | BK50: N/A | BL50: N/A | BM50: N/A | BN50: N/A | BO50: N/A | BP50: N/A | BQ50: N/A | BR50: N/A | BS50: N/A | BT50: N/A | BU50: N/A | BV50: N/A | BW50: N/A | BX50: N/A | BY50: N/A | BZ50: N/A | CA50: N/A | CB50: N/A
B51: Contaminated (E. coli detected in 100 mL) | C51: N/A | D51: N/A | E51: N/A | F51: N/A | G51: N/A | H51: N/A | I51: N/A | J51: N/A | K51: N/A | L51: N/A | M51: N/A | N51: N/A | O51: N/A | P51: N/A | Q51: N/A | R51: N/A | S51: N/A | T51: N/A | U51: N/A | V51: N/A | W51: N/A | X51: N/A | Y51: N/A | Z51: N/A | AA51: N/A | AB51: N/A | BB51: Contaminated (E. coli detected in 100 mL) | BC51: N/A | BD51: N/A | BE51: N/A | BF51: N/A | BG51: N/A | BH51: N/A | BI51: N/A | BJ51: N/A | BK51: N/A | BL51: N/A | BM51: N/A | BN51: N/A | BO51: N/A | BP51: N/A | BQ51: N/A | BR51: N/A | BS51: N/A | BT51: N/A | BU51: N/A | BV51: N/A | BW51: N/A | BX51: N/A | BY51: N/A | BZ51: N/A | CA51: N/A | CB51: N/A
B52: Highly contaminated (>100 CFU/100 mL) | C52: N/A | D52: N/A | E52: N/A | F52: N/A | G52: N/A | H52: N/A | I52: N/A | J52: N/A | K52: N/A | L52: N/A | M52: N/A | N52: N/A | O52: N/A | P52: N/A | Q52: N/A | R52: N/A | S52: N/A | T52: N/A | U52: N/A | V52: N/A | W52: N/A | X52: N/A | Y52: N/A | Z52: N/A | AA52: N/A | AB52: N/A | BB52: Highly contaminated (>100 CFU/100 mL) | BC52: N/A | BD52: N/A | BE52: N/A | BF52: N/A | BG52: N/A | BH52: N/A | BI52: N/A | BJ52: N/A | BK52: N/A | BL52: N/A | BM52: N/A | BN52: N/A | BO52: N/A | BP52: N/A | BQ52: N/A | BR52: N/A | BS52: N/A | BT52: N/A | BU52: N/A | BV52: N/A | BW52: N/A | BX52: N/A | BY52: N/A | BZ52: N/A | CA52: N/A | CB52: N/A
A53: Microbiological quality of piped on premises at point of collection | B53: Not contaminated (No E. coli in 100 mL) | C53: N/A | D53: N/A | E53: N/A | F53: N/A | G53: N/A | H53: N/A | I53: N/A | J53: N/A | K53: N/A | L53: N/A | M53: N/A | N53: N/A | O53: N/A | P53: N/A | Q53: N/A | R53: N/A | S53: N/A | T53: N/A | U53: N/A | V53: N/A | W53: N/A | X53: N/A | Y53: N/A | Z53: N/A | AA53: N/A | AB53: N/A | BA53: Microbiological quality of piped on premises at point of collection | BB53: Not contaminated (No E. coli in 100 mL) | BC53: N/A | BD53: N/A | BE53: N/A | BF53: N/A | BG53: N/A | BH53: N/A | BI53: N/A | BJ53: N/A | BK53: N/A | BL53: N/A | BM53: N/A | BN53: N/A | BO53: N/A | BP53: N/A | BQ53: N/A | BR53: N/A | BS53: N/A | BT53: N/A | BU53: N/A | BV53: N/A | BW53: N/A | BX53: N/A | BY53: N/A | BZ53: N/A | CA53: N/A | CB53: N/A
B54: Contaminated (E. coli detected in 100 mL) | C54: N/A | D54: N/A | E54: N/A | F54: N/A | G54: N/A | H54: N/A | I54: N/A | J54: N/A | K54: N/A | L54: N/A | M54: N/A | N54: N/A | O54: N/A | P54: N/A | Q54: N/A | R54: N/A | S54: N/A | T54: N/A | U54: N/A | V54: N/A | W54: N/A | X54: N/A | Y54: N/A | Z54: N/A | AA54: N/A | AB54: N/A | BB54: Contaminated (E. coli detected in 100 mL) | BC54: N/A | BD54: N/A | BE54: N/A | BF54: N/A | BG54: N/A | BH54: N/A | BI54: N/A | BJ54: N/A | BK54: N/A | BL54: N/A | BM54: N/A | BN54: N/A | BO54: N/A | BP54: N/A | BQ54: N/A | BR54: N/A | BS54: N/A | BT54: N/A | BU54: N/A | BV54: N/A | BW54: N/A | BX54: N/A | BY54: N/A | BZ54: N/A | CA54: N/A | CB54: N/A
B55: Highly contaminated (>100 CFU/100 mL) | C55: N/A | D55: N/A | E55: N/A | F55: N/A | G55: N/A | H55: N/A | I55: N/A | J55: N/A | K55: N/A | L55: N/A | M55: N/A | N55: N/A | O55: N/A | P55: N/A | Q55: N/A | R55: N/A | S55: N/A | T55: N/A | U55: N/A | V55: N/A | W55: N/A | X55: N/A | Y55: N/A | Z55: N/A | AA55: N/A | AB55: N/A | BB55: Highly contaminated (>100 CFU/100 mL) | BC55: N/A | BD55: N/A | BE55: N/A | BF55: N/A | BG55: N/A | BH55: N/A | BI55: N/A | BJ55: N/A | BK55: N/A | BL55: N/A | BM55: N/A | BN55: N/A | BO55: N/A | BP55: N/A | BQ55: N/A | BR55: N/A | BS55: N/A | BT55: N/A | BU55: N/A | BV55: N/A | BW55: N/A | BX55: N/A | BY55: N/A | BZ55: N/A | CA55: N/A | CB55: N/A
C56: NATIONAL wealth index quintile | H56: URBAN wealth index quintile | M56: RURAL wealth index quintile | R56: SUB-REGIONS: | BA56: Raw numbers of respondents: | BB56: Use of drinking water sources | BC56: NATIONAL wealth index quintile | BH56: URBAN wealth index quintile | BM56: RURAL wealth index quintile | BR56: SUB-REGIONS:
A57: Percentage based on weighted population | C57: Poorest | D57: Poor | E57: Middle | F57: Rich | G57: Richest | H57: Poorest | I57: Poor | J57: Middle | K57: Rich | L57: Richest | M57: Poorest | N57: Poor | O57: Middle | P57: Rich | Q57: Richest | R57: Dakar | S57: Diourbel | T57: Fatick | U57: Kaolack | V57: Kolda | W57: Louga | X57: Matam | Y57: Saint-Louis | Z57: Tambacounda | AA57: Thiès | AB57: Zuguinchor | BA57: Water data, raw numbers (weighted) | BC57: Poorest | BD57: Poor | BE57: Middle | BF57: Rich | BG57: Richest | BH57: Poorest | BI57: Poor | BJ57: Middle | BK57: Rich | BL57: Richest | BM57: Poorest | BN57: Poor | BO57: Middle | BP57: Rich | BQ57: Richest | BR57: Dakar | BS57: Diourbel | BT57: Fatick | BU57: Kaolack | BV57: Kolda | BW57: Louga | BX57: Matam | BY57: Saint-Louis | BZ57: Tambacounda | CA57: Thiès | CB57: Zuguinchor
A58: Source of drinking water | B58: Piped into dwelling | C58: 0.8967601785 | D58: 4.010881312 | E58: 16.78749114 | F58: 44.68140525 | G58: 61.76028863 | H58: 15.60725429 | I58: 44.59159949 | J58: 53.51600754 | K58: 54.18481339 | L58: 77.31270719 | M58: 0.398624208 | N58: 1.103903555 | O58: 3.08387306 | P58: 7.045905803 | Q58: 25.71582053 | R58: 63.31642172 | S58: 24.84674485 | T58: 5.051717191 | U58: 13.64799663 | V58: 2.433537611 | W58: 14.51237372 | X58: 8.669426896 | Y58: 18.97982644 | Z58: 9.292379517 | AA58: 22.7304813 | AB58: 6.517071722
B59: Piped into yard/plot | C59: 3.509439496 | D59: 4.860922989 | E59: 20.27678192 | F59: 32.70876832 | G59: 31.19912784 | H59: 20.98524852 | I59: 27.53329305 | J59: 36.48906845 | K59: 37.96389796 | L59: 20.5214946 | M59: 3.277654121 | N59: 3.681144117 | O59: 4.300590579 | P59: 10.59228908 | Q59: 31.27360957 | R59: 27.36506232 | S59: 23.81596058 | T59: 6.338222343 | U59: 9.774322788 | V59: 3.607584902 | W59: 25.2002022 | X59: 13.28916143 | Y59: 19.67514808 | Z59: 6.190157342 | AA59: 27.22626773 | AB59: 11.54388818
B60: Public tap | C60: 23.59822416 | D60: 29.33396086 | E60: 25.73872373 | F60: 10.81102159 | G60: 3.046969872 | H60: 32.81855204 | I60: 17.11573471 | J60: 4.372433939 | K60: 4.373823614 | L60: 1.408611035 | M60: 21.38633797 | N60: 22.97610796 | O60: 27.26022368 | P60: 32.76082458 | Q60: 13.48707727 | R60: 8.372461956 | S60: 22.46018614 | T60: 24.86041391 | U60: 33.02543725 | V60: 3.119860272 | W60: 21.87075405 | X60: 18.2592982 | Y60: 28.07615715 | Z60: 13.14036352 | AA60: 27.32856136 | AB60: 2.481373175
B61: Open well in dwelling | C61: 2.094476036 | D61: 2.285292433 | E61: 1.804456357 | F61: 0.9060154231 | G61: 0.2476801326 | H61: 4.193080185 | I61: 1.429262142 | J61: 0.6041095095 | K61: 0.3075761472 | L61: 0.2588317577 | M61: 1.874990877 | N61: 1.809884897 | O61: 1.833500828 | P61: 2.005746658 | Q61: 0.2757649472 | R61: 0 | S61: 0.04685932913 | T61: 2.931165369 | U61: 0.6510553515 | V61: 5.961474606 | W61: 0 | X61: 1.071018469 | Y61: 0.1477106142 | Z61: 3.450270118 | AA61: 0.7113771068 | AB61: 8.519309336
B62: Open well in yard/plot | C62: 5.098165229 | D62: 4.42230498 | E62: 4.266291781 | F62: 1.037667393 | G62: 0.673585961 | H62: 6.297791028 | I62: 2.104654876 | J62: 0.6416809354 | K62: 1.051456228 | L62: 0.04207346926 | M62: 5.084202845 | N62: 5.489058867 | O62: 3.73944228 | P62: 3.7116681 | Q62: 1.615401587 | R62: 0 | S62: 0.2443985805 | T62: 0.8426959021 | U62: 0.1613290317 | V62: 17.4000401 | W62: 0.1150057571 | X62: 2.898662206 | Y62: 1.237206571 | Z62: 10.9626269 | AA62: 1.179894017 | AB62: 12.11900459
B63: Open public well | C63: 49.82817492 | D63: 41.80338656 | E63: 22.98234404 | F63: 5.282575622 | G63: 1.286190672 | H63: 13.64148802 | I63: 5.134276796 | J63: 1.989122783 | K63: 0.7048060378 | L63: 0.04415828431 | M63: 52.20745233 | N63: 49.97575723 | O63: 45.61785838 | P63: 33.45837783 | Q63: 16.97168151 | R63: 0.5100534519 | S63: 19.81757908 | T63: 52.85193611 | U63: 31.83872529 | V63: 59.71096067 | W63: 20.93070022 | X63: 29.03568821 | Y63: 16.07190064 | Z63: 39.62022784 | AA63: 17.62492516 | AB63: 46.44222022
B64: Protected well in dwelling | C64: 0.8002011625 | D64: 1.416614915 | E64: 0.6203618969 | F64: 1.16650473 | G64: 0.7549135803 | H64: 1.014606557 | I64: 1.143502116 | J64: 0.5782677481 | K64: 0.7485962326 | L64: 0 | M64: 0.8409817679 | N64: 1.011573352 | O64: 1.552904289 | P64: 0.3810210015 | Q64: 1.952241409 | R64: 0 | S64: 0.861028127 | T64: 0.2991361364 | U64: 0.9416940327 | V64: 0.804673878 | W64: 1.213203333 | X64: 2.475947188 | Y64: 0.3661364355 | Z64: 3.099973067 | AA64: 1.418242896 | AB64: 1.933580202
B65: Protected well in yard/plot | C65: 0.2578513868 | D65: 0.4476079546 | E65: 0.8408031318 | F65: 0.8992780365 | G65: 0.0154456552 | H65: 0.6713176166 | I65: 0.3310026091 | J65: 0.1722994232 | K65: 0 | L65: 0.03534252644 | M65: 0.1145761514 | N65: 0.3325516804 | O65: 0.4716098524 | P65: 0.8049159423 | Q65: 1.711578439 | R65: 0.01234507279 | S65: 0.5239608373 | T65: 0.0614959636 | U65: 0.3657792086 | V65: 1.030519541 | W65: 0.1015621922 | X65: 3.430725042 | Y65: 0 | Z65: 1.129653843 | AA65: 0.6183362488 | AB65: 0.2639923364
B66: Protected public well | C66: 13.54702771 | D66: 9.317164404 | E66: 5.102006247 | F66: 1.71085884 | G66: 0.3631753954 | H66: 4.708096199 | I66: 0.5476898366 | J66: 1.637009672 | K66: 0.5126146933 | L66: 0.05444362374 | M66: 14.44278882 | N66: 12.71592311 | O66: 9.273542019 | P66: 7.068374447 | Q66: 4.028170531 | R66: 0.3225800129 | S66: 7.064952445 | T66: 6.651986374 | U66: 9.593660409 | V66: 5.8213001 | W66: 15.96262406 | X66: 18.22219017 | Y66: 7.119245233 | Z66: 8.252345222 | AA66: 0.8157463053 | AB66: 10.12563835
B67: Spring | C67: 0.04977479317 | D67: 0.6937539628 | E67: 0 | F67: 0 | G67: 0.04411990796 | H67: 0 | I67: 0 | J67: 0 | K67: 0 | L67: 0.1009545399 | M67: 0 | N67: 0.2890875219 | O67: 1.020961168 | P67: 0 | Q67: 0 | R67: 0 | S67: 0 | T67: 0 | U67: 0 | V67: 0.1100483207 | W67: 0 | X67: 0 | Y67: 0 | Z67: 2.234387177 | AA67: 0 | AB67: 0
B68: River, stream | C68: 0.2026357964 | D68: 1.166101641 | E68: 1.563275688 | F68: 0.76560771 | G68: 0.1328139928 | H68: 0 | I68: 0 | J68: 0 | K68: 0 | L68: 0 | M68: 0.2414610656 | N68: 0.3859644816 | O68: 1.599099447 | P68: 2.160468965 | Q68: 2.409535536 | R68: 0 | S68: 0 | T68: 0 | U68: 0 | V68: 0 | W68: 0 | X68: 1.969249013 | Y68: 8.309423464 | Z68: 2.114847849 | AA68: 0 | AB68: 0
B69: Pond, lake | C69: 0.1172691201 | D69: 0.2102506823 | E69: 0 | F69: 0 | G69: 0 | H69: 0 | I69: 0 | J69: 0 | K69: 0 | L69: 0 | M69: 0.1309298486 | N69: 0.2290432223 | O69: 0.2175693824 | P69: 0 | Q69: 0 | R69: 0 | S69: 0 | T69: 0.1112307003 | U69: 0 | V69: 0 | W69: 0 | X69: 0.6786331672 | Y69: 0 | Z69: 0.5127675986 | AA69: 0 | AB69: 0
B70: Rainwater | C70: 0 | D70: 0 | E70: 0 | F70: 0.01586556905 | G70: 0.1553163753 | H70: 0 | I70: 0.03612482582 | J70: 0 | K70: 0 | L70: 0.03001828633 | M70: 0 | N70: 0 | O70: 0 | P70: 0 | Q70: 0.2546153485 | R70: 0 | S70: 0.3183300349 | T70: 0 | U70: 0 | V70: 0 | W70: 0.04209939885 | X70: 0 | Y70: 0 | Z70: 0 | AA70: 0 | AB70: 0
B71: Tanker truck | C71: 0 | D71: 0.01634782215 | E71: 0 | F71: 0 | G71: 0 | H71: 0 | I71: 0 | J71: 0 | K71: 0 | L71: 0 | M71: 0 | N71: 0 | O71: 0.02882504028 | P71: 0 | Q71: 0 | R71: 0 | S71: 0 | T71: 0 | U71: 0 | V71: 0 | W71: 0.05147507161 | X71: 0 | Y71: 0 | Z71: 0 | AA71: 0 | AB71: 0
B72: Bottled water | C72: 0 | D72: 0.01540948613 | E72: 0.01746407031 | F72: 0.01443150248 | G72: 0.3203719798 | H72: 0.06256553859 | I72: 0.03285955338 | J72: 0 | K72: 0.1524157005 | L72: 0.1913646863 | M72: 0 | N72: 0 | O72: 0 | P72: 0.01040759249 | Q72: 0.3045033226 | R72: 0.1010754669 | S72: 0 | T72: 0 | U72: 0 | V72: 0 | W72: 0 | X72: 0 | Y72: 0.01724536762 | Z72: 0 | AA72: 0.3461678708 | AB72: 0.05392190473
A108: =A1026 -> Senegal
A109: =A1034 -> 2005
A110: Use of sanitation facilities
A111: by wealth quintile and sub-national region
A112: Notes:
A113: WHO/UNICEF JMP customised wealth index excludes water,
A114: sanitation and hygiene assets.
A115: Survey used for analysis: | B115: =A1025 -> DHS05
A120: Use of sanitation facilities | C120: NATIONAL wealth index quintile | H120: URBAN wealth index quintile | M120: RURAL wealth index quintile | R120: SUB-REGIONS: | BA120: Raw numbers of respondents: | BB120: Use of sanitation facilities | BC120: NATIONAL wealth index quintile | BH120: URBAN wealth index quintile | BM120: RURAL wealth index quintile | BR120: SUB-REGIONS:
A121: Weighted percentage (used in graphs) | C121: Poorest | D121: Poor | E121: Middle | F121: Rich | G121: Richest | H121: Poorest | I121: Poor | J121: Middle | K121: Rich | L121: Richest | M121: Poorest | N121: Poor | O121: Middle | P121: Rich | Q121: Richest | R121: Dakar | S121: Diourbel | T121: Fatick | U121: Kaolack | V121: Kolda | W121: Louga | X121: Matam | Y121: Saint-Louis | Z121: Tambacounda | AA121: Thiès | AB121: Zuguinchor | BA121: Sanitation data, raw numbers (weighted) | BC121: Poorest | BD121: Poor | BE121: Middle | BF121: Rich | BG121: Richest | BH121: Poorest | BI121: Poor | BJ121: Middle | BK121: Rich | BL121: Richest | BM121: Poorest | BN121: Poor | BO121: Middle | BP121: Rich | BQ121: Richest | BR121: Dakar | BS121: Diourbel | BT121: Fatick | BU121: Kaolack | BV121: Kolda | BW121: Louga | BX121: Matam | BY121: Saint-Louis | BZ121: Tambacounda | CA121: Thiès | CB121: Zuguinchor
A122: Sanitation | B122: Improved | C122: 8.13406286 | D122: 17.20027729 | E122: 46.44232281 | F122: 72.55132466 | G122: 86.72118725 | H122: 44.82457018 | I122: 70.32965487 | J122: 75.07348964 | K122: 84.74426135 | L122: 92.66731858 | M122: 6.181186627 | N122: 11.35866475 | O122: 14.16669484 | P122: 31.8856252 | Q122: 61.53864373 | R122: 81.16434038 | S122: 45.88962438 | T122: 28.09094398 | U122: 28.02689208 | V122: 8.438545263 | W122: 37.91514116 | X122: 29.28985776 | Y122: 50.00707983 | Z122: 19.72987853 | AA122: 58.55015484 | AB122: 27.7357689 | BA122: Sanitation | BB122: Improved | BC122: 1072.455746 | BD122: 2266.328483 | BE122: 6123.679865 | BF122: 9560.222445 | BG122: 11435.13956 | BH122: 2584.638405 | BI122: 4074.205756 | BJ122: 4311.205388 | BK122: 4886.385596 | BL122: 5339.228282 | BM122: 458.635899 | BN122: 841.998764 | BO122: 1066.515121 | BP122: 2325.800065 | BQ122: 4569.212827 | BR122: 12301.0278 | BS122: 3140.641923 | BT122: 1058.967066 | BU122: 2168.81225 | BV122: 457.680945 | BW122: 1562.835029 | BX122: 722.716291 | BY122: 2139.85335 | BZ122: 849.019855 | CA122: 5285.341711 | CB122: 770.929883
B123: Not Improved | C123: 91.86593714 | D123: 82.79972271 | E123: 53.55767719 | F123: 27.44867534 | G123: 13.27881275 | H123: 55.17542982 | I123: 29.67034513 | J123: 24.92651036 | K123: 15.25573865 | L123: 7.332681421 | M123: 93.81881337 | N123: 88.64133525 | O123: 85.83330516 | P123: 68.1143748 | Q123: 38.46135627 | R123: 18.83565962 | S123: 54.11037562 | T123: 71.90905602 | U123: 71.97310792 | V123: 91.56145474 | W123: 62.08485884 | X123: 70.71014224 | Y123: 49.99292017 | Z123: 80.27012147 | AA123: 41.44984516 | AB123: 72.2642311 | BB123: Not Improved | BC123: 12112.29294 | BD123: 10909.78748 | BE123: 7061.879113 | BF123: 3616.962796 | BG123: 1750.957083 | BH123: 3181.48137 | BI123: 1718.806827 | BJ123: 1431.441462 | BK123: 879.651559 | BL123: 422.488323 | BM123: 6961.23227 | BN123: 6570.833487 | BO123: 6461.811937 | BP123: 4968.396146 | BQ123: 2855.736035 | BR123: 2854.676962 | BS123: 3703.262261 | BT123: 2710.813924 | BU123: 5569.513653 | BV123: 4966.013907 | BW123: 2559.093523 | BX123: 1744.746327 | BY123: 2139.247444 | BZ123: 3454.199011 | CA123: 3741.691139 | CB123: 2008.621265
A124: Sanitation ladder | B124: Basic | C124: 5.275273284 | D124: 11.7259848 | E124: 31.44263622 | F124: 50.38950448 | G124: 73.54866442 | H124: 27.03585655 | I124: 41.62022682 | J124: 53.0798037 | K124: 67.64699175 | L124: 80.67837549 | M124: 3.889310206 | N124: 6.940629152 | O124: 10.06641315 | P124: 24.82082547 | Q124: 50.936807 | R124: 54.76937364 | S124: 40.9178201 | T124: 18.32500078 | U124: 20.66345936 | V124: 6.55864861 | W124: 34.79344709 | X124: 24.56486745 | Y124: 38.1669918 | Z124: 18.25290308 | AA124: 44.69420525 | AB124: 17.50372158 | BA124: Sanitation ladder | BB124: Basic | BC124: 695.531525 | BD124: 1539.32809 | BE124: 4138.948911 | BF124: 6639.918347 | BG124: 9689.174684 | BH124: 1558.919871 | BI124: 2411.064977 | BJ124: 3048.185675 | BK124: 3893.389816 | BL124: 4647.101679 | BM124: 288.58169 | BN124: 511.859011 | BO124: 756.764455 | BP124: 1805.002511 | BQ124: 3782.031872 | BR124: 8299.422889 | BS124: 2791.693614 | BT124: 690.812396 | BU124: 1588.784096 | BV124: 355.721087 | BW124: 1434.16103 | BX124: 605.715537 | BY124: 1630.043055 | BZ124: 785.462369 | CA124: 4034.56059 | CB124: 486.524894
B125: Limited | C125: 2.858789576 | D125: 5.167624146 | E125: 14.90990383 | F125: 22.16182018 | G125: 13.1601566 | H125: 17.78871362 | I125: 28.70942804 | J125: 21.99368594 | K125: 17.0692107 | L125: 11.9868008 | M125: 2.291876421 | N125: 3.9611671 | O125: 3.979141978 | P125: 6.858109699 | Q125: 10.60183672 | R125: 26.39210334 | S125: 4.803508989 | T125: 9.765943193 | U125: 6.900380628 | V125: 1.879896653 | W125: 3.121694066 | X125: 4.676732548 | Y125: 11.74314131 | Z125: 1.476975445 | AA125: 13.85594959 | AB125: 10.23204733 | BB125: Limited | BC125: 376.924221 | BD125: 678.379611 | BE125: 1962.664002 | BF125: 2920.304098 | BG125: 1733.696419 | BH125: 1025.718534 | BI125: 1663.140779 | BJ125: 1263.019713 | BK125: 982.410147 | BL125: 690.443775 | BM125: 170.054209 | BN125: 292.129003 | BO125: 299.140634 | BP125: 498.730602 | BQ125: 787.180955 | BR125: 3999.301288 | BS125: 327.728245 | BT125: 368.15467 | BU125: 530.560484 | BV125: 101.959858 | BW125: 128.673999 | BX125: 115.317926 | BY125: 501.528285 | BZ125: 63.557486 | CA125: 1250.781121 | CB125: 284.404989
B126: Unimproved | C126: 38.5098614 | D126: 45.05894072 | E126: 37.50894855 | F126: 25.71862263 | G126: 12.80844055 | H126: 40.60361466 | I126: 26.89694696 | J126: 23.96243622 | K126: 14.88039885 | L126: 7.334823707 | M126: 38.62883924 | N126: 40.48995886 | O126: 45.04007005 | P126: 37.95025962 | Q126: 33.04983634 | R126: 17.00709764 | S126: 22.67396124 | T126: 18.76709939 | U126: 37.71374705 | V126: 79.70802291 | W126: 26.74740879 | X126: 43.32806098 | Y126: 32.9558931 | Z126: 49.13963256 | AA126: 17.36024061 | AB126: 60.86689479 | BB126: Unimproved | BC126: 5077.428445 | BD126: 5915.110273 | BE126: 4937.487451 | BF126: 3388.990545 | BG126: 1687.361951 | BH126: 2341.253054 | BI126: 1558.143522 | BJ126: 1376.078089 | BK126: 856.434142 | BL126: 422.488323 | BM126: 2866.208947 | BN126: 2986.062192 | BO126: 3385.985015 | BP126: 2759.791934 | BQ126: 2453.933447 | BR126: 2577.153728 | BS126: 1546.972753 | BT126: 707.478545 | BU126: 2899.756545 | BV126: 4323.119935 | BW126: 1102.50908 | BX126: 1068.374571 | BY126: 1407.486473 | BZ126: 2114.585939 | CA126: 1567.114623 | CB126: 1691.826473
B127: Open defecation | C127: 53.35607574 | D127: 38.04745034 | E127: 16.13851141 | F127: 1.730052715 | G127: 0.4827384349 | H127: 14.57181517 | I127: 2.773398171 | J127: 0.964074136 | K127: 0.4033987066 | L127: 0 | M127: 55.18997413 | N127: 48.60824488 | O127: 40.91437482 | P127: 30.37080521 | Q127: 5.411519937 | R127: 1.831425377 | S127: 31.60470967 | T127: 53.14195664 | U127: 34.72241297 | V127: 11.85343183 | W127: 35.33745005 | X127: 27.43033902 | Y127: 17.13397379 | Z127: 31.13048891 | AA127: 24.08960455 | AB127: 11.3973363 | BB127: Open defecation | BC127: 7034.864495 | BD127: 4994.677211 | BE127: 2124.391662 | BF127: 227.972251 | BG127: 63.595132 | BH127: 840.228316 | BI127: 160.663305 | BJ127: 55.363373 | BK127: 23.217417 | BL127: 0 | BM127: 4095.023323 | BN127: 3584.771295 | BO127: 3075.826922 | BP127: 2208.604212 | BQ127: 401.802588 | BR127: 277.523234 | BS127: 2156.289508 | BT127: 2003.335379 | BU127: 2669.757108 | BV127: 642.893972 | BW127: 1456.584443 | BX127: 676.371756 | BY127: 731.760971 | BZ127: 1339.613072 | CA127: 2174.576516 | CB127: 316.794792
A128: Shared among Improved Sanitation | B128: Yes | C128: 35.14589972 | D128: 30.58922556 | E128: 32.16631455 | F128: 30.54640323 | G128: 15.17741383 | H128: 39.68518505 | I128: 40.82122697 | J128: 29.29620835 | K128: 20.14869672 | L128: 12.93560459 | M128: 37.07825955 | N128: 36.33499479 | O128: 28.33025782 | P128: 21.64880121 | Q128: 17.22793367 | R128: 32.51801756 | S128: 10.50605721 | T128: 34.76545039 | U128: 25.0341775 | V128: 22.27749683 | W128: 8.233370549 | X128: 15.99342221 | Y128: 23.52857142 | Z128: 7.48598347 | AA128: 23.6650947 | AB128: 36.89116161 | BA128: Shared among improved sanitation facilities | BB128: Yes | BC128: N/A | BD128: N/A | BE128: N/A | BF128: N/A | BG128: N/A | BH128: N/A | BI128: N/A | BJ128: N/A | BK128: N/A | BL128: N/A | BM128: N/A | BN128: N/A | BO128: N/A | BP128: N/A | BQ128: N/A | BR128: N/A | BS128: N/A | BT128: N/A | BU128: N/A | BV128: N/A | BW128: N/A | BX128: N/A | BY128: N/A | BZ128: N/A | CA128: N/A | CB128: N/A
B129: No | C129: 64.85410028 | D129: 69.41077444 | E129: 67.83368545 | F129: 69.45359677 | G129: 84.82258617 | H129: 60.31481495 | I129: 59.17877303 | J129: 70.70379165 | K129: 79.85130328 | L129: 87.06439541 | M129: 62.92174045 | N129: 63.66500521 | O129: 71.66974218 | P129: 78.35119879 | Q129: 82.77206633 | R129: 67.48198244 | S129: 89.49394279 | T129: 65.23454961 | U129: 74.9658225 | V129: 77.72250317 | W129: 91.76662945 | X129: 84.00657779 | Y129: 76.47142858 | Z129: 92.51401653 | AA129: 76.3349053 | AB129: 63.10883839 | BB129: No | BC129: N/A | BD129: N/A | BE129: N/A | BF129: N/A | BG129: N/A | BH129: N/A | BI129: N/A | BJ129: N/A | BK129: N/A | BL129: N/A | BM129: N/A | BN129: N/A | BO129: N/A | BP129: N/A | BQ129: N/A | BR129: N/A | BS129: N/A | BT129: N/A | BU129: N/A | BV129: N/A | BW129: N/A | BX129: N/A | BY129: N/A | BZ129: N/A | CA129: N/A | CB129: N/A
A130: Manually calculated ratios | B130: Improved latrines
B131: Other
B132: Other
C133: NATIONAL wealth index quintile | H133: URBAN wealth index quintile | M133: RURAL wealth index quintile | R133: SUB-REGIONS: | BA133: Raw numbers of respondents: | BB133: Use of sanitation facilities | BC133: NATIONAL wealth index quintile | BH133: URBAN wealth index quintile | BM133: RURAL wealth index quintile | BR133: SUB-REGIONS:
A134: Percentage based on weighted population | C134: Poorest | D134: Poor | E134: Middle | F134: Rich | G134: Richest | H134: Poorest | I134: Poor | J134: Middle | K134: Rich | L134: Richest | M134: Poorest | N134: Poor | O134: Middle | P134: Rich | Q134: Richest | R134: Dakar | S134: Diourbel | T134: Fatick | U134: Kaolack | V134: Kolda | W134: Louga | X134: Matam | Y134: Saint-Louis | Z134: Tambacounda | AA134: Thiès | AB134: Zuguinchor | BA134: Sanitation data, raw numbers (weighted) | BC134: Poorest | BD134: Poor | BE134: Middle | BF134: Rich | BG134: Richest | BH134: Poorest | BI134: Poor | BJ134: Middle | BK134: Rich | BL134: Richest | BM134: Poorest | BN134: Poor | BO134: Middle | BP134: Rich | BQ134: Richest | BR134: Dakar | BS134: Diourbel | BT134: Fatick | BU134: Kaolack | BV134: Kolda | BW134: Louga | BX134: Matam | BY134: Saint-Louis | BZ134: Tambacounda | CA134: Thiès | CB134: Zuguinchor
A135: Sanitation type | B135: Sewer connection | C135: 0 | D135: 0.01758889346 | E135: 2.512756778 | F135: 5.559197382 | G135: 27.53547621 | H135: 3.1480233 | I135: 7.260636171 | J135: 6.686838404 | K135: 21.93218958 | L135: 40.16863362 | M135: 0 | N135: 0 | O135: 0 | P135: 0.03177228762 | Q135: 1.745067372 | R135: 27.06335374 | S135: 0.4657874825 | T135: 0.02202260562 | U135: 2.819850569 | V135: 0.0516793086 | W135: 0 | X135: 0.3646581689 | Y135: 4.700915699 | Z135: 0 | AA135: 1.244431563 | AB135: 0.6902708739 | BA135: Sanitation type | BB135: Sewer connection | BC135: N/A | BD135: N/A | BE135: N/A | BF135: N/A | BG135: N/A | BH135: N/A | BI135: N/A | BJ135: N/A | BK135: N/A | BL135: N/A | BM135: N/A | BN135: N/A | BO135: N/A | BP135: N/A | BQ135: N/A | BR135: N/A | BS135: N/A | BT135: N/A | BU135: N/A | BV135: N/A | BW135: N/A | BX135: N/A | BY135: N/A | BZ135: N/A | CA135: N/A | CB135: N/A
B136: Septic tank connection | C136: 1.868776356 | D136: 7.282643189 | E136: 28.8719259 | F136: 54.43882776 | G136: 52.44671843 | H136: 29.8681854 | I136: 51.2973825 | J136: 57.96856859 | K136: 55.41705062 | L136: 47.72764083 | M136: 1.040595564 | N136: 3.76557272 | O136: 4.983228334 | P136: 15.00544522 | Q136: 44.55131989 | R136: 47.69261902 | S136: 39.31558343 | T136: 17.94093728 | U136: 16.22282862 | V136: 3.283809651 | W136: 21.13551732 | X136: 7.30133882 | Y136: 22.93528193 | Z136: 10.7685756 | AA136: 47.54716138 | AB136: 10.25761088 | BB136: Septic tank connection | BC136: N/A | BD136: N/A | BE136: N/A | BF136: N/A | BG136: N/A | BH136: N/A | BI136: N/A | BJ136: N/A | BK136: N/A | BL136: N/A | BM136: N/A | BN136: N/A | BO136: N/A | BP136: N/A | BQ136: N/A | BR136: N/A | BS136: N/A | BT136: N/A | BU136: N/A | BV136: N/A | BW136: N/A | BX136: N/A | BY136: N/A | BZ136: N/A | CA136: N/A | CB136: N/A
B137: Improved latrines | C137: 6.265286504 | D137: 9.900045213 | E137: 15.05764014 | F137: 12.55329952 | G137: 6.738992606 | H137: 11.80836147 | I137: 11.77163619 | J137: 10.41808265 | K137: 7.395021148 | L137: 4.771044132 | M137: 5.140591063 | N137: 7.593092032 | O137: 9.183466508 | P137: 16.84840769 | Q137: 15.24225647 | R137: 6.408367623 | S137: 6.108253473 | T137: 10.12798409 | U137: 8.9842129 | V137: 5.103056303 | W137: 16.77962384 | X137: 21.62386077 | Y137: 22.3708822 | Z137: 8.961302922 | AA137: 9.758561896 | AB137: 16.78788715 | BB137: Improved latrines | BC137: N/A | BD137: N/A | BE137: N/A | BF137: N/A | BG137: N/A | BH137: N/A | BI137: N/A | BJ137: N/A | BK137: N/A | BL137: N/A | BM137: N/A | BN137: N/A | BO137: N/A | BP137: N/A | BQ137: N/A | BR137: N/A | BS137: N/A | BT137: N/A | BU137: N/A | BV137: N/A | BW137: N/A | BX137: N/A | BY137: N/A | BZ137: N/A | CA137: N/A | CB137: N/A
B138: Unimproved facilities | C138: 38.5098614 | D138: 44.8926701 | E138: 37.44617471 | F138: 25.71862263 | G138: 12.79652346 | H138: 40.60361466 | I138: 26.89694696 | J138: 23.96243622 | K138: 14.85308053 | L138: 7.332681421 | M138: 38.62883924 | N138: 40.28233866 | O138: 44.97659293 | P138: 37.83544964 | Q138: 33.04983634 | R138: 17.00451261 | S138: 22.60365884 | T138: 18.76709939 | U138: 37.47265987 | V138: 79.70802291 | W138: 26.74740879 | X138: 43.29851092 | Y138: 32.89210843 | Z138: 49.13963256 | AA138: 17.36024061 | AB138: 60.86689479 | BB138: Unimproved facilities | BC138: N/A | BD138: N/A | BE138: N/A | BF138: N/A | BG138: N/A | BH138: N/A | BI138: N/A | BJ138: N/A | BK138: N/A | BL138: N/A | BM138: N/A | BN138: N/A | BO138: N/A | BP138: N/A | BQ138: N/A | BR138: N/A | BS138: N/A | BT138: N/A | BU138: N/A | BV138: N/A | BW138: N/A | BX138: N/A | BY138: N/A | BZ138: N/A | CA138: N/A | CB138: N/A
B139: Open defecation | C139: 53.35607574 | D139: 37.90705261 | E139: 16.11150248 | F139: 1.730052715 | G139: 0.4822892908 | H139: 14.57181517 | I139: 2.773398171 | J139: 0.964074136 | K139: 0.4026581234 | L139: 0 | M139: 55.18997413 | N139: 48.35899658 | O139: 40.85671223 | P139: 30.27892516 | Q139: 5.411519937 | R139: 1.831147006 | S139: 31.50671678 | T139: 53.14195664 | U139: 34.50044805 | V139: 11.85343183 | W139: 35.33745005 | X139: 27.41163133 | Y139: 17.10081174 | Z139: 31.13048891 | AA139: 24.08960455 | AB139: 11.3973363 | BB139: Open defecation | BC139: N/A | BD139: N/A | BE139: N/A | BF139: N/A | BG139: N/A | BH139: N/A | BI139: N/A | BJ139: N/A | BK139: N/A | BL139: N/A | BM139: N/A | BN139: N/A | BO139: N/A | BP139: N/A | BQ139: N/A | BR139: N/A | BS139: N/A | BT139: N/A | BU139: N/A | BV139: N/A | BW139: N/A | BX139: N/A | BY139: N/A | BZ139: N/A | CA139: N/A | CB139: N/A
A140: Septic tank emptying practices | B140: Not emptied/treated and disposed in situ | C140: N/A | D140: N/A | E140: N/A | F140: N/A | G140: N/A | H140: N/A | I140: N/A | J140: N/A | K140: N/A | L140: N/A | M140: N/A | N140: N/A | O140: N/A | P140: N/A | Q140: N/A | R140: N/A | S140: N/A | T140: N/A | U140: N/A | V140: N/A | W140: N/A | X140: N/A | Y140: N/A | Z140: N/A | AA140: N/A | AB140: N/A | BA140: Septic tank emptying practices | BB140: Not emptied/treated and disposed in situ | BC140: N/A | BD140: N/A | BE140: N/A | BF140: N/A | BG140: N/A | BH140: N/A | BI140: N/A | BJ140: N/A | BK140: N/A | BL140: N/A | BM140: N/A | BN140: N/A | BO140: N/A | BP140: N/A | BQ140: N/A | BR140: N/A | BS140: N/A | BT140: N/A | BU140: N/A | BV140: N/A | BW140: N/A | BX140: N/A | BY140: N/A | BZ140: N/A | CA140: N/A | CB140: N/A
B141: Emptied and buried on site | C141: N/A | D141: N/A | E141: N/A | F141: N/A | G141: N/A | H141: N/A | I141: N/A | J141: N/A | K141: N/A | L141: N/A | M141: N/A | N141: N/A | O141: N/A | P141: N/A | Q141: N/A | R141: N/A | S141: N/A | T141: N/A | U141: N/A | V141: N/A | W141: N/A | X141: N/A | Y141: N/A | Z141: N/A | AA141: N/A | AB141: N/A | BB141: Emptied and buried on site | BC141: N/A | BD141: N/A | BE141: N/A | BF141: N/A | BG141: N/A | BH141: N/A | BI141: N/A | BJ141: N/A | BK141: N/A | BL141: N/A | BM141: N/A | BN141: N/A | BO141: N/A | BP141: N/A | BQ141: N/A | BR141: N/A | BS141: N/A | BT141: N/A | BU141: N/A | BV141: N/A | BW141: N/A | BX141: N/A | BY141: N/A | BZ141: N/A | CA141: N/A | CB141: N/A
B142: Emptied and discharged locally | C142: N/A | D142: N/A | E142: N/A | F142: N/A | G142: N/A | H142: N/A | I142: N/A | J142: N/A | K142: N/A | L142: N/A | M142: N/A | N142: N/A | O142: N/A | P142: N/A | Q142: N/A | R142: N/A | S142: N/A | T142: N/A | U142: N/A | V142: N/A | W142: N/A | X142: N/A | Y142: N/A | Z142: N/A | AA142: N/A | AB142: N/A | BB142: Emptied and discharged locally | BC142: N/A | BD142: N/A | BE142: N/A | BF142: N/A | BG142: N/A | BH142: N/A | BI142: N/A | BJ142: N/A | BK142: N/A | BL142: N/A | BM142: N/A | BN142: N/A | BO142: N/A | BP142: N/A | BQ142: N/A | BR142: N/A | BS142: N/A | BT142: N/A | BU142: N/A | BV142: N/A | BW142: N/A | BX142: N/A | BY142: N/A | BZ142: N/A | CA142: N/A | CB142: N/A
B143: Emptied and removed offsite | C143: N/A | D143: N/A | E143: N/A | F143: N/A | G143: N/A | H143: N/A | I143: N/A | J143: N/A | K143: N/A | L143: N/A | M143: N/A | N143: N/A | O143: N/A | P143: N/A | Q143: N/A | R143: N/A | S143: N/A | T143: N/A | U143: N/A | V143: N/A | W143: N/A | X143: N/A | Y143: N/A | Z143: N/A | AA143: N/A | AB143: N/A | BB143: Emptied and removed offsite | BC143: N/A | BD143: N/A | BE143: N/A | BF143: N/A | BG143: N/A | BH143: N/A | BI143: N/A | BJ143: N/A | BK143: N/A | BL143: N/A | BM143: N/A | BN143: N/A | BO143: N/A | BP143: N/A | BQ143: N/A | BR143: N/A | BS143: N/A | BT143: N/A | BU143: N/A | BV143: N/A | BW143: N/A | BX143: N/A | BY143: N/A | BZ143: N/A | CA143: N/A | CB143: N/A
A144: Latrine emptying practices | B144: Not emptied/treated and disposed in situ | C144: N/A | D144: N/A | E144: N/A | F144: N/A | G144: N/A | H144: N/A | I144: N/A | J144: N/A | K144: N/A | L144: N/A | M144: N/A | N144: N/A | O144: N/A | P144: N/A | Q144: N/A | R144: N/A | S144: N/A | T144: N/A | U144: N/A | V144: N/A | W144: N/A | X144: N/A | Y144: N/A | Z144: N/A | AA144: N/A | AB144: N/A | BA144: Latrine emptying practices | BB144: Not emptied/treated and disposed in situ | BC144: N/A | BD144: N/A | BE144: N/A | BF144: N/A | BG144: N/A | BH144: N/A | BI144: N/A | BJ144: N/A | BK144: N/A | BL144: N/A | BM144: N/A | BN144: N/A | BO144: N/A | BP144: N/A | BQ144: N/A | BR144: N/A | BS144: N/A | BT144: N/A | BU144: N/A | BV144: N/A | BW144: N/A | BX144: N/A | BY144: N/A | BZ144: N/A | CA144: N/A | CB144: N/A
B145: Emptied and buried on site | C145: N/A | D145: N/A | E145: N/A | F145: N/A | G145: N/A | H145: N/A | I145: N/A | J145: N/A | K145: N/A | L145: N/A | M145: N/A | N145: N/A | O145: N/A | P145: N/A | Q145: N/A | R145: N/A | S145: N/A | T145: N/A | U145: N/A | V145: N/A | W145: N/A | X145: N/A | Y145: N/A | Z145: N/A | AA145: N/A | AB145: N/A | BB145: Emptied and buried on site | BC145: N/A | BD145: N/A | BE145: N/A | BF145: N/A | BG145: N/A | BH145: N/A | BI145: N/A | BJ145: N/A | BK145: N/A | BL145: N/A | BM145: N/A | BN145: N/A | BO145: N/A | BP145: N/A | BQ145: N/A | BR145: N/A | BS145: N/A | BT145: N/A | BU145: N/A | BV145: N/A | BW145: N/A | BX145: N/A | BY145: N/A | BZ145: N/A | CA145: N/A | CB145: N/A
B146: Emptied and discharged locally | C146: N/A | D146: N/A | E146: N/A | F146: N/A | G146: N/A | H146: N/A | I146: N/A | J146: N/A | K146: N/A | L146: N/A | M146: N/A | N146: N/A | O146: N/A | P146: N/A | Q146: N/A | R146: N/A | S146: N/A | T146: N/A | U146: N/A | V146: N/A | W146: N/A | X146: N/A | Y146: N/A | Z146: N/A | AA146: N/A | AB146: N/A | BB146: Emptied and discharged locally | BC146: N/A | BD146: N/A | BE146: N/A | BF146: N/A | BG146: N/A | BH146: N/A | BI146: N/A | BJ146: N/A | BK146: N/A | BL146: N/A | BM146: N/A | BN146: N/A | BO146: N/A | BP146: N/A | BQ146: N/A | BR146: N/A | BS146: N/A | BT146: N/A | BU146: N/A | BV146: N/A | BW146: N/A | BX146: N/A | BY146: N/A | BZ146: N/A | CA146: N/A | CB146: N/A
B147: Emptied and removed offsite | C147: N/A | D147: N/A | E147: N/A | F147: N/A | G147: N/A | H147: N/A | I147: N/A | J147: N/A | K147: N/A | L147: N/A | M147: N/A | N147: N/A | O147: N/A | P147: N/A | Q147: N/A | R147: N/A | S147: N/A | T147: N/A | U147: N/A | V147: N/A | W147: N/A | X147: N/A | Y147: N/A | Z147: N/A | AA147: N/A | AB147: N/A | BB147: Emptied and removed offsite | BC147: N/A | BD147: N/A | BE147: N/A | BF147: N/A | BG147: N/A | BH147: N/A | BI147: N/A | BJ147: N/A | BK147: N/A | BL147: N/A | BM147: N/A | BN147: N/A | BO147: N/A | BP147: N/A | BQ147: N/A | BR147: N/A | BS147: N/A | BT147: N/A | BU147: N/A | BV147: N/A | BW147: N/A | BX147: N/A | BY147: N/A | BZ147: N/A | CA147: N/A | CB147: N/A
A148: Shared among improved sanitation facilities | B148: Yes | C148: 2.858789576 | D148: 5.148555255 | E148: 14.88495107 | F148: 22.16182018 | G148: 13.14791227 | H148: 17.78871362 | I148: 28.70942804 | J148: 21.99368594 | K148: 17.03787403 | L148: 11.98329981 | M148: 2.291876421 | N148: 3.94085544 | O148: 3.973533983 | P148: 6.837362028 | Q148: 10.60183672 | R148: 26.38809182 | S148: 4.788615331 | T148: 9.765943193 | U148: 6.856269569 | V148: 1.879896653 | W148: 3.121694066 | X148: 4.673542981 | Y148: 11.72041298 | Z148: 1.476975445 | AA148: 13.85594959 | AB148: 10.23204733 | BA148: Shared among improved sanitation facilities | BB148: Yes | BC148: N/A | BD148: N/A | BE148: N/A | BF148: N/A | BG148: N/A | BH148: N/A | BI148: N/A | BJ148: N/A | BK148: N/A | BL148: N/A | BM148: N/A | BN148: N/A | BO148: N/A | BP148: N/A | BQ148: N/A | BR148: N/A | BS148: N/A | BT148: N/A | BU148: N/A | BV148: N/A | BW148: N/A | BX148: N/A | BY148: N/A | BZ148: N/A | CA148: N/A | CB148: N/A
B149: No | C149: 5.275273284 | D149: 11.6827151 | E149: 31.39001477 | F149: 50.38950448 | G149: 73.48023409 | H149: 27.03585655 | I149: 41.62022682 | J149: 53.0798037 | K149: 67.52280139 | L149: 80.65481171 | M149: 3.889310206 | N149: 6.905039716 | O149: 10.05222607 | P149: 24.74573563 | Q149: 50.936807 | R149: 54.76104885 | S149: 40.79095117 | T149: 18.32500078 | U149: 20.53136707 | V149: 6.55864861 | W149: 34.79344709 | X149: 24.54811403 | Y149: 38.09312128 | Z149: 18.25290308 | AA149: 44.69420525 | AB149: 17.50372158 | BB149: No | BC149: N/A | BD149: N/A | BE149: N/A | BF149: N/A | BG149: N/A | BH149: N/A | BI149: N/A | BJ149: N/A | BK149: N/A | BL149: N/A | BM149: N/A | BN149: N/A | BO149: N/A | BP149: N/A | BQ149: N/A | BR149: N/A | BS149: N/A | BT149: N/A | BU149: N/A | BV149: N/A | BW149: N/A | BX149: N/A | BY149: N/A | BZ149: N/A | CA149: N/A | CB149: N/A
B150: DK/missing | C150: 91.86593714 | D150: 83.16872964 | E150: 53.72503416 | F150: 27.44867534 | G150: 13.37185364 | H150: 55.17542982 | I150: 29.67034513 | J150: 24.92651036 | K150: 15.43932458 | L150: 7.36188848 | M150: 93.81881337 | N150: 89.15410484 | O150: 85.97423995 | P150: 68.41690234 | Q150: 38.46135627 | R150: 18.85085933 | S150: 54.4204335 | T150: 71.90905602 | U150: 72.61236336 | V150: 91.56145474 | W150: 62.08485884 | X150: 70.77834299 | Y150: 50.18646574 | Z150: 80.27012147 | AA150: 41.44984516 | AB150: 72.2642311 | BB150: DK/missing | BC150: N/A | BD150: N/A | BE150: N/A | BF150: N/A | BG150: N/A | BH150: N/A | BI150: N/A | BJ150: N/A | BK150: N/A | BL150: N/A | BM150: N/A | BN150: N/A | BO150: N/A | BP150: N/A | BQ150: N/A | BR150: N/A | BS150: N/A | BT150: N/A | BU150: N/A | BV150: N/A | BW150: N/A | BX150: N/A | BY150: N/A | BZ150: N/A | CA150: N/A | CB150: N/A
A151: Shared among all sanitation facilities | B151: Yes | C151: 31.01508288 | D151: 29.7502474 | E151: 29.3546234 | F151: 29.97646721 | G151: 15.00009752 | H151: 32.80570639 | I151: 37.0637276 | J151: 30.53644372 | K151: 20.41043986 | L151: 12.28438418 | M151: 29.69798146 | N151: 32.29033242 | O151: 30.85737181 | P151: 25.52663075 | Q151: 17.40951877 | R151: 33.20852623 | S151: 13.54636769 | T151: 33.58408803 | U151: 33.93261093 | V151: 24.57763566 | W151: 9.828336991 | X151: 19.86231796 | Y151: 22.64278829 | Z151: 15.69008989 | AA151: 24.78237977 | AB151: 32.09249904 | BA151: Shared among all sanitation facilities | BB151: Yes | BC151: N/A | BD151: N/A | BE151: N/A | BF151: N/A | BG151: N/A | BH151: N/A | BI151: N/A | BJ151: N/A | BK151: N/A | BL151: N/A | BM151: N/A | BN151: N/A | BO151: N/A | BP151: N/A | BQ151: N/A | BR151: N/A | BS151: N/A | BT151: N/A | BU151: N/A | BV151: N/A | BW151: N/A | BX151: N/A | BY151: N/A | BZ151: N/A | CA151: N/A | CB151: N/A
B152: No | C152: 68.98491712 | D152: 69.64510511 | E152: 70.27035665 | F152: 70.02353279 | G152: 84.9064107 | H152: 67.19429361 | I152: 62.9362724 | J152: 69.46355628 | K152: 79.40523199 | L152: 87.68640876 | M152: 70.30201854 | N152: 66.69456274 | O152: 68.90433438 | P152: 73.65770051 | Q152: 82.59048123 | R152: 66.77599054 | S152: 86.00094868 | T152: 66.41591197 | U152: 65.09141987 | V152: 75.42236434 | W152: 90.17166301 | X152: 79.55258146 | Y152: 76.85891522 | Z152: 84.24000881 | AA152: 75.21762023 | AB152: 67.90750096 | BB152: No | BC152: N/A | BD152: N/A | BE152: N/A | BF152: N/A | BG152: N/A | BH152: N/A | BI152: N/A | BJ152: N/A | BK152: N/A | BL152: N/A | BM152: N/A | BN152: N/A | BO152: N/A | BP152: N/A | BQ152: N/A | BR152: N/A | BS152: N/A | BT152: N/A | BU152: N/A | BV152: N/A | BW152: N/A | BX152: N/A | BY152: N/A | BZ152: N/A | CA152: N/A | CB152: N/A
A153: Type of toilet facility | B153: Flush toilet | C153: 0 | D153: 0.01763677518 | E153: 2.528583879 | F153: 5.560428919 | G153: 27.72052384 | H153: 3.1480233 | I153: 7.269070322 | J153: 6.688922383 | K153: 21.93218958 | L153: 40.61765915 | M153: 0 | N153: 0 | O153: 0 | P153: 0.03191491927 | Q153: 1.767279105 | R153: 27.12041342 | S153: 0.4722264636 | T153: 0.02202260562 | U153: 2.819850569 | V153: 0.05203694829 | W153: 0 | X153: 0.3663779489 | Y153: 4.700915699 | Z153: 0 | AA153: 1.249765961 | AB153: 0.6921355052 | BA153: Type of toilet facility | BB153: Flush toilet | BC153: 0 | BD153: 2.317533 | BE153: 331.321027 | BF153: 732.545737 | BG153: 3630.854505 | BH153: 181.518794 | BI153: 420.609567 | BJ153: 384.001515 | BK153: 1264.6182 | BL153: 2314.402833 | BM153: 0 | BN153: 0 | BO153: 0 | BP153: 2.317533 | BQ153: 129.57036 | BR153: 4101.641991 | BS153: 31.878049 | BT153: 0.830204 | BU153: 218.209227 | BV153: 2.802928 | BW153: 0 | BX153: 8.997804 | BY153: 201.156921 | BZ153: 0 | CA153: 112.335246 | CB153: 19.186432
B154: Flush toilet with drainage | C154: 1.870313624 | D154: 7.302468512 | E154: 29.05378149 | F154: 54.45088767 | G154: 52.79917796 | H154: 29.8681854 | I154: 51.35697093 | J154: 57.98663471 | K154: 55.41705062 | L154: 48.26116482 | M154: 1.042117609 | N154: 3.76557272 | O154: 4.990601012 | P154: 15.07280743 | Q154: 45.11838223 | R154: 47.79317291 | S154: 39.85907657 | T154: 17.94093728 | U154: 16.22282862 | V154: 3.306534813 | W154: 21.13551732 | X154: 7.335772979 | Y154: 22.93528193 | Z154: 10.7685756 | AA154: 47.7509777 | AB154: 10.2853198 | BB154: Flush toilet with drainage | BC154: 246.393466 | BD154: 959.569512 | BE154: 3806.924817 | BF154: 7173.505177 | BG154: 6915.674981 | BH154: 1722.235345 | BI154: 2971.663823 | BJ154: 3328.930178 | BK154: 3195.367729 | BL154: 2749.931407 | BM154: 77.210819 | BN154: 279.135589 | BO154: 375.153727 | BP154: 1094.526617 | BQ154: 3307.912719 | BR154: 7228.152532 | BS154: 2690.720859 | BT154: 676.334043 | BU154: 1255.375349 | BV154: 178.103815 | BW154: 871.190923 | BX154: 180.157806 | BY154: 981.423831 | BZ154: 463.395377 | CA154: 4292.097877 | CB154: 285.115541
B155: Traditional pit toilet | C155: 38.3732337 | D155: 44.60822556 | E155: 36.78550281 | F155: 25.3826426 | G155: 11.87983198 | H155: 40.26249706 | I155: 26.08453324 | J155: 23.93873883 | K155: 14.10196811 | L155: 6.296798728 | M155: 38.4893136 | N155: 40.18953945 | O155: 44.87689943 | P155: 37.2195329 | Q155: 32.09032349 | R155: 16.29474989 | S155: 21.34895537 | T155: 18.73215168 | U155: 37.36989698 | V155: 79.56759501 | W155: 26.47233193 | X155: 42.81317795 | Y155: 32.47803153 | Z155: 49.13963256 | AA155: 17.00599588 | AB155: 60.3169794 | BB155: Traditional pit toilet | BC155: 5055.255938 | BD155: 5861.674469 | BE155: 4820.014345 | BF155: 3343.977039 | BG155: 1556.029089 | BH155: 2321.583805 | BI155: 1509.327018 | BJ155: 1374.288929 | BK155: 813.124721 | BL155: 358.792927 | BM155: 2851.68526 | BN155: 2979.183142 | BO155: 3373.488691 | BP155: 2702.732694 | BQ155: 2352.743693 | BR155: 2464.388332 | BS155: 1441.179387 | BT155: 706.161093 | BU155: 2891.804418 | BV155: 4285.843949 | BW155: 1091.170608 | BX155: 1051.440418 | BY155: 1389.767705 | BZ155: 2114.585939 | CA155: 1528.584384 | CB155: 1672.024647
B156: Ventilated improved pit latrine | C156: 6.270440372 | D156: 9.926995811 | E156: 15.15248369 | F156: 12.55608047 | G156: 6.784280894 | H156: 11.80836147 | I156: 11.78531045 | J156: 10.42132948 | K156: 7.395021148 | L156: 4.824377304 | M156: 5.14811004 | N156: 7.593092032 | O156: 9.197053433 | P156: 16.92404329 | Q156: 15.4362644 | R156: 6.42187886 | S156: 6.192693117 | T156: 10.12798409 | U156: 8.9842129 | V156: 5.138371317 | W156: 16.77962384 | X156: 21.72584199 | Y156: 22.3708822 | Z156: 8.961302922 | AA156: 9.800393081 | AB156: 16.83323633 | BB156: Ventilated improved pit latrine | BC156: 826.06228 | BD156: 1304.441438 | BE156: 1985.434021 | BF156: 1654.171531 | BG156: 888.610078 | BH156: 680.884266 | BI156: 681.932366 | BJ156: 598.273695 | BK156: 426.399667 | BL156: 274.894042 | BM156: 381.42508 | BN156: 562.863175 | BO156: 691.361394 | BP156: 1228.955915 | BQ156: 1131.729748 | BR156: 971.233277 | BS156: 418.043015 | BT156: 381.802819 | BU156: 695.227674 | BV156: 276.774202 | BW156: 691.644106 | BX156: 533.560681 | BY156: 957.272598 | BZ156: 385.624478 | CA156: 880.908588 | CB156: 466.62791
B157: No facility, bush, field | C157: 53.39996682 | D157: 38.01024585 | E157: 16.212984 | F157: 1.730435976 | G157: 0.4855304364 | H157: 14.57181517 | I157: 2.776619825 | J157: 0.9643745933 | K157: 0.4026581234 | L157: 0 | M157: 55.27069873 | N157: 48.35899658 | O157: 40.91715968 | P157: 30.41485283 | Q157: 5.48039936 | R157: 1.835007749 | S157: 31.94226124 | T157: 53.14195664 | U157: 34.50044805 | V157: 11.93546191 | W157: 35.33745005 | X157: 27.5409085 | Y157: 17.10081174 | Z157: 31.13048891 | AA157: 24.19286738 | AB157: 11.42812397 | BB157: No facility, bush, field | BC157: 7034.864495 | BD157: 4994.677211 | BE157: 2124.391662 | BF157: 227.972251 | BG157: 63.595132 | BH157: 840.228316 | BI157: 160.663305 | BJ157: 55.363373 | BK157: 23.217417 | BL157: 0 | BM157: 4095.023323 | BN157: 3584.771295 | BO157: 3075.826922 | BP157: 2208.604212 | BQ157: 401.802588 | BR157: 277.523234 | BS157: 2156.289508 | BT157: 2003.335379 | BU157: 2669.757108 | BV157: 642.893972 | BW157: 1456.584443 | BX157: 676.371756 | BY157: 731.760971 | BZ157: 1339.613072 | CA157: 2174.576516 | CB157: 316.794792
B158: OTHER | C158: 0.08604548313 | D158: 0.1344274888 | E158: 0.2666641391 | F158: 0.3195243642 | G158: 0.3306549011 | H158: 0.3411175932 | I158: 0.727495238 | J158: 0 | K158: 0.7511124163 | L158: 0 | M158: 0.04976002788 | N158: 0.09279921314 | O158: 0.01828645 | P158: 0.3368486313 | Q158: 0.1073514117 | R158: 0.534777174 | S158: 0.1847872433 | T158: 0.0349477066 | U158: 0.1027628857 | V158: 0 | W158: 0.2750768689 | X158: 0.2179206342 | Y158: 0.414076902 | Z158: 0 | AA158: 0 | AB158: 0.4442049896 | BB158: OTHER | BC158: 11.335556 | BD158: 17.664235 | BE158: 34.941074 | BF158: 42.094992 | BG158: 43.309421 | BH158: 19.669249 | BI158: 42.094992 | BJ158: 0 | BK158: 43.309421 | BL158: 0 | BM158: 3.686736 | BN158: 6.87905 | BO158: 1.37463 | BP158: 24.460592 | BQ158: 7.870608 | BR158: 80.878727 | BS158: 12.47422 | BT158: 1.317452 | BU158: 7.952127 | BV158: 0 | BW158: 11.338472 | BX158: 5.35187 | BY158: 17.718768 | BZ158: 0 | CA158: 0 | CB158: 12.313642
BB159: Total | BC159: 13173.91174 | BD159: 13140.3444 | BE159: 13103.02695 | BF159: 13174.26673 | BG159: 13098.07321 | BH159: 5766.119775 | BI159: 5786.291071 | BJ159: 5740.85769 | BK159: 5766.037155 | BL159: 5698.021209 | BM159: 7409.031218 | BN159: 7412.832251 | BO159: 7517.205364 | BP159: 7261.597563 | BQ159: 7331.629716 | BR159: 15123.81809 | BS159: 6750.585038 | BT159: 3769.78099 | BU159: 7738.325903 | BV159: 5386.418866 | BW159: 4121.928552 | BX159: 2455.880335 | BY159: 4279.100794 | BZ159: 4303.218866 | CA159: 8988.502611 | CB159: 2772.062964
A208: =A1026 -> Senegal
A209: =A1034 -> 2005
A210: Access to hygiene facilities
A211: by wealth quintile and sub-national region
A212: Notes:
A213: WHO/UNICEF JMP customised wealth index excludes water,
A214: sanitation and hygiene assets.
A215: Survey used for analysis: | B215: =A1025 -> DHS05
A220: Access to handwashing | C220: NATIONAL wealth index quintile | H220: URBAN wealth index quintile | M220: RURAL wealth index quintile | R220: SUB-REGIONS: | BA220: Raw numbers of respondents: | BB220: Access to handwashing | BC220: NATIONAL wealth index quintile | BH220: URBAN wealth index quintile | BM220: RURAL wealth index quintile | BR220: SUB-REGIONS:
A221: Weighted percentage (used in graphs) | C221: Poorest | D221: Poor | E221: Middle | F221: Rich | G221: Richest | H221: Poorest | I221: Poor | J221: Middle | K221: Rich | L221: Richest | M221: Poorest | N221: Poor | O221: Middle | P221: Rich | Q221: Richest | R221: Dakar | S221: Diourbel | T221: Fatick | U221: Kaolack | V221: Kolda | W221: Louga | X221: Matam | Y221: Saint-Louis | Z221: Tambacounda | AA221: Thiès | AB221: Zuguinchor | BA221: Hygiene data, raw numbers (weighted) | BC221: Poorest | BD221: Poor | BE221: Middle | BF221: Rich | BG221: Richest | BH221: Poorest | BI221: Poor | BJ221: Middle | BK221: Rich | BL221: Richest | BM221: Poorest | BN221: Poor | BO221: Middle | BP221: Rich | BQ221: Richest | BR221: Dakar | BS221: Diourbel | BT221: Fatick | BU221: Kaolack | BV221: Kolda | BW221: Louga | BX221: Matam | BY221: Saint-Louis | BZ221: Tambacounda | CA221: Thiès | CB221: Zuguinchor
A222: Hygiene ladder | B222: Basic | C222: 18.33147338 | D222: 26.85746368 | E222: 46.5479844 | F222: 55.97124142 | G222: 71.02345353 | H222: 43.54857315 | I222: 56.10929067 | J222: 55.99285305 | K222: 65.59326328 | L222: 75.91112849 | M222: 17.78745785 | N222: 17.28717453 | O222: 26.53440742 | P222: 39.48058199 | Q222: 56.83852941 | R222: 58.05319736 | S222: 61.39074817 | T222: 34.95650624 | U222: 28.17163607 | V222: 7.579621787 | W222: 57.24755801 | X222: 31.90557171 | Y222: 55.79524054 | Z222: 21.12801989 | AA222: 55.52602623 | AB222: 16.18307163 | BA222: Hygiene ladder | BB222: Basic | BC222: 2410.421104 | BD222: 3529.278818 | BE222: 6123.4024 | BF222: 7303.462297 | BG222: 9365.221224 | BH222: 2510.448792 | BI222: 3229.479582 | BJ222: 3210.191846 | BK222: 3782.131932 | BL222: 4373.784095 | BM222: 1315.079155 | BN222: 1277.963318 | BO222: 1991.188849 | BP222: 2869.416314 | BQ222: 4172.10196 | BR222: 8778.354792 | BS222: 4191.495946 | BT222: 1315.944196 | BU222: 2172.260822 | BV222: 410.880427 | BW222: 2359.703439 | BX222: 772.451768 | BY222: 2374.233417 | BZ222: 896.330894 | CA222: 5012.352628 | CB222: 447.777514
B223: Limited | C223: 61.66485515 | D223: 53.11910607 | E223: 40.36941269 | F223: 30.86884022 | G223: 20.72351306 | H223: 43.1262428 | I223: 30.9514673 | J223: 34.72534709 | K223: 23.62495583 | L223: 18.38322892 | M223: 61.88228796 | N223: 59.84865776 | O223: 54.81434217 | P223: 46.9934845 | Q223: 26.58819949 | R223: 31.26492687 | S223: 24.29964151 | T223: 58.02797163 | U223: 54.26119452 | V223: 64.50646104 | W223: 21.2064998 | X223: 46.67432189 | Y223: 32.09399329 | Z223: 67.62253991 | AA223: 36.75782031 | AB223: 48.82935463 | BB223: Limited | BC223: 8108.364512 | BD223: 6980.262103 | BE223: 5310.609293 | BF223: 4027.950872 | BG223: 2732.622461 | BH223: 2486.102674 | BI223: 1781.472025 | BJ223: 1990.87955 | BK223: 1362.223731 | BL223: 1059.189553 | BM223: 4575.139834 | BN223: 4424.342978 | BO223: 4113.365155 | BP223: 3415.447906 | BQ223: 1951.645835 | BR223: 4727.640045 | BS223: 1659.074892 | BT223: 2184.473813 | BU223: 4183.976633 | BV223: 3496.802743 | BW223: 874.11677 | BX223: 1130.011485 | BY223: 1365.683356 | BZ223: 2868.805121 | CA223: 3318.140514 | CB223: 1351.083869
B224: No facility | C224: 20.00367147 | D224: 20.02343025 | E224: 13.08260291 | F224: 13.15991837 | G224: 8.253033412 | H224: 13.32518405 | I224: 12.93924203 | J224: 9.281799858 | K224: 10.78178089 | L224: 5.705642598 | M224: 20.33025418 | N224: 22.86416771 | O224: 18.6512504 | P224: 13.52593352 | Q224: 16.5732711 | R224: 10.68187578 | S224: 14.30961031 | T224: 7.015522134 | U224: 17.56716941 | V224: 27.91391717 | W224: 21.54594219 | X224: 21.42010641 | Y224: 12.11076617 | Z224: 11.2494402 | AA224: 7.716153465 | AB224: 34.98757374 | BB224: No facility | BC224: 2630.29986 | BD224: 2631.233876 | BE224: 1721.020643 | BF224: 1717.184847 | BG224: 1088.252962 | BH224: 768.158169 | BI224: 744.743294 | BJ224: 532.14574 | BK224: 621.681492 | BL224: 328.742957 | BM224: 1503.075578 | BN224: 1690.245423 | BO224: 1399.622808 | BP224: 983.053753 | BQ224: 1216.522974 | BR224: 1615.230507 | BS224: 976.998577 | BT224: 264.100639 | BU224: 1354.570738 | BV224: 1513.173418 | BW224: 888.108343 | BX224: 518.592778 | BY224: 515.344776 | BZ224: 477.244003 | CA224: 696.539708 | CB224: 968.088701
A225: Place for hand washing | B225: Nowhere | C225: 10.26492937 | D225: 9.179915622 | E225: 5.733701311 | F225: 5.426468111 | G225: 1.759092211 | H225: 4.22221649 | I225: 4.655522876 | J225: 3.540892629 | K225: 2.191644393 | L225: 1.20944751 | M225: 12.30241324 | N225: 10.36934346 | O225: 8.812251698 | P225: 6.771673776 | Q225: 6.930743976 | R225: 2.307892384 | S225: 5.577332817 | T225: 0.6419647737 | U225: 8.365614399 | V225: 11.50763153 | W225: 20.29120152 | X225: 15.69608946 | Y225: 8.590472571 | Z225: 4.36368158 | AA225: 0.8594948339 | AB225: 13.74920301 | BA225: Observed handwashing place | BB225: Fixed | BC225: N/A | BD225: N/A | BE225: N/A | BF225: N/A | BG225: N/A | BH225: N/A | BI225: N/A | BJ225: N/A | BK225: N/A | BL225: N/A | BM225: N/A | BN225: N/A | BO225: N/A | BP225: N/A | BQ225: N/A | BR225: N/A | BS225: N/A | BT225: N/A | BU225: N/A | BV225: N/A | BW225: N/A | BX225: N/A | BY225: N/A | BZ225: N/A | CA225: N/A | CB225: N/A
B226: In dwelling/yard/plot | C226: 79.77994778 | D226: 79.76205543 | E226: 86.71616965 | F226: 85.9926681 | G226: 91.74696659 | H226: 86.65361909 | I226: 86.49992616 | J226: 90.56923631 | K226: 89.21821911 | L226: 94.2943574 | M226: 79.38441566 | N226: 76.92479882 | O226: 81.08778958 | P226: 86.16253304 | Q226: 82.47528581 | R226: 89.11492437 | S226: 85.48586714 | T226: 92.85467825 | U226: 82.13969707 | V226: 72.04835959 | W226: 78.45405781 | X226: 77.10200913 | Y226: 87.39959522 | Z226: 87.49580563 | AA226: 92.28384654 | AB226: 64.71769315 | BB226: Mobile | BC226: N/A | BD226: N/A | BE226: N/A | BF226: N/A | BG226: N/A | BH226: N/A | BI226: N/A | BJ226: N/A | BK226: N/A | BL226: N/A | BM226: N/A | BN226: N/A | BO226: N/A | BP226: N/A | BQ226: N/A | BR226: N/A | BS226: N/A | BT226: N/A | BU226: N/A | BV226: N/A | BW226: N/A | BX226: N/A | BY226: N/A | BZ226: N/A | CA226: N/A | CB226: N/A
B227: Somewhere else | C227: 9.6846345 | D227: 10.78980749 | E227: 7.318613315 | F227: 7.605031527 | G227: 6.493941201 | H227: 9.099708807 | I227: 8.200366583 | J227: 5.725666049 | K227: 8.590136496 | L227: 4.496195088 | M227: 7.955029935 | N227: 12.4322709 | O227: 9.779167049 | P227: 6.705530902 | Q227: 9.453516665 | R227: 8.34968199 | S227: 8.698123863 | T227: 6.363764198 | U227: 9.139085648 | V227: 16.39167806 | W227: 1.254740672 | X227: 5.321160168 | Y227: 3.452823458 | Z227: 6.726714188 | AA227: 6.856658631 | AB227: 21.07975496 | BA227: Water / Soap | BB227: Water and soap | BC227: N/A | BD227: N/A | BE227: N/A | BF227: N/A | BG227: N/A | BH227: N/A | BI227: N/A | BJ227: N/A | BK227: N/A | BL227: N/A | BM227: N/A | BN227: N/A | BO227: N/A | BP227: N/A | BQ227: N/A | BR227: N/A | BS227: N/A | BT227: N/A | BU227: N/A | BV227: N/A | BW227: N/A | BX227: N/A | BY227: N/A | BZ227: N/A | CA227: N/A | CB227: N/A
B228: missing | C228: 0.2704883563 | D228: 0.2682214553 | E228: 0.2315157215 | F228: 0.9758322635 | G228: 0 | H228: 0.02445561409 | I228: 0.6441843767 | J228: 0.1642050129 | K228: 0 | L228: 0 | M228: 0.3581411609 | N228: 0.2735868196 | O228: 0.3207916688 | P228: 0.3602622858 | Q228: 1.140453552 | R228: 0.2275012515 | S228: 0.238676179 | T228: 0.1395927778 | U228: 0.3556028829 | V228: 0.05233082018 | W228: 0 | X228: 1.880741238 | Y228: 0.5571087513 | Z228: 1.413798598 | AA228: 0 | AB228: 0.4533488801 | BB228: Water only | BC228: N/A | BD228: N/A | BE228: N/A | BF228: N/A | BG228: N/A | BH228: N/A | BI228: N/A | BJ228: N/A | BK228: N/A | BL228: N/A | BM228: N/A | BN228: N/A | BO228: N/A | BP228: N/A | BQ228: N/A | BR228: N/A | BS228: N/A | BT228: N/A | BU228: N/A | BV228: N/A | BW228: N/A | BX228: N/A | BY228: N/A | BZ228: N/A | CA228: N/A | CB228: N/A
BB229: Soap only | BC229: N/A | BD229: N/A | BE229: N/A | BF229: N/A | BG229: N/A | BH229: N/A | BI229: N/A | BJ229: N/A | BK229: N/A | BL229: N/A | BM229: N/A | BN229: N/A | BO229: N/A | BP229: N/A | BQ229: N/A | BR229: N/A | BS229: N/A | BT229: N/A | BU229: N/A | BV229: N/A | BW229: N/A | BX229: N/A | BY229: N/A | BZ229: N/A | CA229: N/A | CB229: N/A
BB230: Neither | BC230: N/A | BD230: N/A | BE230: N/A | BF230: N/A | BG230: N/A | BH230: N/A | BI230: N/A | BJ230: N/A | BK230: N/A | BL230: N/A | BM230: N/A | BN230: N/A | BO230: N/A | BP230: N/A | BQ230: N/A | BR230: N/A | BS230: N/A | BT230: N/A | BU230: N/A | BV230: N/A | BW230: N/A | BX230: N/A | BY230: N/A | BZ230: N/A | CA230: N/A | CB230: N/A
BA231: Place for hand washing | BB231: Nowhere | BC231: 1353.40514 | BD231: 1209.556328 | BE231: 756.020568 | BF231: 715.055755 | BG231: 231.955599 | BH231: 243.45806 | BI231: 269.695026 | BJ231: 203.340959 | BK231: 126.37103 | BL231: 69.684938 | BM231: 912.822844 | BN231: 768.662036 | BO231: 663.415129 | BP231: 493.939172 | BQ231: 514.604196 | BR231: 349.777356 | BS231: 381.707314 | BT231: 24.200666 | BU231: 647.358506 | BV231: 624.138819 | BW231: 836.388829 | BX231: 387.29514 | BY231: 367.59498 | BZ231: 187.778769 | CA231: 77.586881 | CB231: 382.16613
BB232: In dwelling/yard/plot | BC232: 10518.78562 | BD232: 10509.54092 | BE232: 11434.01169 | BF232: 11331.41317 | BG232: 12097.84368 | BH232: 4996.551466 | BI232: 5010.951607 | BJ232: 5201.071396 | BK232: 5144.355663 | BL232: 5432.973648 | BM232: 5890.218989 | BN232: 5702.306296 | BO232: 6104.554004 | BP232: 6284.86422 | BQ232: 6123.747795 | BR232: 13505.99484 | BS232: 5850.570838 | BT232: 3500.418009 | BU232: 6356.237455 | BV232: 3907.68317 | BW232: 3233.820209 | BX232: 1902.463253 | BY232: 3739.916773 | BZ232: 3765.136015 | CA232: 8330.493142 | CB232: 1798.861383
BB233: Somewhere else | BC233: 1276.89472 | BD233: 1421.677548 | BE233: 965.000075 | BF233: 1002.129092 | BG233: 856.297363 | BH233: 524.700109 | BI233: 475.048268 | BJ233: 328.804781 | BK233: 495.310462 | BL233: 259.058019 | BM233: 590.252734 | BN233: 921.583387 | BO233: 736.207679 | BP233: 489.114581 | BQ233: 701.918778 | BR233: 1265.453151 | BS233: 595.291263 | BT233: 239.899973 | BU233: 707.212232 | BV233: 889.034599 | BW233: 51.719514 | BX233: 131.297638 | BY233: 147.749796 | BZ233: 289.465234 | CA233: 618.952827 | CB233: 585.922571
BB234: missing | BC234: 35.66321 | BD234: 35.34117 | BE234: 30.526642 | BF234: 128.587225 | BG234: 0 | BH234: 1.41014 | BI234: 37.317682 | BJ234: 9.429714 | BK234: 0 | BL234: 0 | BM234: 26.573602 | BN234: 20.280532 | BO234: 24.150246 | BP234: 26.278238 | BQ234: 84.678093 | BR234: 34.479418 | BS234: 16.334769 | BT234: 5.262342 | BU234: 27.51771 | BV234: 2.838264 | BW234: 0 | BX234: 46.406587 | BY234: 23.839245 | BZ234: 60.838848 | CA234: 0 | CB234: 12.601064
BB235: Total | BC235: 13184.74869 | BD235: 13176.11597 | BE235: 13185.55898 | BF235: 13177.18524 | BG235: 13186.09665 | BH235: 5766.119775 | BI235: 5793.012583 | BJ235: 5742.64685 | BK235: 5766.037155 | BL235: 5761.716605 | BM235: 7419.868169 | BN235: 7412.832251 | BO235: 7528.327058 | BP235: 7294.196211 | BQ235: 7424.948862 | BR235: 15155.70476 | BS235: 6843.904184 | BT235: 3769.78099 | BU235: 7738.325903 | BV235: 5423.694852 | BW235: 4121.928552 | BX235: 2467.462618 | BY235: 4279.100794 | BZ235: 4303.218866 | CA235: 9027.03285 | CB235: 2779.551148
BA259: Raw numbers of respondents: | BB259: Menstrual health and hygiene | BC259: NATIONAL wealth index quintile | BH259: URBAN wealth index quintile | BM259: RURAL wealth index quintile | BR259: SUB-REGIONS:
BA260: MHH data, raw numbers (weighted) | BC260: Poorest | BD260: Poor | BE260: Middle | BF260: Rich | BG260: Richest | BH260: Poorest | BI260: Poor | BJ260: Middle | BK260: Rich | BL260: Richest | BM260: Poorest | BN260: Poor | BO260: Middle | BP260: Rich | BQ260: Richest | BR260: Dakar | BS260: Diourbel | BT260: Fatick | BU260: Kaolack | BV260: Kolda | BW260: Louga | BX260: Matam | BY260: Saint-Louis | BZ260: Tambacounda | CA260: Thiès | CB260: Zuguinchor
BA261: Private place to wash and change | BB261: Yes | BC261: N/A | BD261: N/A | BE261: N/A | BF261: N/A | BG261: N/A | BH261: N/A | BI261: N/A | BJ261: N/A | BK261: N/A | BL261: N/A | BM261: N/A | BN261: N/A | BO261: N/A | BP261: N/A | BQ261: N/A | BR261: N/A | BS261: N/A | BT261: N/A | BU261: N/A | BV261: N/A | BW261: N/A | BX261: N/A | BY261: N/A | BZ261: N/A | CA261: N/A | CB261: N/A
BB262: No | BC262: N/A | BD262: N/A | BE262: N/A | BF262: N/A | BG262: N/A | BH262: N/A | BI262: N/A | BJ262: N/A | BK262: N/A | BL262: N/A | BM262: N/A | BN262: N/A | BO262: N/A | BP262: N/A | BQ262: N/A | BR262: N/A | BS262: N/A | BT262: N/A | BU262: N/A | BV262: N/A | BW262: N/A | BX262: N/A | BY262: N/A | BZ262: N/A | CA262: N/A | CB262: N/A
BB263: DK/not sure/missing | BC263: N/A | BD263: N/A | BE263: N/A | BF263: N/A | BG263: N/A | BH263: N/A | BI263: N/A | BJ263: N/A | BK263: N/A | BL263: N/A | BM263: N/A | BN263: N/A | BO263: N/A | BP263: N/A | BQ263: N/A | BR263: N/A | BS263: N/A | BT263: N/A | BU263: N/A | BV263: N/A | BW263: N/A | BX263: N/A | BY263: N/A | BZ263: N/A | CA263: N/A | CB263: N/A
BA264: Use of menstrual materials | BB264: Materials reusable | BC264: N/A | BD264: N/A | BE264: N/A | BF264: N/A | BG264: N/A | BH264: N/A | BI264: N/A | BJ264: N/A | BK264: N/A | BL264: N/A | BM264: N/A | BN264: N/A | BO264: N/A | BP264: N/A | BQ264: N/A | BR264: N/A | BS264: N/A | BT264: N/A | BU264: N/A | BV264: N/A | BW264: N/A | BX264: N/A | BY264: N/A | BZ264: N/A | CA264: N/A | CB264: N/A
BB265: Materials not reusable | BC265: N/A | BD265: N/A | BE265: N/A | BF265: N/A | BG265: N/A | BH265: N/A | BI265: N/A | BJ265: N/A | BK265: N/A | BL265: N/A | BM265: N/A | BN265: N/A | BO265: N/A | BP265: N/A | BQ265: N/A | BR265: N/A | BS265: N/A | BT265: N/A | BU265: N/A | BV265: N/A | BW265: N/A | BX265: N/A | BY265: N/A | BZ265: N/A | CA265: N/A | CB265: N/A
BB266: No materials used | BC266: N/A | BD266: N/A | BE266: N/A | BF266: N/A | BG266: N/A | BH266: N/A | BI266: N/A | BJ266: N/A | BK266: N/A | BL266: N/A | BM266: N/A | BN266: N/A | BO266: N/A | BP266: N/A | BQ266: N/A | BR266: N/A | BS266: N/A | BT266: N/A | BU266: N/A | BV266: N/A | BW266: N/A | BX266: N/A | BY266: N/A | BZ266: N/A | CA266: N/A | CB266: N/A
BB267: DK/not sure/missing | BC267: N/A | BD267: N/A | BE267: N/A | BF267: N/A | BG267: N/A | BH267: N/A | BI267: N/A | BJ267: N/A | BK267: N/A | BL267: N/A | BM267: N/A | BN267: N/A | BO267: N/A | BP267: N/A | BQ267: N/A | BR267: N/A | BS267: N/A | BT267: N/A | BU267: N/A | BV267: N/A | BW267: N/A | BX267: N/A | BY267: N/A | BZ267: N/A | CA267: N/A | CB267: N/A
BA268: Use of menstrual materials with private place to wash and change | BB268: Materials reusable | BC268: N/A | BD268: N/A | BE268: N/A | BF268: N/A | BG268: N/A | BH268: N/A | BI268: N/A | BJ268: N/A | BK268: N/A | BL268: N/A | BM268: N/A | BN268: N/A | BO268: N/A | BP268: N/A | BQ268: N/A | BR268: N/A | BS268: N/A | BT268: N/A | BU268: N/A | BV268: N/A | BW268: N/A | BX268: N/A | BY268: N/A | BZ268: N/A | CA268: N/A | CB268: N/A
BB269: Materials not reusable | BC269: N/A | BD269: N/A | BE269: N/A | BF269: N/A | BG269: N/A | BH269: N/A | BI269: N/A | BJ269: N/A | BK269: N/A | BL269: N/A | BM269: N/A | BN269: N/A | BO269: N/A | BP269: N/A | BQ269: N/A | BR269: N/A | BS269: N/A | BT269: N/A | BU269: N/A | BV269: N/A | BW269: N/A | BX269: N/A | BY269: N/A | BZ269: N/A | CA269: N/A | CB269: N/A
BB270: No materials used | BC270: N/A | BD270: N/A | BE270: N/A | BF270: N/A | BG270: N/A | BH270: N/A | BI270: N/A | BJ270: N/A | BK270: N/A | BL270: N/A | BM270: N/A | BN270: N/A | BO270: N/A | BP270: N/A | BQ270: N/A | BR270: N/A | BS270: N/A | BT270: N/A | BU270: N/A | BV270: N/A | BW270: N/A | BX270: N/A | BY270: N/A | BZ270: N/A | CA270: N/A | CB270: N/A
BA271: Awareness of menstruation before menarche | BB271: Yes | BC271: N/A | BD271: N/A | BE271: N/A | BF271: N/A | BG271: N/A | BH271: N/A | BI271: N/A | BJ271: N/A | BK271: N/A | BL271: N/A | BM271: N/A | BN271: N/A | BO271: N/A | BP271: N/A | BQ271: N/A | BR271: N/A | BS271: N/A | BT271: N/A | BU271: N/A | BV271: N/A | BW271: N/A | BX271: N/A | BY271: N/A | BZ271: N/A | CA271: N/A | CB271: N/A
BB272: No | BC272: N/A | BD272: N/A | BE272: N/A | BF272: N/A | BG272: N/A | BH272: N/A | BI272: N/A | BJ272: N/A | BK272: N/A | BL272: N/A | BM272: N/A | BN272: N/A | BO272: N/A | BP272: N/A | BQ272: N/A | BR272: N/A | BS272: N/A | BT272: N/A | BU272: N/A | BV272: N/A | BW272: N/A | BX272: N/A | BY272: N/A | BZ272: N/A | CA272: N/A | CB272: N/A
BB273: DK/not sure/missing | BC273: N/A | BD273: N/A | BE273: N/A | BF273: N/A | BG273: N/A | BH273: N/A | BI273: N/A | BJ273: N/A | BK273: N/A | BL273: N/A | BM273: N/A | BN273: N/A | BO273: N/A | BP273: N/A | BQ273: N/A | BR273: N/A | BS273: N/A | BT273: N/A | BU273: N/A | BV273: N/A | BW273: N/A | BX273: N/A | BY273: N/A | BZ273: N/A | CA273: N/A | CB273: N/A
BA274: Participation in (all) activities during menstruation | BB274: Yes | BC274: N/A | BD274: N/A | BE274: N/A | BF274: N/A | BG274: N/A | BH274: N/A | BI274: N/A | BJ274: N/A | BK274: N/A | BL274: N/A | BM274: N/A | BN274: N/A | BO274: N/A | BP274: N/A | BQ274: N/A | BR274: N/A | BS274: N/A | BT274: N/A | BU274: N/A | BV274: N/A | BW274: N/A | BX274: N/A | BY274: N/A | BZ274: N/A | CA274: N/A | CB274: N/A
BB275: No | BC275: N/A | BD275: N/A | BE275: N/A | BF275: N/A | BG275: N/A | BH275: N/A | BI275: N/A | BJ275: N/A | BK275: N/A | BL275: N/A | BM275: N/A | BN275: N/A | BO275: N/A | BP275: N/A | BQ275: N/A | BR275: N/A | BS275: N/A | BT275: N/A | BU275: N/A | BV275: N/A | BW275: N/A | BX275: N/A | BY275: N/A | BZ275: N/A | CA275: N/A | CB275: N/A
BB276: DK/not sure/missing/no such activity | BC276: N/A | BD276: N/A | BE276: N/A | BF276: N/A | BG276: N/A | BH276: N/A | BI276: N/A | BJ276: N/A | BK276: N/A | BL276: N/A | BM276: N/A | BN276: N/A | BO276: N/A | BP276: N/A | BQ276: N/A | BR276: N/A | BS276: N/A | BT276: N/A | BU276: N/A | BV276: N/A | BW276: N/A | BX276: N/A | BY276: N/A | BZ276: N/A | CA276: N/A | CB276: N/A
BA277: Participation in specific activities during menstruation | BB277: Did not go to school (amongst those usually attending school) | BC277: N/A | BD277: N/A | BE277: N/A | BF277: N/A | BG277: N/A | BH277: N/A | BI277: N/A | BJ277: N/A | BK277: N/A | BL277: N/A | BM277: N/A | BN277: N/A | BO277: N/A | BP277: N/A | BQ277: N/A | BR277: N/A | BS277: N/A | BT277: N/A | BU277: N/A | BV277: N/A | BW277: N/A | BX277: N/A | BY277: N/A | BZ277: N/A | CA277: N/A | CB277: N/A
BB278: Did not go to work (amongst those who usually work) | BC278: N/A | BD278: N/A | BE278: N/A | BF278: N/A | BG278: N/A | BH278: N/A | BI278: N/A | BJ278: N/A | BK278: N/A | BL278: N/A | BM278: N/A | BN278: N/A | BO278: N/A | BP278: N/A | BQ278: N/A | BR278: N/A | BS278: N/A | BT278: N/A | BU278: N/A | BV278: N/A | BW278: N/A | BX278: N/A | BY278: N/A | BZ278: N/A | CA278: N/A | CB278: N/A
